Workbook

Sheet Design Regulator
A1: LM(2)5143/-Q1 Synchronous Buck Controller Design Tool
O2: http://www.ti.com/product/lm5175
A3: About | C3: xx | F3: = Input Box | O3: TERMS OF USE
A5: Step 1: Operating Specifications
D7: Input Voltage – Min, VIN(min) | E7: 12 | F7: V
D8: Input Voltage – Nom, VIN(nom) | E8: 12 | F8: V
D9: Input Voltage – Max, VIN(max) | E9: 12 | F9: V
D10: Output Voltage, VOUT | E10: 9.4 | F10: V | I10: Output Voltage, VOUT2 | J10: 5 | K10: V
D11: Full Load Output Current, IOUT | E11: 1.5 | F11: A | I11: Full Load Output Current, IOUT2 | J11: 10 | K11: A
D12: Switching Frequency, FSW | E12: 2200 | F12: kHz
D13: Frequency Set Resistor, RT | E13: =IF('Standard Value Calculator'!O4/1000>288, "N/A",'Standard Value Calculator'!O4/1000) -> 10 | F13: kΩ
D14: Ambient Temperature, TA | E14: 25 | F14: °C
A16: Step 2: Current Sense Resistors
D17: Required IOCP Setpoint at VIN(nom) | E17: 15 | F17: A | I17: Required IOCP Setpoint at VIN(nom) | J17: 15 | K17: A
D18: Recommended Sense Resistance | E18: =Rs_ideal*1000 -> 16.47539479 | F18: mΩ | I18: Recommended Sense Resistance | J18: =Rs2_ideal*1000 -> 4.823412317 | K18: mΩ
D19: Sense Resistance, RS | E19: 4 | F19: mΩ | I19: Sense Resistance, RS2 | J19: 4 | K19: mΩ
D20: Min Inductor Sat Current, ILO(SAT) | E20: ='Variable Management'!B95 -> 18.25 | F20: A | I20: Min Inductor Sat Current, ILO2(SAT) | J20: ='Variable Management'!D95 -> 18.25 | K20: A
D21: Max power loss in shunt | E21: ='Variable Management'!B105 -> 1.235318228 | F21: W | I21: Max power loss in shunt RS2 | J21: ='Variable Management'!D105 -> 1.312707495 | K21: W
D22: VIN(min) | E22: ='Variable Management'!B97 -> 70.27660073 | F22: A | I22: VIN(min) | J22: ='Variable Management'!D97 -> 18.11548626 | K22: A
C23: IOUT(typ) at OCP Inception: | D23: VIN(nom) | E23: ='Variable Management'!B98 -> 70.27660073 | F23: A | H23: IOUT2(typ) at OCP Inception: | I23: VIN(nom) | J23: ='Variable Management'!D98 -> 18.11548626 | K23: A
D24: VIN(max) | E24: ='Variable Management'!B99 -> 70.27660073 | F24: A | I24: VIN(max) | J24: ='Variable Management'!D99 -> 18.11548626 | K24: A
A26: Step 3: Buck Inductances
D27: Ch1 Recommended Inductance | E27: =Lopt*1000000 -> 0.7121212121 | F27: µH | I27: Ch2 Recommended Inductance | J27: =Lopt2*1000000 -> 0.3787878788 | K27: µH
D28: Ch1 Inductance, LO1 | E28: 0.68 | F28: µH | I28: Ch2 Inductance, LO2 | J28: 5 | K28: µH
D29: Ch1 Inductor DCR | E29: 4.5 | F29: mΩ | I29: Ch2 Inductor DCR | J29: 5 | K29: mΩ
D30: DIL as a % at VIN(nom) | E30: ='Variable Management'!B68*100 -> 363.1199026 | F30: % | I30: DIL2 as a % at VIN(nom) | J30: ='Variable Management'!D68*100 -> 2.690274841 | K30: %
A32: Step 4: Output Capacitors
D33: =IF(MODE=1, "Ch1 Output Voltage Ripple Spec", "Output Voltage Ripple Spec") -> Output Voltage Ripple Spec | E33: 50 | F33: mVpk-pk | I33: Ch2 Output Voltage Ripple Spec | J33: 50 | K33: mVpk-pk
D34: =IF(MODE=1, "Ch1 Minimum Output Capacitance", "Minimum Output Capacitance") -> Minimum Output Capacitance | E34: ='Variable Management'!B121 -> 2.2 | F34: µF | I34: Ch2 Minimum Output Capacitance | J34: ='Variable Management'!D121 -> 2.2 | K34: µF
D35: Output Capacitance (derated), COUT | E35: =47*4 -> 188 | F35: µF | I35: Ch2 Output Cap (derated), COUT2 | J35: 100 | K35: µF | L35: =CHOOSE(SCH_MODE, "", "** For Single-Output Operation in 2-Phase Mode, tie MODE to VDDA and use FB1 to set VOUT **", "** For Single-Output Operation in 3-Phase Mode, tie both MODE pins to VDDA. Use FB1 of master IC to set VOUT. Connect FB2 of master IC to AGND. Connect FB2 of slave IC to VDDA to configure it as a slave **", "** For Single-Output Operation in 4-Phase Mode, tie both MODE pins to VDDA. Use FB1 of master IC to set VOUT. Connect FB2 of master IC to AGND. Connect FB2 of slave IC to VDDA to configure it as a slave **") -> ** For Single-Output Operation in 4-Phase Mode, tie both MODE pins to VDDA. Use FB1 of master IC to set VOUT. Connect FB2 of master IC to AGND. Connect FB2 of slave IC to VDDA to configure it as a slave **
D36: =IF(MODE=1, "Ch1 Maximum Permitted ESR", "Maximum Permitted ESR") -> Maximum Permitted ESR | E36: ='Variable Management'!B125 -> 36.71757343 | F36: mΩ | I36: Ch2 Maximum Permitted ESR | J36: ='Variable Management'!D125 -> 185.8537484 | K36: mΩ
D37: =IF(MODE=1, "Ch1 Output Capacitor ESR", "Output Capacitor ESR") -> Output Capacitor ESR | E37: 0.1 | F37: mΩ | I37: Ch2 Output Capacitor ESR | J37: 2 | K37: mΩ | L37: =CHOOSE(SCH_MODE, "", "** Tie VCCX to GND if not used **", "** Slave controller (CNTRL2) not shown **","** Slave controller (CNTRL2) not shown **") -> ** Slave controller (CNTRL2) not shown ** | Q37: =IF(SCH_MODE=1, "** Tie VCCX to GND if not used **", "") -> 
D38: Resulting Output Voltage Ripple (max) | E38: ='Variable Management'!B127*1000 -> 0.433481783 | F38: mVpk-pk | I38: Resulting Output Voltage Ripple (max) | J38: ='Variable Management'!D127*1000 -> 0.5593462847 | K38: mVpk-pk | L38: =IF(OR(SCH_MODE=3, SCH_MODE=4),"** Tie VCCX to GND if not used **", "") -> ** Tie VCCX to GND if not used **
D39: Output Capacitor RMS Current (max) | E39: ='Variable Management'!B114 -> 0.3930888254 | F39: A (rms) | I39: Output Capacitor RMS Current (max) | J39: ='Variable Management'!D114 -> 0.07766154519 | K39: A (rms)
A41: Step 5: Input Capacitors
D42: Input Voltage Ripple Spec | E42: 300 | F42: mVpk-pk
D43: Minimum Input Capacitance | E43: ='Variable Management'!B145 -> 10 | F43: µF
D44: Input Capacitance, CIN | E44: 100 | F44: µF
D45: Maximum Permitted ESR | E45: ='Variable Management'!B150 -> 283.8573212 | F45: mΩ
D46: Input Capacitor ESR | E46: 7 | F46: mΩ
D47: Resulting Input Voltage Ripple (max) | E47: ='Variable Management'!B155*1000 -> 7.680085946 | F47: mVpk-pk
D48: Input Capacitor RMS Current (max) | E48: ='Variable Management'!B138 -> 0.1875 | F48: A (rms)
A50: Step 6: Soft-start, Hiccup, Dither, DEMB, MODE
D51: Soft-Start Time, tSS | E51: 2 | F51: ms
D52: Soft-Start Capacitance, CSS | E52: =IF(Tss>0.5/1000,Css_u*1000000000,"N/A") -> 68 | F52: nF
D53: Hiccup Fault Time, tRES | E53: 30 | F53: ms
D54: RES Capacitance, CRES | E54: =IF(Tres>1/1000,Cres_u*1000000000,"N/A") -> 470 | F54: nF
D55: Modulating Frequency | E55: 9 | F55: =IF(DITHER=1, "kHz", "") -> 
D56: =IF(DITHER=1, "DITH Capacitance, Cd", "*Tie DITH to VDDA") -> *Tie DITH to VDDA | E56: =IF(DITHER=1,IF(E55>0,'Standard Value Calculator'!O22*1000000000,"N/A"),"") ->  | F56: =IF(DITHER=1, "nF", "") -> 
D57: =IF(DEMB=1, "* Tie DEMB to VDDA", "*Tie DEMB to AGND") -> * Tie DEMB to VDDA
D58: =IF(MODE=2, "* Tie MODE to VDDA", "* Tie MODE to AGND") -> * Tie MODE to VDDA
A60: Step 7: Compensation Design
D61: =IF(MODE=1, "Ch1 Load Pole Frequency", "Load Pole Frequency") -> Load Pole Frequency | E61: =Fp_dominant -> 1202.287638 | F61: Hz | I61: Ch2 Load Pole Frequency | J61: =Fp_dominant_Ch2 -> 3989.694726 | K61: Hz
D62: =IF(MODE=1, "Ch1 ESR Zero Frequency", "ESR Zero Frequency") -> ESR Zero Frequency | E62: =Fesr/1000 -> 8465.688472 | F62: kHz | I62: Ch2 ESR Zero Frequency | J62: =Fesr_Ch2/1000 -> 795.7747164 | K62: kHz
D63: =IF(MODE=1, "Ch1 Desired Crossover Frequency", "Desired Crossover Frequency") -> Desired Crossover Frequency | E63: 100 | F63: =" kHz " -> kHz | I63: Ch2 Desired Crossover Frequency | J63: 51 | K63: =" kHz " -> kHz
D64: =IF(MODE=1, "Ch1 Error Amp Pole Frequency", "Error Amp Pole Frequency") -> Error Amp Pole Frequency | E64: =Fp1_u -> 2.486019108 | F64: Hz | I64: Ch2 Error Amp Pole Frequency | J64: =Fp1_u_Ch2 -> 0.9208815915 | K64: Hz
D65: =CHOOSE(Ch1_VOUT, "* Tie FB1 to VDDA for Ch1 3.3V Out", "* Tie FB1 to AGND for Ch1 5V Out", IF(MODE=1, "Ch1 Upper Feedback Resistor", "Upper Feedback Resistor")) -> Upper Feedback Resistor | E65: 220 | F65: kΩ | I65: =CHOOSE(Ch2_VOUT, "* Tie FB2 to VDDA for Ch2 3.3V Out", "* Tie FB2 to AGND for Ch2 5V Out", "Ch2 Upper Feedback Resistor") -> * Tie FB2 to AGND for Ch2 5V Out | J65: 115 | K65: kΩ
D66: =IF(Ch1_VOUT=3, IF(MODE=1,"Ch1 Lower Feedback Resistor","Lower Feedback Resistor"),"") -> Lower Feedback Resistor | E66: =IF(Vout=Vref,"OPEN",Rfb2_u/1000) -> 15 | F66: =IF(Vout=Vref,"","kΩ") -> kΩ | I66: =IF(Ch2_VOUT=3, "Ch2 Lower Feedback Resistor","") ->  | J66: =IF(Vout2=Vref,"OPEN",Rfb4_u/1000) -> 15.8 | K66: =IF(Vout=Vref,"","kΩ") -> kΩ
A68: Compensation Components
B69: Calculated / | C69: Std Values | D69: =C69 -> Std Values | F69: Actual P/Z Frequencies
A70: RC1 | B70: =Rcea1/1000 -> 18.5060751 | C70: ='Standard Value Calculator'!O30 -> 18.7 | D70: 20 | E70: kΩ | F70: =Fp1_u -> 2.486019108 | G70: Hz (FPEA)
A71: CC1 | B71: =Cc1ea*1000000000 -> 0.8600145757 | C71: ='Standard Value Calculator'!O31 -> 0.82 | D71: 1 | E71: nF | F71: =Fz1_u/1000 -> 7.957747164 | G71: kHz (FZCOMP)
A72: CC2 | B72: =IF(Cc2ea<0, "N/A", Cc2ea*1000000000000) -> 1.452116593 | C72: ='Standard Value Calculator'!O32 -> 1.5 | D72: 0 | E72: pF | F72: =Fp2_u/1000 -> 1250 | G72: kHz (FPCOMP)
A73: RC2 | B73: =Rcea2/1000 -> 10.68141501 | C73: ='Standard Value Calculator'!O34 -> 10.7 | D73: =C73 -> 10.7 | E73: kΩ | F73: =Fp1_u_Ch2 -> 0.9208815915 | G73: Hz (FPEA2)
A74: CC3 | B74: =Cc3ea*1000000000 -> 2.921602765 | C74: ='Standard Value Calculator'!O35 -> 2.7 | D74: 2.7 | E74: nF | F74: =Fz1_u_Ch2/1000 -> 5.50899769 | G74: kHz (FZCOMP2)
A75: CC4 | B75: =IF(Cc4ea<0, "N/A", Cc4ea*1000000000000) -> 12.35791324 | C75: =IF(1, 'Standard Value Calculator'!O36) -> 12 | D75: 12 | E75: pF | F75: =Fp2_u_Ch2/1000 -> 809.8733326 | G75: kHz (FPCOMP2) | N75: ** Specify Inductor Core Loss ** | O75: 0.3 | P75: W
A77: Efficiency / Power Loss Analyzer
A79: Step 8: Efficiency
F80: =IF(MODE=1, "Ch1 Power MOSFETs", "Power MOSFETs") -> Power MOSFETs | G80: (Q1, Q2) | I80: =IF(MODE=1, "Ch2 Power MOSFETs ", "Power MOSFETs ") -> Power MOSFETs | J80: (Q3, Q4)
E81: IPC50N04S5L-5R5 | H81: IPC50N04S5L-5R5
E82: High-side | F82: Low-side | H82: High-side | I82: Low-side
D83: On-State Resistance, RDS(on) | E83: 5.7 | F83: 5.7 | G83: mΩ | H83: 5.7 | I83: 5.7 | J83: mΩ
D84: Total Gate Charge, QG | E84: 9 | F84: 9 | G84: nC | H84: 9 | I84: 9 | J84: nC
D85: Gate-Drain Charge, QGD | E85: 3.6 | F85: 3.6 | G85: nC | H85: 3.6 | I85: 3.6 | J85: nC
D86: Gate-Source Charge, QGS | E86: 2.7 | F86: 2.7 | G86: nC | H86: 2.7 | I86: 2.7 | J86: nC
D87: Output Charge, QOSS | F87: 6 | G87: nC | I87: 6 | J87: nC
D88: Output Capacitance, COSS | E88: 300 | F88: 300 | G88: pF | H88: 300 | I88: 300 | J88: pF
D89: Gate Resistance, RG | E89: 0.5 | F89: 0.5 | G89: Ω | H89: 0.5 | I89: 0.5 | J89: Ω
D90: Transconductance, gFS | E90: 50 | F90: 50 | G90: S | H90: 50 | I90: 50 | J90: S
D91: Gate-Source Threshold Voltage, VTH | E91: 2.9 | F91: 2.9 | G91: V | H91: 2.9 | I91: 2.9 | J91: V
D92: Body Diode Forward Voltage, VBD | E92: 0.7 | F92: 0.7 | G92: V | H92: 0.7 | I92: 0.7 | J92: V
D93: Body Diode Rev Recovery Charge, QRR | F93: 22 | G93: nC | I93: 22 | J93: nC
D94: Thermal Resistance, θJA | E94: 50 | F94: 50 | G94: °C/W | H94: 50 | I94: 50 | J94: °C/W
A96: External Schottky Diode (if applicable) | E96: =CHOOSE(MODE, "Ch1", "") ->  | F96: =CHOOSE(MODE, "Ch2", "") -> 
D97: Schottky Fwd Voltage, VFWDsch | E97: 0 | F97: 0 | G97: V
D98: Schottky Rev Recovery Charge, QRRsch | E98: 0 | F98: 0 | G98: nC
A102: Step 9: IC Power Loss
D103: IC Power Dissipation | E103: ='Variable Management'!B322 -> 0.396 | F103: W
D104: IC Junction Temperature (estimate) | E104: ='Variable Management'!B324 -> 38.7808 | F104: °C

Sheet BOM & Schematic
A37: ** Tie DEMB to VDDA for FPWM, AGND for DCM ** | I37: =IF(OR(SCH_MODE=3, SCH_MODE=4), "** Slave controller (CNTRL2) not shown **","** Tie VCCX to GND if not used **") -> ** Slave controller (CNTRL2) not shown **
A38: ** Tie MODE to VDDA for Single, AGND for Dual Outputs ** | I38: =IF(OR(SCH_MODE=3, SCH_MODE=4),"** Tie VCCX to GND if not used **", "") -> ** Tie VCCX to GND if not used **
A39: ** For Dual-Output Operation, tie FB1/FB2 to to VDDA for Fixed 3.3V, AGND for Fixed 5V Output **
A40: ** For Single-Output Operation in 2-Phase Mode, tie MODE to VDDA and use FB1 to set VOUT. Connect FB2 to AGND to disable EA of channel 2 **
A41: ** For Single-Output Operation in 3-Phase or 4-Phase Mode, tie all MODE pins to VDDA. Use FB1 of master IC to set VOUT. Connect FB2 of master IC to AGND. Connect FB2 of slave IC to VDDA to configure it as a slave **
A42: =CHOOSE(MODE, "VIN = "&VIN_min&" V to "&VIN_max&" V, VOUT1 = "& Vout &" V, IOUT1 = " &Iout &"A"&", VOUT2 = "& Vout2 &" V, IOUT2 = " &Iout2 & " A, Fsw = " & Fsw/1000 &" kHz, Current Limit = "&ROUNDUP(Ilimit_DC,0)&" A", "VIN = "&VIN_min&" V to "&VIN_max&" V, VOUT = "& Vout &" V, IOUT = " &Iout & " A, Fsw = " & Fsw/1000 &" kHz, Current Limit = "&ROUNDUP(Ilimit_DC,0)&" A") -> VIN = 12 V to 12 V, VOUT = 9.4 V, IOUT = 1.5 A, Fsw = 2200 kHz, Current Limit = 15 A
A43: High Efficiency Synchronous Buck Regulator BOM
A44: Count | B44: Ref Des | C44: Value | D44: Description | H44: Size | I44: Part Number | J44: MFR
A45: 2 | B45: CBOOT1, CBOOT2 | C45: 0.1 | D45: =C45 -> 0.1 | H45: 0603 | I45: Std | J45: Std
A46: 1 | B46: CC1 | C46: ='Design Regulator'!D71 -> 1 | D46: 1 | H46: 0603 | I46: Std | J46: Std
A47: 1 | B47: CC2 | C47: ='Design Regulator'!D72 -> 0 | D47: 0 | H47: 0603 | I47: Std | J47: Std
A48: 1 | B48: CC3 | C48: =IF(MODE=1, 'Variable Management'!E354, "N/A") -> N/A | D48: =C48 -> N/A | H48: =IF(MODE=1, "0603", "-") -> - | I48: =IF(MODE=1, "Std", "-") -> - | J48: =IF(MODE=1, "Std", "-") -> -
A49: 1 | B49: CC4 | C49: =IF(MODE=1, 'Variable Management'!E355, "N/A") -> N/A | D49: N/A | H49: =IF(MODE=1, "0603", "-") -> - | I49: =IF(MODE=1, "Std", "-") -> - | J49: =IF(MODE=1, "Std", "-") -> -
A50: 1 | B50: CRES | C50: =Cres_u*1000000000 -> 470 | D50: =C50 -> 470 | H50: 0603 | I50: Std | J50: Std
A51: 1 | B51: CDITH | C51: =Cdither*1000000000 -> 10 | D51: =C51 -> 10 | H51: 0603 | I51: Std | J51: Std
A52: =ROUNDUP('Design Regulator'!E44/10,0) -> 10 | B52: CIN | C52: 10 | D52: =C52 -> 10 | H52: 1210 | I52: Std | J52: Std
A53: =ROUNDUP('Design Regulator'!E35/47,0) -> 4 | B53: COUT | C53: 47 | D53: =C53 -> 47 | H53: 1210 | I53: Std | J53: Std
A54: 2 | B54: CSS1, CSS2 | C54: ='Design Regulator'!E52 -> 68 | D54: =C54 -> 68 | H54: 0603 | I54: Std | J54: Std
A55: 3 | B55: CVCC1, CVCC2, CVCCX | C55: 2.2 | D55: 2.2 | H55: 0603 | I55: Std | J55: Std
A56: 1 | B56: CVDDA | C56: 0.47 | D56: 0.47 | H56: 0603 | I56: Std | J56: Std
A57: 2 | B57: DBOOT1, DBOOT2 | C57: See description | D57: Schottky Diode, 60V, 200mA | H57: - | I57: - | J57: Various
A58: 1 | B58: LO1 | C58: ='Design Regulator'!E28 -> 0.68 | D58: ="Inductor, "&Lf*1000000&"µH, "&Rdcr*1000&"mΩ, >"&ROUNDUP(Ilimit_DC*1.3/SCH_MODE,0)&"A" -> Inductor, 0.68µH, 4.5mΩ, >5A | H58: - | I58: - | J58: Various
A59: 1 | B59: LO2 | C59: =IF(MODE = 1, 'Design Regulator'!J28, 'Design Regulator'!E28) -> 0.68 | D59: =IF(MODE=1, "Inductor, "&Lo_2*1000000&"µH, "&Rdcr2*1000&"mΩ, >"&ROUNDUP(Ilimit2_DC*1.3,0)&"A", "Inductor, "&Lf*1000000&"µH, "&Rdcr*1000&"mΩ, >"&ROUNDUP(Ilimit_DC*1.3/SCH_MODE,0)&"A") -> Inductor, 0.68µH, 4.5mΩ, >5A | H59: - | I59: - | J59: Various
A60: 2 | B60: Q1, Q2 | C60: See description | D60: ='Design Regulator'!E83 -> 5.7 | H60: Std | I60: ='Design Regulator'!E81 -> IPC50N04S5L-5R5 | J60: -
A61: 2 | B61: Q3, Q4 | C61: See description | D61: ='Design Regulator'!H83 -> 5.7 | H61: Std | I61: =IF(MODE=1, 'Design Regulator'!H81, 'Design Regulator'!E81) -> IPC50N04S5L-5R5 | J61: -
A62: 1 | B62: RC1 | C62: ='Design Regulator'!D70 -> 20 | D62: =C62 -> 20 | H62: 0603 | I62: Std | J62: Std
A63: 1 | B63: RC2 | C63: =IF(MODE=1, 'Variable Management'!E353, "N/A") -> N/A | D63: =C63 -> N/A | H63: =IF(MODE=1, "0603", "-") -> - | I63: =IF(MODE=1, "Std", "-") -> - | J63: =IF(MODE=1, "Std", "-") -> -
A64: 1 | B64: RS1 | C64: =Rs*1000 -> 4 | D64: 4 | H64: 0508 | I64: Std | J64: Std
A65: 1 | B65: RS2 | C65: =IF(MODE=1, Rs_Ch2*1000, Rs*1000) -> 4 | D65: =C65 -> 4 | H65: 0508 | I65: Std | J65: Std
A66: 1 | B66: RT | C66: ='Design Regulator'!E13 -> 10 | D66: 10 | H66: 0603 | I66: Std | J66: Std
A67: 1 | B67: RFB1 | C67: ='Design Regulator'!E65 -> 220 | D67: 220 | H67: 0603 | I67: Std | J67: Std
A68: 1 | B68: RFB2 | C68: ='Design Regulator'!E66 -> 15 | D68: 15 | H68: 0603 | I68: Std | J68: Std
A69: 1 | B69: RFB3 | C69: =IF(MODE=1, 'Design Regulator'!J65, "N/A") -> N/A | D69: =C69 -> N/A | H69: =IF(MODE=1, "0603", "-") -> - | I69: =IF(MODE=1, "Std", "-") -> - | J69: =IF(MODE=1, "Std", "-") -> -
A70: 1 | B70: RFB4 | C70: =IF(MODE=1, 'Design Regulator'!J66, "N/A") -> N/A | D70: N/A | H70: =IF(MODE=1, "0603", "-") -> - | I70: =IF(MODE=1, "Std", "-") -> - | J70: =IF(MODE=1, "Std", "-") -> -
A71: 2 | B71: RPGOOD1, RPGOOD2 | C71: 100 | D71: 100 | H71: 0603 | I71: Std | J71: Std
A72: 2 | B72: RPG1, RPG2 | C72: 100 | D72: 100 | H72: 0603 | I72: Std | J72: Std
A73: 1 | B73: RDEMB | C73: 100 | D73: 100 | H73: 0603 | I73: Std | J73: Std
A74: 1 | B74: RVIN | C74: 2.2 | D74: 2.2 | H74: 0603 | I74: Std | J74: Std
A75: 1 | B75: U1 | C75: =CHOOSE(VARIANT, "LM5143", "LM5143-Q1","LM25143","LM25143-Q1") -> LM5143 | D75: =CHOOSE(VARIANT, "IC, LM5143, Buck PWM Controller, 3.5V–65V Input","IC, LM5143-Q1, Buck PWM Controller, 3.5V–65V Input","IC, LM25143, Buck PWM Controller, 3.5V–42V Input","IC, LM25143-Q1, Buck PWM Controller, 3.5V–42V Input") -> IC, LM5143, Buck PWM Controller, 3.5V–65V Input | H75: VQFN-40 | I75: =CHOOSE(VARIANT, "LM5143RHA", "LM5143QRHAQ1", "LM25143RHA", "LM25143QRHAQ1") -> LM5143RHA | J75: TI
A78: NOTES:
A79: ** For information on TI NexFETTM MOSFETs, see ** | D79: http://www.ti.com/nexfet | E79: **
A80: ** Inductor saturation current should be higher than the peak inductor current at the OCP setpoint for all input voltages and operating temperatures **
A81: ** Effective input and output capacitances should be appropriately derated for applied voltage and temperature, particularly with ceramics **

Sheet EVM
A1: LM(2)5143/-Q1 Quickstart Design Tool
B6: LM5143-Q1EVM-2100 PCB Layout

Sheet Variable Management (hidden)
A1: EXCEL Variables Names/Calculations
B2: Input from user =
B3: Output =
B4: Constant
A5: Variable Name | B5: Value | C5: STD Units | E5: Notes | I5: Iteration
A6: Step 1: Operational Specs
A7: VIN_min | B7: ='Design Regulator'!E7 -> 12 | C7: V | D7: Minimum input voltage | I7: 1
A8: VIN_nom | B8: ='Design Regulator'!E8 -> 12 | C8: V | D8: Nominal input voltage | K8: =CHOOSE(SCH_MODE, "Efficiency vs. IOUT (Ch1)", "Efficiency vs. IOUT - 2 Ph", "Efficiency vs. IOUT - 3 Ph", "Efficiency vs. IOUT - 4 Ph") -> Efficiency vs. IOUT - 4 Ph | L8: 1 | N8: DITHER Enabled | O8: 1 | T8: Dual Outputs | U8: 1 | W8: FPWM | X8: 1 | Z8: =CHOOSE(SCH_MODE, "Bode Plot (Ch1)", "Bode Plot - 2 Ph", "Bode Plot - 3 Ph", "Bode Plot - 4 Ph") -> Bode Plot - 4 Ph | AA8: 1
A9: VIN_max | B9: ='Design Regulator'!E9 -> 12 | C9: V | D9: Maximum input voltage | K9: =IF(MODE=1, "Efficiency vs. IOUT (Ch2)", "N/A - Do Not Use") -> N/A - Do Not Use | L9: 2 | N9: DITHER Disabled | O9: 2 | T9: Single Output – 2 Phases | U9: 2 | W9: DEM | X9: 2 | Z9: =IF(MODE=1, "Bode Plot (Ch2)", "N/A - Do Not Use") -> N/A - Do Not Use | AA9: 2
K10: PLOT_TYPE | L10: 1 | N10: DITHER Yes/No | O10: 2 | P10: 1 = Yes, 2 = No | T10: Single Output – 3 Phases | U10: 3 | W10: FPWM/DEM | X10: 1 | Z10: BODE_PLOT_TYPE | AA10: 1
A11: Vout | B11: ='Design Regulator'!E10 -> 9.4 | C11: V | D11: Output voltage - channel 1 | T11: Single Output – 4 Phases | U11: 4
A12: Iout | B12: ='Design Regulator'!E11 -> 1.5 | C12: A | D12: Output current - channel 1 | I12: 1 | T12: Single/Dual Yes/No | U12: 4
A13: Vout2 | B13: ='Design Regulator'!J10 -> 5 | C13: V | D13: Output voltage - channel 2 | I13: 1 | K13: 3.3V | L13: 1 | N13: 3.3V | O13: 1 | T13: MODE (Single/Dual), DUAL = 1, SINGLE = 2 | U13: =IF(U12=1, 1, 2) -> 2 | W13: VCCX Connected | X13: 1
A14: Iout2 | B14: ='Design Regulator'!J11 -> 10 | C14: A | D14: Output current - channel 2 | K14: 5V | L14: 2 | N14: 5V | O14: 2 | T14: SINGLE OUTPUT (1 = YES) | U14: =IF(U12=1, 2, 1) -> 1 | W14: No External VCC | X14: 2
K15: Adjustable | L15: 3 | N15: Adjustable | O15: 3 | T15: Number of Phases | U15: =SCH_MODE -> 4 | W15: Ext_VCC | X15: 1
A16: Rout | B16: =Vout/Iout -> 6.266666667 | C16: W | D16: Load resistance - Channel 1 | K16: Ch1 Output Setting | L16: =IF(Vout=3.3, 1, IF(Vout=5, 2, 3)) -> 3 | N16: Ch2 Output Setting | O16: =IF(Vout2=3.3, 1, IF(Vout2=5, 2, 3)) -> 2
A17: Rout2 | B17: =Vout2/Iout2 -> 0.5 | C17: W
A18: Pout | B18: =CHOOSE(MODE, Vout*Iout+Vout2*Iout2, Vout*Iout) -> 14.1 | C18: W | D18: Output power
A20: Efficiency | B20: 0.9 | D20: Estimate of efficiency
A21: Pin | B21: =Pout/Efficiency -> 15.66666667 | C21: W | D21: Calculate input power assuming finite efficiency | L21: =Vout -> 9.4 | X21: LM5143 | Y21: 1
X22: LM5143-Q1 | Y22: 2
A23: Iin_Vinmin | B23: =Pin/VIN_min -> 1.305555556 | C23: A | X23: LM25143 | Y23: 3
A24: Iin_Vinnom | B24: =Pin/VIN_nom -> 1.305555556 | C24: A | D24: Input currents at min, nom, max Vin | X24: LM25143-Q1 | Y24: 4
A25: Iin_Vinmax | B25: =Pin/VIN_max -> 1.305555556 | C25: A | W25: VARIANT | X25: =CHOOSE(VARIANT, "LM5143", "LM5143-Q1", "LM25143", "LM25143-Q1") -> LM5143 | Y25: 1
W26: VIN-MAX | X26: =CHOOSE(VARIANT, 65, 65, 42, 42) -> 65 | Y26: V
A27: Fsw | B27: ='Design Regulator'!E12*1000 -> 2200000 | C27: Hz | D27: Nominal switching frequency - determines RT resistor (SYNCIN must be 80-120% of this) | W27: VOUT-MAX | X27: =CHOOSE(VARIANT, 55, 55, 36, 36) -> 55 | Y27: V
A28: Tsw | B28: =1/Fsw -> 4.545454545e-07 | C28: sec | D28: Switching period | I28: 1
A29: Vref | B29: 0.6 | C29: V | D29: Reference voltage
A30: Rt | B30: =22*1000/(Fsw/1000000) -> 10000 | C30: W | D30: Frequency set resistor
A33: Step 2: Buck Inductor | B33: Channel 1 | D33: Channel 2
A34: Don1 | B34: =Vout/VIN_nom -> 0.7833333333 | F34: Ideal Duty Cycle at VIN(nom)
A35: Doff1 | B35: =1-34:34 -> 0.2166666667 | F35: Ideal 1- Duty Cycle at VIN(nom)
A37: D_Vinmin | B37: =Vout/VIN_min -> 0.7833333333 | D37: =Vout2/VIN_min -> 0.4166666667
A38: D_Vinnom | B38: =Vout/VIN_nom -> 0.7833333333 | D38: =Vout2/VIN_nom -> 0.4166666667
A39: D_Vinmax | B39: =Vout/VIN_max -> 0.7833333333 | D39: =Vout2/VIN_max -> 0.4166666667
A41: L_Vinnom | B41: =(VIN_nom-Vout)*D1_Vinnom/(Fsw*(Iout/Number_of_Phases)*0.35) -> 7.053391053e-06 | C41: H | D41: =(VIN_nom-Vout2)*D2_Vinnom/(Fsw*Iout2*0.35) -> 3.787878788e-07 | E41: H | F41: Calculated inductance for 35% ripple at VIN(nom)
A42: L_slopecomp | B42: =1000*Vout*Rs/24/Fsw -> 7.121212121e-07 | C42: H | D42: =1000*Vout2*Rs_Ch2/24/Fsw -> 3.787878788e-07 | E42: H | F42: Calculated inductance based on one times inductor downslope
A44: Lopt | B44: =B42 -> 7.121212121e-07 | C44: H | D44: =D42 -> 3.787878788e-07 | E44: H | F44: min of calculated inductances at VIN(min) and VIN(nom)
A46: Lo | B46: ='Design Regulator'!E28/1000000 -> 6.8e-07 | C46: H | D46: ='Design Regulator'!J28/1000000 -> 5e-06 | E46: H | F46: Chosen inductance
A47: Rdcr | B47: ='Design Regulator'!E29/1000 -> 0.0045 | C47: W | D47: ='Design Regulator'!J29/1000 -> 0.005 | E47: W | F47: Chosen inductor DCR
A49: Don2 | B49: =(Vout+Iout*(Rdcr+Rs))/(Vin+Iout*Rs) -> 0.7840038314
A50: Doff2 | B50: =1-_Don2 -> 0.2159961686
A52: D_Vinmin_2 | B52: =CHOOSE(MODE, (Vout+Iout*(Rdcr+Rs))/(VIN_min+Iout*Rs), (Vout+Iout/Number_of_Phases*(Rdcr+Rs))/(VIN_min+Iout/Number_of_Phases*Rs)) -> 0.7835010207 | D52: =(Vout2+Iout2*(Rdcr2+Rs_Ch2))/(VIN_min+Iout2*Rs_Ch2) -> 0.4227574751 | F52: Duty cycles adjusted for DCR/shunt voltage drops
A53: D_Vinnom_2 | B53: =CHOOSE(MODE, (Vout+Iout*(Rdcr+Rs))/(VIN_nom+Iout*Rs), (Vout+Iout/Number_of_Phases*(Rdcr+Rs))/(VIN_nom+Iout/Number_of_Phases*Rs)) -> 0.7835010207 | D53: =(Vout2+Iout2*(Rdcr2+Rs_Ch2))/(VIN_nom+Iout2*Rs_Ch2) -> 0.4227574751 | F53: need to include RDS(on) later
A54: D_Vinmax_2 | B54: =CHOOSE(MODE, (Vout+Iout*(Rdcr+Rs))/(VIN_max+Iout*Rs), (Vout+Iout/Number_of_Phases*(Rdcr+Rs))/(VIN_max+Iout/Number_of_Phases*Rs)) -> 0.7835010207 | D54: =(Vout2+Iout2*(Rdcr2+Rs_Ch2))/(VIN_max+Iout2*Rs_Ch2) -> 0.4227574751
A56: Iripple_Vinmin | B56: =MAX(0, (VIN_min-Vout)*D1_Vinmin_2/(Fsw*Lf)) -> 1.361699635 | C56: A | D56: =MAX(0.1, (VIN_min-Vout2)*D2_Vinmin_2/(Fsw*Lo_2)) -> 0.2690274841 | E56: A
A57: Iripple_Vinnom | B57: =MAX(0, (VIN_nom-Vout)*D1_Vinnom_2/(Fsw*Lf)) -> 1.361699635 | C57: A | D57: =MAX(0, (VIN_nom-Vout2)*D2_Vinnom_2/(Fsw*Lo_2)) -> 0.2690274841 | E57: A
A58: Iripple_Vinmax | B58: =MAX(0, (VIN_max-Vout)*D1_Vinmax_2/(Fsw*Lf)) -> 1.361699635 | C58: A | D58: =MAX(0, (VIN_max-Vout2)*D2_Vinmax_2/(Fsw*Lo_2)) -> 0.2690274841 | E58: A
A60: Ishunt_rms_Vinmin | B60: =SQRT((Iout/Number_of_Phases)^2+(Iripple_Vinmin^2)/12) -> 0.5432714097 | C60: A | D60: =SQRT(Iout2^2+(Iripple2_Vinmin^2)/12) -> 10.00030156 | E60: A
A61: Ishunt_rms_Vinnom | B61: =SQRT((Iout/Number_of_Phases)^2+(Iripple_Vinnom^2)/12) -> 0.5432714097 | C61: A | D61: =SQRT(Iout2^2+(Iripple2_Vinnom^2)/12) -> 10.00030156 | E61: A
A62: Ishunt_rms_Vinmax | B62: =SQRT((Iout/Number_of_Phases)^2+(Iripple_Vinmax^2)/12) -> 0.5432714097 | C62: A | D62: =SQRT(Iout2^2+(Iripple2_Vinmax^2)/12) -> 10.00030156 | E62: A
A63: Max shunt power loss at full load | B63: =B61^2*Rs -> 0.001180575299 | C63: W | D63: =D61^2*Rs -> 0.4000241253 | E63: W | F63: Note this is power loss at full load - not loss near OCP!
A65: Max inductor ripple current | B65: =MAX(B56:B58) -> 1.361699635 | C65: A | D65: =MAX(D56:D58) -> 0.2690274841 | E65: A | F65: Ripple current at Vin(max)
B67: =B56/(Iout/Number_of_Phases) -> 3.631199026 | D67: =D56/Iout2 -> 0.02690274841
A68: % ripple current | B68: =B57/(Iout/Number_of_Phases) -> 3.631199026 | D68: =D57/Iout2 -> 0.02690274841
B69: =B58/(Iout/Number_of_Phases) -> 3.631199026 | D69: =D58/Iout2 -> 0.02690274841
A71: Inductor copper temerature | B71: 100 | C71: °C | D71: 100 | E71: °C
A72: DCR at hot | B72: =Rdcr*(1+0.0039*(B71-25)) -> 0.00581625 | C72: W | D72: =Rdcr2*(1+0.0039*(D71-25)) -> 0.0064625 | E72: W
A75: Step 3: Sense Resistors, Slope Comp, Current Limit
A77: Ilimit_DC | B77: ='Design Regulator'!E17 -> 15 | C77: A | D77: ='Design Regulator'!J17 -> 15 | E77: A | F77: Chosen OCP level - based on output current
A79: Ilimit_inductor_Vinmin | B79: =CHOOSE(MODE, Ilimit_DC+Iripple_Vinmin/2, Ilimit_DC/Number_of_Phases+Iripple_Vinmin/2) -> 4.430849817 | C79: A | D79: =Ilimit2_DC+Iripple2_Vinmin/2 -> 15.13451374 | E79: A | F79: Peak inductor current at current limit inception
A80: Ilimit_inductor_Vinnom | B80: =CHOOSE(MODE, Ilimit_DC+Iripple_Vinnom/2, Ilimit_DC/Number_of_Phases+Iripple_Vinnom/2) -> 4.430849817 | C80: A | D80: =Ilimit2_DC+Iripple2_Vinnom/2 -> 15.13451374 | E80: A
A81: Ilimit_inductor_Vinmax | B81: =CHOOSE(MODE, Ilimit_DC+Iripple_Vinmax/2, Ilimit_DC/Number_of_Phases+Iripple_Vinmax/2) -> 4.430849817 | C81: A | D81: =Ilimit2_DC+Iripple2_Vinmax/2 -> 15.13451374 | E81: A
A84: CS threshold_min | B84: 0.066 | C84: V
A85: CS threshold | B85: 0.073 | C85: V
A86: CS threshold_max | B86: 0.08 | C86: V
A88: Shunt required to get OCP at VIN(min) | B88: =Buck_CS_threshold/B79 -> 0.01647539479 | C88: W | D88: =Buck_CS_threshold/D79 -> 0.004823412317 | E88: W
A89: Shunt required to get OCP at VIN(nom) | B89: =Buck_CS_threshold/B80 -> 0.01647539479 | C89: W | D89: =Buck_CS_threshold/D80 -> 0.004823412317 | E89: W
A90: Shunt required to get OCP at VIN(max) | B90: =Buck_CS_threshold/B81 -> 0.01647539479 | C90: W | D90: =Buck_CS_threshold/D81 -> 0.004823412317 | E90: W
A92: Rs_ideal | B92: =B89 -> 0.01647539479 | C92: W | D92: =D89 -> 0.004823412317 | E92: W | F92: Ideal Rs for the required OCP -- based on 73mV CL threshold
A93: Rs | B93: ='Design Regulator'!E19/1000 -> 0.004 | C93: W | D93: ='Design Regulator'!J19/1000 -> 0.004 | E93: W | F93: Selected (starndard value) current limit sense resistor
A95: Current limit - peak | B95: =Buck_CS_threshold/Rs -> 18.25 | C95: A | D95: =Buck_CS_threshold/Rs_Ch2 -> 18.25 | E95: A | F95: Peak inductor current limit = min sat current
A97: Iout_OCP_Vinmin | B97: =Number_of_Phases*(Buck_CS_threshold/Rs-Iripple_Vinmin/2) -> 70.27660073 | C97: A | D97: =Buck_CS_threshold/Rs_Ch2-Iripple2_Vinmin/2 -> 18.11548626 | E97: A | F97: Current limit setpoints (i.e. IOUT) after standard components are selected
A98: Iout_OCP_Vinnom | B98: =Number_of_Phases*(Buck_CS_threshold/Rs-Iripple_Vinnom/2) -> 70.27660073 | C98: A | D98: =Buck_CS_threshold/Rs_Ch2-Iripple2_Vinnom/2 -> 18.11548626 | E98: A
A99: Iout_OCP_Vinmax | B99: =Number_of_Phases*(Buck_CS_threshold/Rs-Iripple_Vinmax/2) -> 70.27660073 | C99: A | D99: =Buck_CS_threshold/Rs_Ch2-Iripple2_Vinmax/2 -> 18.11548626 | E99: A
A101: Irms_OCP_Vinmin | B101: =SQRT((Iout_OCP_Vinmin/Number_of_Phases)^2+(Iripple_Vinmin^2)/12) -> 17.57354708 | C101: A | D101: =SQRT(Iout2_OCP_Vinmin^2+(Iripple2_Vinmin^2)/12) -> 18.11565273 | E101: A
A102: Irms_OCP_Vinnom | B102: =SQRT((Iout_OCP_Vinnom/Number_of_Phases)^2+(Iripple_Vinnom^2)/12) -> 17.57354708 | C102: A | D102: =SQRT(Iout2_OCP_Vinnom^2+(Iripple2_Vinnom^2)/12) -> 18.11565273 | E102: A
A103: Irms_OCP_Vinmax | B103: =SQRT((Iout_OCP_Vinmax/Number_of_Phases)^2+(Iripple_Vinmax^2)/12) -> 17.57354708 | C103: A | D103: =SQRT(Iout2_OCP_Vinmax^2+(Iripple2_Vinmax^2)/12) -> 18.11565273 | E103: A
A105: Pshunt_Vinmin | B105: =B101^2*Rs -> 1.235318228 | C105: W | D105: =D101^2*Rs_Ch2 -> 1.312707495 | E105: W | F105: Max power dissipations in shunt
A106: Pshunt_Vinnom | B106: =B102^2*Rs -> 1.235318228 | C106: W | D106: =D102^2*Rs_Ch2 -> 1.312707495 | E106: W
A107: Pshunt_Vinmax | B107: =B103^2*Rs -> 1.235318228 | C107: W | D107: =D103^2*Rs_Ch2 -> 1.312707495 | E107: W
A110: Step 4: Output Capacitor
A111: Icoutrms_VINmin | B111: =Iripple_Vinmin/SQRT(12) -> 0.3930888254 | C111: A | D111: =Iripple2_Vinmin/SQRT(12) -> 0.07766154519 | E111: A | F111: Output Cap RMS current
A112: Icoutrms_VINnom | B112: =Iripple_Vinnom/SQRT(12) -> 0.3930888254 | C112: A | D112: =Iripple2_Vinnom/SQRT(12) -> 0.07766154519 | E112: A
A113: Icoutrms_VINmax | B113: =Iripple_Vinmax/SQRT(12) -> 0.3930888254 | C113: A | D113: =Iripple2_Vinmax/SQRT(12) -> 0.07766154519 | E113: A
A114: Max Cout rms current | B114: =MAX(B111:B113) -> 0.3930888254 | C114: A | D114: =MAX(D111:D113) -> 0.07766154519 | E114: A
A116: Vripple1 | B116: ='Design Regulator'!E33/1000 -> 0.05 | C116: V | D116: ='Design Regulator'!J33/1000 -> 0.05 | E116: V | F116: Output voltage ripple spec(pk-pk)
A118: Output Ripple Spec (pk-pk) | B118: =Vo1_ripple*1000 -> 50 | C118: mV | D118: =Vo2_ripple*1000 -> 50 | E118: mV | F118: Vout ripple spec at Vin(nom)
A120: Coutmin | B120: =Iripple_Vinnom/(Fsw*8*Vo1_ripple) -> 1.547385949e-06 | C120: F | D120: =Iripple2_Vinnom/(Fsw*8*Vo2_ripple) -> 3.057130502e-07 | E120: F | F120: Minimum output capacitnace | H120: =Vo2_ripple -> 0.05 | I120: 1
A121: Reported Coutmin | B121: =IF(Cout_min*1000000<2, 2.2,Cout_min*1000000) -> 2.2 | C121: uF | D121: =IF(Cout2_min*1000000<2, 2.2,Cout2_min*1000000) -> 2.2 | E121: uF
A122: Cout | B122: ='Design Regulator'!E35/1000000 -> 0.000188 | C122: F | D122: ='Design Regulator'!J35/1000000 -> 0.0001 | E122: F | F122: Chosen output capacitance | I122: 1
A123: Resrmax | B123: =SQRT((Vo1_ripple/Iripple_Vinnom)^2-(1/(Fsw*Cout*8))^2) -> 0.03671757343 | C123: W | D123: =SQRT((Vo2_ripple/Iripple2_Vinnom)^2-(1/(Fsw*Cout2*8))^2) -> 0.1858537484 | E123: W | F123: Max ESR before ripple exceeds Vripple1 | I123: 1
A125: Reported Cout ESR max | B125: =IF(OR(CoutEsrMax>0.3, CoutEsrMax<0, (ISERROR(CoutEsrMax))), "N/A", CoutEsrMax*1000) -> 36.71757343 | C125: mΩ | D125: =IF(OR(Cout2EsrMax>0.3, Cout2EsrMax<0, (ISERROR(Cout2EsrMax))), "N/A", Cout2EsrMax*1000) -> 185.8537484 | E125: mΩ
A126: CoutEsr | B126: ='Design Regulator'!E37/1000 -> 0.0001 | C126: W | D126: ='Design Regulator'!J37/1000 -> 0.002 | E126: W | F126: Chosen ESR | I126: 1 | K126: =ISERROR(CoutEsrMax) -> FALSE | L126: =ISERROR(B125) -> FALSE
A127: Vripple | B127: =Iripple_Vinnom*SQRT(Cout_ESR^2+(1/(8*Fsw*Cout))^2) -> 0.000433481783 | C127: Vp-p | D127: =Iripple2_Vinnom*SQRT(Cout2_ESR^2+(1/(8*Fsw*Cout2))^2) -> 0.0005593462847 | E127: Vp-p | L127: =OR(CoutEsrMax>0.3,CoutEsrMax<0) -> FALSE
K128: =OR(TRUE, FALSE, TRUE) -> TRUE
A129: Step 5: Input Capacitor
K130: Two channels operating at full load
A131: Icinrms_VINmin | B131: =SQRT(D1_Vinmin_2*(Iout^2*(1-D1_Vinmin_2)+Iripple_Vinmin^2/12)) -> 0.7090322927 | C131: A | D131: =SQRT(D2_Vinmin_2*(Iout2^2*(1-D2_Vinmin_2)+Iripple2_Vinmin^2/12)) -> 4.940233701 | E131: A | F131: Calculate input cap rms current with one output unloaded | K131: =SQRT(Iout^2*D1_Vinmin*(1-D1_Vinmin)+Iout2^2*D2_Vinmin*(1-D2_Vinmin)-2*Iout*Iout2*D1_Vinmin*D2_Vinmin) -> 3.859503062 | L131: A | M131: =SQRT(Iout^2*D1_Vinmin*(1-D1_Vinmin)+Iout2^2*D2_Vinmin*(1-D2_Vinmin)-2*Iout*Iout2*(0.5-D2_Vinmin*(1-D1_Vinmin))) -> 3.520761834 | N131: A
A132: Icinrms_VINnom | B132: =SQRT(D1_Vinnom_2*(Iout^2*(1-D1_Vinnom_2)+Iripple_Vinnom^2/12)) -> 0.7090322927 | C132: A | D132: =SQRT(D2_Vinnom_2*(Iout2^2*(1-D2_Vinnom_2)+Iripple2_Vinnom^2/12)) -> 4.940233701 | E132: A | K132: =SQRT(Iout^2*D1_Vinnom*(1-D1_Vinnom)+Iout2^2*D2_Vinnom*(1-D2_Vinnom)-2*Iout*Iout2*D1_Vinnom*D2_Vinnom) -> 3.859503062 | L132: A
A133: Icinrms_VINmax | B133: =SQRT(D1_Vinmax_2*(Iout^2*(1-D1_Vinmax_2)+Iripple_Vinmax^2/12)) -> 0.7090322927 | C133: A | D133: =SQRT(D2_Vinmax_2*(Iout2^2*(1-D2_Vinmax_2)+Iripple2_Vinmax^2/12)) -> 4.940233701 | E133: A | K133: =SQRT(Iout^2*D1_Vinmax*(1-D1_Vinmax)+Iout2^2*D2_Vinmax*(1-D2_Vinmax)-2*Iout*Iout2*D1_Vinmax*D2_Vinmax) -> 3.859503062 | L133: A
A134: Max Cin rms current | B134: =MAX(B131:B133, D131:D133) -> 4.940233701 | C134: A | K134: =MAX(K131:K133) -> 3.859503062 | L134: A
F135: =Number_of_Phases*D1_Vinnom -> 3.133333333 | G135: N*D
A136: Icinrms - multiphase | B136: =Iout*SQRT((D1_Vinnom-F136/Number_of_Phases)*((F136+1)/Number_of_Phases-D1_Vinnom)) -> 0.1274754878 | C136: A | F136: =FLOOR(Number_of_Phases*D1_Vinnom,1) -> 3 | G136: floor(N*D)
A137: Icinrms - multiphase - max | B137: =Iout/2/Number_of_Phases -> 0.1875 | C137: A
A138: Final result | B138: =CHOOSE(MODE, B134, B137) -> 0.1875 | C138: A | D138: …report this
A140: Vinripple1 | B140: ='Design Regulator'!E42/1000 -> 0.3 | C140: Vp-p | F140: Input voltage ripple spec (pk-pk)
A142: Cinmin_Vinmax | B142: =Iout/Number_of_Phases*D1_Vinmax*(1-D1_Vinmax)/(Vinripple1*Fsw) -> 9.643308081e-08 | C142: F | F142: Calculate cap at Vinmax and 50% duty cycle (Vin = 2*Vout)
A143: Cinmin_50%D | B143: =MAX(Iout/Number_of_Phases*0.5*(1-0.5)/(Vinripple1*Fsw), Iout2*0.5*(1-0.5)/(Vinripple1*Fsw)) -> 3.787878788e-06 | C143: F | F143: Buck 50% typically worst case
A144: Cinmin | B144: =IF(VIN_max<2*Vout, B142,B143) -> 9.643308081e-08 | C144: F
A145: Reported Cinmin | B145: =IF(Cinmin*1000000<10, 10,Cinmin*1000000) -> 10 | C145: uF | F145: …report this
A146: Cin | B146: ='Design Regulator'!E44/1000000 -> 0.0001 | C146: F | F146: Input capacitance
A147: CinEsrMax_Vinmax | B147: =-(Iout/Number_of_Phases*D1_Vinmax*(1-D1_Vinmax)/(Cin*Fsw)-Vinripple1)/(Iout/Number_of_Phases+Iripple_Vinmax/2) -> 0.2838573212 | C147: W
A148: CinEsrMax_50%D | B148: =-(Iout/Number_of_Phases*0.5*(1-0.5)/(Cin*Fsw)-Vinripple1)/(Iout/Number_of_Phases+Iripple_Vinmax/2) -> 0.2837277221 | C148: W | F148: Calculate ESR at Vinmax and 50% duty cycle (Vin = 2*Vout)
A149: CinEsrMax | B149: =IF(VIN_max<2*Vout, B147,B148) -> 0.2838573212 | C149: W
A150: Reported Cin ESR max | B150: =IF(OR(CinEsrMax>0.3, CinEsrMax<0), "N/A",CinEsrMax*1000) -> 283.8573212 | C150: mΩ | F150: …report this
A151: RCinEsr | B151: ='Design Regulator'!E46/1000 -> 0.007 | C151: W | F151: Input capacitance series resistance (ESR)
A153: Vinripple2_Vinmax | B153: =Iout/Number_of_Phases*D1_Vinmax_2*(1-D1_Vinmax_2)/(Cin*Fsw)+(Iout/Number_of_Phases +Iripple_Vinmax/2)*RCinEsr -> 0.007680085946 | C153: Vp-p
A154: Vinripple2_50%D | B154: =Iout/Number_of_Phases*0.5*(1-0.5)/(Cin*Fsw)+(Iout/Number_of_Phases +Iripple_Vinmax/2)*RCinEsr -> 0.007817085086 | C154: Vp-p | F154: Calculate ripple at Vinmax and 50% duty cycle (Vin = 2*Vout)
A155: Vinripple2 | B155: =IF(VIN_max<2*Vout, B153,B154) -> 0.007680085946 | C155: Vp-p | F155: …report highest of these
B157: =Iout*D1_Vinmax_2*(1-D1_Vinmax_2)/(Cin*Fsw) -> 0.001156548895 | C157: Vp-p
A159: Step 6a: Soft Start
A160: Tss | B160: ='Design Regulator'!E51/1000 -> 0.002 | C160: s | D160: Soft-start time
A161: Iss | B161: =Cout*Vout/Tss -> 0.8836 | C161: A | D161: Load cap current during soft start
A162: Css | B162: =0.00002*Tss/0.6 -> 6.666666667e-08 | C162: F
A163: Css_u | B163: ='Standard Value Calculator'!B4 -> 6.8e-08 | C163: F
A165: Step 6b: Other Components - Dither, Hiccup, DEMB, MODE
A166: Tres | B166: ='Design Regulator'!E53/1000 -> 0.03 | C166: s | D166: Hiccup time
A167: Cres | B167: =0.00002*Tres/1.2 -> 5e-07 | C167: F
A168: Cres_u | B168: ='Standard Value Calculator'!G4 -> 4.7e-07 | C168: F
A170: RPG1/2 | B170: 100 | C170: kΩ
A171: RFB1/2 | C171: W | E171: Tie to VDDA or AGND for 3.3V/5V output, respectively.
A172: R_MODE | C172: W | E172: Tie to VDDA or AGND for Single/Dual operation, respectively.
A173: R_DEMB | C173: W | E173: Tie to VDDA or AGND for FPWM/DEM, respectively.
A175: Dither Modulation Frequency | B175: ='Design Regulator'!E55*1000 -> 9000 | C175: Hz
A176: Cdither_calculated | B176: =10*10^-6/Fdither/0.12 -> 9.259259259e-09 | C176: F
A177: Cdither_stdvalue | B177: ='Standard Value Calculator'!O22 -> 1e-08 | C177: F
A180: Step 7: Compensation
A181: Pi | B181: 3.14159265 | D181: p
A182: CS Amp Gain | B182: 12
A183: Ri | B183: =Rs*CSAmp_gain -> 0.048 | C183: W | D183: =Rs_Ch2*CSAmp_gain -> 0.048 | E183: W | F183: Current Sense effective resistance = shunt resistor Rs * CS amp gain
A184: gm | B184: 0.0012 | C184: S | F184: Error Amp Transconductance
A186: Se_ext | B186: =B190/Ri*1000 -> 13333333.33 | C186: A/s | D186: =B190/Ri_Ch2*1000 -> 13333333.33 | E186: A/s | F186: Slope Comp Slope - referred to inductor current
A187: Sn | B187: =(Vin-Vout)/Lf -> 3823529.412 | C187: A/s | D187: =(Vin-Vout2)/Lo_2 -> 1400000 | E187: A/s | F187: On-time Slope
A188: Sf | B188: =Vout/Lf -> 13823529.41 | C188: A/s | D188: =Vout2/Lo_2 -> 1000000 | E188: A/s | F188: Off-time Slope
K189: Tsw | L189: Tsw (us) | M189: Slope comp amplitude
A190: Se_int | B190: =(Fsw/1000)/220*64 -> 640 | C190: mV/μs | F190: Slope Comp Slope - referred to IC | K190: =Ts -> 4.545454545e-07 | L190: =Ts*1000000 -> 0.4545454545 | M190: =B190*L190 -> 290.9090909 | N190: mV
A191: Sn_int | B191: =Sn*Ri/1000 -> 183.5294118 | C191: mV/μs | D191: =Sn_Ch2*Ri_Ch2/1000 -> 67.2 | E191: mV/μs | F191: etc
A192: Sf_int | B192: =Sf*Ri/1000 -> 663.5294118 | C192: mV/μs | D192: =Sf_Ch2*Ri_Ch2/1000 -> 48 | E192: mV/μs | F192: etc
A194: mc_buck | B194: =1+Se_ext/Sn -> 4.487179487 | D194: =1+Se_ext_Ch2/Sn_Ch2 -> 10.52380952 | F194: mc = 1 + Se/Sf for peak current-mode buck
A195: k_buck | B195: =mc_buck*(1-D1_Vinnom_2) -> 0.9714697789 | D195: =mc_buck_Ch2*(1-D2_Vinnom_2) -> 6.074790381 | F195: mc*(1-d)
A197: mc | B197: =1+Se_ext/Sn -> 4.487179487 | D197: =1+Se_ext_Ch2/Sn_Ch2 -> 10.52380952
A198: k | B198: =mc_buck*(1-D1_Vinnom_2) -> 0.9714697789 | D198: =mc_buck_Ch2*(1-D2_Vinnom_2) -> 6.074790381
A199: Q | B199: =1/Pi/(k-0.5) -> 0.6751437755 | D199: =1/Pi/(k_Ch2-0.5) -> 0.05709809065 | F199: 1/(Pi*(k-0.5)) | H199: Q = 2/Pi = 0.636 gives ideal one-cycle damping
A201: Error Amp (EA)
A202: GBW | B202: 30 | C202: MHz | F202: EA gain-bandwidth product
A203: Cbw | B203: =gm/(2*Pi*GBW*1000000) -> 6.366197731e-12 | C203: F | F203: EA effective bandwidth limiting capacitance = gm/(2*Pi*GBW)
A204: RoEA | B204: 64000000 | C204: W | F204: EA output resistance
A205: AEA | B205: =gm*RoEA -> 76800 | C205: V/V | F205: EA DC gain = gm*RoEA
A206: Afb | B206: =Vref/Vout -> 0.06382978723 | C206: V/V | D206: =Vref/Vout2 -> 0.12 | E206: V/V | F206: Feedback gain from Vout to FB
A207: Acs | B207: =1/Ri -> 20.83333333 | D207: =1/Ri_Ch2 -> 20.83333333 | F207: Acs = 1/Ri
A208: Am_buck | B208: =(Ro/Number_of_Phases)/Ri/((1+Ro/Number_of_Phases*(k-0.5)/(Fsw*Lf))) -> 21.85043921 | D208: =Ro_Ch2/Ri_Ch2/((1+Ro_Ch2*(k_Ch2-0.5)/(Fsw*Lo_2))) -> 8.310731052
A209: Am | B209: =(Ro*Number_of_Phases)/Ri/((1+Ro*Number_of_Phases*(k-0.5)/(Fsw*Lf))) -> 58.67764229 | D209: =Ro_Ch2/Ri_Ch2/((1+Ro_Ch2*(k_Ch2-0.5)/(Fsw*Lo_2))) -> 8.310731052 | F209: Buck modulator gain
A211: Scaling factor to calculate Rcomp - buck | B211: =2*Pi*Ri/gm -> 251.327412 | F211: 2*Pi*Ri/gm -- scaling factor to calculate Rcomp given desired buck crossover frequency
A212: DC Gain is Adc = AEA*Afb*Am
A214: Ro | B214: =Rout -> 6.266666667 | C214: W | D214: =Rout2 -> 0.5 | E214: W | F214: Output Resistance
A216: Fp_load_buck | B216: =1/(2*Pi*Ro*Cout)+(k-0.5)/(2*Pi*Fsw*Lf*Cout/Number_of_Phases) -> 1202.287638 | C216: Hz | D216: =1/(2*Pi*Ro_Ch2*Cout2)+(k_Ch2-0.5)/(2*Pi*Fsw*Lo_2*Cout2) -> 3989.694726 | E216: Hz | F216: Buck dominant pole frequency -- note slope comp influence
A217: Fp_dominant | B217: =Fload_u -> 1202.287638 | C217: Hz | D217: =Fload_u_Ch2 -> 3989.694726 | E217: Hz
B218: =Cbw -> 6.366197731e-12
A219: Fp_EA | B219: =1/(2*Pi*(RoEA+Rcea1_u)*Cc1ea_u) -> 2.486019108 | C219: Hz | D219: =1/(2*Pi*(RoEA+Rcea2_u)*Cc3ea_u) -> 0.9208815915 | E219: Hz | F219: Error Amp LF pole -- related to amplifier ouptut resistance and comp cap
A220: Fp_HF | B220: =1/(2*Pi*Rcea1_u*(Cc2ea_u+Cbw)) -> 1250000 | C220: Hz | D220: =1/(2*Pi*Rcea2_u*(Cc4ea_u+Cbw)) -> 809873.3326 | E220: Hz | F220: Error Amp HF pole cancels zero related to Output Cap ESR
A221: Fesr | B221: =1/(2*Pi*Cout*Cout_ESR) -> 8465688.472 | C221: Hz | D221: =1/(2*Pi*Cout2*Cout2_ESR) -> 795774.7164 | E221: Hz | F221: Cout ESR zero frequency
A222: F_mod | B222: =Fsw/2 -> 1100000 | C222: Hz | F222: Zero-order sample-and-hold effects of current-mode control modeled as pole at Fsw/2
A224: Desired Crossover Frequency | B224: ='Design Regulator'!E63*1000 -> 100000 | C224: Hz | D224: ='Design Regulator'!J63*1000 -> 51000 | E224: Hz
A225: Rcea1 | B225: =Fcross*Cout/Number_of_Phases*2*Pi*Ri/(gm*Afb) -> 18506.0751 | C225: W | D225: =Fcross_Ch2*Cout2*2*Pi*Ri_Ch2/(gm*Afb_Ch2) -> 10681.41501 | E225: W | F225: This component will largely determine the crossover frequency
A226: Cc1ea, Cc3ea | B226: =10/(Rcea1*Fcross*2*Pi) -> 8.600145757e-10 | C226: F | D226: =10/(Rcea2*Fcross_Ch2*2*Pi) -> 2.921602765e-09 | E226: F | F226: This along with Rcea1 will set a zero at Fcrossover/5 to optimize phase margin
A227: Cc2ea, Cc4ea | B227: =MAX(1/(Rcea1*2*Pi*Fesr)-Cbw, 1/(Rcea1*2*Pi*(Fsw/2))-Cbw) -> 1.452116593e-12 | C227: F | D227: =MAX(1/(Rcea2*2*Pi*Fesr_Ch2)-Cbw, 1/(Rcea2*2*Pi*(Fsw/2))-Cbw) -> 1.235791324e-11 | E227: F | F227: This along with Rcea1 places a pole at the output cap ESR zero
A229: Chosen Compensation Components from the standard value sheet
A230: Rcea1_u | B230: ='Design Regulator'!D70*1000 -> 20000 | C230: W | D230: ='Design Regulator'!D73*1000 -> 10700 | E230: W | F230: =1/(Rcea1*2*Pi*(Fsw/2))-Cbw -> 1.452116593e-12
A231: Cc1ea_u | B231: ='Design Regulator'!D71*0.000000001 -> 1e-09 | C231: F | D231: ='Design Regulator'!D74*0.000000001 -> 2.7e-09 | E231: F
A232: Cc2ea_u | B232: ='Design Regulator'!D72*0.000000000001 -> 0 | C232: F | D232: ='Design Regulator'!D75*0.000000000001 -> 1.2e-11 | E232: F
A234: Resulting Pole/Zero Locations | F234: =Cout -> 0.000188 | G234: =Cout_ESR -> 0.0001
A235: Fz1 | B235: =1/(2*Pi*Rcea1_u*Cc1ea_u) -> 7957.747164 | C235: Hz | D235: =1/(2*Pi*Rcea2_u*Cc3ea_u) -> 5508.99769 | E235: Hz | F235: This zero is set at or close to the dominant load pole
A236: Fp2 | B236: =1/(2*Pi*Rcea1_u*(Cc1ea_u*(Cc2ea_u+Cbw)/(Cc1ea_u+Cc2ea_u+Cbw))) -> 1257957.747 | C236: Hz | D236: =1/(2*Pi*Rcea2_u*(Cc3ea_u*(Cc4ea_u+Cbw)/(Cc3ea_u+Cc4ea_u+Cbw))) -> 815382.3303 | E236: Hz | F236: This pole cancels the zero from the Output Cap ESR
A238: Rfb1 | B238: ='Design Regulator'!E65*1000 -> 220000 | C238: W | D238: ='Design Regulator'!J65*1000 -> 115000 | E238: W | F238: Upper Feedback Resistance - chosen by user
A239: Rfb2 | B239: =IF(Vout=Vref,100000000,Vref*B238/((Vout-Vref))) -> 15000 | C239: W | D239: =IF(Vout2=Vref,100000000,Vref*D238/((Vout2-Vref))) -> 15681.81818 | E239: W | F239: Lower Feedback Resistance
A240: Rfb2_u | B240: =IF(Vout=Vref,"N/A",'Standard Value Calculator'!O11) -> 15000 | C240: W | D240: =IF(Vout2=Vref,"N/A",'Standard Value Calculator'!O13) -> 15800 | E240: W | F240: Std Value Lower Feedback Resistance
A243: Other Input Variables
A244: Rfets | B244: 0 | C244: W | D244: Series resistance due to FETs
A245: Diode loss eq res | B245: =0.00000002*Fsw*0.6*4/Iripple1 -> 
A246: Fet loss eq res | B246: =_Don2*RdsonTop+Doff2*RdsonBot -> 
A247: cap loss eq res | B247: =B248*Vin^2*Fsw/2/(((Iripple1/SQRT(3))^2)) -> 
A248: Sw cap | B248: 5e-09
A250: Step 8: Efficiency
A251: VAR | B251: 0
A252: Design
A253: Ta | B253: ='Design Regulator'!E14 -> 25 | C253: °C | D253: Ambient Temperature
A254: Components
A255: LTc | B255: =4000/1000000 -> 0.004 | C255: %/°C | D255: Inductor DCR Temp Co
A256: θCA | B256: 20 | C256: °C/W | D256: Inductor Core to Ambient Thermal Resistance
... 107 more rows

Sheet Stability Calculations (hidden)
A2: Divider Network & EA Poles/Zeros | E2: Modulator | J2: Power Stage Poles/Zeros | M2: Complex Pole Pair | P2: Total System
B3: Afb1 | C3: =Afb -> 0.06382978723 | D3: V/V | E3: Acs | F3: =Acs -> 20.83333333 | G3: A/V | H3: gm | I3: =gm -> 0.0012 | J3: z_ESR | K3: =Fesr -> 8465688.472 | L3: Hz | M3: p3 | N3: =Fsw/2 -> 1100000 | O3: Hz | P3: Adc | Q3: =Am*Afb*AEA -> 287645.2933 | R3: V/V
B4: EA zero, z1 | C4: =Fz1_u -> 7957.747164 | D4: Hz | E4: Am | F4: =Am -> 58.67764229 | G4: V/V | J4: p_dom | K4: =Fp_dominant -> 1202.287638 | L4: Hz | M4: pterm1 | N4: =Q*pole3 -> 742658.153 | P4: Crossover | Q4: =AE7 -> 107.15 | R4: kHz
B5: EA pole, p1 | C5: =Fp1_u -> 2.486019108 | D5: Hz | E5: Q | F5: =Q -> 0.6751437755 | M5: pterm2 | N5: =pole3^2 -> 1210000000000 | P5: Phase Margin | Q5: =AE9 -> 73.93503762 | R5: °
B6: Aea | C6: =AEA -> 76800 | D6: V/V | E6: mc | F6: =mc -> 4.487179487 | P6: radconv | Q6: =180/Pi -> 57.29577958 | AD6: XOVER SEARCH
B7: EA pole, p2 | C7: =Fp2_u -> 1250000 | D7: Hz | E7: k | F7: =k -> 0.9714697789 | AD7: xover | AE7: =SUM(AD12:AD613)/1000 -> 107.15
AD9: phase margin | AE9: =SUM(AE13:AE613) -> 73.93503762
A10: Freq (Hz) | C10: Power Stage | I10: Error Amplifier | O10: Sampling Double Pole | Q10: System Response | X10: ERROR AMP Response | AA10: PLANT Response
C11: p_dom | E11: z_ESR | G11: z_RHP | I11: p1 | K11: z1 | M11: p2 | O11: p3
C12: Gain(V/V) | D12: Phase(rad) | E12: Gain(V/V) | F12: Phase(rad) | G12: Gain(V/V) | H12: Phase(rad) | I12: Gain(V/V) | J12: Phase(rad) | K12: Gain(V/V) | L12: Phase(rad) | M12: Gain(V/V) | N12: Phase(rad) | O12: Gain(V/V) | P12: Phase(rad) | Q12: Gain (dB) | R12: Phase (°) | S12: Phase Margin (°) | V12: Fsquare | X12: Gain(dB) | Y12: Phase(Deg) | AA12: Gain(dB) | AB12: Phase(Deg)
A13: 1 | B13: =A13/1000 -> 0.001 | C13: =SQRT(1+(A13/pole1)^2) -> 1.000000346 | D13: =ATAN(A13/pole1) -> 0.000831747527 | E13: =SQRT(1+(A13/Zero1)^2) -> 1 | F13: =ATAN(A13/Zero1) -> 1.181238836e-07 | G13: =IF(VIN_nom>Vout, 1, SQRT(1+(A13/z_RHP)^2)) -> 1 | H13: =IF(VIN_nom>Vout, 0, -ATAN(A13/z_RHP)) -> 0 | I13: =SQRT(1+(A13/Pole2)^2) -> 1.077870437 | J13: =ATAN(A13/Pole2) -> 0.3824441155 | K13: =SQRT(1+(A13/Zero2)^2) -> 1.000000008 | L13: =ATAN(A13/Zero2) -> 0.0001256637053 | M13: =SQRT(1+(A13/pole4)^2) -> 1 | N13: =ATAN(A13/pole4) -> 8e-07 | O13: =SQRT((1-(V13/pterm2))^2+(A13/pterm1)^2) -> 1 | P13: =IF((ATAN((A13/pterm1)/(1-A13^2/pterm2))>0),ATAN((A13/pterm1)/(1-A13^2/pterm2)),PI()+ATAN((A13/pterm1)/(1-A13^2/pterm2))) -> 1.346514538e-06 | Q13: =20*LOG10(((E13*K13*G13)/(C13*I13*O13*M13))*Adc) -> 108.5258113 | R13: =((F13+L13+H13)-(D13+J13+P13+N13))*radconv -> -21.95300558 | S13: =IF(R13>0,R13,R13+180) -> 158.0469944 | U13: =IF(Q13<0,A13,1000000000) -> 1000000000 | V13: =A13^2 -> 1 | X13: =20*LOG10((K13/(I13*M13))*AEA) -> 97.05589326 | Y13: =(L13-(J13+N13))*radconv -> -21.90527958 | AA13: =20*LOG10((E13*G13/(C13*O13))*Acs*Am) -> 61.74462535 | AB13: =(F13+H13-(D13+P13))*radconv -> -0.04772600457 | AD13: =SUM((Q14<0)*(Q13>0))*A13 -> 0 | AE13: =IF(AD13>0,S11,0) -> 0
A14: 1.0965 | B14: =A14/1000 -> 0.0010965 | C14: 1.000000416 | D14: 0.0009120111208 | E14: 1 | F14: 1.295228384e-07 | G14: 1 | H14: 0 | I14: 1.09295002 | J14: 0.4154001239 | K14: 1.000000009 | L14: 0.0001377902528 | M14: 1 | N14: 8.772e-07 | O14: 1 | P14: 1.476453191e-06 | Q14: 108.4051359 | R14: -23.84516096 | S14: 156.154839 | U14: =IF(Q14<0,A14,1000000000) -> 1000000000 | V14: =A14^2 -> 1.20231225 | X14: 96.93521843 | Y14: -23.7928294 | AA14: 61.74462475 | AB14: -0.05233156158 | AD14: =SUM((Q15<0)*(Q14>0))*A14 -> 0 | AE14: 0
A15: 1.2023 | B15: 0.0012023 | C15: 1.0000005 | D15: 0.001000009949 | E15: 1 | F15: 1.420203453e-07 | G15: 1 | H15: 0 | I15: 1.110807254 | J15: 0.4504616794 | K15: 1.000000011 | L15: 0.0001510854726 | M15: 1 | N15: 9.6184e-07 | O15: 1 | P15: 1.618914429e-06 | Q15: 108.2643671 | R15: -25.85833261 | S15: 154.1416674 | U15: 1000000000 | V15: 1.44552529 | X15: 96.79445036 | Y15: -25.80095164 | AA15: 61.74462401 | AB15: -0.05738096941 | AD15: 0 | AE15: 0
A16: 1.3183 | B16: 0.0013183 | C16: 1.000000601 | D16: 0.001096492578 | E16: 1 | F16: 1.557227158e-07 | G16: 1 | H16: 0 | I16: 1.131902275 | J16: 0.4875814793 | K16: 1.000000014 | L16: 0.0001656624621 | M16: 1 | N16: 1.05464e-06 | O16: 1 | P16: 1.775110116e-06 | Q16: 108.1009617 | R16: -27.98984681 | S16: 152.0101532 | U16: 1000000000 | V16: 1.73791489 | X16: 96.63104586 | Y16: -27.92692963 | AA16: 61.74462314 | AB16: -0.06291718114 | AD16: 0 | AE16: 0
A17: 1.4454 | B17: 0.0014454 | C17: 1.000000723 | D17: 0.001202207574 | E17: 1 | F17: 1.707362614e-07 | G17: 1 | H17: 0 | I17: 1.156736481 | J17: 0.5266393127 | K17: 1.000000016 | L17: 0.0001816343187 | M17: 1 | N17: 1.15632e-06 | O17: 1 | P17: 1.946252114e-06 | Q17: 107.9124507 | R17: -30.2328525 | S17: 149.7671475 | U17: 1000000000 | V17: 2.08918116 | X17: 96.44253589 | Y17: -30.16386935 | AA17: 61.74462208 | AB17: -0.06898314971 | AD17: 0 | AE17: 0
A18: 1.5849 | B18: 0.0015849 | C18: 1.000000869 | D18: 0.001318236196 | E18: 1 | F18: 1.872145432e-07 | G18: 1 | H18: 0 | I18: 1.185933585 | J18: 0.5675555915 | K18: 1.00000002 | L18: 0.000199164405 | M18: 1 | N18: 1.26792e-06 | O18: 1 | P18: 2.134090892e-06 | Q18: 107.6959307 | R18: -32.58284236 | S18: 147.4171576 | U18: 1000000000 | V18: 2.51190801 | X18: 96.22601721 | Y18: -32.50720144 | AA18: 61.74462081 | AB18: -0.07564091832 | AD18: 0 | AE18: 0
A19: 1.7378 | B19: 0.0017378 | C19: 1.000001045 | D19: 0.001445410179 | E19: 1 | F19: 2.05275685e-07 | G19: 1 | H19: 0 | I19: 1.220099116 | J19: 0.6100741376 | K19: 1.000000024 | L19: 0.0002183783848 | M19: 1 | N19: 1.39024e-06 | O19: 1 | P19: 2.339972965e-06 | Q19: 107.4492343 | R19: -35.02517902 | S19: 144.974821 | U19: 1000000000 | V19: 3.01994884 | X19: 95.97932236 | Y19: -34.94224081 | AA19: 61.74461928 | AB19: -0.08293821217 | AD19: 0 | AE19: 0
A20: 1.9055 | B20: 0.0019055 | C20: 1.000001256 | D20: 0.001584893951 | E20: 1 | F20: 2.250850603e-07 | G20: 1 | H20: 0 | I20: 1.259960913 | J20: 0.6539692221 | K20: 1.000000029 | L20: 0.0002394521872 | M20: 1 | N20: 1.5244e-06 | O20: 1 | P20: 2.565783453e-06 | Q20: 107.1699933 | R20: -37.54698599 | S20: 142.453014 | U20: 1000000000 | V20: 3.63093025 | X20: 95.7000832 | Y20: -37.45604414 | AA20: 61.74461745 | AB20: -0.09094184662 | AD20: 0 | AE20: 0
A21: 2.0893 | B21: 0.0020893 | C21: 1.00000151 | D21: 0.00173776876 | E21: 1 | F21: 2.467962301e-07 | G21: 1 | H21: 0 | I21: 1.306256351 | J21: 0.6989059794 | K21: 1.000000034 | L21: 0.0002625491749 | M21: 1 | N21: 1.67144e-06 | O21: 1 | P21: 2.813272825e-06 | Q21: 106.8565643 | R21: -40.12912961 | S21: 139.8708704 | U21: 1000000000 | V21: 4.36517449 | X21: 95.3866564 | Y21: -40.02941575 | AA21: 61.74461524 | AB21: -0.09971386409 | AD21: 0 | AE21: 0
A22: 2.2909 | B22: 0.0022909 | C22: 1.000001815 | D22: 0.001905448543 | E22: 1 | F22: 2.70610005e-07 | G22: 1 | H22: 0 | I22: 1.359848155 | J22: 0.7445746329 | K22: 1.000000041 | L22: 0.0002878829761 | M22: 1 | N22: 1.83272e-06 | O22: 1 | P22: 3.084730156e-06 | Q22: 106.5073217 | R22: -42.75392997 | S22: 137.24607 | U22: 1000000000 | V22: 5.24822281 | X22: 95.03741643 | Y22: -42.64459457 | AA22: 61.74461259 | AB22: -0.1093353969 | AD22: 0 | AE22: 0
A23: 2.5119 | B23: 0.0025119 | C23: 1.000002183 | D23: 0.002089264055 | E23: 1 | F23: 2.967153833e-07 | G23: 1 | H23: 0 | I23: 1.421594011 | J23: 0.7905764507 | K23: 1.00000005 | L23: 0.0003156546526 | M23: 1 | N23: 2.00952e-06 | O23: 1 | P23: 3.382309869e-06 | Q23: 106.1216152 | R23: -45.39860632 | S23: 134.6013937 | U23: 1000000000 | V23: 6.30964161 | X23: 94.65171313 | Y23: -45.27872352 | AA23: 61.7446094 | AB23: -0.1198828043 | AD23: 0 | AE23: 0
A24: 2.7542 | B24: 0.0027542 | C24: 1.000002624 | D24: 0.00229079556 | E24: 1 | F24: 3.253368003e-07 | G24: 1 | H24: 0 | I24: 1.492443776 | J24: 0.8365309731 | K24: 1.00000006 | L24: 0.0003461029652 | M24: 1 | N24: 2.20336e-06 | O24: 1 | P24: 3.708570341e-06 | Q24: 105.6991636 | R24: -48.04143701 | S24: 131.958563 | U24: 1000000000 | V24: 7.58561764 | X24: 94.22926534 | Y24: -47.90999025 | AA24: 61.74460557 | AB24: -0.1314467625 | AD24: 0 | AE24: 0
A25: 3.02 | B25: 0.00302 | C25: 1.000003155 | D25: 0.002511872828 | E25: 1 | F25: 3.567341286e-07 | G25: 1 | H25: 0 | I25: 1.573443164 | J25: 0.8820771196 | K25: 1.000000072 | L25: 0.0003795043739 | M25: 1 | N25: 2.416e-06 | O25: 1 | P25: 4.066473905e-06 | Q25: 105.2400975 | R25: -50.66182291 | S25: 129.3381771 | U25: 1000000000 | V25: 9.1204 | X25: 93.77020383 | Y25: -50.51769064 | AA25: 61.74460096 | AB25: -0.1441322643 | AD25: 0 | AE25: 0
A26: 3.3113 | B26: 0.0033113 | C26: 1.000003793 | D26: 0.002754159258 | E26: 1 | F26: 3.911436159e-07 | G26: 1 | H26: 0 | I26: 1.665575277 | J26: 0.9268036804 | K26: 1.000000087 | L26: 0.0004161102057 | M26: 1 | N26: 2.64904e-06 | O26: 1 | P26: 4.45871359e-06 | Q26: 104.7458279 | R26: -53.23628456 | S26: 126.7637154 | U26: 1000000000 | V26: 10.96470769 | X26: 93.27593984 | Y26: -53.0782498 | AA26: 61.74459541 | AB26: -0.1580347563 | AD26: 0 | AE26: 0
A27: 3.6308 | B27: 0.0036308 | C27: 1.00000456 | D27: 0.003019900437 | E27: 1 | F27: 4.288841967e-07 | G27: 1 | H27: 0 | I27: 1.77003501 | J27: 0.9704108529 | K27: 1.000000104 | L27: 0.0004562597521 | M27: 1 | N27: 2.90464e-06 | O27: 1 | P27: 4.888924985e-06 | Q27: 104.2174696 | R27: -55.74775408 | S27: 124.2522459 | U27: 1000000000 | V27: 13.18270864 | X27: 92.74758818 | Y27: -55.57447099 | AA27: 61.74458875 | AB27: -0.1732830913 | AD27: 0 | AE27: 0
A28: 3.9811 | B28: 0.0039811 | C28: 1.000005482 | D28: 0.003311258741 | E28: 1 | F28: 4.702629932e-07 | G28: 1 | H28: 0 | I28: 1.887979817 | J28: 1.012588781 | K28: 1.000000125 | L28: 0.0005002797382 | M28: 1 | N28: 3.18488e-06 | O28: 1 | P28: 5.360609028e-06 | Q28: 103.657152 | R28: -58.17858353 | S28: 121.8214165 | U28: 1000000000 | V28: 15.84915721 | X28: 92.18727854 | Y28: -57.98858218 | AA28: 61.74458074 | AB28: -0.1900013472 | AD28: 0 | AE28: 0
A29: 4.3652 | B29: 0.0043652 | C29: 1.000006591 | D29: 0.003630729188 | E29: 1 | F29: 5.156343769e-07 | G29: 1 | H29: 0 | I29: 2.020688859 | J29: 1.053098744 | K29: 1.00000015 | L29: 0.0005485471544 | M29: 1 | N29: 3.49216e-06 | O29: 1 | P29: 5.877805262e-06 | Q29: 103.0671006 | R29: -60.51521684 | S29: 119.4847832 | U29: 1000000000 | V29: 19.05497104 | X29: 91.59723677 | Y29: -60.30688415 | AA29: 61.74457111 | AB29: -0.2083326891 | AD29: 0 | AE29: 0
A30: 4.7863 | B30: 0.0047863 | C30: 1.000007924 | D30: 0.003980973076 | E30: 1 | F30: 5.653763443e-07 | G30: 1 | H30: 0 | I30: 2.169499854 | J30: 1.091746993 | K30: 1.000000181 | L30: 0.0006014641235 | M30: 1 | N30: 3.82904e-06 | O30: 1 | P30: 6.444822534e-06 | Q30: 102.4498857 | R30: -62.74668294 | S30: 117.2533171 | U30: 1000000000 | V30: 22.90866769 | X30: 90.98003347 | Y30: -62.51825312 | AA30: 61.74455953 | AB30: -0.2284298233 | AD30: 0 | AE30: 0
A31: 5.2481 | B31: 0.0052481 | C31: 1.000009527 | D31: 0.004365067479 | E31: 1 | F31: 6.199259537e-07 | G31: 1 | H31: 0 | I31: 2.335918243 | J31: 1.12841012 | K31: 1.000000217 | L31: 0.0006594955998 | M31: 1 | N31: 4.19848e-06 | O31: 1 | P31: 7.066642948e-06 | Q31: 101.8079118 | R31: -64.86606108 | S31: 115.1339389 | U31: 1000000000 | V31: 27.54255361 | X31: 90.33807352 | Y31: -64.61559177 | AA31: 61.74454561 | AB31: -0.2504693138 | AD31: 0 | AE31: 0
A32: 5.7544 | B32: 0.0057544 | C32: 1.000011454 | D32: 0.004786172527 | E32: 1 | F32: 6.79732076e-07 | G32: 1 | H32: 0 | I32: 2.521479256 | J32: 1.162994262 | K32: 1.000000261 | L32: 0.0007231191038 | M32: 1 | N32: 4.60352e-06 | O32: 1 | P32: 7.748383259e-06 | Q32: 101.1439402 | R32: -66.86812748 | S32: 113.1318725 | U32: 1000000000 | V32: 33.11311936 | X32: 89.67411868 | Y32: -66.59349499 | AA32: 61.74452887 | AB32: -0.27463249 | AD32: 0 | AE32: 0
A33: 6.3096 | B33: 0.0063096 | C33: 1.000013771 | D33: 0.005247947228 | E33: 1 | F33: 7.453144562e-07 | G33: 1 | H33: 0 | I33: 2.727932276 | J33: 1.195468005 | K33: 1.000000314 | L33: 0.0007928875532 | M33: 1 | N33: 5.04768e-06 | O33: 1 | P33: 8.49596813e-06 | Q33: 100.4603569 | R33: -68.75126071 | S33: 111.2487393 | U33: 1000000000 | V33: 39.81105216 | X33: 88.99055545 | Y33: -68.4501314 | AA33: 61.74450875 | AB33: -0.3011293074 | AD33: 0 | AE33: 0
A34: 6.9183 | B34: 0.0069183 | C34: 1.000016556 | D34: 0.005754216733 | E34: 1 | F34: 8.172164642e-07 | G34: 1 | H34: 0 | I34: 2.957099439 | J34: 1.225825507 | K34: 1.000000378 | L34: 0.0008693789982 | M34: 1 | N34: 5.53464e-06 | O34: 1 | P34: 9.31559153e-06 | Q34: 99.75968635 | R34: -70.51531267 | S34: 109.4846873 | U34: 1000000000 | V34: 47.86287489 | X34: 88.28990911 | Y34: -70.18513341 | AA34: 61.74448456 | AB34: -0.3301792546 | AD34: 0 | AE34: 0
A35: 7.5858 | B35: 0.0075858 | C35: 1.000019905 | D35: 0.006309388122 | E35: 1 | F35: 8.960641565e-07 | G35: 1 | H35: 0 | I35: 3.211066325 | J35: 1.254106164 | K35: 1.000000454 | L35: 0.0009532594522 | M35: 1 | N35: 6.06864e-06 | O35: 1 | P35: 1.021438998e-05 | Q35: 99.04399098 | R35: -72.16275552 | S35: 107.8372445 | U35: 1000000000 | V35: 57.54436164 | X35: 87.57424282 | Y35: -71.80072031 | AA35: 61.74445547 | AB35: -0.3620352119 | AD35: 0 | AE35: 0
A36: 8.3176 | B36: 0.0083176 | C36: 1.00002393 | D36: 0.00691803446 | E36: 1 | F36: 9.825072146e-07 | G36: 1 | H36: 0 | I36: 3.491997607 | J36: 1.280361321 | K36: 1.000000546 | L36: 0.00104522006 | M36: 1 | N36: 6.65408e-06 | O36: 1 | P36: 1.119976932e-05 | Q36: 98.31546359 | R36: -73.69675419 | S36: 106.3032458 | U36: 1000000000 | V36: 69.18246976 | X36: 86.8457504 | Y36: -73.2997946 | AA36: 61.74442051 | AB36: -0.3969595835 | AD36: 0 | AE36: 0
A37: 9.1201 | B37: 0.0091201 | C37: 1.00002877 | D37: 0.007585476879 | E37: 1 | F37: 1.077301631e-06 | G37: 1 | H37: 0 | I37: 3.802407422 | J37: 1.304675006 | K37: 1.000000657 | L37: 0.001146065063 | M37: 1 | N37: 7.29608e-06 | O37: 1 | P37: 1.228034724e-05 | Q37: 97.57572827 | R37: -75.12238262 | S37: 104.8776174 | U37: 1000000000 | V37: 83.17622401 | X37: 86.10605713 | Y37: -74.68712492 | AA37: 61.74437846 | AB37: -0.4352576985 | AD37: 0 | AE37: 0
A38: 10 | B38: 0.01 | C38: 1.00003459 | D38: 0.008317285394 | E38: 1 | F38: 1.181238836e-06 | G38: 1 | H38: 0 | I38: 4.144932794 | J38: 1.327133945 | K38: 1.00000079 | L38: 0.001256636399 | M38: 1 | N38: 8e-06 | O38: 1 | P38: 1.346514538e-05 | Q38: 96.826502 | R38: -76.44488153 | S38: 103.5551185 | U38: 1000000000 | V38: 100 | X38: 85.35688139 | Y38: -75.96763237 | AA38: 61.74432792 | AB38: -0.4772491666 | AD38: 0 | AE38: 0
A39: 10.965 | B39: 0.010965 | C39: 1.000041587 | D39: 0.00911986089 | E39: 1 | F39: 1.295228384e-06 | G39: 1 | H39: 0 | I39: 4.522607072 | J39: 1.347842392 | K39: 1.000000949 | L39: 0.001377901664 | M39: 1 | N39: 8.772e-06 | O39: 1 | P39: 1.476453191e-05 | Q39: 96.06901532 | R39: -77.67053653 | S39: 102.3294635 | U39: 1000000000 | V39: 120.231225 | X39: 84.5994555 | Y39: -77.14723525 | AA39: 61.74426714 | AB39: -0.5233012736 | AD39: 0 | AE39: 0
A40: 12.023 | B40: 0.012023 | C40: 1.00005 | D40: 0.0099997695 | E40: 1 | F40: 1.420203453e-06 | G40: 1 | H40: 0 | I40: 4.93854994 | J40: 1.366897841 | K40: 1.000001141 | L40: 0.001510853588 | M40: 1 | N40: 9.6184e-06 | O40: 1 | P40: 1.618914429e-05 | Q40: 95.30473208 | R40: -78.80525374 | S40: 101.1947463 | U40: 1000000000 | V40: 144.552529 | X40: 83.83524532 | Y40: -78.23146296 | AA40: 61.74419408 | AB40: -0.5737907871 | AD40: 0 | AE40: 0
A41: 13.183 | B41: 0.013183 | C41: 1.000060113 | D41: 0.01096449077 | E41: 1 | F41: 1.557227158e-06 | G41: 1 | H41: 0 | I41: 5.396320602 | J41: 1.384407534 | K41: 1.000001372 | L41: 0.001656623121 | M41: 1 | N41: 1.05464e-05 | O41: 1 | P41: 1.775110116e-05 | Q41: 94.53468037 | R41: -79.85554253 | S41: 100.1444575 | U41: 1000000000 | V41: 173.791489 | X41: 83.06528145 | Y41: -79.22639564 | AA41: 61.74410624 | AB41: -0.6291468871 | AD41: 0 | AE41: 0
A42: 14.454 | B42: 0.014454 | C42: 1.000072263 | D42: 0.01202150239 | E42: 1 | F42: 1.707362614e-06 | G42: 1 | H42: 0 | I42: 5.899485455 | J42: 1.40046762 | K42: 1.00000165 | L42: 0.001816341209 | M42: 1 | N42: 1.15632e-05 | O42: 1 | P42: 1.946252114e-05 | Q42: 93.76024943 | R42: -80.82727655 | S42: 99.17272345 | U42: 1000000000 | V42: 208.918116 | X42: 82.29095603 | Y42: -80.1374779 | AA42: 61.74400072 | AB42: -0.6897986469 | AD42: 0 | AE42: 0
A43: 15.849 | B43: 0.015849 | C43: 1.000086884 | D43: 0.01318160609 | E43: 1 | F43: 1.872145432e-06 | G43: 1 | H43: 0 | I43: 6.453204386 | J43: 1.415207567 | K43: 1.000001983 | L43: 0.001991641443 | M43: 1 | N43: 1.26792e-05 | O43: 1 | P43: 2.134090892e-05 | Q43: 92.98089963 | R43: -81.7284005 | S43: 98.2715995 | U43: 1000000000 | V43: 251.190801 | X43: 81.51173322 | Y43: -80.97203463 | AA43: 61.74387373 | AB43: -0.7563658748 | AD43: 0 | AE43: 0
A44: 17.378 | B44: 0.017378 | C44: 1.000104455 | D44: 0.01445310539 | E44: 1 | F44: 2.05275685e-06 | G44: 1 | H44: 0 | I44: 7.061457723 | J44: 1.428704852 | K44: 1.000002384 | L44: 0.002183780411 | M44: 1 | N44: 1.39024e-05 | O44: 1 | P44: 2.339972965e-05 | Q44: 92.19837165 | R44: -82.56375847 | S44: 97.43624153 | U44: 1000000000 | V44: 301.994884 | X44: 80.72935784 | Y44: -81.73443344 | AA44: 61.74372112 | AB44: -0.8293250323 | AD44: 0 | AE44: 0
A45: 19.055 | B45: 0.019055 | C45: 1.000125587 | D45: 0.01584762595 | E45: 1 | F45: 2.250850603e-06 | G45: 1 | H45: 0 | I45: 7.729822135 | J45: 1.441063638 | K45: 1.000002867 | L45: 0.002394517341 | M45: 1 | N45: 1.5244e-05 | O45: 1 | P45: 2.565783453e-05 | Q45: 91.41268956 | R45: -83.33988542 | S45: 96.66011458 | U45: 1000000000 | V45: 363.093025 | X45: 79.94385928 | Y45: -82.43054222 | AA45: 61.74353759 | AB45: -0.9093432048 | AD45: 0 | AE45: =IF(AD45>0,S43,0) -> 0
A46: 20.893 | B46: 0.020893 | C46: 1.000150981 | D46: 0.01737595614 | E46: 1 | F46: 2.467962301e-06 | G46: 1 | H46: 0 | I46: 8.463484245 | J46: 1.452365021 | K46: 1.000003447 | L46: 0.002625485777 | M46: 1 | N46: 1.67144e-05 | O46: 1 | P46: 2.813272825e-05 | Q46: 90.62488027 | R46: -84.06195394 | S46: 95.93804606 | U46: 1000000000 | V46: 436.517449 | X46: 79.15627053 | Y46: -83.0649145 | AA46: 61.74331705 | AB46: -0.9970394357 | AD46: 0 | AE46: 0
A47: 22.909 | B47: 0.022909 | C47: 1.000181521 | D47: 0.01905220293 | E47: 1 | F47: 2.70610005e-06 | G47: 1 | H47: 0 | I47: 9.269234086 | J47: 1.462702169 | K47: 1.000004144 | L47: 0.002878821888 | M47: 1 | N47: 1.83272e-05 | O47: 1 | P47: 3.084730156e-05 | Q47: 89.83472791 | R47: -84.73599 | S47: 95.26401 | U47: 1000000000 | V47: 524.822281 | X47: 78.36638339 | Y47: -83.64276681 | AA47: 61.74305183 | AB47: -1.093223191 | AD47: 0 | AE47: 0
A48: 25.119 | B48: 0.025119 | C48: 1.000218228 | D48: 0.02088963184 | E48: 1 | F48: 2.967153833e-06 | G48: 1 | H48: 0 | I48: 10.15347001 | J48: 1.472147908 | K48: 1.000004982 | L48: 0.003156536147 | M48: 1 | N48: 2.00952e-05 | O48: 1 | P48: 3.382309869e-05 | Q48: 89.0430036 | R48: -85.36681287 | S48: 94.63318713 | U48: 1000000000 | V48: 630.964161 | X48: 77.57497786 | Y48: -84.16815722 | AA48: 61.74273306 | AB48: -1.198655657 | AD48: 0 | AE48: 0
A49: 27.542 | B49: 0.027542 | C49: 1.000262354 | D49: 0.02290398974 | E49: 1 | F49: 3.253368003e-06 | G49: 1 | H49: 0 | I49: 11.12379623 | J49: 1.480777432 | K49: 1.000005989 | L49: 0.003461015971 | M49: 1 | N49: 2.20336e-05 | O49: 1 | P49: 3.708570342e-05 | Q49: 88.24985849 | R49: -85.95949856 | S49: 94.04050144 | U49: 1000000000 | V49: 758.561764 | X49: 76.78221593 | Y49: -84.64525816 | AA49: 61.74234988 | AB49: -1.314240398 | AD49: 0 | AE49: 0
A50: 30.2 | B50: 0.0302 | C50: 1.000315427 | D50: 0.02511350018 | E50: 1 | F50: 3.567341286e-06 | G50: 1 | H50: 0 | I50: 12.18902536 | J50: 1.488663 | K50: 1.000007201 | L50: 0.003795025702 | M50: 1 | N50: 2.416e-05 | O50: 1 | P50: 4.066473906e-05 | Q50: 87.45508905 | R50: -86.51907554 | S50: 93.48092446 | U50: 1000000000 | V50: 912.04 | X50: 75.98790734 | Y50: -85.07805244 | AA50: 61.74188903 | AB50: -1.441023095 | AD50: 0 | AE50: 0
A51: 33.113 | B51: 0.033113 | C51: 1.0003792 | D51: 0.02753470153 | E51: 1 | F51: 3.911436159e-06 | G51: 1 | H51: 0 | I51: 13.35717412 | J51: 1.495860078 | K51: 1.000008657 | L51: 0.004161078281 | M51: 1 | N51: 2.649039999e-05 | O51: 1 | P51: 4.458713591e-05 | Q51: 86.65963583 | R51: -87.04952762 | S51: 92.95047238 | U51: 1000000000 | V51: 1096.470769 | X51: 75.19300785 | Y51: -85.46957488 | AA51: 61.74133529 | AB51: -1.579952736 | AD51: 0 | AE51: 0
A52: 36.308 | B52: 0.036308 | C52: 1.000455889 | D52: 0.03018992082 | E52: 1 | F52: 4.288841967e-06 | G52: 1 | H52: 0 | I52: 14.63907079 | J52: 1.502432742 | K52: 1.000010409 | L52: 0.004562566178 | M52: 1 | N52: 2.904639999e-05 | O52: 1 | P52: 4.888924987e-05 | Q52: 85.86300673 | R52: -87.55561414 | S52: 92.44438586 | U52: 1000000000 | V52: 1318.270864 | X52: 74.39704459 | Y52: -85.82330368 | AA52: 61.74066946 | AB52: -1.732310464 | AD52: 0 | AE52: 0
A53: 39.811 | B53: 0.039811 | C53: 1.000548076 | D53: 0.03310061423 | E53: 1 | F53: 4.702629932e-06 | G53: 1 | H53: 0 | I53: 16.04514814 | J53: 1.508431772 | K53: 1.000012514 | L53: 0.005002756064 | M53: 1.000000001 | N53: 3.184879999e-05 | O53: 1 | P53: 5.36060903e-05 | Q53: 85.06562028 | R53: -88.04128978 | S53: 91.95871022 | U53: 1000000000 | V53: 1584.915721 | X53: 73.60045846 | Y53: -86.14196232 | AA53: 61.73986914 | AB53: -1.899327459 | AD53: 0 | AE53: 0
A54: 43.652 | B54: 0.043652 | C54: 1.000658898 | D54: 0.03629151016 | E54: 1 | F54: 5.156343769e-06 | G54: 1 | H54: 0 | I54: 17.58744855 | J54: 1.513906915 | K54: 1.000015045 | L54: 0.005485417075 | M54: 1.000000001 | N54: 3.492159999e-05 | O54: 1 | P54: 5.877805265e-05 | Q54: 84.26749808 | R54: -88.51060918 | S54: 91.48939082 | U54: 1000000000 | V54: 1905.497104 | X54: 72.80329827 | Y54: -86.42818651 | AA54: 61.73890712 | AB54: -2.082422664 | AD54: 0 | AE54: 0
A55: 47.863 | B55: 0.047863 | C55: 1.000792102 | D55: 0.03978893036 | E55: 1 | F55: 5.653763443e-06 | G55: 1 | H55: 0 | I55: 19.27882158 | J55: 1.518902648 | K55: 1.000018088 | L55: 0.006014569433 | M55: 1.000000001 | N55: 3.829039998e-05 | O55: 1 | P55: 6.444822538e-05 | Q55: 83.46881547 | R55: -88.96740224 | S55: 91.03259776 | U55: 1000000000 | V55: 2290.866769 | X55: 72.00577182 | Y55: -86.68429578 | AA55: 61.73775097 | AB55: -2.283106458 | AD55: 0 | AE55: 0
A56: 52.481 | B56: 0.052481 | C56: 1.000952249 | D56: 0.04362325943 | E56: 1 | F56: 6.199259537e-06 | G56: 1 | H56: 0 | I56: 21.13412888 | J56: 1.523461822 | K56: 1.000021746 | L56: 0.006594861345 | M56: 1.000000001 | N56: 4.198479998e-05 | O56: 1 | P56: 7.066642952e-05 | Q56: 82.66938009 | R56: -89.41560294 | S56: 90.58439706 | U56: 1000000000 | V56: 2754.255361 | X56: 71.20772625 | Y56: -86.91248058 | AA56: 61.73636116 | AB56: -2.503122353 | AD56: 0 | AE56: 0
A57: 57.544 | B57: 0.057544 | C57: 1.001144735 | D57: 0.04782559371 | E57: 1 | F57: 6.79732076e-06 | G57: 1 | H57: 0 | I57: 23.1686375 | J57: 1.527621118 | K57: 1.000026145 | L57: 0.007231066262 | M57: 1.000000001 | N57: 4.603519997e-05 | O57: 1 | P57: 7.748383264e-05 | Q57: 81.86942527 | R57: -89.85882564 | S57: 90.14117436 | U57: 1000000000 | V57: 3311.311936 | X57: 70.40944159 | Y57: -87.11457093 | AA57: 61.734691 | AB57: -2.744254714 | AD57: 0 | AE57: 0
A58: 63.096 | B58: 0.063096 | C58: 1.001376126 | D58: 0.05243185438 | E58: 1 | F58: 7.453144562e-06 | G58: 1 | H58: 0 | I58: 25.40002855 | J58: 1.531416115 | K58: 1.000031433 | L58: 0.007928711045 | M58: 1.000000001 | N58: 5.047679996e-05 | O58: 1 | P58: 8.495968138e-05 | Q58: 81.06878969 | R58: -90.30085534 | S58: 89.69914466 | U58: 1000000000 | V58: 3981.105216 | X58: 69.61081331 | Y58: -87.29229057 | AA58: 61.73268369 | AB58: -3.008564769 | AD58: 0 | AE58: 0
A59: 69.183 | B59: 0.069183 | C59: 1.001654219 | D59: 0.0574794169 | E59: 1 | F59: 8.172164642e-06 | G59: 1 | H59: 0 | I59: 27.84678993 | J59: 1.534877822 | K59: 1.00003779 | L59: 0.008693573151 | M59: 1.000000002 | N59: 5.534639994e-05 | O59: 1 | P59: 9.31559154e-05 | Q59: 80.2676144 | R59: -90.74528465 | S59: 89.25471535 | U59: 1000000000 | V59: 4786.287489 | X59: 68.81204985 | Y59: -87.44708744 | AA59: 61.73027186 | AB59: -3.298197211 | AD59: 0 | AE59: 0
A60: 75.858 | B60: 0.075858 | C60: 1.001988495 | D60: 0.06301119237 | E60: 1 | F60: 8.960641565e-06 | G60: 1 | H60: 0 | I60: 30.53022592 | J60: 1.538036042 | K60: 1.000045434 | L60: 0.009532308682 | M60: 1.000000002 | N60: 6.068639993e-05 | O60: 1 | P60: 0.0001021439 | Q60: 79.46568499 | R60: -91.19590446 | S60: 88.80409554 | U60: 1000000000 | V60: 5754.436164 | X60: 68.01301865 | Y60: -87.58029007 | AA60: 61.72737366 | AB60: -3.615614396 | AD60: 0 | AE60: 0
A61: 83.176 | B61: 0.083176 | C61: 1.00239018 | D61: 0.06907139497 | E61: 1 | F61: 9.825072145e-06 | G61: 1 | H61: 0 | I61: 33.47244731 | J61: 1.540916563 | K61: 1.000054623 | L61: 0.01045182381 | M61: 1.000000002 | N61: 6.65407999e-05 | O61: 1.000000001 | P61: 0.0001119976934 | Q61: 78.66313445 | R61: -91.65633634 | S61: 88.34366366 | U61: 1000000000 | V61: 6918.246976 | X61: 67.21394948 | Y61: -87.69298286 | AA61: 61.72389229 | AB61: -3.963353482 | AD61: 0 | AE61: 0
A62: 91.201 | B62: 0.091201 | C62: 1.002872956 | D62: 0.07571122752 | E62: 1 | F62: 1.077301631e-05 | G62: 1 | H62: 0 | I62: 36.69918555 | J62: 1.543544393 | K62: 1.000065671 | L62: 0.01146015392 | M62: 1.000000003 | N62: 7.296079987e-05 | O62: 1.000000001 | P62: 0.0001228034726 | Q62: 77.85966888 | R62: -92.13049386 | S62: 87.86950614 | U62: 1000000000 | V62: 8317.622401 | X62: 66.41466625 | Y62: -87.78614118 | AA62: 61.71970995 | AB62: -4.344352676 | AD62: 0 | AE62: 0
A63: 100 | B63: 0.1 | C63: 1.00345306 | D63: 0.0829837619 | E63: 1 | F63: 1.181238836e-05 | G63: 1 | H63: 0 | I63: 40.23738047 | J63: 1.545941255 | K63: 1.000078954 | L63: 0.0125657092 | M63: 1.000000003 | N63: 7.999999983e-05 | O63: 1.000000001 | P63: 0.0001346514541 | Q63: 77.05529594 | R63: -92.62218845 | S63: 87.37781155 | U63: 1000000000 | V63: 10000 | X63: 65.61531614 | Y63: -87.86053096 | AA63: 61.71468712 | AB63: -4.76165749 | AD63: 0 | AE63: 0
A64: 109.65 | B64: 0.10965 | C64: 1.004150212 | D64: 0.0909495322 | E64: 1 | F64: 1.295228384e-05 | G64: 1 | H64: 0 | I64: 44.11799489 | J64: 1.548127897 | K64: 1.000094926 | L64: 0.01377815343 | M64: 1.000000004 | N64: 8.771999978e-05 | O64: 1.000000001 | P64: 0.0001476453195 | Q64: 76.24968088 | R64: -93.13553241 | S64: 86.86446759 | U64: 1000000000 | V64: 12023.1225 | X64: 64.81573353 | Y64: -87.91679072 | AA64: 61.70865467 | AB64: -5.218741692 | AD64: 0 | AE64: 0
A65: 120.23 | B65: 0.12023 | C65: 1.004987664 | D65: 0.09966967055 | E65: 1 | F65: 1.420203453e-05 | G65: 1 | H65: 0 | I65: 48.37279763 | J65: 1.550122078 | K65: 1.000114128 | L65: 0.01510739793 | M65: 1.000000005 | N65: 9.61839997e-05 | O65: 1.000000001 | P65: 0.0001618914434 | Q65: 75.4428979 | R65: -93.67448716 | S65: 86.32551284 | U65: 1000000000 | V65: 14455.2529 | X65: 64.01619149 | Y65: -87.95537371 | AA65: 61.70141373 | AB65: -5.719113454 | AD65: 0 | AE65: 0
A66: 131.83 | B66: 0.13183 | C66: 1.005993524 | D66: 0.1092130081 | E66: 1 | F66: 1.557227158e-05 | G66: 1 | H66: 0 | I66: 53.03798265 | J66: 1.551940797 | K66: 1.000137211 | L66: 0.01656473113 | M66: 1.000000006 | N66: 0.0001054639996 | O66: 1.000000001 | P66: 0.0001775110123 | Q66: 74.63469346 | R66: -94.24333413 | S66: 85.75666587 | U66: 1000000000 | V66: 17379.1489 | X66: 63.21667613 | Y66: -87.97661129 | AA66: 61.69272465 | AB66: -6.266722844 | AD66: 0 | AE66: 0
A67: 144.54 | B67: 0.14454 | C67: 1.007200598 | D67: 0.119646601 | E67: 1 | F67: 1.707362614e-05 | G67: 1 | H67: 0 | I67: 58.14974517 | J67: 1.553598499 | K67: 1.000164942 | L67: 0.01816143503 | M67: 1.000000007 | N67: 0.0001156319995 | O67: 1.000000002 | P67: 0.0001946252123 | Q67: 73.8253021 | R67: -94.84610704 | S67: 85.15389296 | U67: 1000000000 | V67: 20891.8116 | X67: 62.41770057 | Y67: -87.98068881 | AA67: 61.68230885 | AB67: -6.865418235 | AD67: 0 | AE67: 0
A68: 158.49 | B68: 0.15849 | C68: 1.008651321 | D68: 0.1310679718 | E68: 1 | F68: 1.872145432e-05 | G68: 1 | H68: 0 | I68: 63.76036923 | J68: 1.55511196 | K68: 1.000198313 | L68: 0.01991380801 | M68: 1.000000008 | N68: 0.0001267919993 | O68: 1.000000002 | P68: 0.0002134090904 | Q68: 73.01303001 | R68: -95.48843599 | S68: 84.51156401 | U68: 1000000000 | V68: 25119.0801 | X68: 61.61793021 | Y68: -87.96763959 | AA68: 61.66980711 | AB68: -7.520796403 | AD68: 0 | AE68: 0
A69: 173.78 | B69: 0.17378 | C69: 1.01039207 | D69: 0.1435469603 | E69: 1 | F69: 2.05275685e-05 | G69: 1 | H69: 0 | I69: 69.9100745 | J69: 1.556491749 | K69: 1.000238417 | L69: 0.0218343684 | M69: 1.00000001 | N69: 0.0001390239991 | O69: 1.000000002 | P69: 0.000233997298 | Q69: 72.19862208 | R69: -96.17422241 | S69: 83.82577759 | U69: 1000000000 | V69: 30199.4884 | X69: 60.81849964 | Y69: -87.93735649 | AA69: 61.65482976 | AB69: -8.236865913 | AD69: 0 | AE69: 0
A70: 190.55 | B70: 0.19055 | C70: 1.01248157 | D70: 0.1571821468 | E70: 1 | F70: 2.250850602e-05 | G70: 1 | H70: 0 | I70: 76.65516958 | J70: 1.557750522 | K70: 1.000286646 | L70: 0.02394064423 | M70: 1.000000012 | N70: 0.0001524399988 | O70: 1.000000003 | P70: 0.0002565783473 | Q70: 71.38106322 | R70: -96.9088517 | S70: 83.0911483 | U70: 1000000000 | V70: 36309.3025 | X70: 60.01888474 | Y70: -87.88956685 | AA70: 61.6368858 | AB70: -9.019284853 | AD70: 0 | AE70: 0
A71: 208.93 | B71: 0.20893 | C71: 1.014986928 | D71: 0.1720588114 | E71: 1 | F71: 2.4679623e-05 | G71: 1 | H71: 0 | I71: 84.04794202 | J71: 1.558898075 | K71: 1.000344601 | L71: 0.0262488879 | M71: 1.000000014 | N71: 0.0001671439984 | O71: 1.000000003 | P71: 0.0002813272852 | Q71: 70.56038729 | R71: -97.69685519 | S71: 82.30314481 | U71: 1000000000 | V71: 43651.7449 | X71: 59.21967525 | Y71: -87.82390663 | AA71: 61.61541935 | AB71: -9.872948558 | AD71: 0 | AE71: 0
A72: 229.09 | B72: 0.22909 | C72: 1.017991861 | D72: 0.1882879868 | E72: 1 | F72: 2.70610005e-05 | G72: 1 | H72: 0 | I72: 92.1567689 | J72: 1.559945039 | K72: 1.000414297 | L72: 0.02878034944 | M72: 1.000000017 | N72: 0.0001832719979 | O72: 1.000000004 | P72: 0.0003084730192 | Q72: 69.73531215 | R72: -98.54400597 | S72: 81.45599403 | U72: 1000000000 | V72: 52482.2281 | X72: 58.42027726 | Y72: -87.73977526 | AA72: 61.58974221 | AB72: -10.80423071 | AD72: 0 | AE72: 0
A73: 251.19 | B73: 0.25119 | C73: 1.021592076 | D73: 0.205964015 | E73: 1 | F73: 2.967153832e-05 | G73: 1 | H73: 0 | I73: 101.046006 | J73: 1.560899683 | K73: 1.000498065 | L73: 0.03155498885 | M73: 1.00000002 | N73: 0.0002009519973 | O73: 1.000000005 | P73: 0.0003382309916 | Q73: 68.90553693 | R73: -99.45505816 | S73: 80.54494184 | U73: 1000000000 | V73: 63096.4161 | X73: 57.62116625 | Y73: -87.6365102 | AA73: 61.559078 | AB73: -11.81854796 | AD73: 0 | AE73: 0
A74: 275.42 | B74: 0.27542 | C74: 1.025903322 | D74: 0.2251943943 | E74: 1.000000001 | F74: 3.253368002e-05 | G74: 1 | H74: 0 | I74: 110.7920766 | J74: 1.561770288 | K74: 1.000598757 | L74: 0.03459648825 | M74: 1.000000024 | N74: 0.0002203359964 | O74: 1.000000006 | P74: 0.0003708570404 | Q74: 68.07004159 | R74: -100.4353106 | S74: 79.56468939 | U74: 1000000000 | V74: 75856.1764 | X74: 56.82224932 | Y74: -87.51323773 | AA74: 61.52249959 | AB74: -12.92207288 | AD74: 0 | AE74: 0
A75: 302 | B75: 0.302 | C75: 1.031065137 | D75: 0.2460962901 | E75: 1.000000001 | F75: 3.567341284e-05 | G75: 1 | H75: 0 | I75: 121.4834718 | J75: 1.562564661 | K75: 1.000719859 | L75: 0.03793223575 | M75: 1.000000029 | N75: 0.0002415999953 | O75: 1.000000007 | P75: 0.0004066473988 | Q75: 67.22732955 | R75: -101.4903801 | S75: 78.5096199 | U75: 1000000000 | V75: 91204 | X75: 56.02313062 | Y75: -87.36884606 | AA75: 61.47890625 | AB75: -14.12153404 | AD75: 0 | AE75: 0
A76: 331.13 | B76: 0.33113 | C76: 1.037233973 | D76: 0.2687534999 | E76: 1.000000001 | F76: 3.911436157e-05 | G76: 1 | H76: 0 | I76: 133.2006383 | J76: 1.563288785 | K76: 1.000865364 | L76: 0.04158703171 | M76: 1.000000035 | N76: 0.0002649039938 | O76: 1.000000009 | P76: 0.0004458713699 | Q76: 66.37699749 | R76: -102.6240129 | S76: 77.37598714 | U76: 1000000000 | V76: 109647.0769 | X76: 55.22461118 | Y76: -87.20226611 | AA76: 61.42709362 | AB76: -15.42174675 | AD76: 0 | AE76: 0
A77: 363.08 | B77: 0.36308 | C77: =SQRT(1+(A77/pole1)^2) -> 1.04460449 | D77: =ATAN(A77/pole1) -> 0.2932823625 | E77: =SQRT(1+(A77/Zero1)^2) -> 1.000000001 | F77: =ATAN(A77/Zero1) -> 4.288841965e-05 | G77: =IF(VIN_nom>Vout, 1, SQRT(1+(A77/z_RHP)^2)) -> 1 | H77: =IF(VIN_nom>Vout, 0, -ATAN(A77/z_RHP)) -> 0 | I77: =SQRT(1+(A77/Pole2)^2) -> 146.0521803 | J77: =ATAN(A77/Pole2) -> 1.563949405 | K77: =SQRT(1+(A77/Zero2)^2) -> 1.001040324 | L77: =ATAN(A77/Zero2) -> 0.04559435754 | M77: =SQRT(1+(A77/pole4)^2) -> 1.000000042 | N77: =ATAN(A77/pole4) -> 0.0002904639918 | O77: =SQRT((1-(V77/pterm2))^2+(A77/pterm1)^2) -> 1.000000011 | P77: =IF((ATAN((A77/pterm1)/(1-A77^2/pterm2))>0),ATAN((A77/pterm1)/(1-A77^2/pterm2)),PI()+ATAN((A77/pterm1)/(1-A77^2/pterm2))) -> 0.0004888925128 | Q77: =20*LOG10(((E77*K77*G77)/(C77*I77*O77*M77))*Adc) -> 65.51697778 | R77: =((F77+L77+H77)-(D77+J77+P77+N77))*radconv -> -103.8413742 | S77: =IF(R77>0,R77,R77+180) -> 76.15862575 | U77: 1000000000 | V77: 131827.0864 | X77: =20*LOG10((K77/(I77*M77))*AEA) -> 54.42609459 | Y77: =(L77-(J77+N77))*radconv -> -87.0119785 | AA77: =20*LOG10((E77*G77/(C77*O77))*Acs*Am) -> 61.36559051 | AB77: =(F77+H77-(D77+P77))*radconv -> -16.82939575 | AD77: 0 | AE77: =IF(AD77>0,S75,0) -> 0
A78: 398.11 | B78: =A78/1000 -> 0.39811 | C78: 1.053396956 | D78: 0.3197636178 | E78: 1.000000001 | F78: 4.702629928e-05 | G78: 1 | H78: 0 | I78: 160.1426798 | J78: 1.564551855 | K78: 1.001250617 | L78: 0.04998630391 | M78: 1.000000051 | N78: 0.0003184879892 | O78: 1.000000013 | P78: 0.0005360609217 | Q78: 64.64601783 | R78: -105.1455874 | S78: 74.85441264 | U78: =IF(Q78<0,A78,1000000000) -> 1000000000 | V78: =A78^2 -> 158491.5721 | X78: 53.62793806 | Y78: -86.79646197 | AA78: 61.29278708 | AB78: -18.34912538 | AD78: =SUM((Q79<0)*(Q78>0))*A78 -> 0 | AE78: 0
A79: 436.52 | B79: 0.43652 | C79: 1.063871751 | D79: 0.3482746821 | E79: 1.000000001 | F79: 5.156343764e-05 | G79: 1 | H79: 0 | I79: 175.5928093 | J79: 1.565101302 | K79: 1.00150339 | L79: 0.05479980004 | M79: 1.000000061 | N79: 0.0003492159858 | O79: 1.000000015 | P79: 0.0005877805511 | Q79: 63.76227318 | R79: -106.539303 | S79: 73.46069705 | U79: 1000000000 | V79: 190549.7104 | X79: 52.8301378 | Y79: -86.55391055 | AA79: 61.20684269 | AB79: -19.9853924 | AD79: 0 | AE79: 0
A80: 478.63 | B80: 0.47863 | C80: 1.076328547 | D80: 0.378866865 | E80: 1.000000002 | F80: 5.653763437e-05 | G80: 1 | H80: 0 | I80: 192.5312861 | J80: 1.565602342 | K80: 1.001807163 | L80: 0.06007404823 | M80: 1.000000073 | N80: 0.0003829039813 | O80: 1.000000018 | P80: 0.0006444822862 | Q80: 62.86390389 | R80: -108.0235152 | S80: 71.97648479 | U80: 1000000000 | V80: 229086.6769 | X80: 52.03288018 | Y80: -86.28235607 | AA80: 61.10573103 | AB80: -21.74115913 | AD80: 0 | AE80: 0
A81: 524.81 | B81: 0.52481 | C81: 1.091118949 | D81: 0.4115787859 | E81: 1.000000002 | F81: 6.199259529e-05 | G81: 1 | H81: 0 | I81: 211.1069406 | J81: 1.566059373 | K81: 1.002172313 | L81: 0.06585420579 | M81: 1.000000088 | N81: 0.0004198479753 | O81: 1.000000022 | P81: 0.000706664338 | Q81: 61.94850031 | R81: -109.5981445 | S81: 70.40185551 | U81: 1000000000 | V81: 275425.5361 | X81: 51.23602141 | Y81: -85.97948012 | AA81: 60.98718622 | AB81: -23.61866436 | AD81: 0 | AE81: 0
A82: 575.44 | B82: 0.57544 | C82: 1.108637891 | D82: 0.4463985232 | E82: 1.000000002 | F82: 6.79732075e-05 | G82: 1 | H82: 0 | I82: 231.4726256 | J82: 1.566476148 | K82: 1.002611098 | L82: 0.07218627692 | M82: 1.000000106 | N82: 0.0004603519675 | O82: 1.000000027 | P82: 0.0007748383829 | Q82: 61.01400735 | R82: -111.2601311 | S82: 68.73986891 | U82: 1000000000 | V82: 331131.1936 | X82: 50.43988088 | Y82: -85.64287931 | AA82: 60.84883379 | AB82: -25.61725178 | AD82: 0 | AE82: 0
A83: 630.96 | B83: 0.63096 | C83: 1.129342533 | D83: 0.4832898426 | E83: 1.000000003 | F83: 7.453144548e-05 | G83: 1 | H83: 0 | I83: 253.805329 | J83: 1.566856289 | K83: 1.00313843 | L83: 0.07912324072 | M83: 1.000000127 | N83: 0.0005047679571 | O83: 1.000000032 | P83: 0.0008495968881 | Q83: 60.05783302 | R83: -113.0046222 | S83: 66.99537785 | U83: 1000000000 | V83: 398110.5216 | X83: 49.64442593 | Y83: -85.26974588 | AA83: 60.68811441 | AB83: -27.73487627 | AD83: 0 | AE83: 0
A84: 691.83 | B84: 0.69183 | C84: 1.153740617 | D84: 0.522155892 | E84: 1.000000003 | F84: 8.172164624e-05 | G84: 1 | H84: 0 | I84: 278.2900841 | J84: 1.567202946 | K84: 1.003771987 | L84: 0.08671987822 | M84: 1.000000153 | N84: 0.0005534639435 | O84: 1.000000038 | P84: 0.000931559252 | Q84: 59.07772695 | R84: -114.8231637 | S84: 65.17683631 | U84: 1000000000 | V84: 478628.7489 | X84: 48.84996986 | Y84: -84.85714269 | AA84: 60.50246441 | AB84: -29.966021 | AD84: 0 | AE84: 0
A85: 758.58 | B85: 0.75858 | C85: 1.182410398 | D85: 0.5628645161 | E85: 1.000000004 | F85: 8.960641541e-05 | G85: 1 | H85: 0 | I85: 305.1400817 | J85: 1.567519138 | K85: 1.004533246 | L85: 0.09503879456 | M85: 1.000000184 | N85: 0.0006068639255 | O85: 1.000000046 | P85: 0.001021439129 | Q85: 58.0710798 | R85: -116.7048312 | S85: 63.29516876 | U85: 1000000000 | V85: 575443.6164 | X85: 48.05652393 | Y85: -84.40167991 | AA85: 60.28926319 | AB85: -32.30315133 | AD85: 0 | AE85: 0
A86: 831.76 | B86: 0.83176 | C86: 1.215979966 | D86: 0.6052111769 | E86: 1.000000005 | F86: 9.825072114e-05 | G86: 1 | H86: 0 | I86: 334.5765576 | J86: 1.56780747 | K86: 1.005447591 | L86: 0.1041438903 | M86: 1.000000221 | N86: 0.0006654079018 | O86: 1.000000055 | P86: 0.001119977104 | Q86: 57.03589327 | R86: -118.6344577 | S86: 61.36554231 | U86: 1000000000 | V86: 691824.6976 | X86: 47.26450106 | Y86: -83.89987089 | AA86: 60.04609952 | AB86: -34.7345868 | AD86: 0 | AE86: 0
A87: 912.01 | B87: 0.91201 | C87: 1.255156033 | D87: 0.6489584571 | E87: 1.000000006 | F87: 0.0001077301627 | G87: 1 | H87: 0 | I87: 366.8569503 | J87: 1.568070465 | K87: 1.006545907 | L87: 0.1141087013 | M87: 1.000000266 | N87: 0.0007296078705 | O87: 1.000000067 | P87: 0.001228034951 | Q87: 55.96992496 | R87: -120.5944456 | S87: 59.40555436 | U87: 1000000000 | V87: 831762.2401 | X87: 46.4739588 | Y87: -83.3476762 | AA87: 59.77067347 | AB87: -37.24676945 | AD87: 0 | AE87: 0
A88: 1000 | B88: 1 | C88: 1.300693764 | D88: 0.6938017737 | E88: 1.000000007 | F88: 0.0001181238831 | G88: 1 | H88: 0 | I88: 402.2507659 | J88: 1.568310313 | K88: 1.007864756 | L88: 0.1250084362 | M88: 1.00000032 | N88: 0.0007999998293 | O88: 1.00000008 | P88: 0.001346514837 | Q88: 54.87174845 | R88: -122.5632379 | S88: 57.43676209 | U88: 1000000000 | V88: 1000000 | X88: 45.6853292 | Y88: -82.7409428 | AA88: 59.46112656 | AB88: -39.82229511 | AD88: 0 | AE88: 0
A89: 1096.5 | B89: 1.0965 | C89: 1.353427037 | D89: 0.7394117252 | E89: 1.000000008 | F89: 0.0001295228377 | G89: 1 | H89: 0 | I89: 441.0677355 | J89: 1.568529099 | K89: 1.00944844 | L89: 0.1369280192 | M89: 1.000000385 | N89: 0.000877199775 | O89: 1.000000096 | P89: 0.001476453585 | Q89: 53.7400214 | R89: -124.5173045 | S89: 55.48269555 | U89: 1000000000 | V89: 1202312.25 | X89: 44.89879809 | Y89: -82.07495978 | AA89: 59.11593063 | AB89: -42.44234467 | AD89: 0 | AE89: 0
A90: 1202.3 | B90: 1.2023 | C90: 1.414220833 | D90: 0.7854033045 | E90: 1.00000001 | F90: 0.0001420203443 | G90: 1 | H90: 0 | I90: 483.6256352 | J90: 1.56872861 | K90: 1.01134901 | L90: 0.1499513662 | M90: 1.000000463 | N90: 0.0009618397034 | O90: 1.000000116 | P90: 0.001618914949 | Q90: 52.5746307 | R90: -126.429972 | S90: 53.57002795 | U90: 1000000000 | V90: 1445525.29 | X90: 44.11505519 | Y90: -81.3450576 | AA90: 58.73428283 | AB90: -45.08491445 | AD90: 0 | AE90: =IF(AD90>0,S90,0) -> 0
A91: 1318.3 | B91: 1.3183 | C91: 1.484013793 | D91: 0.8313916234 | E91: 1.000000012 | F91: 0.0001557227145 | G91: 1 | H91: 0 | I91: 530.2864889 | J91: 1.568910553 | K91: 1.013629149 | L91: 0.1641714562 | M91: 1.000000556 | N91: 0.001054639609 | O91: 1.000000139 | P91: 0.001775110801 | Q91: 51.37575134 | R91: -128.2740633 | S91: 51.72593667 | U91: 1000000000 | V91: 1737914.89 | X91: 43.33459015 | Y91: -80.54604803 | AA91: 58.3158685 | AB91: -47.7280153 | AD91: 0 | AE91: 0
A92: 1445.4 | B92: 1.4454 | C92: 1.563746924 | D92: 0.8769620493 | E92: 1.000000015 | F92: 0.0001707362598 | G92: 1 | H92: 0 | I92: 581.4123204 | J92: 1.569076376 | K92: 1.016361661 | L92: 0.1796755164 | M92: 1.000000669 | N92: 0.001156319485 | O92: 1.000000167 | P92: 0.001946253017 | Q92: 50.14508982 | R92: -130.0210115 | S92: 49.97898848 | U92: 1000000000 | V92: 2089181.16 | X92: 42.55849947 | Y92: -79.67305763 | AA92: 57.86129766 | AB92: -50.34795389 | AD92: 0 | AE92: 0
A93: 1584.9 | B93: 1.5849 | C93: 1.65461436 | D93: 0.9218209095 | E93: 1.000000018 | F93: 0.000187214541 | G93: 1 | H93: 0 | I93: 637.5260531 | J93: 1.569227763 | K93: 1.019640359 | L93: 0.1965919767 | M93: 1.000000804 | N93: 0.001267919321 | O93: 1.000000201 | P93: 0.002134092082 | Q93: 48.88218267 | R93: -131.6468794 | S93: 48.35312063 | U93: 1000000000 | V93: 2511908.01 | X93: 41.78619901 | Y93: -78.71888387 | AA93: 57.37069098 | AB93: -52.92799551 | AD93: 0 | AE93: 0
A94: 1737.8 | B94: 1.7378 | C94: 1.757615856 | D94: 0.9655647457 | E94: 1.000000021 | F94: 0.0002052756821 | G94: 1 | H94: 0 | I94: 699.0299362 | J94: 1.569365772 | K94: 1.023566862 | L94: 0.2150030306 | M94: 1.000000966 | N94: 0.001390239104 | O94: 1.000000242 | P94: 0.002339974534 | Q94: 47.59106474 | R94: -133.124018 | S94: 46.87598197 | U94: 1000000000 | V94: 3019948.84 | X94: 41.01962485 | Y94: -77.67892396 | AA94: 56.8461472 | AB94: -55.44509407 | AD94: 0 | AE94: 0
A95: 1905.5 | B95: 1.9055 | C95: 1.874004547 | D95: 1.007925138 | E95: 1.000000025 | F95: 0.0002250850565 | G95: 1 | H95: 0 | I95: 766.4871182 | J95: 1.569491673 | K95: 1.028269105 | L95: 0.2350269434 | M95: 1.000001162 | N95: 0.001524398819 | O95: 1.000000291 | P95: 0.002565785521 | Q95: 46.27375877 | R95: -134.4305074 | S95: 45.5694926 | U95: 1000000000 | V95: 3630930.25 | X95: 40.25925285 | Y95: -76.54653862 | AA95: 56.28921324 | AB95: -57.88396878 | AD95: 0 | AE95: 0
A96: 2089.3 | B96: 2.0893 | C96: 2.004955446 | D96: 1.048623943 | E96: 1.00000003 | F96: 0.0002467962251 | G96: 1 | H96: 0 | I96: 840.4205231 | J96: 1.569606446 | K96: 1.033891712 | L96: 0.2567543404 | M96: 1.000001397 | N96: 0.001671438443 | O96: 1.00000035 | P96: 0.002813275552 | Q96: 44.9346041 | R96: -135.545426 | S96: 44.45457405 | U96: 1000000000 | V96: 4365174.49 | X96: 39.50678036 | Y96: -75.31665123 | AA96: 55.70253106 | AB96: -60.22877472 | AD96: 0 | AE96: 0
A97: 2290.9 | B97: 2.2909 | C97: 2.151916109 | D97: 1.087498144 | E97: 1.000000037 | F97: 0.0002706099984 | G97: 1 | H97: 0 | I97: 921.5139746 | J97: 1.569711156 | K97: 1.040613575 | L97: 0.2803035314 | M97: 1.000001679 | N97: 0.001832717948 | O97: 1.00000042 | P97: 0.003084733751 | Q97: 43.57637202 | R97: -136.4529134 | S97: 43.54708662 | U97: 1000000000 | V97: 5248222.81 | X97: 38.76296104 | Y97: -73.98262204 | AA97: 55.08811829 | AB97: -62.47029134 | AD97: 0 | AE97: 0
A98: 2511.9 | B98: 2.5119 | C98: 2.31625495 | D98: 1.124384919 | E98: 1.000000044 | F98: 0.0002967153746 | G98: 1 | H98: 0 | I98: 1010.411071 | J98: 1.56980663 | K98: 1.048636194 | L98: 0.3057562807 | M98: 1.000002019 | N98: 0.002009517295 | O98: 1.000000505 | P98: 0.003382314608 | Q98: 42.20393163 | R98: -137.1391893 | S98: 42.86081066 | U98: 1000000000 | V98: 6309641.61 | X98: 38.0297418 | Y98: -72.53988707 | AA98: 54.44889714 | AB98: -64.59930227 | AD98: 0 | AE98: 0
A99: 2754.2 | B99: 2.7542 | C99: 2.499552491 | D99: 1.159201342 | E99: 1.000000053 | F99: 0.0003253367888 | G99: 1 | H99: 0 | I99: 1107.876087 | J99: 1.569893699 | K99: 1.058200015 | L99: 0.3331988762 | M99: 1.000002427 | N99: 0.002203356434 | O99: 1.000000608 | P99: 0.003708576589 | Q99: 40.82140581 | R99: -137.5948269 | S99: 42.40517309 | U99: 1000000000 | V99: 7585617.64 | X99: 37.30873481 | Y99: -70.98363698 | AA99: 53.78737831 | AB99: -66.61118993 | AD99: 0 | AE99: 0
A100: 3020 | B100: 3.02 | C100: 2.703614552 | D100: 1.191921625 | E100: 1.000000064 | F100: 0.0003567341135 | G100: 1 | H100: 0 | I100: 1214.793971 | J100: 1.569973142 | K100: 1.069590381 | L100: 0.3627138664 | M100: 1.000002919 | N100: 0.002415995299 | O100: 1.000000731 | P100: 0.004066482142 | Q100: 39.43251601 | R100: -137.8139193 | S100: 42.18608071 | U100: 1000000000 | V100: 9120400 | X100: 36.60149627 | Y100: -69.30928767 | AA100: 53.10572706 | AB100: -68.50463162 | AD100: 0 | AE100: 0
A101: 3311.3 | B101: 3.3113 | C101: 2.930090711 | D101: 1.222511239 | E101: 1.000000076 | F101: 0.0003911435959 | G101: 1 | H101: 0 | I101: 1331.969221 | J101: 1.570045559 | K101: 1.083119441 | L101: 0.3943169022 | M101: 1.000003509 | N101: 0.002649033804 | O101: 1.000000878 | P101: 0.004458724447 | Q101: 38.04312992 | R101: -137.7938581 | S101: 42.2061419 | U101: 1000000000 | V101: 10964707.69 | X101: 35.91083716 | Y101: -67.5160684 | AA101: 52.40700008 | AB101: -70.2777897 | AD101: 0 | AE101: 0
A102: 3630.8 | B102: 3.6308 | C102: 3.181171812 | D102: 1.25102491 | E102: 1.000000092 | F102: 0.0004288841704 | G102: 1 | H102: 0 | I102: 1460.48791 | J102: 1.570111624 | K102: 1.099169227 | L102: 0.4280473549 | M102: 1.000004218 | N102: 0.002904631831 | O102: 1.000001056 | P102: 0.004888939298 | Q102: 36.65668982 | R102: -137.5358756 | S102: 42.46412438 | U102: 1000000000 | V102: 13182708.64 | X102: 35.23851966 | Y102: -65.60188578 | AA102: 51.69287747 | AB102: -71.93398985 | AD102: 0 | AE102: 0
A103: 3981.1 | B103: 3.9811 | C103: 3.458975947 | D103: 1.277506732 | E103: 1.000000111 | F103: 0.0004702629585 | G103: 1 | H103: 0 | I103: 1601.395888 | J103: 1.570171872 | K103: 1.118159138 | L103: 0.4638714079 | M103: 1.000005072 | N103: 0.003184869231 | O103: 1.00000127 | P103: 0.005360627896 | Q103: 35.27823865 | R103: -137.0447685 | S103: 42.95523154 | U103: 1000000000 | V103: 15849157.21 | X103: 34.58727852 | Y103: -63.56882708 | AA103: 50.96566745 | AB103: -73.47594138 | AD103: 0 | AE103: 0
A104: 4365.2 | B104: 4.3652 | C104: 3.765940824 | D104: 1.302034523 | E104: 1.000000133 | F104: 0.0005156343312 | G104: 1 | H104: 0 | I104: 1755.899902 | J104: 1.570226818 | K104: 1.140571804 | L104: 0.5017271405 | M104: 1.000006098 | N104: 0.003492145804 | O104: 1.000001527 | P104: 0.005877830135 | Q104: 33.91206808 | R104: -136.3289214 | S104: 43.67107856 | U104: 1000000000 | V104: 19054971.04 | X104: 33.95962897 | Y104: -61.42060723 | AA104: 50.22714642 | AB104: -74.90831421 | AD104: 0 | AE104: 0
A105: 4786.3 | B105: 4.7863 | C105: 4.104669789 | D105: 1.324694648 | E105: 1.00000016 | F105: 0.000565376284 | G105: 1 | H105: 0 | I105: 1925.287151 | J105: 1.570276924 | K105: 1.166944377 | L105: 0.5414954196 | M105: 1.000007331 | N105: 0.003829021287 | O105: 1.000001835 | P105: 0.006444855322 | Q105: 32.56259558 | R105: -135.400507 | S105: 44.59949303 | U105: 1000000000 | V105: 22908667.69 | X105: 33.35825359 | Y105: -59.16422506 | AA105: 49.47904931 | AB105: -76.23628191 | AD105: 0 | AE105: 0
A106: 5248.1 | B106: 5.2481 | C106: 4.478175536 | D106: 1.345592316 | E106: 1.000000192 | F106: 0.0006199258743 | G106: 1 | H106: 0 | I106: 2111.045958 | J106: 1.570322628 | K106: 1.197887546 | L106: 0.5830216407 | M106: 1.000008814 | N106: 0.004198455331 | O106: 1.000002207 | P106: 0.007066686171 | Q106: 31.23339636 | R106: -134.2748664 | S106: 45.72513359 | U106: 1000000000 | V106: 27542553.61 | X106: 32.78551508 | Y106: -56.80873351 | AA106: 48.7225886 | AB106: -77.4661329 | AD106: 0 | AE106: 0
A107: 5370.3 | B107: 5.3703 | C107: 4.577304834 | D107: 1.350550854 | E107: 1.000000201 | F107: 0.0006343606072 | G107: 1 | H107: 0 | I107: 2160.200844 | J107: 1.570333407 | K107: 1.206409944 | L107: 0.593647848 | M107: 1.000009229 | N107: 0.004296213567 | O107: 1.000002311 | P107: 0.007231233338 | Q107: 30.90486577 | R107: -133.9649524 | S107: 46.03504758 | U107: 1000000000 | V107: 28840122.09 | X107: 32.64715977 | Y107: -56.2061154 | AA107: 48.53241332 | AB107: -77.75883701 | AD107: 0 | AE107: 0
A108: 5432.85 | B108: 5.43285 | C108: 4.628087867 | D108: 1.353006739 | E108: 1.000000206 | F108: 0.0006417492531 | G108: 1 | H108: 0 | I108: 2185.361549 | J108: 1.570338737 | K108: 1.210824415 | L108: 0.5990288505 | M108: 1.000009445 | N108: 0.004346252633 | O108: 1.000002365 | P108: 0.007315459459 | Q108: 30.74017018 | R108: -133.8049304 | S108: 46.19506964 | U108: 1000000000 | V108: 29515859.12 | X108: 32.5782998 | Y108: -55.90097907 | AA108: 48.43657769 | AB108: -77.90395129 | AD108: 0 | AE108: 0
A109: 5495.4 | B109: 5.4954 | C109: 4.678898208 | D109: 1.355409298 | E109: 1.000000211 | F109: 0.000649137899 | G109: 1 | H109: 0 | I109: 2210.522254 | J109: 1.570343945 | K109: 1.215273691 | L109: 0.6043706057 | M109: 1.000009664 | N109: 0.004396291677 | O109: 1.000002419 | P109: 0.007399685619 | Q109: 30.57775447 | R109: -133.6440948 | S109: 46.35590523 | U109: 1000000000 | V109: 30199421.16 | X109: 32.51072455 | Y109: -55.59808449 | AA109: 48.34173723 | AB109: -78.04601028 | AD109: 0 | AE109: 0
A110: 5559.4 | B110: 5.5594 | C110: 4.730913754 | D110: 1.357814123 | E110: 1.000000216 | F110: 0.0006566978243 | G110: 1 | H110: 0 | I110: 2236.266221 | J110: 1.570349153 | K110: 1.219861733 | L110: 0.6097956996 | M110: 1.00000989 | N110: 0.004447490676 | O110: 1.000002476 | P110: 0.007485864304 | Q110: 30.41388137 | R110: -133.4787825 | S110: 46.52121753 | U110: 1000000000 | V110: 30906928.36 | X110: 32.44288058 | Y110: -55.29048137 | AA110: 48.24570811 | AB110: -78.1883011 | AD110: 0 | AE110: 0
A111: 5623.4 | B111: 5.6234 | C111: 4.782956063 | D111: 1.360166628 | E111: 1.000000221 | F111: 0.0006642577496 | G111: 1 | H111: 0 | I111: 2262.010188 | J111: 1.570354242 | K111: 1.224485409 | L111: 0.6151799806 | M111: 1.000010119 | N111: 0.004498689651 | O111: 1.000002533 | P111: 0.007572043029 | Q111: 30.25229079 | R111: -133.3128041 | S111: 46.68719589 | U111: 1000000000 | V111: 31622627.56 | X111: 32.37631766 | Y111: -54.98520988 | AA111: 48.15068044 | AB111: -78.32759424 | AD111: 0 | AE111: 0
A112: 5688.9 | B112: 5.6889 | C112: 4.836244926 | D112: 1.362521832 | E112: 1.000000226 | F112: 0.0006719948605 | G112: 1 | H112: 0 | I112: 2288.357529 | J112: 1.570359332 | K112: 1.229253928 | L112: 0.6206483533 | M112: 1.000010356 | N112: 0.004551088578 | O112: 1.000002593 | P112: 0.007660241611 | Q112: 30.0892237 | R112: -133.1423367 | S112: 46.8576633 | U112: 1000000000 | V112: 32363583.21 | X112: 32.30948897 | Y112: -54.67518907 | AA112: 48.05444206 | AB112: -78.46714762 | AD112: 0 | AE112: 0
A113: 5754.4 | B113: 5.7544 | C113: 4.889560031 | D113: 1.364825688 | E113: 1.000000231 | F113: 0.0006797319713 | G113: 1 | H113: 0 | I113: 2314.704871 | J113: 1.570364306 | K113: 1.234058921 | L113: 0.6260743034 | M113: 1.000010596 | N113: 0.004603487481 | O113: 1.000002653 | P113: 0.007748440237 | Q113: 29.92844213 | R113: -132.9713512 | S113: 47.02864881 | U113: 1000000000 | V113: 33113119.36 | X113: 32.24393777 | Y113: -54.36759227 | AA113: 47.95921167 | AB113: -78.60375892 | AD113: 0 | AE113: 0
A114: 5821.4 | B114: 5.8214 | C114: 4.944122357 | D114: 1.367130884 | E114: 1.000000236 | F114: 0.0006876462678 | G114: 1 | H114: 0 | I114: 2341.655586 | J114: 1.570369278 | K114: 1.239011246 | L114: 0.6315808043 | M114: 1.000010844 | N114: 0.004657086331 | O114: 1.000002715 | P114: 0.007838658724 | Q114: 29.76629011 | R114: -132.7960015 | S114: 47.20399853 | U114: 1000000000 | V114: 33888697.96 | X114: 32.1781748 | Y114: -54.05544888 | AA114: 47.86282263 | AB114: -78.74055259 | AD114: 0 | AE114: 0
A115: 5888.4 | B115: 5.8884 | C115: 4.998710382 | D115: 1.369385744 | E115: 1.000000242 | F115: 0.0006955605643 | G115: 1 | H115: 0 | I115: 2368.606302 | J115: 1.570374138 | K115: 1.244000839 | L115: 0.6370432975 | M115: 1.000011095 | N115: 0.004710685155 | O115: 1.000002778 | P115: 0.007928877259 | Q115: 29.6064234 | R115: -132.6202827 | S115: 47.37971728 | U115: 1000000000 | V115: 34673254.56 | X115: 32.11368389 | Y115: -53.74582047 | AA115: 47.76744683 | AB115: -78.87446225 | AD115: 0 | AE115: 0
A116: 5957 | B116: 5.957 | C116: 5.054627759 | D116: 1.371643978 | E116: 1.000000248 | F116: 0.0007036638587 | G116: 1 | H116: 0 | I116: 2396.200617 | J116: 1.570378999 | K116: 1.249147735 | L116: 0.6425908539 | M116: 1.000011355 | N116: 0.004765563923 | O116: 1.000002843 | P116: 0.008021250315 | Q116: 29.44505329 | R116: -132.4400696 | S116: 47.55993039 | U116: 1000000000 | V116: 35485849 | X116: 32.04893836 | Y116: -53.43139178 | AA116: 47.67082225 | AB116: -79.00867783 | AD116: 0 | AE116: 0
A117: 6025.6 | B117: 6.0256 | C117: 5.110570349 | D117: 1.373852784 | E117: 1.000000253 | F117: 0.0007117671531 | G117: 1 | H117: 0 | I117: 2423.794932 | J117: 1.570383751 | K117: 1.254332759 | L117: 0.6480927147 | M117: 1.000011618 | N117: 0.004820442663 | O117: 1.000002909 | P117: 0.008113623421 | Q117: 29.28597187 | R117: -132.2596363 | S117: 47.74036369 | U117: 1000000000 | V117: 36307855.36 | X117: 31.98546132 | Y117: -53.11957492 | AA117: 47.57521787 | AB117: -79.14006139 | AD117: 0 | AE117: 0
A118: 6095.8 | B118: 6.0958 | C118: 5.167842969 | D118: 1.376063588 | E118: 1.000000259 | F118: 0.0007200594454 | G118: 1 | H118: 0 | I118: 2452.032846 | J118: 1.570388502 | K118: 1.259677695 | L118: 0.6536758356 | M118: 1.000011891 | N118: 0.004876601342 | O118: 1.000002977 | P118: 0.008208151055 | Q118: 29.1254955 | R118: -132.0748476 | S118: 47.92515236 | U118: 1000000000 | V118: 37158777.64 | X118: 31.92178424 | Y118: -52.80317554 | AA118: 47.47841858 | AB118: -79.27167209 | AD118: 0 | AE118: 0
A119: 6166 | B119: 6.166 | C119: 5.225140295 | D119: 1.378225918 | E119: 1.000000265 | F119: 0.0007283517377 | G119: 1 | H119: 0 | I119: 2480.27076 | J119: 1.570393145 | K119: 1.265061565 | L119: 0.6592116063 | M119: 1.000012166 | N119: 0.004932759991 | O119: 1.000003046 | P119: 0.008302678743 | Q119: 28.96730785 | R119: -131.8899883 | S119: 48.11001172 | U119: 1000000000 | V119: 38019556 | X119: 31.85937008 | Y119: -52.48948293 | AA119: 47.38264509 | AB119: -79.40050535 | AD119: 0 | AE119: 0
A120: 6237.8 | B120: 6.2378 | C120: 5.28376826 | D120: 1.380389008 | E120: 1.000000271 | F120: 0.000736833028 | G120: 1 | H120: 0 | I120: 2509.152273 | J120: 1.570397786 | K120: 1.270607902 | L120: 0.6648248432 | M120: 1.000012451 | N120: 0.004990198577 | O120: 1.000003117 | P120: 0.008399360964 | Q120: 28.80782801 | R120: -131.7009199 | S120: 48.29908012 | U120: 1000000000 | V120: 38910148.84 | X120: 31.79680693 | Y120: -52.17142503 | AA120: 47.2857284 | AB120: -79.52949485 | AD120: 0 | AE120: 0
A121: 6309.6 | B121: 6.3096 | C121: 5.342420405 | D121: 1.382504613 | E121: 1.000000278 | F121: 0.0007453143182 | G121: 1 | H121: 0 | I121: 2538.033787 | J121: 1.570402321 | K121: 1.276193926 | L121: 0.6703891149 | M121: 1.000012739 | N121: 0.005047637131 | O121: 1.00000319 | P121: 0.008496043243 | Q121: 28.65063377 | R121: -131.5119302 | S121: 48.4880698 | U121: 1000000000 | V121: 39811052.16 | X121: 31.73549923 | Y121: -51.85616658 | AA121: 47.18984186 | AB121: -79.65576362 | AD121: 0 | AE121: 0
A122: 6383.05 | B122: 6.38305 | C122: 5.402444605 | D122: 1.384621294 | E122: 1.000000284 | F122: 0.0007539905126 | G122: 1 | H122: 0 | I122: 2567.579012 | J122: 1.570406855 | K122: 1.281948842 | L122: 0.6760309008 | M122: 1.000013038 | N122: 0.005106395616 | O122: 1.000003264 | P122: 0.008594947389 | Q122: 28.49213741 | R122: -131.3187526 | S122: 48.68124738 | U122: 1000000000 | V122: 40743327.3 | X122: 31.67404871 | Y122: -51.53654244 | AA122: 47.09279602 | AB122: -79.78221018 | AD122: 0 | AE122: 0
A123: 6456.5 | B123: 6.4565 | C123: 5.462492477 | D123: 1.386691447 | E123: 1.000000291 | F123: 0.0007626667069 | G123: 1 | H123: 0 | I123: 2597.124237 | J123: 1.570411286 | K123: 1.287744198 | L123: 0.6816220828 | M123: 1.00001334 | N123: 0.005165154066 | O123: 1.00000334 | P123: 0.008693851598 | Q123: 28.33592359 | R123: -131.1258027 | S123: 48.87419729 | U123: 1000000000 | V123: 41686392.25 | X123: 31.61384607 | Y123: -51.21981178 | AA123: 46.99678484 | AB123: -79.90599092 | AD123: 0 | AE123: 0
A124: 6531.7 | B124: 6.5317 | C124: 5.523994754 | D124: 1.388764287 | E124: 1.000000298 | F124: 0.0007715496177 | G124: 1 | H124: 0 | I124: 2627.373399 | J124: 1.570415719 | K124: 1.29371896 | L124: 0.6872943997 | M124: 1.000013652 | N124: 0.005225312442 | O124: 1.000003418 | P124: 0.008795112336 | Q124: 28.1782975 | R124: -130.9285615 | S124: 49.07143849 | U124: 1000000000 | V124: 42663104.89 | X124: 31.55346871 | Y124: -50.89851277 | AA124: 46.8995361 | AB124: -80.03004873 | AD124: 0 | AE124: 0
A125: 6606.9 | B125: 6.6069 | C125: 5.585520242 | D125: 1.390791469 | E125: 1.000000305 | F125: 0.0007804325284 | G125: 1 | H125: 0 | I125: 2657.622561 | J125: 1.570420051 | K125: 1.299734964 | L125: 0.6929143858 | M125: 1.000013968 | N125: 0.005285470781 | O125: 1.000003497 | P125: 0.008896373141 | Q125: 28.02295378 | R125: -130.7316969 | S125: 49.26830308 | U125: 1000000000 | V125: 43651127.61 | X125: 31.49433308 | Y125: -50.58020632 | AA125: 46.80332803 | AB125: -80.1514906 | AD125: 0 | AE125: 0
A126: 6683.85 | B126: 6.68385 | C126: 5.648500744 | D126: 1.392820103 | E126: 1.000000312 | F126: 0.0007895221556 | G126: 1 | H126: 0 | I126: 2688.57566 | J126: 1.570424383 | K126: 1.305933066 | L126: 0.6986113714 | M126: 1.000014296 | N126: 0.005347029041 | O126: 1.000003579 | P126: 0.008999990483 | Q126: 27.8663022 | R126: -130.5307071 | S126: 49.46929286 | U126: 1000000000 | V126: 44673850.82 | X126: 31.43507335 | Y126: -50.25756832 | AA126: 46.70593617 | AB126: -80.27313882 | AD126: 0 | AE126: 0
A127: 6760.8 | B127: 6.7608 | C127: 5.711503979 | D127: 1.39480399 | E127: 1.000000319 | F127: 0.0007986117827 | G127: 1 | H127: 0 | I127: 2719.528758 | J127: 1.570428616 | K127: 1.312173153 | L127: 0.7042543542 | M127: 1.000014627 | N127: 0.005408587261 | O127: 1.000003662 | P127: 0.009103607896 | Q127: 27.71192952 | R127: -130.330242 | S127: 49.669758 | U127: 1000000000 | V127: 45708416.64 | X127: 31.3770472 | Y127: -49.93801881 | AA127: 46.60958964 | AB127: -80.39222319 | AD127: 0 | AE127: 0
A128: 6839.55 | B128: 6.83955 | C128: 5.776003735 | D128: 1.396789465 | E128: 1.000000326 | F128: 0.0008079140326 | G128: 1 | H128: 0 | I128: 2751.205906 | J128: 1.57043285 | K128: 1.318602052 | L128: 0.709973852 | M128: 1.000014969 | N128: 0.005471585396 | O128: 1.000003748 | P128: 0.009209649182 | Q128: 27.55624944 | R128: -130.1256931 | S128: 49.87430688 | U128: 1000000000 | V128: 46779444.2 | X128: 31.31890742 | Y128: -49.61416783 | AA128: 46.51204933 | AB128: -80.51152529 | AD128: 0 | AE128: 0
A129: 6918.3 | B129: 6.9183 | C129: 5.840525757 | D129: 1.39873108 | E129: 1.000000334 | F129: 0.0008172162823 | G129: 1 | H129: 0 | I129: 2782.883054 | J129: 1.570436987 | K129: 1.325073667 | L129: 0.7156376659 | M129: 1.000015316 | N129: 0.005534583488 | O129: 1.000003835 | P129: 0.009315690545 | Q129: 27.40284448 | R129: -129.9218161 | S129: 50.07818387 | U129: 1000000000 | V129: 47862874.89 | X129: 31.26199271 | Y129: -49.29350177 | AA129: 46.41555908 | AB129: -80.62831436 | AD129: 0 | AE129: 0
A130: 6998.9 | B130: 6.9989 | C130: 5.90658583 | D130: 1.400674374 | E130: 1.000000342 | F130: 0.0008267370609 | G130: 1 | H130: 0 | I130: 2815.304363 | J130: 1.570441125 | K130: 1.331740896 | L130: 0.7213773439 | M130: 1.000015675 | N130: 0.00559906149 | O130: 1.000003925 | P130: 0.009424223118 | Q130: 27.24813545 | R130: -129.7139037 | S130: 50.28609628 | U130: 1000000000 | V130: 48984601.21 | X130: 31.20497592 | Y130: -48.96857386 | AA130: 46.31786685 | AB130: -80.74532985 | AD130: 0 | AE130: 0
A131: 7079.5 | B131: 7.0795 | C131: 5.972667716 | D131: 1.402574673 | E131: 1.00000035 | F131: 0.0008362578393 | G131: 1 | H131: 0 | I131: 2847.725673 | J131: 1.570445169 | K131: 1.338451561 | L131: 0.727059653 | M131: 1.000016038 | N131: 0.005663539445 | O131: 1.000004016 | P131: 0.009532755772 | Q131: 27.09569738 | R131: -129.5068095 | S131: 50.49319049 | U131: 1000000000 | V131: 50119320.25 | X131: 31.14917525 | Y131: -48.64692756 | AA131: 46.22122944 | AB131: -80.85988196 | AD131: 0 | AE131: 0
A132: 7161.95 | B132: 7.16195 | C132: 6.040288192 | D132: 1.404475561 | E132: 1.000000358 | F132: 0.0008459971466 | G132: 1 | H132: 0 | I132: 2880.891144 | J132: 1.570449212 | K132: 1.345360518 | L132: 0.7328135433 | M132: 1.000016414 | N132: 0.005729497305 | O132: 1.00000411 | P132: 0.009643779646 | Q132: 26.94205368 | R132: -129.2958626 | S132: 50.70413735 | U132: 1000000000 | V132: 51293527.8 | X132: 31.09331843 | Y132: -48.32126465 | AA132: 46.12344257 | AB132: -80.97459799 | AD132: 0 | AE132: 0
A133: 7244.4 | B133: 7.2444 | C133: 6.107930011 | D133: 1.406334353 | E133: 1.000000366 | F133: 0.0008557364538 | G133: 1 | H133: 0 | I133: 2914.056615 | J133: 1.570453163 | K133: 1.35231356 | L133: 0.7385084523 | M133: 1.000016794 | N133: 0.005795455115 | O133: 1.000004205 | P133: 0.009754803607 | Q133: 26.79067355 | R133: -129.085878 | S133: 50.91412202 | U133: 1000000000 | V133: 52481331.36 | X133: 31.03866689 | Y133: -47.99897586 | AA133: 46.02671398 | AB133: -81.08690212 | AD133: 0 | AE133: 0
A134: 7328.75 | B134: 7.32875 | C134: 6.17715194 | D134: 1.408193847 | E134: 1.000000375 | F134: 0.000865700196 | G134: 1 | H134: 0 | I134: 2947.986361 | J134: 1.570457112 | K134: 1.359471745 | L134: 0.7442741222 | M134: 1.000017187 | N134: 0.005862932822 | O134: 1.000004303 | P134: 0.009868386126 | Q134: 26.63809068 | R134: -128.8721 | S134: 51.12790005 | U134: 1000000000 | V134: 53710576.56 | X134: 30.98396944 | Y134: -47.6727198 | AA134: 45.92882856 | AB134: -81.19938016 | AD134: 0 | AE134: 0
A135: 7413.1 | B135: 7.4131 | C135: 6.246394755 | D135: 1.41001212 | E135: 1.000000383 | F135: 0.000875663938 | G135: 1 | H135: 0 | I135: 2981.916106 | J135: 1.570460972 | K135: 1.366674649 | L135: 0.7499792053 | M135: 1.000017585 | N135: 0.005930410475 | O135: 1.000004403 | P135: 0.009981968738 | Q135: 26.48776361 | R135: -128.6594264 | S135: 51.34057358 | U135: 1000000000 | V135: 54954051.61 | X135: 30.93046602 | Y135: -47.34992994 | AA135: 45.8320049 | AB135: -81.30949648 | AD135: 0 | AE135: 0
A136: 7499.45 | B136: 7.49945 | C136: 6.317300285 | D136: 1.411832212 | E136: 1.000000392 | F136: 0.0008858639274 | G136: 1 | H136: 0 | I136: 3016.65035 | J136: 1.570464833 | K136: 1.374093927 | L136: 0.7557574119 | M136: 1.000017997 | N136: 0.005999488017 | O136: 1.000004506 | P136: 0.01009824458 | Q136: 26.33615186 | R136: -128.4428999 | S136: 51.55710007 | U136: 1000000000 | V136: 56241750.3 | X136: 30.87689697 | Y136: -47.02304218 | AA136: 45.7339622 | AB136: -81.41985775 | AD136: 0 | AE136: 0
A137: 7585.8 | B137: 7.5858 | C137: 6.388226277 | D137: 1.413611894 | E137: 1.000000401 | F137: 0.0008960639167 | G137: 1 | H137: 0 | I137: 3051.384595 | J137: 1.570468607 | K137: 1.381558589 | L137: 0.7614733675 | M137: 1.000018414 | N137: 0.006068565502 | O137: 1.000004611 | P137: 0.01021452051 | Q137: 26.18679028 | R137: -128.2276198 | S137: 51.77238019 | U137: 1000000000 | V137: 57544361.64 | X137: 30.82451161 | Y137: -46.6997161 | AA137: 45.63698598 | AB137: -81.52790372 | AD137: 0 | AE137: 0
A138: 7674.15 | B138: 7.67415 | C138: 6.460815502 | D138: 1.415392348 | E138: 1.000000411 | F138: 0.0009065001533 | G138: 1 | H138: 0 | I138: 3086.923338 | J138: 1.57047238 | K138: 1.389242353 | L138: 0.7672579433 | M138: 1.000018845 | N138: 0.006139242869 | O138: 1.000004719 | P138: 0.01033348969 | Q138: 26.03624097 | R138: -128.0086847 | S138: 51.9913153 | U138: 1000000000 | V138: 58892578.22 | X138: 30.77210413 | Y138: -46.37255001 | AA138: 45.53884415 | AB138: -81.6361347 | AD138: 0 | AE138: 0
A139: 7762.5 | B139: 7.7625 | C139: 6.533424753 | D139: 1.417133233 | E139: 1.00000042 | F139: 0.0009169363898 | G139: 1 | H139: 0 | I139: 3122.462082 | J139: 1.570476067 | K139: 1.396972092 | L139: 0.7729786942 | M139: 1.000019282 | N139: 0.006209920174 | O139: 1.000004828 | P139: 0.01045245897 | Q139: 25.88793295 | R139: -127.7911344 | S139: 52.20886555 | U139: 1000000000 | V139: 60256406.25 | X139: 30.72086806 | Y139: -46.04903589 | AA139: 45.4417722 | AB139: -81.74209856 | AD139: 0 | AE139: 0
A140: 7852.9 | B140: 7.8529 | C140: 6.607738808 | D140: 1.418874906 | E140: 1.00000043 | F140: 0.0009276147798 | G140: 1 | H140: 0 | I140: 3158.825437 | J140: 1.570479753 | K140: 1.404927979 | L140: 0.7787668329 | M140: 1.000019734 | N140: 0.006282237353 | O140: 1.000004941 | P140: 0.01057418882 | Q140: 25.7384462 | R140: -127.5700065 | S140: 52.4299935 | U140: 1000000000 | V140: 61668038.41 | X140: 30.6696217 | Y140: -45.72175467 | AA140: 45.34353182 | AB140: -81.84825183 | AD140: 0 | AE140: 0
A141: 7943.3 | B141: 7.9433 | C141: =SQRT(1+(A141/pole1)^2) -> 6.682072461 | D141: =ATAN(A141/pole1) -> 1.420577833 | E141: =SQRT(1+(A141/Zero1)^2) -> 1.00000044 | F141: =ATAN(A141/Zero1) -> 0.0009382931696 | G141: =IF(VIN_nom>Vout, 1, SQRT(1+(A141/z_RHP)^2)) -> 1 | H141: =IF(VIN_nom>Vout, 0, -ATAN(A141/z_RHP)) -> 0 | I141: =SQRT(1+(A141/Pole2)^2) -> 3195.188792 | J141: =ATAN(A141/Pole2) -> 1.570483356 | K141: =SQRT(1+(A141/Zero2)^2) -> 1.412930404 | L141: =ATAN(A141/Zero2) -> 0.7844895968 | M141: =SQRT(1+(A141/pole4)^2) -> 1.000020191 | N141: =ATAN(A141/pole4) -> 0.006354554466 | O141: =SQRT((1-(V141/pterm2))^2+(A141/pterm1)^2) -> 1.000005056 | P141: =IF((ATAN((A141/pterm1)/(1-A141^2/pterm2))>0),ATAN((A141/pterm1)/(1-A141^2/pterm2)),PI()+ATAN((A141/pterm1)/(1-A141^2/pterm2))) -> 0.0106959188 | Q141: =20*LOG10(((E141*K141*G141)/(C141*I141*O141*M141))*Adc) -> 25.5911913 | R141: =((F141+L141+H141)-(D141+J141+P141+N141))*radconv -> -127.3503995 | S141: =IF(R141>0,R141,R141+180) -> 52.64960047 | U141: 1000000000 | V141: 63096014.89 | X141: =20*LOG10((K141/(I141*M141))*AEA) -> 30.61953396 | Y141: =(L141-(J141+N141))*radconv -> -45.39821434 | AA141: =20*LOG10((E141*G141/(C141*O141))*Acs*Am) -> 45.24636465 | AB141: =(F141+H141-(D141+P141))*radconv -> -81.95218519 | AD141: 0 | AE141: 0
A142: 8035.8 | B142: =A142/1000 -> 8.0358 | C142: 6.758152504 | D142: 1.422281538 | E142: 1.000000451 | F142: 0.0009492196191 | G142: 1 | H142: 0 | I142: 3232.396871 | J142: 1.570486959 | K142: 1.421166078 | L142: 0.7902783951 | M142: 1.000020663 | N142: 0.006428551443 | O142: 1.000005174 | P142: 0.01082047669 | Q142: 25.44276828 | R142: -127.1272977 | S142: 52.87270235 | U142: =IF(Q142<0,A142,1000000000) -> 1000000000 | V142: =A142^2 -> 64574081.64 | X142: 30.56944802 | Y142: -45.07098676 | AA142: 45.14802757 | AB142: -82.05631089 | AD142: =SUM((Q143<0)*(Q142>0))*A142 -> 0 | AE142: 0
A143: 8128.3 | B143: 8.1283 | C143: 6.834251726 | D143: 1.423947307 | E143: 1.000000461 | F143: 0.0009601460683 | G143: 1 | H143: 0 | I143: 3269.60495 | J143: 1.570490479 | K143: 1.429448826 | L143: 0.7960002985 | M143: 1.000021142 | N143: 0.006502548349 | O143: 1.000005294 | P143: 0.0109450347 | Q143: 25.29656701 | R143: -126.9058503 | S143: 53.09414974 | U143: 1000000000 | V143: 66069260.89 | X143: 30.52050737 | Y143: -44.74758727 | AA143: 45.05076696 | AB143: -82.158263 | AD143: 0 | AE143: 0
A144: 8222.95 | B144: 8.22295 | C144: 6.912138933 | D144: 1.425613821 | E144: 1.000000472 | F144: 0.0009713264835 | G144: 1 | H144: 0 | I144: 3307.677866 | J144: 1.570494 | K144: 1.437971971 | L144: 0.8017867708 | M144: 1.000021637 | N144: 0.00657826511 | O144: 1.000005418 | P144: 0.01107248798 | Q144: 25.14920964 | R144: -126.680996 | S144: 53.31900404 | U144: 1000000000 | V144: 67616906.7 | X144: 30.47158074 | Y144: -44.42058679 | AA144: 44.95233622 | AB144: -82.26040917 | AD144: 0 | AE144: 0
A145: 8270.275 | B145: 8.270275 | C145: 6.951089615 | D145: 1.426433072 | E145: 1.000000477 | F145: 0.000976916691 | G145: 1 | H145: 0 | I145: 3326.714323 | J145: 1.57049573 | K145: 1.442251439 | L145: 0.804654312 | M145: 1.000021887 | N145: 0.006616123462 | O145: 1.000005481 | P145: 0.01113621467 | Q145: 25.07636358 | R145: -126.5692368 | S145: 53.43076321 | U145: 1000000000 | V145: 68397448.58 | X145: 30.44754375 | Y145: -44.25855702 | AA145: 44.90352715 | AB145: -82.31067976 | AD145: 0 | AE145: 0
A146: 8317.6 | B146: 8.3176 | C146: 6.990044909 | D146: 1.427243192 | E146: 1.000000483 | F146: 0.0009825068984 | G146: 1 | H146: 0 | I146: 3345.750781 | J146: 1.57049744 | K146: 1.446542696 | L146: 0.8075048632 | M146: 1.000022138 | N146: 0.006653981796 | O146: 1.000005543 | P146: 0.01119994139 | Q146: 25.00406325 | R146: -126.4579268 | S146: 53.5420732 | U146: 1000000000 | V146: 69182469.76 | X146: 30.42378549 | Y146: -44.09749959 | AA146: 44.85498508 | AB146: -82.36042721 | AD146: 0 | AE146: 0
A147: 8366.05 | B147: 8.36605 | C147: 7.02993094 | D147: 1.428063269 | E147: 1.000000488 | F147: 0.000988229995 | G147: 1 | H147: 0 | I147: 3365.23977 | J147: 1.570499171 | K147: 1.450948067 | L147: 0.8104056855 | M147: 1.000022397 | N147: 0.006692740069 | O147: 1.000005608 | P147: 0.01126518304 | Q147: 24.93060237 | R147: -126.3444389 | S147: 53.65556113 | U147: 1000000000 | V147: 69990792.6 | X147: 30.39974698 | Y147: -43.93361457 | AA147: 44.80556271 | AB147: -82.4108243 | AD147: 0 | AE147: 0
A148: 8414.5 | B148: 8.4145 | C148: 7.069821646 | D148: 1.428874091 | E148: 1.000000494 | F148: 0.0009939530916 | G148: 1 | H148: 0 | I148: 3384.728758 | J148: 1.570500882 | K148: =SQRT(1+(A148/Zero2)^2) -> 1.455365574 | L148: =ATAN(A148/Zero2) -> 0.8132889221 | M148: 1.000022657 | N148: 0.006731498323 | O148: 1.000005673 | P148: 0.01133042473 | Q148: 24.85769903 | R148: -126.2314272 | S148: 53.76857281 | U148: 1000000000 | V148: 70803810.25 | X148: 30.37599213 | Y148: -43.770736 | AA148: 44.75641421 | AB148: -82.46069118 | AD148: 0 | AE148: 0
A149: 8462.95 | B149: 8.46295 | C149: 7.109716947 | D149: 1.429675815 | E149: 1.0000005 | F149: 0.000999676188 | G149: 1 | H149: 0 | I149: 3404.217747 | J149: 1.570502574 | K149: 1.459795106 | L149: 0.8161546849 | M149: 1.000022919 | N149: 0.006770256557 | O149: 1.000005739 | P149: 0.01139566645 | Q149: 24.78534609 | R149: -126.1188942 | S149: 53.88110579 | U149: 1000000000 | V149: 71621522.7 | X149: 30.35251677 | Y149: -43.60885748 | AA149: 44.70753663 | AB149: -82.51003673 | AD149: 0 | AE149: 0
A150: 8511.4 | B150: 8.5114 | C150: 7.149616767 | D150: 1.430468591 | E150: 1.000000505 | F150: 0.001005399284 | G150: 1 | H150: 0 | I150: 3423.706735 | J150: 1.570504246 | K150: 1.464236554 | L150: 0.8190030856 | M150: 1.000023182 | N150: 0.00680901477 | O150: 1.000005805 | P150: 0.01146090821 | Q150: 24.71353654 | R150: -126.0068422 | S150: 53.99315776 | U150: 1000000000 | V150: 72443929.96 | X150: 30.3293168 | Y150: -43.44797263 | AA150: 44.65892706 | AB150: -82.5588696 | AD150: 0 | AE150: 0
A151: 8560.95 | B151: 8.56095 | C151: 7.190427061 | D151: 1.431270265 | E151: 1.000000511 | F151: 0.001011252317 | G151: 1 | H151: 0 | I151: 3443.638198 | J151: 1.570505936 | K151: 1.468791052 | L151: 0.8218983142 | M151: 1.000023452 | N151: 0.006848652921 | O151: 1.000005873 | P151: 0.01152763125 | Q151: 24.6406515 | R151: -125.892746 | S151: 54.10725405 | U151: 1000000000 | V151: 73289864.9 | X151: 30.30587073 | Y151: -43.28445621 | AA151: 44.60948809 | AB151: -82.60828974 | AD151: 0 | AE151: 0
A152: 8610.5 | B152: 8.6105 | C152: 7.231241924 | D152: 1.43206289 | E152: 1.000000517 | F152: 0.001017105349 | G152: 1 | H152: 0 | I152: 3463.569661 | J152: 1.570507607 | K152: 1.473357786 | L152: 0.8247756191 | M152: 1.000023725 | N152: 0.006888291051 | O152: 1.000005941 | P152: 0.01159435432 | Q152: 24.56832035 | R152: -125.779157 | S152: 54.22084297 | U152: 1000000000 | V152: 74140710.25 | X152: 30.28270425 | Y152: -43.12196563 | AA152: 44.56032342 | AB152: -82.65719141 | AD152: 0 | AE152: 0
A153: 8660.05 | B153: 8.66005 | C153: 7.272061279 | D153: 1.432846617 | E153: 1.000000523 | F153: 0.001022958382 | G153: 1 | H153: 0 | I153: 3483.501124 | J153: 1.570509259 | K153: 1.477936642 | L153: 0.8276351189 | M153: 1.000023999 | N153: 0.00692792916 | O153: 1.000006009 | P153: 0.01166107743 | Q153: 24.49653598 | R153: -125.6660774 | S153: 54.33392264 | U153: 1000000000 | V153: 74996466 | X153: 30.25981319 | Y153: -42.9604941 | AA153: 44.51143011 | AB153: -82.70558326 | AD153: 0 | AE153: 0
A154: 8709.6 | B154: 8.7096 | C154: 7.312885051 | D154: 1.433621594 | E154: 1.000000529 | F154: 0.001028811414 | G154: 1 | H154: 0 | I154: 3503.432587 | J154: 1.570510892 | K154: 1.482527509 | L154: 0.8304769321 | M154: 1.000024274 | N154: 0.006967567246 | O154: 1.000006078 | P154: 0.01172780058 | Q154: 24.42529137 | R154: -125.5535087 | S154: 54.44649133 | U154: 1000000000 | V154: 75857132.16 | X154: 30.23719347 | Y154: -42.80003487 | AA154: 44.46280522 | AB154: -82.7534738 | AD154: 0 | AE154: =IF(AD154>0,S154,0) -> 0
A155: 8760.325 | B155: 8.760325 | C155: 7.354681393 | D155: 1.434406037 | E155: 1.000000535 | F155: 0.001034803242 | G155: 1 | H155: 0 | I155: 3523.836694 | J155: 1.570512545 | K155: 1.487239565 | L155: 0.8333679371 | M155: 1.000024558 | N155: 0.007008145265 | O155: 1.000006149 | P155: 0.011796106 | Q155: 24.35290924 | R155: -125.4388015 | S155: 54.56119852 | U155: 1000000000 | V155: 76743294.11 | X155: 30.21431423 | Y155: -42.63681213 | AA155: 44.41330232 | AB155: -82.80198935 | AD155: 0 | AE155: 0
A156: 8811.05 | B156: 8.81105 | C156: 7.396482209 | D156: 1.435181613 | E156: 1.000000542 | F156: 0.001040795069 | G156: 1 | H156: 0 | I156: 3544.2408 | J156: 1.570514179 | K156: 1.491963972 | L156: 0.8362406568 | M156: 1.000024843 | N156: 0.00704872326 | O156: 1.000006221 | P156: 0.01186441146 | Q156: 24.2810783 | R156: -125.3246329 | S156: 54.67536711 | U156: 1000000000 | V156: 77634602.1 | X156: 30.19171093 | Y156: -42.47463597 | AA156: 44.36407469 | AB156: -82.84999692 | AD156: 0 | AE156: 0
A157: 8861.775 | B157: 8.861775 | C157: 7.438287424 | D157: 1.435948472 | E157: 1.000000548 | F157: 0.001046786897 | G157: 1 | H157: 0 | I157: 3564.644906 | J157: 1.570515794 | K157: 1.496700614 | L157: 0.8390952172 | M157: 1.00002513 | N157: 0.007089301232 | O157: 1.000006293 | P157: 0.01193271696 | Q157: 24.20979141 | R157: -125.2110042 | S157: 54.7889958 | U157: 1000000000 | V157: 78531056.15 | X157: 30.16937939 | Y157: -42.31349919 | AA157: 44.31511934 | AB157: -82.89750501 | AD157: 0 | AE157: 0
A158: 8912.5 | B158: 8.9125 | C158: 7.480096964 | D158: 1.436706759 | E158: 1.000000554 | F158: 0.001052778724 | G158: 1 | H158: 0 | I158: 3585.049012 | J158: 1.570517391 | K158: =SQRT(1+(A158/Zero2)^2) -> 1.501449375 | L158: =ATAN(A158/Zero2) -> 0.8419317438 | M158: 1.000025418 | N158: 0.007129879181 | O158: 1.000006365 | P158: 0.01200102251 | Q158: 24.13904156 | R158: -125.0979166 | S158: 54.90208343 | U158: 1000000000 | V158: 79432656.25 | X158: 30.14731555 | Y158: -42.15339461 | AA158: 44.26643333 | AB158: -82.94452196 | AD158: 0 | AE158: 0
A159: 8964.4 | B159: 8.9644 | C159: 7.522879388 | D159: 1.437473887 | E159: 1.000000561 | F159: 0.001058909347 | G159: 1 | H159: 0 | I159: 3605.925762 | J159: 1.570519005 | K159: 1.506320561 | L159: 0.8448154415 | M159: 1.000025715 | N159: 0.007171397058 | O159: 1.000006439 | P159: 0.01207091033 | Q159: 24.0672015 | R159: -124.9827704 | S159: 55.01722961 | U159: 1000000000 | V159: 80360467.36 | X159: 30.1250135 | Y159: -41.99064223 | AA159: 44.21689532 | AB159: -82.99212816 | AD159: 0 | AE159: 0
A160: 9016.3 | B160: 9.0163 | C160: 7.565666188 | D160: 1.438232338 | E160: 1.000000567 | F160: 0.001065039969 | G160: 1 | H160: 0 | I160: 3626.802511 | J160: 1.570520602 | K160: 1.511204192 | L160: 0.8476805248 | M160: 1.000026014 | N160: 0.007212914911 | O160: 1.000006514 | P160: 0.0121407982 | Q160: 23.99590917 | R160: -124.8681926 | S160: 55.13180745 | U160: 1000000000 | V160: 81293665.69 | X160: 30.10298329 | Y160: -41.8289553 | AA160: 44.16763319 | AB160: -83.03923725 | AD160: 0 | AE160: 0
A161: 9068.2 | B161: 9.0682 | C161: 7.608457292 | D161: 1.438982259 | E161: 1.000000574 | F161: 0.001071170592 | G161: 1 | H161: 0 | I161: 3647.679261 | J161: 1.57052218 | K161: 1.516100148 | L161: 0.850527127 | M161: 1.000026314 | N161: 0.007254432738 | O161: 1.000006589 | P161: 0.01221068611 | Q161: 23.92515741 | R161: -124.7541838 | S161: 55.24581622 | U161: 1000000000 | V161: 82232251.24 | X161: 30.08122077 | Y161: -41.66832623 | AA161: 44.11864396 | AB161: -83.08585755 | AD161: 0 | AE161: 0
A162: 9120.1 | B162: 9.1201 | C162: 7.651252626 | D162: 1.439723791 | E162: 1.00000058 | F162: 0.001077301214 | G162: 1 | H162: 0 | I162: 3668.55601 | J162: 1.57052374 | K162: 1.52100831 | L162: 0.8533553804 | M162: 1.000026616 | N162: 0.007295950541 | O162: 1.000006665 | P162: 0.01228057407 | Q162: 23.85493923 | R162: -124.6407447 | S162: 55.35925535 | U162: 1000000000 | V162: 83176224.01 | X162: 30.05972187 | Y162: -41.50874742 | AA162: 44.06992467 | AB162: -83.13199723 | AD162: 0 | AE162: 0
A163: 9173.2 | B163: 9.1732 | C163: 7.695041753 | D163: 1.440473931 | E163: 1.000000587 | F163: 0.001083573585 | G163: 1 | H163: 0 | I163: 3689.915459 | J163: 1.570525318 | K163: 1.526042465 | L163: 0.8562301747 | M163: 1.000026927 | N163: 0.007338428266 | O163: 1.000006743 | P163: 0.01235207797 | Q163: 23.78364254 | R163: -124.5252727 | S163: 55.47472734 | U163: 1000000000 | V163: 84147598.24 | X163: 30.03799458 | Y163: -41.34655804 | AA163: 44.02035528 | AB163: -83.17871461 | AD163: 0 | AE163: 0
A164: 9226.3 | B164: 9.2263 | C164: 7.738835162 | D164: 1.441215583 | E164: 1.000000594 | F164: 0.001089845956 | G164: 1 | H164: 0 | I164: 3711.274908 | J164: 1.570526878 | K164: 1.53108915 | L164: 0.8590860411 | M164: 1.00002724 | N164: 0.007380905965 | O164: 1.000006821 | P164: 0.01242358193 | Q164: 23.7128899 | R164: -124.4103977 | S164: 55.58960231 | U164: 1000000000 | V164: 85124611.69 | X164: 30.01653487 | Y164: -41.18545212 | AA164: 43.97106234 | AB164: -83.22494558 | AD164: 0 | AE164: 0
A165: 9279.4 | B165: 9.2794 | C165: 7.782632779 | D165: 1.441948886 | E165: 1.000000601 | F165: 0.001096118327 | G165: 1 | H165: 0 | I165: 3732.634357 | J165: 1.570528419 | K165: 1.536148239 | L165: 0.8619231196 | M165: 1.000027554 | N165: 0.007423383638 | O165: 1.0000069 | P165: 0.01249508593 | Q165: 23.64267419 | R165: -124.2961199 | S165: 55.70388008 | U165: 1000000000 | V165: 86107264.36 | X165: 29.99533864 | Y165: -41.02542162 | AA165: 43.92204286 | AB165: -83.2706983 | AD165: 0 | AE165: 0
A166: 9332.5 | B166: 9.3325 | C166: 7.826434534 | D166: 1.442673983 | E166: 1.000000608 | F166: 0.001102390698 | G166: 1 | H166: 0 | I166: 3753.993806 | J166: 1.570529944 | K166: 1.541219612 | L166: 0.8647415499 | M166: 1.00002787 | N166: 0.007465861283 | O166: 1.000006979 | P166: 0.01256658997 | Q166: 23.57298839 | R166: -124.1824393 | S166: 55.81756066 | U166: 1000000000 | V166: 87095556.25 | X166: 29.97440183 | Y166: -40.86645859 | AA166: 43.87329388 | AB166: -83.31598076 | AD166: 0 | AE166: 0
A167: 9386.85 | B167: 9.38685 | C167: 7.871271618 | D167: 1.443407791 | E167: 1.000000615 | F167: 0.001108810723 | G167: 1 | H167: 0 | I167: 3775.856067 | J167: 1.570531486 | K167: 1.546422962 | L167: 0.8676071606 | M167: 1.000028196 | N167: 0.007509338846 | O167: 1.000007061 | P167: 0.01263977731 | Q167: 23.50220374 | R167: -124.066701 | S167: 55.93329903 | U167: 1000000000 | V167: 88112952.92 | X167: 29.95323668 | Y167: -40.70485064 | AA167: 43.82367439 | AB167: -83.36185033 | AD167: 0 | AE167: 0
A168: 9441.2 | B168: 9.4412 | C168: 7.916112891 | D168: 1.444133285 | E168: 1.000000622 | F168: 0.001115230748 | G168: 1 | H168: 0 | I168: 3797.718327 | J168: 1.570533011 | K168: 1.551638925 | L168: 0.8704535286 | M168: 1.000028523 | N168: 0.00755281638 | O168: 1.000007143 | P168: 0.01271296469 | Q168: 23.43195979 | R168: -123.9515878 | S168: 56.04841219 | U168: 1000000000 | V168: 89136257.44 | X168: 29.93233497 | Y168: -40.5443442 | AA168: 43.77433214 | AB168: -83.40724361 | AD168: 0 | AE168: 0
A169: 9495.55 | B169: 9.49555 | C169: 7.960958285 | D169: 1.444850607 | E169: 1.000000629 | F169: 0.001121650773 | G169: 1 | H169: 0 | I169: 3819.580588 | J169: 1.570534518 | K169: 1.556867375 | L169: 0.8732808014 | M169: 1.000028853 | N169: 0.007596293885 | O169: 1.000007225 | P169: 0.01278615213 | Q169: 23.36224939 | R169: -123.8370994 | S169: 56.16290056 | U169: 1000000000 | V169: 90165469.8 | X169: 29.9116926 | Y169: -40.38493084 | AA169: 43.7252641 | AB169: -83.4521686 | AD169: 0 | AE169: 0
A170: 9549.9 | B170: 9.5499 | C170: 8.005807729 | D170: 1.445559892 | E170: 1.000000636 | F170: 0.001128070798 | G170: 1 | H170: 0 | I170: 3841.442849 | J170: 1.570536008 | K170: 1.562108187 | L170: 0.8760891256 | M170: 1.000029184 | N170: 0.007639771362 | O170: 1.000007308 | P170: 0.01285933962 | Q170: 23.29306554 | R170: -123.7232353 | S170: 56.27676472 | U170: 1000000000 | V170: 91200590.01 | X170: 29.89130556 | Y170: -40.22660215 | AA170: 43.67646729 | AB170: -83.49663313 | AD170: 0 | AE170: 0
A171: 9605.525 | B171: 9.605525 | C171: 8.051713422 | D171: 1.446277634 | E171: 1.000000644 | F171: 0.00113464143 | G171: 1 | H171: 0 | I171: 3863.817978 | J171: 1.570537515 | K171: 1.567484613 | L171: 0.8789438625 | M171: 1.000029525 | N171: 0.00768426875 | O171: 1.000007394 | P171: 0.01293424406 | Q171: 23.22279674 | R171: -123.6073456 | S171: 56.3926544 | U171: 1000000000 | V171: 92266110.53 | X171: 29.87070051 | Y171: -40.06567366 | AA171: 43.62680355 | AB171: -83.54167194 | AD171: 0 | AE171: 0
A172: 9661.15 | B172: 9.66115 | C172: 8.097623216 | D172: 1.446987237 | E172: 1.000000651 | F172: 0.001141212063 | G172: 1 | H172: 0 | I172: 3886.193107 | J172: 1.570539006 | K172: 1.572873727 | L172: 0.88177906 | M172: 1.000029868 | N172: 0.007728766107 | O172: 1.00000748 | P172: 0.01300914857 | Q172: 23.15306502 | R172: -123.4921082 | S172: 56.50789183 | U172: 1000000000 | V172: 93337819.32 | X172: 29.8503546 | Y172: -39.9058637 | AA172: 43.57741774 | AB172: -83.58624447 | AD172: 0 | AE172: 0
A173: 9716.775 | B173: 9.716775 | C173: 8.143537042 | D173: 1.44768884 | E173: 1.000000659 | F173: 0.001147782695 | G173: 1 | H173: 0 | I173: 3908.568236 | J173: 1.570540479 | K173: 1.578275397 | L173: 0.8845948731 | M173: 1.000030213 | N173: 0.007773263433 | O173: 1.000007566 | P173: 0.01308405312 | Q173: 23.08386327 | R173: -123.377522 | S173: 56.62247802 | U173: 1000000000 | V173: 94415716.4 | X173: 29.83026375 | Y173: -39.74716341 | AA173: 43.52830684 | AB173: -83.63035857 | AD173: 0 | AE173: 0
A174: 9772.4 | B174: 9.7724 | C174: 8.189454831 | D174: 1.448382575 | E174: 1.000000666 | F174: 0.001154353328 | G174: 1 | H174: 0 | I174: 3930.943365 | J174: 1.570541935 | K174: 1.583689496 | L174: 0.8873914556 | M174: 1.000030559 | N174: 0.007817760729 | O174: 1.000007653 | P174: 0.01315895773 | Q174: 23.01518447 | R174: -123.2635859 | S174: 56.73641411 | U174: 1000000000 | V174: 95499801.76 | X174: 29.81042396 | Y174: -39.58956398 | AA174: 43.47946783 | AB174: -83.67402191 | AD174: 0 | AE174: 0
A175: 9829.3 | B175: 9.8293 | C175: 8.23642915 | D175: 1.449084208 | E175: 1.000000674 | F175: 0.001161074568 | G175: 1 | H175: 0 | I175: 3953.831362 | J175: 1.570543408 | K175: 1.589240419 | L175: 0.8902324022 | M175: 1.000030916 | N175: 0.007863277931 | O175: 1.000007742 | P175: 0.01323557931 | Q175: 22.94546538 | R175: -123.1477096 | S175: 56.85229045 | U175: 1000000000 | V175: 96615138.49 | X175: 29.79038507 | Y175: -39.42948205 | AA175: 43.42978762 | AB175: -83.71822751 | AD175: 0 | AE175: 0
A176: 9886.2 | B176: 9.8862 | C176: 8.283407477 | D176: 1.449777882 | E176: 1.000000682 | F176: 0.001167795808 | G176: 1 | H176: 0 | I176: 3976.719359 | J176: 1.570544863 | K176: 1.59480408 | L176: 0.8930535495 | M176: 1.000031275 | N176: 0.0079087951 | O176: 1.000007832 | P176: 0.01331220095 | Q176: 22.87627906 | R176: -123.0325107 | S176: 56.9674893 | U176: 1000000000 | V176: 97736950.44 | X176: 29.77060064 | Y176: -39.27053356 | AA176: 43.38038574 | AB176: -83.76197714 | AD176: 0 | AE176: 0
A177: 9943.1 | B177: 9.9431 | C177: 8.330389746 | D177: 1.450463733 | E177: 1.00000069 | F177: 0.001174517047 | G177: 1 | H177: 0 | I177: 3999.607356 | J177: 1.570546302 | K177: 1.600380346 | L177: 0.8958550594 | M177: 1.000031636 | N177: 0.007954312236 | O177: 1.000007923 | P177: 0.01338882264 | Q177: 22.80761843 | R177: -122.9179878 | S177: 57.08201225 | U177: 1000000000 | V177: 98865237.61 | X177: 29.75106663 | Y177: -39.11270926 | AA177: 43.33125912 | AB177: -83.80527849 | AD177: 0 | AE177: 0
A178: 10000 | B178: 10 | C178: 8.377375889 | D178: 1.451141891 | E178: 1.000000698 | F178: 0.001181238287 | G178: 1 | H178: 0 | I178: 4022.495353 | J178: 1.570547725 | K178: 1.605969085 | L178: 0.8986370925 | M178: 1.000031999 | N178: 0.00799982934 | O178: 1.000008014 | P178: 0.01346544439 | Q178: 22.7394765 | R178: -122.804139 | S178: 57.19586099 | U178: 1000000000 | V178: 100000000 | X178: 29.73177905 | Y178: -38.95599995 | AA178: 43.28240476 | AB178: -83.84813906 | AD178: 0 | AE178: 0
A179: 10058.25 | B179: 10.05825 | C179: 8.425480763 | D179: 1.451828303 | E179: 1.000000706 | F179: 0.001188118994 | G179: 1 | H179: 0 | I179: 4045.926387 | J179: 1.570549165 | K179: 1.611703206 | L179: 0.9014651232 | M179: 1.000032373 | N179: 0.00804642634 | O179: 1.000008107 | P179: 0.01354388412 | Q179: 22.670248 | R179: -122.6882856 | S179: 57.31171437 | U179: 1000000000 | V179: 101168393.1 | X179: 29.71228507 | Y179: -38.79671803 | AA179: 43.23267024 | AB179: -83.89156761 | AD179: 0 | AE179: 0
A180: 10116.5 | B180: 10.1165 | C180: 8.473589562 | D180: 1.452506921 | E180: 1.000000714 | F180: 0.0011949997 | G180: 1 | H180: 0 | I180: 4069.357421 | J180: 1.570550588 | K180: 1.617450126 | L180: 0.9042730798 | M180: 1.000032749 | N180: 0.008093023306 | O180: 1.000008202 | P180: 0.01362232391 | Q180: 22.6015487 | R180: -122.5731349 | S180: 57.42686509 | U180: 1000000000 | V180: 102343572.2 | X180: 29.69304118 | Y180: -38.63858531 | AA180: 43.18321484 | AB180: -83.9345496 | AD180: 0 | AE180: 0
A181: 10174.75 | B181: 10.17475 | C181: 8.521702219 | D181: 1.453177876 | E181: 1.000000722 | F181: 0.001201880406 | G181: 1 | H181: 0 | I181: 4092.788455 | J181: 1.570551995 | K181: 1.623209709 | L181: 0.9070611316 | M181: 1.000033128 | N181: 0.008139620236 | O181: 1.000008296 | P181: 0.01370076376 | Q181: 22.53337151 | R181: -122.4586847 | S181: 57.54131531 | U181: 1000000000 | V181: 103525537.6 | X181: 29.67404334 | Y181: -38.48159213 | AA181: 43.13403548 | AB181: -83.97709256 | AD181: 0 | AE181: 0
A182: 10233 | B182: 10.233 | C182: 8.569818669 | D182: 1.453841298 | E182: 1.000000731 | F182: 0.001208761113 | G182: 1 | H182: 0 | I182: 4116.219489 | J182: 1.570553385 | K182: 1.62898182 | L182: 0.9098294464 | M182: 1.000033508 | N182: 0.008186217131 | O182: 1.000008392 | P182: 0.01377920367 | Q182: 22.46570946 | R182: -122.3449327 | S182: 57.65506728 | U182: 1000000000 | V182: 104714289 | X182: 29.65528761 | Y182: -38.32572887 | AA182: 43.08512916 | AB182: -84.01920385 | AD182: 0 | AE182: 0
A183: 10292.5 | B183: 10.2925 | C183: 8.618971512 | D183: 1.454511308 | E183: 1.000000739 | F183: 0.001215789473 | G183: 1 | H183: 0 | I183: 4140.153335 | J183: 1.57055479 | K183: 1.634890592 | L183: 0.9126369639 | M183: 1.000033899 | N183: 0.008233813923 | O183: 1.00000849 | P183: 0.01385932691 | Q183: 22.39712015 | R183: -122.2294582 | S183: 57.77054182 | U183: 1000000000 | V183: 105935556.2 | X183: 29.63637534 | Y183: -38.16767753 | AA183: 43.03545213 | AB183: -84.06178065 | AD183: 0 | AE183: 0
A184: 10352 | B184: 10.352 | C184: 8.66812818 | D184: 1.45517372 | E184: 1.000000748 | F184: 0.001222817834 | G184: 1 | H184: 0 | I184: 4164.087181 | J184: 1.570556178 | K184: 1.640812158 | L184: 0.9154242389 | M184: 1.000034292 | N184: 0.008281410677 | O184: 1.000008588 | P184: 0.01393945021 | Q184: 22.32905403 | R184: -122.1147071 | S184: 57.88529287 | U184: 1000000000 | V184: 107163904 | X184: 29.61770759 | Y184: -38.01078506 | AA184: 42.98605376 | AB184: -84.10392206 | AD184: 0 | AE184: 0
A185: 10411.5 | B185: 10.4115 | C185: 8.717288608 | D185: 1.45582866 | E185: 1.000000756 | F185: 0.001229846194 | G185: 1 | H185: 0 | I185: 4188.021027 | J185: 1.570557551 | K185: 1.64674638 | L185: 0.9181914469 | M185: 1.000034687 | N185: 0.008329007394 | O185: 1.000008687 | P185: 0.01401957358 | Q185: 22.26150405 | R185: -122.0006769 | S185: 57.99932312 | U185: 1000000000 | V185: 108399332.2 | X185: 29.59928039 | Y185: -37.85504145 | AA185: 42.93693098 | AB185: -84.14563543 | AD185: 0 | AE185: 0
A186: 10471 | B186: 10.471 | C186: 8.766452734 | D186: 1.456476255 | E186: 1.000000765 | F186: 0.001236874555 | G186: 1 | H186: 0 | I186: 4211.954873 | J186: 1.570558907 | K186: 1.65269312 | L186: 0.9209387618 | M186: 1.000035085 | N186: 0.008376604073 | O186: 1.000008787 | P186: 0.01409969701 | Q186: 22.19446331 | R186: -121.8873646 | S186: 58.11263536 | U186: 1000000000 | V186: 109641841 | X186: 29.58108986 | Y186: -37.70043673 | AA186: 42.88808077 | AB186: -84.18692791 | AD186: 0 | AE186: 0
A187: 10532 | B187: 10.532 | C187: 8.816860065 | D187: 1.457132678 | E187: 1.000000774 | F187: 0.001244080101 | G187: 1 | H187: 0 | I187: 4236.492093 | J187: 1.570560282 | K187: 1.658802635 | L187: 0.9237348659 | M187: 1.000035495 | N187: 0.008425400629 | O187: 1.00000889 | P187: 0.01418184043 | Q187: 22.12625402 | R187: -121.7719382 | S187: 58.22806182 | U187: 1000000000 | V187: 110923024 | X187: 29.56268243 | Y187: -37.54310639 | AA187: 42.83827891 | AB187: -84.22883179 | AD187: 0 | AE187: 0
A188: 10593 | B188: 10.593 | C188: 8.867271151 | D188: 1.457781637 | E188: 1.000000783 | F188: 0.001251285646 | G188: 1 | H188: 0 | I188: 4261.029313 | J188: 1.570561642 | K188: 1.664925023 | L188: 0.9265104274 | M188: 1.000035907 | N188: 0.008474197144 | O188: 1.000008993 | P188: 0.01426398392 | Q188: 22.05856565 | R188: -121.6572602 | S188: 58.3427398 | U188: 1000000000 | V188: 112211649 | X188: 29.54451569 | Y188: -37.38695215 | AA188: 42.78875727 | AB188: -84.27030805 | AD188: 0 | AE188: 0
A189: 10654 | B189: 10.654 | C189: 8.91768593 | D189: 1.458423259 | E189: 1.000000792 | F189: 0.001258491192 | G189: 1 | H189: 0 | I189: 4285.566534 | J189: 1.570562985 | K189: 1.671060143 | L189: 0.9292656296 | M189: 1.000036322 | N189: 0.00852299362 | O189: 1.000009097 | P189: 0.01434612748 | Q189: 21.99139114 | R189: -121.5433274 | S189: 58.45667257 | U189: 1000000000 | V189: 113507716 | X189: 29.5265857 | Y189: -37.2319635 | AA189: 42.73951276 | AB189: -84.31136392 | AD189: 0 | AE189: 0
A190: 10715 | B190: 10.715 | C190: 8.968104339 | D190: 1.459057667 | E190: 1.000000801 | F190: 0.001265696737 | G190: 1 | H190: 0 | I190: 4310.103754 | J190: 1.570564314 | K190: 1.677207855 | L190: 0.9320006545 | M190: 1.000036739 | N190: 0.008571790055 | O190: 1.000009201 | P190: 0.01442827112 | Q190: 21.92472359 | R190: -121.4301365 | S190: 58.56986347 | U190: 1000000000 | V190: 114811225 | X190: 29.50888856 | Y190: -37.07813007 | AA190: 42.69054235 | AB190: -84.35200646 | AD190: 0 | AE190: 0
A191: 10777.5 | B191: 10.7775 | C191: 9.019766247 | D191: 1.459700319 | E191: 1.00000081 | F191: 0.001273079468 | G191: 1 | H191: 0 | I191: 4335.244348 | J191: 1.570565659 | K191: 1.683519658 | L191: 0.9347821948 | M191: 1.000037169 | N191: 0.00862178636 | O191: 1.000009309 | P191: 0.01451243475 | Q191: 21.85693535 | R191: -121.3149281 | S191: 58.68507187 | U191: 1000000000 | V191: 116154506.2 | X191: 29.49099378 | Y191: -36.92170121 | AA191: 42.64064889 | AB191: -84.39322692 | AD191: 0 | AE191: 0
A192: 10840 | B192: 10.84 | C192: 9.071431837 | D192: 1.460335651 | E192: 1.00000082 | F192: 0.001280462199 | G192: 1 | H192: 0 | I192: 4360.384943 | J192: 1.570566989 | K192: 1.689844388 | L192: 0.9375429349 | M192: 1.000037601 | N192: 0.008671782621 | O192: 1.000009417 | P192: 0.01459659846 | Q192: 21.78966499 | R192: -121.2004912 | S192: 58.7995088 | U192: 1000000000 | V192: 117505600 | X192: 29.47333546 | Y192: -36.76646323 | AA192: 42.59103685 | AB192: -84.43402797 | AD192: 0 | AE192: 0
A193: 10902.5 | B193: 10.9025 | C193: 9.123101047 | D193: 1.460963786 | E193: 1.000000829 | F193: 0.001287844929 | G193: 1 | H193: 0 | I193: 4385.525537 | J193: 1.570568304 | K193: 1.696181901 | L193: 0.9402830657 | M193: 1.000038036 | N193: 0.00872177884 | O193: 1.000009526 | P193: 0.01468076224 | Q193: 21.72290544 | R193: -121.0868219 | S193: 58.91317808 | U193: 1000000000 | V193: 118864506.2 | X193: 29.45590964 | Y193: -36.6124052 | AA193: 42.54170311 | AB193: -84.47441672 | AD193: 0 | AE193: 0
A194: 10965 | B194: 10.965 | C194: 9.174773816 | D194: 1.461584847 | E194: 1.000000839 | F194: 0.00129522766 | G194: 1 | H194: 0 | I194: 4410.666132 | J194: 1.570569604 | K194: 1.702532055 | L194: 0.9430027763 | M194: 1.000038473 | N194: 0.008771775014 | O194: 1.000009636 | P194: 0.0147649261 | Q194: 21.65664979 | R194: -120.9739164 | S194: 59.02608361 | U194: 1000000000 | V194: 120231225 | X194: 29.43871249 | Y194: -36.4595163 | AA194: 42.49264462 | AB194: -84.51440009 | AD194: 0 | AE194: 0
A195: 11028.75 | B195: 11.02875 | C195: 9.227483645 | D195: 1.462211162 | E195: 1.000000849 | F195: 0.001302758045 | G195: 1 | H195: 0 | I195: 4436.309538 | J195: 1.570570914 | K195: 1.709022089 | L195: 0.9457560388 | M195: 1.000038922 | N195: 0.008822771068 | O195: 1.000009748 | P195: 0.01485077332 | Q195: 21.58958109 | R195: -120.8595355 | S195: 59.14046453 | U195: 1000000000 | V195: 121633326.6 | X195: 29.42140304 | Y195: -36.30476292 | AA195: 42.44288537 | AB195: -84.55477255 | AD195: 0 | AE195: 0
A196: 11092.5 | B196: 11.0925 | C196: 9.280197053 | D196: 1.462830363 | E196: 1.000000858 | F196: 0.001310288429 | G196: 1 | H196: 0 | I196: 4461.952945 | J196: 1.57057221 | K196: 1.715524979 | L196: 0.9484884488 | M196: 1.000039373 | N196: 0.008873767075 | O196: 1.000009861 | P196: 0.01493662062 | Q196: 21.5230225 | R196: -120.7459408 | S196: 59.2540592 | U196: 1000000000 | V196: 123043556.2 | X196: 29.40432362 | Y196: -36.15120344 | AA196: 42.3934062 | AB196: -84.59473736 | AD196: 0 | AE196: 0
A197: 11156.25 | B197: 11.15625 | C197: 9.332913978 | D197: 1.463442569 | E197: 1.000000868 | F197: 0.001317818814 | G197: 1 | H197: 0 | I197: 4487.596351 | J197: 1.57057349 | K197: 1.722040581 | L197: 0.951200202 | M197: 1.000039827 | N197: 0.008924763036 | O197: 1.000009975 | P197: 0.015022468 | Q197: 21.45696707 | R197: -120.6331281 | S197: 59.36687195 | U197: 1000000000 | V197: 124461914.1 | X197: 29.38747038 | Y197: -35.99882666 | AA197: 42.344204 | AB197: -84.63430139 | AD197: 0 | AE197: 0
A198: 11220 | B198: 11.22 | C198: 9.385634362 | D198: 1.464047897 | E198: 1.000000878 | F198: 0.001325349198 | G198: 1 | H198: 0 | I198: 4513.239758 | J198: 1.570574756 | K198: 1.728568751 | L198: 0.9538914923 | M198: 1.000040283 | N198: 0.00897575895 | O198: 1.00001009 | P198: 0.01510831546 | Q198: 21.39140796 | R198: -120.5210929 | S198: 59.47890713 | U198: 1000000000 | V198: 125888400 | X198: 29.37083956 | Y198: -35.84762148 | AA198: 42.29527572 | AB198: -84.67347139 | AD198: 0 | AE198: 0
A199: 11285.5 | B199: 11.2855 | C199: 9.439805514 | D199: 1.464662799 | E199: 1.000000889 | F199: 0.001333086299 | G199: 1 | H199: 0 | I199: 4539.587101 | J199: 1.570576042 | K199: 1.735289066 | L199: 0.9566355499 | M199: 1.000040755 | N199: 0.009028154704 | O199: 1.000010208 | P199: 0.0151965196 | Q199: 21.32455911 | R199: -120.4067874 | S199: 59.59321257 | U199: 1000000000 | V199: 127362510.2 | X199: 29.35397995 | Y199: -35.6934743 | AA199: 42.24528648 | AB199: -84.71331313 | AD199: 0 | AE199: 0
A200: 11351 | B200: 11.351 | C200: 9.493980195 | D200: 1.465270685 | E200: 1.000000899 | F200: 0.0013408234 | G200: 1 | H200: 0 | I200: 4565.934444 | J200: 1.570577314 | K200: 1.742022347 | L200: 0.9593584151 | M200: 1.00004123 | N200: 0.009080550409 | O200: 1.000010327 | P200: 0.01528472383 | Q200: 21.25822002 | R200: -120.2932933 | S200: 59.70670669 | U200: 1000000000 | V200: 128845201 | X200: 29.33734729 | Y200: -35.5405405 | AA200: 42.19558004 | AB200: -84.75275281 | AD200: 0 | AE200: 0
A201: 11416.5 | B201: 11.4165 | C201: 9.548158343 | D201: 1.465871671 | E201: 1.000000909 | F201: 0.0013485605 | G201: 1 | H201: 0 | I201: 4592.281787 | J201: 1.57057857 | K201: 1.748768443 | L201: 0.9620602926 | M201: 1.000041707 | N201: 0.009132946063 | O201: 1.000010446 | P201: 0.01537292814 | Q201: 21.19238368 | R201: -120.1806056 | S201: 59.81939438 | U201: 1000000000 | V201: 130336472.2 | X201: 29.32093772 | Y201: -35.38880836 | AA201: 42.14615327 | AB201: -84.79179726 | AD201: 0 | AE201: 0
A202: 11482 | B202: 11.482 | C202: 9.602339902 | D202: 1.466465876 | E202: 1.00000092 | F202: 0.0013562976 | G202: 1 | H202: 0 | I202: 4618.62913 | J202: 1.570579812 | K202: 1.755527208 | L202: 0.9647413852 | M202: 1.000042187 | N202: 0.009185341667 | O202: 1.000010567 | P202: 0.01546113254 | Q202: 21.12704322 | R202: -120.0687194 | S202: 59.93128058 | U202: 1000000000 | V202: 131836324 | X202: 29.30474747 | Y202: -35.23826629 | AA202: 42.09700307 | AB202: -84.83045313 | AD202: 0 | AE202: 0
... 433 more rows

Sheet Ch2 Stability Calculations (hidden)
A2: Divider Network & EA Poles/Zeros | E2: Modulator | J2: Power Stage Poles/Zeros | M2: Complex Pole Pair | P2: Total System
B3: Afb1 | C3: =Afb_Ch2 -> 0.12 | D3: V/V | E3: Acs | F3: =Acs_Ch2 -> 20.83333333 | G3: A/V | H3: gm | I3: =gm -> 0.0012 | J3: z_ESR | K3: =Fesr_Ch2 -> 795774.7164 | L3: Hz | M3: p3 | N3: =Fsw/2 -> 1100000 | O3: Hz | P3: Adc | Q3: =Am_Ch2*Afb_Ch2*AEA -> 76591.69737 | R3: V/V
B4: EA zero, z1 | C4: =Fz1_u_Ch2 -> 5508.99769 | D4: Hz | E4: Am | F4: =Am_Ch2 -> 8.310731052 | G4: V/V | J4: p_dom | K4: =Fp_dominant_Ch2 -> 3989.694726 | L4: Hz | M4: pterm1 | N4: =Q_Ch2*pole3 -> 62807.89972 | P4: Crossover | Q4: =AE7 -> 42.41525 | R4: kHz
B5: EA pole, p1 | C5: =Fp1_u_Ch2 -> 0.9208815915 | D5: Hz | E5: Q | F5: =Q_Ch2 -> 0.05709809065 | M5: pterm2 | N5: =pole3^2 -> 1210000000000 | P5: Phase Margin | Q5: =AE9 -> 53.95617489 | R5: °
B6: Aea | C6: =AEA -> 76800 | D6: V/V | E6: mc | F6: =mc_Ch2 -> 10.52380952 | P6: radconv | Q6: =180/Pi -> 57.29577958 | AD6: XOVER SEARCH
B7: EA pole, p2 | C7: =Fp2_u_Ch2 -> 809873.3326 | D7: Hz | E7: k | F7: =k_Ch2 -> 6.074790381 | AD7: xover | AE7: =SUM(AD12:AD613)/1000 -> 42.41525
AD9: phase margin | AE9: =SUM(AE13:AE613) -> 53.95617489
A10: Freq (Hz) | C10: Power Stage | I10: Error Amplifier | O10: Sampling Double Pole | Q10: System Response | X10: ERROR AMP Response | AA10: PLANT Response
C11: p_dom | E11: z_ESR | G11: z_RHP | I11: p1 | K11: z1 | M11: p2 | O11: p3
C12: Gain(V/V) | D12: Phase(rad) | E12: Gain(V/V) | F12: Phase(rad) | G12: Gain(V/V) | H12: Phase(rad) | I12: Gain(V/V) | J12: Phase(rad) | K12: Gain(V/V) | L12: Phase(rad) | M12: Gain(V/V) | N12: Phase(rad) | O12: Gain(V/V) | P12: Phase(rad) | Q12: Gain (dB) | R12: Phase (°) | S12: Phase Margin (°) | V12: Fsquare | X12: Gain(dB) | Y12: Phase(Deg) | AA12: Gain(dB) | AB12: Phase(Deg)
A13: 1 | B13: =A13/1000 -> 0.001 | C13: =SQRT(1+(A13/pole1)^2) -> 1.000000031 | D13: =ATAN(A13/pole1) -> 0.000250645738 | E13: =SQRT(1+(A13/Zero1)^2) -> 1 | F13: =ATAN(A13/Zero1) -> 1.25663706e-06 | G13: =IF(VIN_nom>Vout, 1, SQRT(1+(A13/z_RHP)^2)) -> 1 | H13: =IF(VIN_nom>Vout, 0, -ATAN(A13/z_RHP)) -> 0 | I13: =SQRT(1+(A13/Pole2)^2) -> 1.476215916 | J13: =ATAN(A13/Pole2) -> 0.8265634871 | K13: =SQRT(1+(A13/Zero2)^2) -> 1.000000016 | L13: =ATAN(A13/Zero2) -> 0.0001815212213 | M13: =SQRT(1+(A13/pole4)^2) -> 1 | N13: =ATAN(A13/pole4) -> 1.234760993e-06 | O13: =SQRT((1-(V13/pterm2))^2+(A13/pterm1)^2) -> 1 | P13: =IF((ATAN((A13/pterm1)/(1-A13^2/pterm2))>0),ATAN((A13/pterm1)/(1-A13^2/pterm2)),PI()+ATAN((A13/pterm1)/(1-A13^2/pterm2))) -> 1.592156408e-05 | Q13: =20*LOG10(((E13*K13*G13)/(C13*I13*O13*M13))*Adc) -> 94.30063608 | R13: =((F13+L13+H13)-(D13+J13+P13+N13))*radconv -> -47.36347089 | S13: =IF(R13>0,R13,R13+180) -> 132.6365291 | U13: =IF(Q13<0,A13,1000000000) -> 1000000000 | V13: =A13^2 -> 1 | X13: =20*LOG10((K13/(I13*M13))*AEA) -> 94.32422687 | Y13: =(L13-(J13+N13))*radconv -> -47.34826971 | AA13: =20*LOG10((E13*G13/(C13*O13))*Acs*Am) -> 61.74462808 | AB13: =(F13+H13-(D13+P13))*radconv -> -0.01520118138 | AD13: =SUM((Q14<0)*(Q13>0))*A13 -> 0 | AE13: =IF(AD13>0,S11,0) -> 0
A14: 1.0965 | B14: =A14/1000 -> 0.0010965 | C14: 1.000000038 | D14: 0.0002748330506 | E14: 1 | F14: 1.377902536e-06 | G14: 1 | H14: 0 | I14: 1.554922105 | J14: 0.8722319056 | K14: 1.00000002 | L14: 0.0001990380187 | M14: 1 | N14: 1.353915428e-06 | O14: 1 | P14: 1.745799501e-05 | Q14: 93.84946097 | R14: -49.98054864 | S14: 130.0194514 | U14: =IF(Q14<0,A14,1000000000) -> 1000000000 | V14: =A14^2 -> 1.20231225 | X14: 93.87305182 | Y14: -49.96388054 | AA14: 61.74462803 | AB14: -0.01666809532 | AD14: =SUM((Q15<0)*(Q14>0))*A14 -> 0 | AE14: 0
A15: 1.2023 | B15: 0.0012023 | C15: 1.000000045 | D15: 0.000301351368 | E15: 1 | F15: 1.510854737e-06 | G15: 1 | H15: 0 | I15: 1.644561594 | J15: 0.9171756563 | K15: 1.000000024 | L15: 0.0002182429633 | M15: 1 | N15: 1.484553141e-06 | O15: 1 | P15: 1.914249649e-05 | Q15: 93.36263082 | R15: -52.55615128 | S15: 127.4438487 | U15: 1000000000 | V15: 1.44552529 | X15: 93.38622173 | Y15: -52.5378749 | AA15: 61.74462796 | AB15: -0.01827638022 | AD15: 0 | AE15: 0
A16: 1.3183 | B16: 0.0013183 | C16: 1.000000055 | D16: 0.0003304262713 | E16: 1 | F16: 1.656624636e-06 | G16: 1 | H16: 0 | I16: 1.746245281 | J16: 0.9610527818 | K16: 1.000000029 | L16: 0.0002392994241 | M16: 1 | N16: 1.627785416e-06 | O16: 1 | P16: 2.098939792e-05 | Q16: 92.84152875 | R16: -55.07069049 | S16: 124.9293095 | U16: 1000000000 | V16: 1.73791489 | X16: 92.86511974 | Y16: -55.05065077 | AA16: 61.74462788 | AB16: -0.02003971712 | AD16: 0 | AE16: 0
A17: 1.4454 | B17: 0.0014454 | C17: 1.000000066 | D17: 0.0003622833414 | E17: 1 | F17: 1.816343207e-06 | G17: 1 | H17: 0 | I17: 1.861072402 | J17: 1.003534677 | K17: 1.000000034 | L17: 0.0002623707702 | M17: 1 | N17: 1.784723539e-06 | O17: 1 | P17: 2.301302872e-05 | Q17: 92.28836823 | R17: -57.50534295 | S17: 122.494657 | U17: 1000000000 | V17: 2.08918116 | X17: 92.31195932 | Y17: -57.48337117 | AA17: 61.74462779 | AB17: -0.0219717871 | AD17: 0 | AE17: 0
A18: 1.5849 | B18: 0.0015849 | C18: 1.000000079 | D18: 0.0003972484176 | E18: 1 | F18: 1.991644076e-06 | G18: 1 | H18: 0 | I18: 1.990496336 | J18: 1.04443878 | K18: 1.000000041 | L18: 0.0002876929789 | M18: 1 | N18: 1.956972697e-06 | O18: 1 | P18: 2.52340869e-05 | Q18: 91.70440591 | R18: -59.84965503 | S18: 120.150345 | U18: 1000000000 | V18: 2.51190801 | X18: 91.72799711 | Y18: -59.82556268 | AA18: 61.74462767 | AB18: -0.02409235165 | AD18: 0 | AE18: 0
A19: 1.7378 | B19: 0.0017378 | C19: 1.000000095 | D19: 0.0004355721451 | E19: 1 | F19: 2.183783883e-06 | G19: 1 | H19: 0 | I19: 2.135688234 | J19: 1.083506219 | K19: 1.00000005 | L19: 0.0003154475714 | M19: 1 | N19: 2.145767653e-06 | O19: 1 | P19: 2.766849405e-05 | Q19: 91.09287639 | R19: -62.08879923 | S19: 117.9112008 | U19: 1000000000 | V19: 3.01994884 | X19: 91.11646773 | Y19: -62.06238261 | AA19: 61.74462753 | AB19: -0.02641661195 | AD19: 0 | AE19: 0
A20: 1.9055 | B20: 0.0019055 | C20: 1.000000114 | D20: 0.0004776054274 | E20: 1 | F20: 2.394521918e-06 | G20: 1 | H20: 0 | I20: 2.298182264 | J20: 1.120617559 | K20: 1.00000006 | L20: 0.0003458886772 | M20: 1 | N20: 2.352837071e-06 | O20: 1 | P20: 3.033854034e-05 | Q20: 90.45594403 | R20: -64.21593936 | S20: 115.7840606 | U20: 1000000000 | V20: 3.63093025 | X20: 90.47953555 | Y20: -64.18697351 | AA20: 61.74462736 | AB20: -0.02896584962 | AD20: 0 | AE20: 0
A21: 2.0893 | B21: 0.0020893 | C21: 1.000000137 | D21: 0.0005236741035 | E21: 1 | F21: 2.625491809e-06 | G21: 1 | H21: 0 | I21: 2.479409685 | J21: 1.155652211 | K21: 1.000000072 | L21: 0.0003792522737 | M21: 1 | N21: 2.579786142e-06 | O21: 1.000000001 | P21: 3.326492382e-05 | Q21: 89.79666745 | R21: -66.22417242 | S21: 113.7758276 | U21: 1000000000 | V21: 4.36517449 | X21: 89.82025916 | Y21: -66.19241259 | AA21: 61.74462716 | AB21: -0.03175982615 | AD21: 0 | AE21: 0
A22: 2.2909 | B22: 0.0022909 | C22: 1.000000165 | D22: 0.0005742042701 | E22: 1 | F22: 2.878829841e-06 | G22: 1 | H22: 0 | I22: 2.68118907 | J22: 1.188589627 | K22: 1.000000086 | L22: 0.0004158469465 | M22: 1 | N22: 2.828713958e-06 | O22: 1.000000001 | P22: 3.647471113e-05 | Q22: 89.11708439 | R22: -68.11232947 | S22: 111.8876705 | U22: 1000000000 | V22: 5.24822281 | X22: 89.14067635 | Y22: -68.07750509 | AA22: 61.74462692 | AB22: -0.0348243835 | AD22: 0 | AE22: 0
A23: 2.5119 | B23: 0.0025119 | C23: 1.000000198 | D23: 0.0006295969593 | E23: 1 | F23: 3.156546631e-06 | G23: 1 | H23: 0 | I23: 2.905239083 | J23: 1.219403614 | K23: 1.000000104 | L23: 0.0004559631293 | M23: 1 | N23: 3.101596137e-06 | O23: 1.000000001 | P23: 3.999337679e-05 | Q23: 88.4199955 | R23: -69.87891748 | S23: 110.1210825 | U23: 1000000000 | V23: 6.30964161 | X23: 88.44358774 | Y23: -69.84073363 | AA23: 61.74462663 | AB23: -0.0381838435 | AD23: 0 | AE23: 0
A24: 2.7542 | B24: 0.0027542 | C24: 1.000000238 | D24: 0.0006903283964 | E24: 1 | F24: 3.461029791e-06 | G24: 1 | H24: 0 | I24: 3.153579269 | J24: 1.248126211 | K24: 1.000000125 | L24: 0.0004999457116 | M24: 1 | N24: 3.400778726e-06 | O24: 1.000000001 | P24: 4.385117176e-05 | Q24: 87.70755785 | R24: -71.52578145 | S24: 108.4742185 | U24: 1000000000 | V24: 7.58561764 | X24: 87.73115045 | Y24: -71.48391436 | AA24: 61.74462628 | AB24: -0.04186708831 | AD24: 0 | AE24: 0
A25: 3.02 | B25: 0.00302 | C25: 1.000000286 | D25: 0.00075695 | E25: 1 | F25: 3.795043921e-06 | G25: 1 | H25: 0 | I25: 3.428541698 | J25: 1.274824879 | K25: 1.00000015 | L25: 0.0005481940395 | M25: 1 | N25: 3.728978197e-06 | O25: 1.000000001 | P25: 4.808312348e-05 | Q25: 86.98144397 | R25: -73.0567973 | S25: 106.9432027 | U25: 1000000000 | V25: 9.1204 | X25: 87.00503699 | Y25: -73.01088974 | AA25: 61.74462586 | AB25: -0.0459075604 | AD25: 0 | AE25: 0
A26: 3.3113 | B26: 0.0033113 | C26: 1.000000344 | D26: 0.000829963059 | E26: 1 | F26: 4.161102297e-06 | G26: 1 | H26: 0 | I26: 3.732255427 | J26: 1.299547821 | K26: 1.000000181 | L26: 0.0006010711544 | M26: 1 | N26: 4.088664075e-06 | O26: 1.000000001 | P26: 5.272107509e-05 | Q26: 86.24420528 | R26: -74.47473658 | S26: 105.5252634 | U26: 1000000000 | V26: 10.96470769 | X26: 86.2677988 | Y26: -74.42440092 | AA26: 61.74462535 | AB26: -0.05033566199 | AD26: 0 | AE26: 0
A27: 3.6308 | B27: 0.0036308 | C27: 1.000000414 | D27: 0.0009100443134 | E27: 1 | F27: 4.562597837e-06 | G27: 1 | H27: 0 | I27: 4.067582462 | J27: 1.322403659 | K27: 1.000000217 | L27: 0.0006590671622 | M27: 1 | N27: 4.483170212e-06 | O27: 1.000000002 | P27: 5.780801479e-05 | Q27: 85.49690484 | R27: -75.78583612 | S27: 104.2141639 | U27: 1000000000 | V27: 13.18270864 | X27: 85.52049896 | Y27: -75.73064368 | AA27: 61.74462475 | AB27: -0.05519243606 | AD27: 0 | AE27: 0
A28: 3.9811 | B28: 0.0039811 | C28: 1.000000498 | D28: 0.0009978454373 | E28: 1 | F28: 5.0027978e-06 | G28: 1 | H28: 0 | I28: 4.437289607 | J28: 1.343480929 | K28: 1.000000261 | L28: 0.0007226540164 | M28: 1 | N28: 4.915706987e-06 | O28: 1.000000002 | P28: 6.338533867e-05 | Q28: 84.74127632 | R28: -76.99518123 | S28: 103.0048188 | U28: 1000000000 | V28: 15.84915721 | X28: 84.76487118 | Y28: -76.93466383 | AA28: 61.74462402 | AB28: -0.06051740542 | AD28: 0 | AE28: 0
A29: 4.3652 | B29: 0.0043652 | C29: 1.000000599 | D29: 0.001094118362 | E29: 1 | F29: 5.485472094e-06 | G29: 1 | H29: 0 | I29: 4.844571991 | J29: 1.362885078 | K29: 1.000000314 | L29: 0.0007923762782 | M29: 1 | N29: 5.389978684e-06 | O29: 1.000000002 | P29: 6.950081141e-05 | Q29: 83.97852311 | R29: -78.10882818 | S29: 101.8911718 | U29: 1000000000 | V29: 19.05497104 | X29: 84.00211885 | Y29: -78.042472 | AA29: 61.74462314 | AB29: -0.06635617326 | AD29: 0 | AE29: 0
A30: 4.7863 | B30: 0.0047863 | C30: 1.00000072 | D30: 0.001199665145 | E30: 1 | F30: 6.01464196e-06 | G30: 1 | H30: 0 | I30: 5.292845041 | J30: 1.380719534 | K30: 1.000000377 | L30: 0.0008688148126 | M30: 1 | N30: 5.909936538e-06 | O30: 1.000000003 | P30: 7.620538201e-05 | Q30: 83.2098473 | R30: -79.13271866 | S30: 100.8672813 | U30: 1000000000 | V30: 22.90866769 | X30: 83.23344409 | Y30: -79.05996128 | AA30: 61.74462208 | AB30: -0.07275738291 | AD30: 0 | AE30: 0
A31: 5.2481 | B31: 0.0052481 | C31: 1.000000865 | D31: 0.001315413166 | E31: 1 | F31: 6.594956954e-06 | G31: 1 | H31: 0 | I31: 5.786065083 | J31: 1.397095128 | K31: 1.000000454 | L31: 0.0009526412439 | M31: 1 | N31: 6.480149165e-06 | O31: 1.000000003 | P31: 8.355796025e-05 | Q31: 82.43596399 | R31: -80.07322073 | S31: 99.92677927 | U31: 1000000000 | V31: 27.54255361 | X31: 82.45956205 | Y31: -79.99344346 | AA31: 61.74462081 | AB31: -0.07977727811 | AD31: 0 | AE31: 0
A32: 5.7544 | B32: 0.0057544 | C32: 1.00000104 | D32: 0.001442314865 | E32: 1 | F32: 7.231192298e-06 | G32: 1 | H32: 0 | I32: 6.328304283 | J32: 1.412110973 | K32: 1.000000546 | L32: 0.001044545348 | M32: 1 | N32: 7.105308655e-06 | O32: 1.000000004 | P32: 9.161904808e-05 | Q32: 81.65788249 | R32: -80.93603175 | S32: 99.06396825 | U32: 1000000000 | V32: 33.11311936 | X32: 81.68148208 | Y32: -80.84855813 | AA32: 61.74461929 | AB32: -0.08747362256 | AD32: 0 | AE32: 0
A33: 6.3096 | B33: 0.0063096 | C33: 1.000001251 | D33: 0.001581473063 | E33: 1 | F33: 7.928877194e-06 | G33: 1 | H33: 0 | I33: 6.924285336 | J33: 1.425870296 | K33: 1.000000656 | L33: 0.00114532581 | M33: 1 | N33: 7.790847958e-06 | O33: 1.000000005 | P33: 0.0001004587004 | Q33: 80.87612956 | R33: -81.72708754 | S33: 98.27291246 | U33: 1000000000 | V33: 39.81105216 | X33: 80.89973098 | Y33: -81.63117424 | AA33: 61.74461745 | AB33: -0.09591330039 | AD33: 0 | AE33: 0
A34: 6.9183 | B34: 0.0069183 | C34: 1.000001503 | D34: 0.001734040707 | E34: 1 | F34: 8.693792172e-06 | G34: 1 | H34: 0 | I34: 7.578954078 | J34: 1.438466125 | K34: 1.000000789 | L34: 0.001255817619 | M34: 1 | N34: 8.542446974e-06 | O34: 1.000000006 | P34: 0.0001101501563 | Q34: 80.09144211 | R34: -82.45174068 | S34: 97.54825932 | U34: 1000000000 | V34: 47.86287489 | X34: 80.11504574 | Y34: -82.34657444 | AA34: 61.74461525 | AB34: -0.1051662356 | AD34: 0 | AE34: 0
A35: 7.5858 | B35: 0.0075858 | C35: 1.000001808 | D35: 0.001901346188 | E35: 1 | F35: 9.532597409e-06 | G35: 1 | H35: 0 | I35: 8.298016879 | J35: 1.44999199 | K35: 1.000000948 | L35: 0.001376982826 | M35: 1 | N35: 9.366649937e-06 | O35: 1.000000007 | P35: 0.0001207778002 | Q35: 79.30414008 | R35: -83.11537579 | S35: 96.88462421 | U35: 1000000000 | V35: 57.54436164 | X35: 79.32774636 | Y35: -83.00006279 | AA35: 61.74461259 | AB35: -0.1153129927 | AD35: 0 | AE35: 0
A36: 8.3176 | B36: 0.0083176 | C36: 1.000002173 | D36: 0.002084768014 | E36: 1 | F36: 1.045220441e-05 | G36: 1 | H36: 0 | I36: 9.087403234 | J36: 1.46053058 | K36: 1.00000114 | L36: 0.00150981978 | M36: 1 | N36: 1.027024803e-05 | O36: 1.000000009 | P36: 0.0001324292006 | Q36: 78.51482884 | R36: -83.72275752 | S36: 96.27724248 | U36: 1000000000 | V36: 69.18246976 | X36: 78.53843831 | Y36: -83.59632034 | AA36: 61.74460941 | AB36: -0.1264371757 | AD36: 0 | AE36: 0
A37: 9.1201 | B37: 0.0091201 | C37: 1.000002613 | D37: 0.002285910261 | E37: 1 | F37: 1.146065565e-05 | G37: 1 | H37: 0 | I37: 9.954020318 | J37: 1.470164647 | K37: 1.00000137 | L37: 0.001655490196 | M37: 1 | N37: 1.126114373e-05 | O37: 1.00000001 | P37: 0.0001452062555 | Q37: 77.72365254 | R37: -84.27865824 | S37: 95.72134176 | U37: 1000000000 | V37: 83.17622401 | X37: 77.74726584 | Y37: -84.14002217 | AA37: 61.74460557 | AB37: -0.1386360689 | AD37: 0 | AE37: 0
A38: 10 | B38: 0.01 | C38: 1.000003141 | D38: 0.002506452184 | E38: 1 | F38: 1.25663706e-05 | G38: 1 | H38: 0 | I38: 10.90510629 | J38: 1.478967161 | K38: 1.000001647 | L38: 0.001815210239 | M38: 1 | N38: 1.234760992e-05 | O38: 1.000000013 | P38: 0.0001592156395 | Q38: 76.93102275 | R38: -84.78729154 | S38: 95.21270846 | U38: 1000000000 | V38: 100 | X38: 76.95464065 | Y38: -84.63528002 | AA38: 61.74460097 | AB38: -0.152011516 | AD38: 0 | AE38: 0
A39: 10.965 | B39: 0.010965 | C39: 1.000003777 | D39: 0.002748323655 | E39: 1 | F39: 1.377902536e-05 | G39: 1 | H39: 0 | I39: 11.94898637 | J39: 1.487009219 | K39: 1.000001981 | L39: 0.001990377585 | M39: 1 | N39: 1.353915428e-05 | O39: 1.000000015 | P39: 0.0001745799484 | Q39: 76.13699684 | R39: -85.25276852 | S39: 94.74723148 | U39: 1000000000 | V39: 120.231225 | X39: 76.16062029 | Y39: -85.08608796 | AA39: 61.74459542 | AB39: -0.1666805606 | AD39: 0 | AE39: 0
A40: 12.023 | B40: 0.012023 | C40: 1.000004541 | D40: 0.003013504649 | E40: 1 | F40: 1.510854737e-05 | G40: 1 | H40: 0 | I40: 13.09420802 | J40: 1.494352252 | K40: 1.000002381 | L40: 0.002182426203 | M40: 1 | N40: 1.484553141e-05 | O40: 1.000000018 | P40: 0.0001914249626 | Q40: 75.34203025 | R40: -85.67864732 | S40: 94.32135268 | U40: 1000000000 | V40: 144.552529 | X40: 75.36566036 | Y40: -85.49588403 | AA40: 61.74458876 | AB40: -0.1827632846 | AD40: 0 | AE40: 0
A41: 13.183 | B41: 0.013183 | C41: 1.000005459 | D41: 0.003304250808 | E41: 1 | F41: 1.656624636e-05 | G41: 1 | H41: 0 | I41: 14.35051421 | J41: 1.501055893 | K41: 1.000002863 | L41: 0.002392989719 | M41: 1 | N41: 1.627785416e-05 | O41: 1.000000022 | P41: 0.0002098939762 | Q41: 74.54626189 | R41: -86.06838853 | S41: 93.93161147 | U41: 1000000000 | V41: 173.791489 | X41: 74.56990001 | Y41: -85.86799204 | AA41: 61.74458075 | AB41: -0.200396489 | AD41: 0 | AE41: 0
A42: 14.454 | B42: 0.014454 | C42: 1.000006562 | D42: 0.003622817723 | E42: 1 | F42: 1.816343206e-05 | G42: 1 | H42: 0 | I42: 15.72765235 | J42: 1.507171128 | K42: 1.000003442 | L42: 0.002623701741 | M42: 1 | N42: 1.784723538e-05 | O42: 1.000000026 | P42: 0.0002301302832 | Q42: 73.75032854 | R42: -86.42495722 | S42: 93.57504278 | U42: 1000000000 | V42: 208.918116 | X42: 73.77397628 | Y42: -86.20524025 | AA42: 61.74457113 | AB42: -0.2197169717 | AD42: 0 | AE42: 0
A43: 15.849 | B43: 0.015849 | C43: 1.00000789 | D43: 0.003972463489 | E43: 1 | F43: 1.991644076e-05 | G43: 1 | H43: 0 | I43: 17.239709 | J43: 1.51275813 | K43: 1.000004138 | L43: 0.002876921931 | M43: 1 | N43: 1.956972697e-05 | O43: 1.000000032 | P43: 0.0002523408638 | Q43: 72.95300241 | R43: -86.75186447 | S43: 93.24813553 | U43: 1000000000 | V43: 251.190801 | X43: 72.97666173 | Y43: -86.51094214 | AA43: 61.74455955 | AB43: -0.2409223309 | AD43: 0 | AE43: 0
A44: 17.378 | B44: 0.017378 | C44: 1.000009486 | D44: 0.00435569418 | E44: 1 | F44: 2.183783883e-05 | G44: 1 | H44: 0 | I44: 18.89752426 | J44: 1.517854615 | K44: 1.000004975 | L44: 0.003154465356 | M44: 1 | N44: 2.145767652e-05 | O44: 1.000000038 | P44: 0.0002766849336 | Q44: 72.15549614 | R44: -87.05131987 | S44: 92.94868013 | U44: 1000000000 | V44: 301.994884 | X44: 72.17916938 | Y44: -86.78715531 | AA44: 61.74454563 | AB44: -0.2641645566 | AD44: 0 | AE44: 0
A45: 19.055 | B45: 0.019055 | C45: 1.000011405 | D45: 0.004776018323 | E45: 1 | F45: 2.394521917e-05 | G45: 1 | H45: 0 | I45: 20.71627794 | J45: 1.522506341 | K45: 1.000005982 | L45: 0.003458873116 | M45: 1 | N45: 2.352837071e-05 | O45: 1.000000046 | P45: 0.0003033853943 | Q45: 71.3573518 | R45: -87.32601342 | S45: 92.67398658 | U45: 1000000000 | V45: 363.093025 | X45: 71.38104177 | Y45: -87.03635699 | AA45: 61.7445289 | AB45: -0.2896564358 | AD45: 0 | AE45: 0
A46: 20.893 | B46: 0.020893 | C46: 1.000013712 | D46: 0.005236693645 | E46: 1 | F46: 2.625491809e-05 | G46: 1 | H46: 0 | I46: 22.7100691 | J46: 1.526748753 | K46: 1.000007192 | L46: 0.003792504736 | M46: 1 | N46: 2.579786141e-05 | O46: 1.000000055 | P46: 0.0003326492262 | Q46: 70.55920766 | R46: -87.57803918 | S46: 92.42196082 | U46: 1000000000 | V46: 436.517449 | X46: 70.58291775 | Y46: -87.26044363 | AA46: 61.74450879 | AB46: -0.3175955455 | AD46: 0 | AE46: 0
A47: 22.909 | B47: 0.022909 | C47: 1.000016485 | D47: 0.005741980226 | E47: 1 | F47: 2.87882984e-05 | G47: 1 | H47: 0 | I47: 24.89733887 | J47: 1.530620585 | K47: 1.000008646 | L47: 0.004158445735 | M47: 1 | N47: 2.828713957e-05 | O47: 1.000000066 | P47: 0.0003647470955 | Q47: 69.76050661 | R47: -87.80969924 | S47: 92.19030076 | U47: 1000000000 | V47: 524.822281 | X47: 69.78424089 | Y47: -87.46145898 | AA47: 61.7444846 | AB47: -0.3482402546 | AD47: 0 | AE47: 0
A48: 25.119 | B48: 0.025119 | C48: 1.000019819 | D48: 0.006295887237 | E48: 1 | F48: 3.15654663e-05 | G48: 1 | H48: 0 | I48: 27.29544675 | J48: 1.534151979 | K48: 1.000010395 | L48: 0.00455960001 | M48: 1 | N48: 3.101596136e-05 | O48: 1.000000079 | P48: 0.000399933747 | Q48: 68.9617472 | R48: -88.02279861 | S48: 91.97720139 | U48: 1000000000 | V48: 630.964161 | X48: 68.98551055 | Y48: -87.64096489 | AA48: 61.74445552 | AB48: -0.3818337152 | AD48: 0 | AE48: 0
A49: 27.542 | B49: 0.027542 | C49: 1.000023827 | D49: 0.006903175404 | E49: 1.000000001 | F49: 3.461029789e-05 | G49: 1 | H49: 0 | I49: 29.92500995 | J49: 1.53737324 | K49: 1.000012497 | L49: 0.00499941588 | M49: 1.000000001 | N49: 3.400778724e-05 | O49: 1.000000096 | P49: 0.00043851169 | Q49: 68.16284857 | R49: -88.21916602 | S49: 91.78083398 | U49: 1000000000 | V49: 758.561764 | X49: 68.18664688 | Y49: -87.80050136 | AA49: 61.74442057 | AB49: -0.4186646615 | AD49: 0 | AE49: 0
A50: 30.2 | B50: 0.0302 | C50: 1.000028648 | D50: 0.00756935688 | E50: 1.000000001 | F50: 3.795043919e-05 | G50: 1 | H50: 0 | I50: 32.80990426 | J50: 1.540313004 | K50: 1.000015026 | L50: 0.005481886031 | M50: 1.000000001 | N50: 3.728978196e-05 | O50: 1.000000115 | P50: 0.0004808311985 | Q50: 67.3634153 | R50: -88.4005494 | S50: 91.5994506 | U50: 1000000000 | V50: 912.04 | X50: 67.38725564 | Y50: -87.941482 | AA50: 61.74437853 | AB50: -0.4590674017 | AD50: 0 | AE50: 0
A51: 33.113 | B51: 0.033113 | C51: 1.000034441 | D51: 0.008299441934 | E51: 1.000000001 | F51: 4.161102294e-05 | G51: 1 | H51: 0 | I51: 35.97183701 | J51: 1.542993219 | K51: 1.000018064 | L51: 0.006010639883 | M51: 1.000000001 | N51: 4.088664072e-05 | O51: 1.000000138 | P51: 0.000527210703 | Q51: 66.5642381 | R51: -88.56830353 | S51: 91.43169647 | U51: 1000000000 | V51: 1096.470769 | X51: 66.58812896 | Y51: -88.06495772 | AA51: 61.74432802 | AB51: -0.5033458079 | AD51: 0 | AE51: 0
A52: 36.308 | B52: 0.036308 | C52: 1.000041408 | D52: 0.009100194431 | E52: 1.000000001 | F52: 4.562597834e-05 | G52: 1 | H52: 0 | I52: 39.44011547 | J52: 1.545438714 | K52: 1.000021718 | L52: 0.006590577152 | M52: 1.000000001 | N52: 4.483170209e-05 | O52: 1.000000166 | P52: 0.0005780800848 | Q52: 65.76469787 | R52: -88.72398243 | S52: 91.27601757 | U52: 1000000000 | V52: 1318.270864 | X52: 65.78864948 | Y52: -88.17207232 | AA52: 61.74426727 | AB52: -0.5519101074 | AD52: 0 | AE52: 0
A53: 39.811 | B53: 0.039811 | C53: 1.000049784 | D53: 0.00997812652 | E53: 1.000000001 | F53: 5.002797795e-05 | G53: 1 | H53: 0 | I53: 43.24296365 | J53: 1.547669116 | K53: 1.000026111 | L53: 0.007226415628 | M53: 1.000000001 | N53: 4.915706983e-05 | O53: 1.0000002 | P53: 0.0006338533035 | Q53: 64.96511753 | R53: -88.86883715 | S53: 91.13116285 | U53: 1000000000 | V53: 1584.915721 | X53: 64.98914217 | Y53: -88.26368189 | AA53: 61.74419423 | AB53: -0.6051552649 | AD53: 0 | AE53: 0
A54: 43.652 | B54: 0.043652 | C54: 1.000059853 | D54: 0.01094075143 | E54: 1.000000002 | F54: 5.485472089e-05 | G54: 1 | H54: 0 | I54: 47.41294947 | J54: 1.549703478 | K54: 1.000031393 | L54: 0.007923598613 | M54: 1.000000001 | N54: 5.389978679e-05 | O54: 1.00000024 | P54: 0.0006950080044 | Q54: 64.16544515 | R54: -89.00410534 | S54: 90.99589466 | U54: 1000000000 | V54: 1905.497104 | X54: 64.1895576 | Y54: -88.34056838 | AA54: 61.74410643 | AB54: -0.6635369636 | AD54: 0 | AE54: 0
A55: 47.863 | B55: 0.047863 | C55: 1.000071957 | D55: 0.01199608174 | E55: 1.000000002 | F55: 6.014641953e-05 | G55: 1 | H55: 0 | I55: 51.98481377 | J55: 1.551558753 | K55: 1.000037741 | L55: 0.008687931716 | M55: 1.000000002 | N55: 5.909936532e-05 | O55: 1.000000288 | P55: 0.0007620536754 | Q55: 63.36580435 | R55: -89.13091383 | S55: 90.86908617 | U55: 1000000000 | V55: 2290.866769 | X55: 63.39002235 | Y55: -88.40337265 | AA55: 61.74400088 | AB55: -0.7275411786 | AD55: 0 | AE55: 0
A56: 52.481 | B56: 0.052481 | C56: 1.000086512 | D56: 0.01315338064 | E56: 1.000000002 | F56: 6.594956945e-05 | G56: 1 | H56: 0 | I56: 56.9987273 | J56: 1.553251175 | K56: 1.000045375 | L56: 0.009526127154 | M56: 1.000000002 | N56: 6.480149156e-05 | O56: 1.000000347 | P56: 0.0008355794119 | Q56: 62.56597041 | R56: -89.25037268 | S56: 90.74962732 | U56: 1000000000 | V56: 2754.255361 | X56: 62.59031533 | Y56: -88.45264294 | AA56: 61.74387396 | AB56: -0.7977297395 | AD56: 0 | AE56: 0
A57: 57.544 | B57: 0.057544 | C57: 1.000104008 | D57: 0.01442215864 | E57: 1.000000003 | F57: 7.231192285e-05 | G57: 1 | H57: 0 | I57: 62.49594794 | J57: 1.554794607 | K57: 1.000054552 | L57: 0.01044507741 | M57: 1.000000003 | N57: 7.105308643e-05 | O57: 1.000000417 | P57: 0.0009161902295 | Q57: 61.76616353 | R57: -89.36346074 | S57: 90.63653926 | U57: 1000000000 | V57: 3311.311936 | X57: 61.790661 | Y57: -88.48878125 | AA57: 61.7437214 | AB57: -0.8746794877 | AD57: 0 | AE57: 0
A58: 63.096 | B58: 0.063096 | C58: 1.000125045 | D58: 0.01581342556 | E58: 1.000000003 | F58: 7.928877177e-05 | G58: 1 | H58: 0 | I58: 68.52424929 | J58: 1.556202435 | K58: 1.000065586 | L58: 0.01145276234 | M58: 1.000000003 | N58: 7.790847943e-05 | O58: 1.000000501 | P58: 0.001004586673 | Q58: 60.9662274 | R58: -89.47115877 | S58: 90.52884123 | U58: 1000000000 | V58: 3981.105216 | X58: 60.9909083 | Y58: -88.51210056 | AA58: 61.74353797 | AB58: -0.9590582098 | AD58: 0 | AE58: 0
A59: 69.183 | B59: 0.069183 | C59: 1.000150334 | D59: 0.01733868674 | E59: 1.000000004 | F59: 8.69379215e-05 | G59: 1 | H59: 0 | I59: 75.13357766 | J59: 1.557486305 | K59: 1.000078851 | L59: 0.01255752268 | M59: 1.000000004 | N59: 8.542446954e-05 | O59: 1.000000603 | P59: 0.001101501127 | Q59: 60.16632644 | R59: -89.57435722 | S59: 90.42564278 | U59: 1000000000 | V59: 4786.287489 | X59: 60.19122785 | Y59: -88.52279346 | AA59: 61.74331747 | AB59: -1.051563763 | AD59: 0 | AE59: 0
A60: 75.858 | B60: 0.075858 | C60: 1.00018074 | D60: 0.01901119408 | E60: 1.000000005 | F60: 9.532597381e-05 | G60: 1 | H60: 0 | I60: 82.38148101 | J60: 1.558657378 | K60: 1.0000948 | L60: 0.01376896677 | M60: 1.000000004 | N60: 9.36664991e-05 | O60: 1.000000725 | P60: 0.001207777426 | Q60: 59.36628932 | R60: -89.67395255 | S60: 90.32604745 | U60: 1000000000 | V60: 5754.436164 | X60: 59.39145584 | Y60: -88.52095259 | AA60: 61.74305236 | AB60: -1.152999959 | AD60: 0 | AE60: 0
A61: 83.176 | B61: 0.083176 | C61: 1.00021729 | D61: 0.0208446908 | E61: 1.000000005 | F61: 0.0001045220437 | G61: 1 | H61: 0 | I61: 90.32767989 | J61: 1.559725297 | K61: 1.000113971 | L61: 0.01509706219 | M61: 1.000000005 | N61: 0.00010270248 | O61: 1.000000871 | P61: 0.001324291247 | Q61: 58.56631195 | R61: -89.77076373 | S61: 90.22923627 | U61: 1000000000 | V61: 6918.246976 | X61: 58.59179714 | Y61: -88.5065633 | AA61: 61.74273369 | AB61: -1.264200437 | AD61: 0 | AE61: 0
A62: 91.201 | B62: 0.091201 | C62: 1.000261236 | D62: 0.02285516207 | E62: 1.000000007 | F62: 0.000114606556 | G62: 1 | H62: 0 | I62: 99.04166825 | J62: 1.560699395 | K62: 1.000137023 | L62: 0.01655340496 | M62: 1.000000006 | N62: 0.0001126114368 | O62: 1.000001047 | P62: 0.001452061555 | Q62: 57.76618716 | R62: -89.86563528 | S62: 90.13436472 | U62: 1000000000 | V62: 8317.622401 | X62: 57.79205549 | Y62: -88.47950043 | AA62: 61.74235055 | AB62: -1.386134855 | AD62: 0 | AE62: 0
A63: 100 | B63: 0.1 | C63: 1.000314067 | D63: 0.02505932751 | E63: 1.000000008 | F63: 0.0001256637053 | G63: 1 | H63: 0 | I63: 108.5961984 | J63: 1.561587771 | K63: 1.000164736 | L63: 0.01815012902 | M63: 1.000000008 | N63: 0.0001234760986 | O63: 1.000001259 | P63: 0.001592155076 | Q63: 56.96603374 | R63: -89.95935507 | S63: 90.04064493 | U63: 1000000000 | V63: 10000 | X63: 56.99236265 | Y63: -88.4395376 | AA63: 61.74188996 | AB63: -1.519817471 | AD63: 0 | AE63: 0
A64: 109.65 | B64: 0.10965 | C64: 1.000377595 | D64: 0.02747638921 | E64: 1.000000009 | F64: 0.0001377902528 | G64: 1 | H64: 0 | I64: 119.0748821 | J64: 1.562398151 | K64: 1.000198061 | L64: 0.01990117439 | M64: 1.000000009 | N64: 0.000135391542 | O64: 1.000001514 | P64: 0.001745797745 | Q64: 56.16565857 | R64: -90.05273734 | S64: 89.94726266 | U64: 1000000000 | V64: 12023.1225 | X64: 56.19254129 | Y64: -88.38632415 | AA64: 61.74133616 | AB64: -1.666413182 | AD64: 0 | AE64: 0
A65: 120.23 | B65: 0.12023 | C65: 1.00045396 | D65: 0.03012602051 | E65: 1.000000011 | F65: 0.0001510854726 | G65: 1 | H65: 0 | I65: 130.5635032 | J65: 1.563137144 | K65: 1.000238122 | L65: 0.0218208327 | M65: 1.000000011 | N65: 0.000148455313 | O65: 1.00000182 | P65: 0.001914247334 | Q65: 55.36530809 | R65: -90.14654104 | S65: 89.85345896 | U65: 1000000000 | V65: 14455.2529 | X65: 55.39285647 | Y65: -88.31942548 | AA65: 61.74067049 | AB65: -1.827115564 | AD65: 0 | AE65: 0
A66: 131.83 | B66: 0.13183 | C66: 1.000545759 | D66: 0.03303061072 | E66: 1.000000014 | F66: 0.0001656624621 | G66: 1 | H66: 0 | I66: 143.1597912 | J66: 1.563811068 | K66: 1.00028628 | L66: 0.02392537667 | M66: 1.000000013 | N66: 0.0001627785402 | O66: 1.000002188 | P66: 0.00209893674 | Q66: 54.56494089 | R66: -90.24156074 | S66: 89.75843926 | U66: 1000000000 | V66: 17379.1489 | X66: 54.5932894 | Y66: -88.23827769 | AA66: 61.73987036 | AB66: -2.003283048 | AD66: 0 | AE66: 0
A67: 144.54 | B67: 0.14454 | C67: 1.000656031 | D67: 0.03621249839 | E67: 1.000000016 | F67: 0.0001816343187 | G67: 1 | H67: 0 | I67: 156.9614756 | J67: 1.564425294 | K67: 1.000344133 | L67: 0.02623105971 | M67: 1.000000016 | N67: 0.000178472352 | O67: 1.000002631 | P67: 0.002301298849 | Q67: 53.76504182 | R67: -90.33853465 | S67: 89.66146535 | U67: 1000000000 | V67: 20891.8116 | X67: 53.79435139 | Y67: -88.14226349 | AA67: 61.73890931 | AB67: -2.196271158 | AD67: 0 | AE67: 0
A68: 158.49 | B68: 0.15849 | C68: 1.000788721 | D68: 0.03970396751 | E68: 1.00000002 | F68: 0.000199164405 | G68: 1 | H68: 0 | I68: 172.1097226 | J68: 1.564986047 | K68: 1.000413751 | L68: 0.02876136544 | M68: 1.000000019 | N68: 0.0001956972672 | O68: 1.000003163 | P68: 0.002523403387 | Q68: 52.96424333 | R68: -90.43844223 | S68: 89.56155777 | U68: 1000000000 | V68: 25119.0801 | X68: 52.99470919 | Y68: -88.03040337 | AA68: 61.73775302 | AB68: -2.408038855 | AD68: 0 | AE68: 0
A69: 173.78 | B69: 0.17378 | C69: 1.000948166 | D69: 0.04352970254 | E69: 1.000000024 | F69: 0.0002183783848 | G69: 1 | H69: 0 | I69: 188.7131218 | J69: 1.565497253 | K69: 1.000497412 | L69: 0.03153430133 | M69: 1.000000023 | N69: 0.000214576762 | O69: 1.000003803 | P69: 0.002766842414 | Q69: 52.16364651 | R69: -90.541982 | S69: 89.458018 | U69: 1000000000 | V69: 30199.4884 | X69: 52.19550161 | Y69: -87.90189753 | AA69: 61.73636377 | AB69: -2.640084475 | AD69: 0 | AE69: 0
A70: 190.55 | B70: 0.19055 | C70: 1.001139885 | D70: 0.04772428095 | E70: 1.000000029 | F70: 0.0002394521872 | G70: 1 | H70: 0 | I70: 206.9236989 | J70: 1.565963609 | K70: 1.000598016 | L70: 0.03457508507 | M70: 1.000000028 | N70: 0.0002352837028 | O70: 1.000004572 | P70: 0.003033844818 | Q70: 51.36268699 | R70: -90.65008685 | S70: 89.34991315 | U70: 1000000000 | V70: 36309.3025 | X70: 51.39621225 | Y70: -87.75558007 | AA70: 61.73469362 | AB70: -2.894506786 | AD70: 0 | AE70: 0
A71: 208.93 | B71: 0.20893 | C71: 1.001370234 | D71: 0.05231962389 | E71: 1.000000034 | F71: 0.0002625491749 | G71: 1 | H71: 0 | I71: 226.8826214 | J71: 1.566388747 | K71: 1.000718903 | L71: 0.03790706195 | M71: 1.000000033 | N71: 0.0002579786084 | O71: 1.000005497 | P71: 0.003326480233 | Q71: 50.56191004 | R71: -90.76357476 | S71: 89.23642524 | U71: 1000000000 | V71: 43651.7449 | X71: 50.59744156 | Y71: -87.59033081 | AA71: 61.73268736 | AB71: -3.173243956 | AD71: 0 | AE71: 0
A72: 229.09 | B72: 0.22909 | C72: 1.001647196 | D72: 0.05735745078 | E72: 1.000000041 | F72: 0.0002878829761 | G72: 1 | H72: 0 | I72: 248.7744928 | J72: 1.566776611 | K72: 1.00086427 | L72: 0.04156075126 | M72: 1.00000004 | N72: 0.0002828713882 | O72: 1.000006609 | P72: 0.003647455098 | Q72: 49.76066762 | R72: -90.88346822 | S72: 89.11653178 | U72: 1000000000 | V72: 52482.2281 | X72: 49.79861078 | Y72: -87.40463906 | AA72: 61.73027572 | AB72: -3.478829161 | AD72: 0 | AE72: 0
A73: 251.19 | B73: 0.25119 | C73: 1.001980002 | D73: 0.06287671237 | E73: 1.00000005 | F73: 0.0003156546526 | G73: 1 | H73: 0 | I73: 272.7730583 | J73: 1.567130267 | K73: 1.001038972 | L73: 0.04556475683 | M73: 1.000000048 | N73: 0.0003101596038 | O73: 1.000007945 | P73: 0.003999316567 | Q73: 48.95937407 | R73: -91.01068148 | S73: 88.98931852 | U73: 1000000000 | V73: 63096.4161 | X73: 49.00021424 | Y73: -87.19705294 | AA73: 61.7273787 | AB73: -3.813628534 | AD73: 0 | AE73: 0
A74: 275.42 | B74: 0.27542 | C74: 1.002379935 | D74: 0.06892350362 | E74: 1.00000006 | F74: 0.0003461029652 | G74: 1 | H74: 0 | I74: 299.0846403 | J74: 1.567452785 | K74: 1.001248949 | L74: 0.04995298457 | M74: 1.000000058 | N74: 0.0003400778594 | O74: 1.000009552 | P74: 0.004385089346 | Q74: 48.1578629 | R74: -91.14626187 | S74: 88.85373813 | U74: 1000000000 | V74: 75856.1764 | X74: 48.20218316 | Y74: -86.96581913 | AA74: 61.72389862 | AB74: -4.180442744 | AD74: 0 | AE74: 0
A75: 302 | B75: 0.302 | C75: 1.002860776 | D75: 0.07555093865 | E75: 1.000000072 | F75: 0.0003795043739 | G75: 1 | H75: 0 | I75: 327.9481388 | J75: 1.567747059 | K75: 1.001501457 | L75: 0.05476459441 | M75: 1.00000007 | N75: 0.0003728978025 | O75: 1.000011484 | P75: 0.004808275659 | Q75: 47.35564954 | R75: -91.29137513 | S75: 88.70862487 | U75: 1000000000 | V75: 91204 | X75: 47.40415209 | Y75: -86.70887529 | AA75: 61.71971632 | AB75: -4.582499831 | AD75: 0 | AE75: 0
A76: 331.13 | B76: 0.33113 | C76: 1.003438284 | D76: 0.08280653839 | E76: 1.000000087 | F76: 0.0004161102057 | G76: 1 | H76: 0 | I76: 359.5807361 | J76: 1.568015307 | K76: 1.001804804 | L76: 0.06003489286 | M76: 1.000000084 | N76: 0.0004088663847 | O76: 1.000013807 | P76: 0.005272059146 | Q76: 46.55343451 | R76: -91.44703026 | S76: 88.55296974 | U76: 1000000000 | V76: 109647.0769 | X76: 46.60695754 | Y76: -86.42433971 | AA76: 61.71469585 | AB76: -5.022690551 | AD76: 0 | AE76: 0
A77: 363.08 | B77: 0.36308 | C77: =SQRT(1+(A77/pole1)^2) -> 1.004132367 | D77: =ATAN(A77/pole1) -> 0.09075447025 | E77: =SQRT(1+(A77/Zero1)^2) -> 1.000000104 | F77: =ATAN(A77/Zero1) -> 0.0004562597521 | G77: =IF(VIN_nom>Vout, 1, SQRT(1+(A77/z_RHP)^2)) -> 1 | H77: =IF(VIN_nom>Vout, 0, -ATAN(A77/z_RHP)) -> 0 | I77: =SQRT(1+(A77/Pole2)^2) -> 394.275628 | J77: =ATAN(A77/Pole2) -> 1.568260027 | K77: =SQRT(1+(A77/Zero2)^2) -> 1.002169495 | L77: =ATAN(A77/Zero2) -> 0.06581154742 | M77: =SQRT(1+(A77/pole4)^2) -> 1.0000001 | N77: =ATAN(A77/pole4) -> 0.0004483169911 | O77: =SQRT((1-(V77/pterm2))^2+(A77/pterm1)^2) -> 1.0000166 | P77: =IF((ATAN((A77/pterm1)/(1-A77^2/pterm2))>0),ATAN((A77/pterm1)/(1-A77^2/pterm2)),PI()+ATAN((A77/pterm1)/(1-A77^2/pterm2))) -> 0.005780737723 | Q77: =20*LOG10(((E77*K77*G77)/(C77*I77*O77*M77))*Adc) -> 45.75049534 | R77: =((F77+L77+H77)-(D77+J77+P77+N77))*radconv -> -91.61456184 | S77: =IF(R77>0,R77,R77+180) -> 88.38543816 | U77: 1000000000 | V77: 131827.0864 | X77: =20*LOG10((K77/(I77*M77))*AEA) -> 45.81004847 | Y77: =(L77-(J77+N77))*radconv -> -86.1096436 | AA77: =20*LOG10((E77*G77/(C77*O77))*Acs*Am) -> 61.70866575 | AB77: =(F77+H77-(D77+P77))*radconv -> -5.50491824 | AD77: 0 | AE77: =IF(AD77>0,S75,0) -> 0
A78: 398.11 | B78: =A78/1000 -> 0.39811 | C78: 1.00496615 | D78: 0.09945535769 | E78: 1.000000125 | F78: 0.0005002797382 | G78: 1 | H78: 0 | I78: 432.3151519 | J78: 1.568483197 | K78: 1.002607745 | L78: 0.07214000993 | M78: 1.000000121 | N78: 0.0004915706591 | O78: 1.000019957 | P78: 0.00633844982 | Q78: 44.94704386 | R78: -91.79518912 | S78: 88.20481088 | U78: =IF(Q78<0,A78,1000000000) -> 1000000000 | V78: =A78^2 -> 158491.5721 | X78: 45.01383531 | Y78: -85.76231437 | AA78: 61.70142743 | AB78: -6.032874758 | AD78: =SUM((Q79<0)*(Q78>0))*A78 -> 0 | AE78: 0
A79: 436.52 | B79: 0.43652 | C79: 1.005967673 | D79: 0.1089784007 | E79: 1.00000015 | F79: 0.0005485471544 | G79: 1 | H79: 0 | I79: 474.0250814 | J79: 1.568686732 | K79: 1.00313439 | L79: 0.0790724324 | M79: 1.000000145 | N79: 0.0005389978163 | O79: 1.000023994 | P79: 0.006949970345 | Q79: 44.14290098 | R79: -91.99027184 | S79: 88.00972816 | U79: 1000000000 | V79: 190549.7104 | X79: 44.2183791 | Y79: -85.37949488 | AA79: 61.69274076 | AB79: -6.610776958 | AD79: 0 | AE79: 0
A80: 478.63 | B80: 0.47863 | C80: 1.007170283 | D80: 0.1193959725 | E80: 1.000000181 | F80: 0.0006014641235 | G80: 1 | H80: 0 | I80: 519.7529089 | J80: 1.568872334 | K80: 1.003767102 | L80: 0.08666388256 | M80: 1.000000175 | N80: 0.000590993585 | O80: 1.000028847 | P80: 0.007620392148 | Q80: 43.33804591 | R80: -92.20119046 | S80: 87.79880954 | U80: 1000000000 | V80: 229086.6769 | X80: 43.42394347 | Y80: -84.95815019 | AA80: 61.68232131 | AB80: -7.243040276 | AD80: 0 | AE80: 0
A81: 524.81 | B81: 0.52481 | C81: 1.008614464 | D81: 0.1307904802 | E81: 1.000000217 | F81: 0.0006594955998 | G81: 1 | H81: 0 | I81: 569.9004224 | J81: 1.569041633 | K81: 1.004527381 | L81: 0.09497753002 | M81: 1.00000021 | N81: 0.0006480148258 | O81: 1.000034681 | P81: 0.008355603489 | Q81: 42.53208488 | R81: -92.42947749 | S81: 87.57052251 | U81: 1000000000 | V81: 275425.5361 | X81: 42.63047858 | Y81: -84.49478047 | AA81: 61.66982517 | AB81: -7.934697024 | AD81: 0 | AE81: 0
A82: 575.44 | B82: 0.57544 | C82: 1.010347836 | D82: 0.1432437494 | E82: 1.000000261 | F82: 0.0007231191038 | G82: 1 | H82: 0 | I82: 624.8802693 | J82: 1.56919602 | K82: 1.005440579 | L82: 0.1040771476 | M82: 1.000000252 | N82: 0.000710530746 | O82: 1.000041696 | P82: 0.009161651002 | Q82: 41.72504543 | R82: -92.67659291 | S82: 87.32340709 | U82: 1000000000 | V82: 331131.1936 | X82: 41.83841415 | Y82: -83.98583835 | AA82: 61.65485016 | AB82: -8.690754556 | AD82: 0 | AE82: 0
A83: 630.96 | B83: 0.63096 | C83: 1.012428078 | D83: 0.1568484219 | E83: 1.000000314 | F83: 0.0007928875532 | G83: 1 | H83: 0 | I83: 685.1702519 | J83: 1.569336835 | K83: 1.006537492 | L83: 0.1140357337 | M83: 1.000000303 | N83: 0.0007790846382 | O83: 1.000050129 | P83: 0.01004553546 | Q83: 40.9165441 | R83: -92.94413967 | S83: 87.05586033 | U83: 1000000000 | V83: 398110.5216 | X83: 41.04785092 | Y83: -83.42724938 | AA83: 61.63691206 | AB83: -9.516890284 | AD83: 0 | AE83: 0
A84: 691.83 | B84: 0.69183 | C84: 1.014923166 | D84: 0.1716969104 | E84: 1.000000378 | F84: 0.0008693789982 | G84: 1 | H84: 0 | I84: 751.269891 | J84: 1.569465247 | K84: 1.007854551 | L84: 0.1249278302 | M84: 1.000000365 | N84: 0.0008542444897 | O84: 1.000060268 | P84: 0.01101457458 | Q84: 40.10648477 | R84: -93.23362725 | S84: 86.76637275 | U84: 1000000000 | V84: 478628.7489 | X84: 40.25925878 | Y84: -82.81484202 | AA84: 61.61544487 | AB84: -10.41878522 | AD84: 0 | AE84: 0
A85: 758.58 | B85: 0.75858 | C85: 1.017915154 | D85: 0.1878920928 | E85: 1.000000454 | F85: 0.0009532594522 | G85: 1 | H85: 0 | I85: 823.7547215 | J85: 1.569582373 | K85: 1.009435902 | L85: 0.136837846 | M85: 1.000000439 | N85: 0.0009366647198 | O85: 1.000072458 | P85: 0.0120771986 | Q85: 39.29438969 | R85: -93.54666024 | S85: 86.45333976 | U85: 1000000000 | V85: 575443.6164 | X85: 39.4728372 | Y85: -82.14388154 | AA85: 61.58977137 | AB85: -11.4027787 | AD85: 0 | AE85: 0
A86: 831.76 | B86: 0.83176 | C86: 1.021500222 | D86: 0.2055331749 | E86: 1.000000546 | F86: 0.00104522006 | G86: 1 | H86: 0 | I86: 903.2219967 | J86: 1.569689179 | K86: 1.011333571 | L86: 0.1498502908 | M86: 1.000000527 | N86: 0.001027024442 | O86: 1.000087112 | P86: 0.01324215363 | Q86: 38.4801065 | R86: -93.88463644 | S86: 86.11536356 | U86: 1000000000 | V86: 691824.6976 | X86: 38.68921818 | Y86: -81.40962014 | AA86: 61.55910719 | AB86: -12.4750163 | AD86: 0 | AE86: 0
A87: 912.01 | B87: 0.91201 | C87: 1.025794346 | D87: 0.2247301713 | E87: 1.000000657 | F87: 0.001146065063 | G87: 1 | H87: 0 | I87: 990.3667023 | J87: 1.5697866 | K87: 1.013610639 | L87: 0.1640611876 | M87: 1.000000634 | N87: 0.001126113897 | O87: 1.000104731 | P87: 0.01451961521 | Q87: 37.66302103 | R87: -94.24899327 | S87: 85.75100673 | U87: 1000000000 | V87: 831762.2401 | X87: 37.9087215 | Y87: -80.60665493 | AA87: 61.52251841 | AB87: -13.64233834 | AD87: 0 | AE87: 0
A88: 1000 | B88: 1 | C88: 1.030933212 | D88: 0.2455863291 | E88: 1.00000079 | F88: 0.001256636399 | G88: 1 | H88: 0 | I88: 1085.916402 | J88: 1.569875445 | K88: 1.016341456 | L88: 0.1795660289 | M88: 1.000000762 | N88: 0.001234760365 | O88: 1.000125914 | P88: 0.01592023209 | Q88: 36.84279485 | R88: -94.64083076 | S88: 85.35916924 | U88: 1000000000 | V88: 1000000 | X88: 37.13208273 | Y88: -79.72960843 | AA88: 61.47893099 | AB88: -14.91122232 | AD88: 0 | AE88: 0
A89: 1096.5 | B89: 1.0965 | C89: 1.037079172 | D89: 0.2682109991 | E89: 1.000000949 | F89: 0.001377901664 | G89: 1 | H89: 0 | I89: 1190.707249 | J89: 1.56995649 | K89: 1.01961568 | L89: 0.1964704095 | M89: 1.000000917 | N89: 0.001353914601 | O89: 1.000151386 | P89: 0.01745623905 | Q89: 36.01871125 | R89: -95.06110846 | S89: 84.93889154 | U89: 1000000000 | V89: 1202312.25 | X89: 36.35984659 | Y89: -78.7725293 | AA89: 61.42708354 | AB89: -16.28857916 | AD89: 0 | AE89: 0
A90: 1202.3 | B90: 1.2023 | C90: 1.044419768 | D90: 0.2926961284 | E90: 1.000001141 | F90: 0.001510853588 | G90: 1 | H90: 0 | I90: 1305.597119 | J90: 1.570030394 | K90: 1.023537978 | L90: 0.2148737697 | M90: 1.000001102 | N90: 0.001484552051 | O90: 1.000182006 | P90: 0.01914018171 | Q90: 35.19044739 | R90: -95.51015274 | S90: 84.48984726 | U90: 1000000000 | V90: 1445525.29 | X90: 35.5931104 | Y90: -77.72981379 | AA90: 61.36555586 | AB90: -17.78033895 | AD90: 0 | AE90: =IF(AD90>0,S90,0) -> 0
A91: 1318.3 | B91: 1.3183 | C91: 1.053176874 | D91: 0.3191319316 | E91: 1.000001372 | F91: 0.001656623121 | G91: 1 | H91: 0 | I91: 1431.563334 | J91: 1.57009779 | K91: 1.028233542 | L91: 0.2348824594 | M91: 1.000001325 | N91: 0.001627783979 | O91: 1.000218817 | P91: 0.02098634655 | Q91: 34.3573316 | R91: -95.98789279 | S91: 84.01210721 | U91: 1000000000 | V91: 1737914.89 | X91: 34.8328369 | Y91: -76.59546841 | AA91: 61.29271358 | AB91: -19.39242438 | AD91: 0 | AE91: 0
A92: 1445.4 | B92: 1.4454 | C92: 1.063602008 | D92: 0.3475754936 | E92: 1.00000165 | F92: 0.001816341209 | G92: 1 | H92: 0 | I92: 1569.58322 | J92: 1.570159215 | K92: 1.033846422 | L92: 0.2565874331 | M92: 1.000001593 | N92: 0.001784721644 | O92: 1.000263039 | P92: 0.02300900716 | Q92: 33.51920062 | R92: -96.49323548 | S92: 83.50676452 | U92: 1000000000 | V92: 2089181.16 | X92: 34.08064421 | Y92: -75.36437629 | AA92: 61.20677529 | AB92: -21.12885919 | AD92: 0 | AE92: 0
A93: 1584.9 | B93: 1.5849 | C93: 1.07601409 | D93: 0.378132093 | E93: 1.000001983 | F93: 0.001991641443 | G93: 1 | H93: 0 | I93: 1721.068466 | J93: 1.570215292 | K93: 1.040561029 | L93: 0.2801280665 | M93: 1.000001915 | N93: 0.001956970199 | O93: 1.000316254 | P93: 0.02522878529 | Q93: 32.67391699 | R93: -97.02544279 | S93: 82.97455721 | U93: 1000000000 | V93: 2511908.01 | X93: 33.33659596 | Y93: -74.02867946 | AA93: 61.10553991 | AB93: -22.99676333 | AD93: 0 | AE93: 0
A94: 1737.8 | B94: 1.7378 | C94: 1.090744295 | D94: 0.4107911858 | E94: 1.000002384 | F94: 0.002183780411 | G94: 1 | H94: 0 | I94: 1887.104987 | J94: 1.570266415 | K94: 1.048573878 | L94: 0.3055679519 | M94: 1.000002302 | N94: 0.00214576436 | O94: 1.000380205 | P94: 0.0276615058 | Q94: 31.82193324 | R94: -97.58119497 | S94: 82.41880503 | U94: 1000000000 | V94: 3019948.84 | X94: 32.60326384 | Y94: -72.58482759 | AA94: 60.98688828 | AB94: -24.99636738 | AD94: 0 | AE94: 0
A95: 1905.5 | B95: 1.9055 | C95: 1.108199882 | D95: 0.4455720134 | E95: 1.000002867 | F95: 0.002394517341 | G95: 1 | H95: 0 | I95: 2069.213067 | J95: 1.570313051 | K95: 1.058129948 | L95: 0.3330074985 | M95: 1.000002768 | N95: 0.00235283273 | O95: 1.000457108 | P95: 0.03032932831 | Q95: 30.96197914 | R95: -98.15713624 | S95: 81.84286376 | U95: 1000000000 | V95: 3630930.25 | X95: 31.88187624 | Y95: -71.02719361 | AA95: 60.84832178 | AB95: -27.12994264 | AD95: 0 | AE95: 0
A96: 2089.3 | B96: 2.0893 | C96: 1.128820011 | D96: 0.4824070627 | E96: 1.000003447 | F96: 0.002625485777 | G96: 1 | H96: 0 | I96: 2268.804396 | J96: 1.570355566 | K96: 1.069500959 | L96: 0.3624934852 | M96: 1.000003328 | N96: 0.002579780419 | O96: 1.000549519 | P96: 0.03325278202 | Q96: 30.09405164 | R96: -98.74791362 | S96: 81.25208638 | U96: 1000000000 | V96: 4365174.49 | X96: 31.17487796 | Y96: -69.35321007 | AA96: 60.68739255 | AB96: -29.39470355 | AD96: 0 | AE96: 0
A97: 2290.9 | B97: 2.2909 | C97: 1.153130789 | D97: 0.5212361095 | E97: 1.000004144 | F97: 0.002878821888 | G97: 1 | H97: 0 | I97: 2487.72503 | J97: 1.570394353 | K97: 1.08301833 | L97: 0.3940924772 | M97: 1.000004001 | N97: 0.002828706413 | O97: 1.000660647 | P97: 0.03645870667 | Q97: 29.21699598 | R97: -99.34782086 | S97: 80.65217914 | U97: 1000000000 | V97: 5248222.81 | X97: 30.48385827 | Y97: -67.55920594 | AA97: 60.50135658 | AB97: -31.78861492 | AD97: 0 | AE97: 0
A98: 2511.9 | B98: 2.5119 | C98: 1.181690499 | D98: 0.5618982259 | E98: 1.000004982 | F98: 0.003156536147 | G98: 1 | H98: 0 | I98: 2727.712436 | J98: 1.570429719 | K98: 1.099046134 | L98: 0.4278018138 | M98: 1.00000481 | N98: 0.003101586191 | O98: 1.000794205 | P98: 0.03997228273 | Q98: 28.33101164 | R98: -99.94924821 | S98: 80.05075179 | U98: 1000000000 | V98: 6309641.61 | X98: 29.81152941 | Y98: -65.64546441 | AA98: 60.28770111 | AB98: -34.3037838 | AD98: 0 | AE98: 0
A99: 2754.2 | B99: 2.7542 | C99: 1.215135156 | D99: 0.6042054941 | E99: 1.000005989 | F99: 0.003461015971 | G99: 1 | H99: 0 | I99: 2990.829852 | J99: 1.570461971 | K99: 1.11800973 | L99: 0.4636042107 | M99: 1.000005783 | N99: 0.003400765615 | O99: 1.000954738 | P99: 0.04382337104 | Q99: 27.4359327 | R99: -100.5441452 | S99: 79.45585479 | U99: 1000000000 | V99: 7585617.64 | X99: 29.1602517 | Y99: -63.6131278 | AA99: 60.04389987 | AB99: -36.93101741 | AD99: 0 | AE99: 0
A100: 3020 | B100: 3.02 | C100: 1.254182412 | D100: 0.6479343825 | E100: 1.000007201 | F100: 0.003795025702 | G100: 1 | H100: 0 | I100: 3279.466294 | J100: 1.570491399 | K100: 1.140402019 | L100: 0.5014556619 | M100: 1.000006953 | N100: 0.003728960913 | O100: 1.001147797 | P100: 0.04804648058 | Q100: 26.53155412 | R100: -101.1242168 | S100: 78.87578315 | U100: 1000000000 | V100: 9120400 | X100: 28.53226013 | Y100: -61.46488968 | AA100: 59.76751286 | AB100: -39.65932717 | AD100: 0 | AE100: 0
A101: 3311.3 | B101: 3.3113 | C101: 1.299553383 | D101: 0.6927460751 | E101: 1.000008657 | F101: 0.004161078281 | G101: 1 | H101: 0 | I101: 3595.793595 | J101: 1.570518224 | K101: 1.166741882 | L101: 0.5412067948 | M101: 1.000008359 | N101: 0.004088641291 | O101: 1.001379742 | P101: 0.05267278658 | Q101: 25.61937863 | R101: -101.6804052 | S101: 78.31959477 | U101: 1000000000 | V101: 10964707.69 | X101: 27.93075247 | Y101: -59.20946266 | AA101: 59.45684504 | AB101: -42.47094257 | AD101: 0 | AE101: 0
A102: 3630.8 | B102: 3.6308 | C102: 1.352102477 | D102: 0.7383369495 | E102: 1.000010409 | F102: 0.004562566178 | G102: 1 | H102: 0 | I102: 3942.743726 | J102: 1.570542696 | K102: 1.197651723 | L102: 0.5827230053 | M102: 1.000010049 | N102: 0.004483140177 | O102: 1.001658613 | P102: 0.05774437775 | Q102: 24.69969013 | R102: -102.2054488 | S102: 77.79455124 | U102: 1000000000 | V102: 13182708.64 | X102: 27.357777 | Y102: -56.85476429 | AA102: 59.110132 | AB102: -45.35068447 | AD102: 0 | AE102: 0
A103: 3981.1 | B103: 3.9811 | C103: 1.412691112 | D103: 0.7843198866 | E103: 1.000012514 | F103: 0.005002756064 | G103: 1 | H103: 0 | I103: 4323.140069 | J103: 1.570565013 | K103: 1.233786452 | L103: 0.6257688402 | M103: 1.000012082 | N103: 0.004915667393 | O103: 1.001993765 | P103: 0.06330148196 | Q103: 23.77420681 | R103: -102.6929706 | S103: 77.30702942 | U103: 1000000000 | V103: 15849157.21 | X103: 26.81593326 | Y103: -54.41448029 | AA103: 58.72649242 | AB103: -48.27849029 | AD103: 0 | AE103: 0
A104: 4365.2 | B104: 4.3652 | C104: 1.482260417 | D104: 0.8303122829 | E104: 1.000015045 | F104: 0.005485417075 | G104: 1 | H104: 0 | I104: 4740.240371 | J104: 1.570585367 | K104: 1.275876338 | L104: 0.6700751149 | M104: 1.000014526 | N104: 0.005389926489 | O104: 1.002396562 | P104: 0.06939031926 | Q104: 22.84452117 | R104: -103.1391277 | S104: 76.86087231 | U104: 1000000000 | V104: 19054971.04 | X104: 26.3072626 | Y104: -51.90425695 | AA104: 58.30547744 | AB104: -51.23487073 | AD104: 0 | AE104: 0
A105: 4786.3 | B105: 4.7863 | C105: 1.56179315 | D105: 0.8759210284 | E105: 1.000018088 | F105: 0.006014569433 | G105: 1 | H105: 0 | I105: 5197.519565 | J105: 1.570603927 | K105: 1.324703574 | L105: 0.7153162528 | M105: 1.000017464 | N105: 0.005909867734 | O105: 1.002880549 | P105: 0.07605981367 | Q105: 21.91263638 | R105: -103.5428596 | S105: 76.4571404 | U105: 1000000000 | V105: 22908667.69 | X105: 25.83352422 | Y105: -49.34298456 | AA105: 57.84733103 | AB105: -54.19987505 | AD105: 0 | AE105: 0
A106: 5248.1 | B106: 5.2481 | C106: 1.65236612 | D106: 0.9207883545 | E106: 1.000021746 | F106: 0.006594861345 | G106: 1 | H106: 0 | I106: 5698.995538 | J106: 1.570620857 | K106: 1.381132104 | L106: 0.7611493781 | M106: 1.000020996 | N106: 0.006480058462 | O106: 1.003462211 | P106: 0.08336619453 | Q106: 20.9802324 | R106: -103.9065394 | S106: 76.09346057 | U106: 1000000000 | V106: 27542553.61 | X106: 25.3957801 | Y106: -46.75057945 | AA106: 57.35267117 | AB106: -57.15595998 | AD106: 0 | AE106: 0
A107: 5370.3 | B107: 5.3703 | C107: 1.676851607 | D107: 0.9318428639 | E107: 1.000022771 | F107: 0.006748415558 | G107: 1 | H107: 0 | I107: 5831.694464 | J107: 1.57062485 | K107: 1.396524511 | L107: 0.7726500816 | M107: 1.000021985 | N107: 0.00663093977 | O107: 1.003625026 | P107: 0.08529813979 | Q107: 20.74739445 | R107: -103.9917423 | S107: 76.00825768 | U107: 1000000000 | V107: 28840122.09 | X107: 25.29210945 | Y107: -46.10051131 | AA107: 57.22350387 | AB107: -57.89123102 | AD107: 0 | AE107: 0
A108: 5432.85 | B108: 5.43285 | C108: 1.68946244 | D108: 0.9373769599 | E108: 1.000023305 | F108: 0.006827014585 | G108: 1 | H108: 0 | I108: 5899.618505 | J108: 1.570626824 | K108: 1.404473644 | L108: 0.7784389675 | M108: 1.0000225 | N108: 0.006708170635 | O108: 1.003709805 | P108: 0.0862867929 | Q108: 20.63030001 | R108: -104.0338243 | S108: 75.96617569 | U108: 1000000000 | V108: 29515859.12 | X108: 25.24082226 | Y108: -45.77337069 | AA108: 57.15769662 | AB108: -58.26045362 | AD108: 0 | AE108: 0
A109: 5495.4 | B109: 5.4954 | C109: 1.702124247 | D109: 0.9428288865 | E109: 1.000023844 | F109: 0.006905613527 | G109: 1 | H109: 0 | I109: 5967.542546 | J109: 1.570628754 | K109: 1.412469311 | L109: 0.7841625044 | M109: 1.000023021 | N109: 0.006785401419 | O109: 1.003795558 | P109: 0.08727527861 | Q109: 20.5145804 | R109: -104.0749304 | S109: 75.9250696 | U109: 1000000000 | V109: 30199421.16 | X109: 25.19069437 | Y109: -45.44997173 | AA109: 57.09210491 | AB109: -58.62495868 | AD109: 0 | AE109: 0
A110: 5559.4 | B110: 5.5594 | C110: 1.715131155 | D110: 0.9483237119 | E110: 1.000024403 | F110: 0.006986034419 | G110: 1 | H110: 0 | I110: 6037.041166 | J110: 1.570630683 | K110: 1.420697675 | L110: 0.7899518452 | M110: 1.000023561 | N110: 0.006864422442 | O110: 1.003884308 | P110: 0.08828650363 | Q110: 20.39757181 | R110: -104.1160252 | S110: 75.88397484 | U110: 1000000000 | V110: 30906928.36 | X110: 25.14057041 | Y110: -45.12290503 | AA110: 57.02522028 | AB110: -58.99312013 | AD110: 0 | AE110: 0
A111: 5623.4 | B111: 5.6234 | C111: 1.728189069 | D111: 0.9537356627 | E111: 1.000024968 | F111: 0.00706645522 | G111: 1 | H111: 0 | I111: 6106.539785 | J111: 1.570632568 | K111: 1.428973107 | L111: 0.7956743219 | M111: 1.000024106 | N111: 0.006943443379 | O111: 1.003974077 | P111: 0.08929754944 | Q111: 20.28194359 | R111: -104.1561898 | S111: 75.8438102 | U111: 1000000000 | V111: 31622627.56 | X111: 25.09159231 | Y111: -44.79966685 | AA111: 56.95857016 | AB111: -59.35652295 | AD111: 0 | AE111: 0
A112: 5688.9 | B112: 5.6889 | C112: 1.741604642 | D112: 0.9591902633 | E112: 1.000025553 | F112: 0.00714876079 | G112: 1 | H112: 0 | I112: 6177.667278 | J112: 1.570634453 | K112: 1.437490381 | L112: 0.8014625032 | M112: 1.000024671 | N112: 0.007024316279 | O112: 1.004067006 | P112: 0.09033210398 | Q112: 20.16500481 | R112: -104.1963786 | S112: 75.80362141 | U112: 1000000000 | V112: 32363583.21 | X112: 25.04261878 | Y112: -44.47277019 | AA112: 56.89060491 | AB112: -59.7236084 | AD112: 0 | AE112: 0
A113: 5754.4 | B113: 5.7544 | C113: 1.755071239 | D113: 0.9645613158 | E113: 1.000026145 | F113: 0.007231066262 | G113: 1 | H113: 0 | I113: 6248.794771 | J113: 1.570636296 | K113: 1.446055247 | L113: 0.8071823085 | M113: 1.000025242 | N113: 0.007105189088 | O113: 1.004161002 | P113: 0.09136646658 | Q113: 20.0494522 | R113: -104.2356846 | S113: 75.76431538 | U113: 1000000000 | V113: 33113119.36 | X113: 24.99477763 | Y113: -44.14978873 | AA113: 56.82289344 | AB113: -60.08589589 | AD113: 0 | AE113: 0
A114: 5821.4 | B114: 5.8214 | C114: 1.768897807 | D114: 0.9699705996 | E114: 1.000026757 | F114: 0.007315256491 | G114: 1 | H114: 0 | I114: 6321.551138 | J114: 1.570638138 | K114: 1.454864618 | L114: 0.8129632313 | M114: 1.000025834 | N114: 0.007187913849 | O114: 1.004258255 | P114: 0.09242431606 | Q114: 19.93265736 | R114: -104.2750232 | S114: 75.72497685 | U114: 1000000000 | V114: 33888697.96 | X114: 24.94697855 | Y114: -43.82341156 | AA114: 56.75389769 | AB114: -60.45161159 | AD114: 0 | AE114: 0
A115: 5888.4 | B115: 5.8884 | C115: 1.78277533 | D115: 0.9752958229 | E115: 1.000027377 | F115: 0.007399446617 | G115: 1 | H115: 0 | I115: 6394.307506 | J115: 1.570639938 | K115: 1.463722023 | L115: 0.8186743788 | M115: 1.000026432 | N115: 0.007270638512 | O115: 1.004356624 | P115: 0.09348196017 | Q115: 19.8172526 | R115: -104.313529 | S115: 75.68647097 | U115: 1000000000 | V115: 34673254.56 | X115: 24.90029661 | Y115: -43.50102981 | AA115: 56.68517487 | AB115: -60.81249922 | AD115: 0 | AE115: 0
A116: 5957 | B116: 5.957 | C116: 1.797035819 | D116: 0.9806628426 | E116: 1.000028018 | F116: 0.007485647144 | G116: 1 | H116: 0 | I116: 6468.801338 | J116: 1.570641739 | K116: 1.472839812 | L116: 0.8244505469 | M116: 1.000027051 | N116: 0.007355338586 | O116: 1.004458498 | P116: 0.0945646463 | Q116: 19.70050168 | R116: -104.3521371 | S116: 75.64786288 | U116: 1000000000 | V116: 35485849 | X116: 24.85362346 | Y116: -43.17503591 | AA116: 56.6150971 | AB116: -61.17710121 | AD116: 0 | AE116: 0
A117: 6025.6 | B117: 6.0256 | C117: 1.811347254 | D117: 0.9859452028 | E117: 1.000028667 | F117: 0.00757184756 | G117: 1 | H117: 0 | I117: 6543.295171 | J117: 1.570643499 | K117: 1.482006134 | L117: 0.8301554512 | M117: 1.000027678 | N117: 0.007440038554 | O117: 1.004561542 | P117: 0.09564711231 | Q117: 19.58514697 | R117: -104.3899627 | S117: 75.61003727 | U117: 1000000000 | V117: 36307855.36 | X117: 24.80805379 | Y117: -42.85312275 | AA117: 56.54531205 | AB117: -61.53683997 | AD117: 0 | AE117: 0
A118: 6095.8 | B118: 6.0958 | C118: 1.826043979 | D118: 0.9912648955 | E118: 1.000029339 | F118: 0.007660058365 | G118: 1 | H118: 0 | I118: 6619.526469 | J118: 1.570645259 | K118: 1.491435561 | L118: 0.8359206254 | M118: 1.000028326 | N118: 0.007526713922 | O118: 1.004668199 | P118: 0.09675459491 | Q118: 19.46851632 | R118: -104.4279055 | S118: 75.57209454 | U118: 1000000000 | V118: 37158777.64 | X118: 24.76252978 | Y118: -42.52786958 | AA118: 56.47420542 | AB118: -61.90003588 | AD118: 0 | AE118: 0
A119: 6166 | B119: 6.166 | C119: 1.840791552 | D119: 0.9964994965 | E119: 1.000030019 | F119: 0.007748269051 | G119: 1 | H119: 0 | I119: 6695.757767 | J119: 1.570646979 | K119: 1.500913935 | L119: 0.8416131718 | M119: 1.000028983 | N119: 0.007613389176 | O119: 1.00477608 | P119: 0.09786184182 | Q119: 19.35328599 | R119: -104.4651183 | S119: 75.53488173 | U119: 1000000000 | V119: 38019556 | X119: 24.71809379 | Y119: -42.20677536 | AA119: 56.40341108 | AB119: -62.2583429 | AD119: 0 | AE119: 0
A120: 6237.8 | B120: 6.2378 | C120: 1.855926591 | D120: 1.001767201 | E120: 1.000030722 | F120: 0.007838490112 | G120: 1 | H120: 0 | I120: 6773.726531 | J120: 1.570648698 | K120: 1.510658014 | L120: 0.8473613775 | M120: 1.000029661 | N120: 0.007702039817 | O120: 1.004887686 | P120: 0.0989940786 | Q120: 19.23684671 | R120: -104.5024685 | S120: 75.49753153 | U120: 1000000000 | V120: 38910148.84 | X120: 24.67373676 | Y120: -41.88260524 | AA120: 56.33132883 | AB120: -62.61986323 | AD120: 0 | AE120: 0
A121: 6309.6 | B121: 6.3096 | C121: 1.871112295 | D121: 1.006949543 | E121: 1.000031433 | F121: 0.007928711045 | G121: 1 | H121: 0 | I121: 6851.695295 | J121: 1.570650378 | K121: 1.520451366 | L121: 0.8530357193 | M121: 1.000030348 | N121: 0.007790690336 | O121: 1.005000571 | P121: 0.1001260633 | Q121: 19.12180993 | R121: -104.5391432 | S121: 75.46085682 | U121: 1000000000 | V121: 39811052.16 | X121: 24.63045065 | Y121: -41.56266496 | AA121: 56.25957816 | AB121: -62.97647822 | AD121: 0 | AE121: 0
A122: 6383.05 | B122: 6.38305 | C122: 1.886698124 | D122: 1.012164513 | E122: 1.000032169 | F122: 0.008021005167 | G122: 1 | H122: 0 | I122: 6931.45582 | J122: 1.570652057 | K122: 1.530519775 | L122: 0.858765132 | M122: 1.000031059 | N122: 0.007881377962 | O122: 1.005117374 | P122: 0.1012837978 | Q122: 19.00554929 | R122: -104.5760053 | S122: 75.42399472 | U122: 1000000000 | V122: 40743327.3 | X122: 24.58724435 | Y122: -41.23968603 | AA122: 56.18652382 | AB122: -63.33631924 | AD122: 0 | AE122: 0
A123: 6456.5 | B123: 6.4565 | C123: 1.902334422 | D123: 1.017293892 | E123: 1.000032914 | F123: 0.008113299152 | G123: 1 | H123: 0 | I123: 7011.216345 | J123: 1.570653698 | K123: 1.540637767 | L123: 0.8644194735 | M123: 1.000031778 | N123: 0.007972065459 | O123: 1.005235515 | P123: 0.1024412627 | Q123: 18.89069338 | R123: -104.612247 | S123: 75.38775304 | U123: 1000000000 | V123: 41686392.25 | X123: 24.54509182 | Y123: -40.92100617 | AA123: 56.11382044 | AB123: -63.69124079 | AD123: 0 | AE123: 0
A124: 6531.7 | B124: 6.5317 | C124: 1.918394264 | D124: 1.022458714 | E124: 1.000033685 | F124: 0.008207791966 | G124: 1 | H124: 0 | I124: 7092.877223 | J124: 1.57065534 | K124: 1.551047184 | L124: 0.870131919 | M124: 1.000032522 | N124: 0.008064913515 | O124: 1.005357856 | P124: 0.1036260225 | Q124: 18.77452446 | R124: -104.648752 | S124: 75.35124796 | U124: 1000000000 | V124: 42663104.89 | X124: 24.50299326 | Y124: -40.59912105 | AA124: 56.03975007 | AB124: -64.04963099 | AD124: 0 | AE124: 0
A125: 6606.9 | B125: 6.6069 | C125: 1.93450443 | D125: 1.027537646 | E125: 1.000034465 | F125: 0.008302284633 | G125: 1 | H125: 0 | I125: 7174.538101 | J125: 1.570656945 | K125: 1.561506538 | L125: 0.8757680195 | M125: 1.000033275 | N125: 0.008157761433 | O125: 1.005481599 | P125: 0.1048104933 | Q125: 18.65976432 | R125: -104.6846915 | S125: 75.31530845 | U125: 1000000000 | V125: 43651127.61 | X125: 24.46193259 | Y125: -40.28160801 | AA125: 55.9660506 | AB125: -64.40308354 | AD125: 0 | AE125: 0
A126: 6683.85 | B126: 6.68385 | C126: 1.951040293 | D126: 1.032647811 | E126: 1.000035272 | F126: 0.008398976112 | G126: 1 | H126: 0 | I126: 7258.099332 | J126: 1.57065855 | K126: 1.572259951 | L126: 0.8814574686 | M126: 1.000034055 | N126: 0.008252769894 | O126: 1.005609672 | P126: 0.1060222258 | Q126: 18.54375975 | R126: -104.7209237 | S126: 75.27907635 | U126: 1000000000 | V126: 44673850.82 | X126: 24.4209575 | Y126: -39.96116211 | AA126: 55.89102112 | AB126: -64.75976154 | AD126: 0 | AE126: 0
A127: 6760.8 | B127: 6.7608 | C127: 1.967626248 | D127: 1.037671953 | E127: 1.000036089 | F127: 0.008495667434 | G127: 1 | H127: 0 | I127: 7341.660562 | J127: 1.570660118 | K127: 1.583063564 | L127: 0.8870694421 | M127: 1.000034844 | N127: 0.008347778207 | O127: 1.005739211 | P127: 0.1072336489 | Q127: 18.42916595 | R127: -104.7566463 | S127: 75.24335374 | U127: 1000000000 | V127: 45708416.64 | X127: 24.3810028 | Y127: -39.64515314 | AA127: 55.81638203 | AB127: -65.11149312 | AD127: 0 | AE127: 0
A128: 6839.55 | B128: 6.83955 | C128: 1.984650731 | D128: 1.042726544 | E128: 1.000036935 | F128: 0.008594620376 | G128: 1 | H128: 0 | I128: 7427.176442 | J128: 1.570661686 | K128: 1.594170806 | L128: 0.8927337531 | M128: 1.00003566 | N128: 0.00844500878 | O128: 1.005873298 | P128: 0.1084730855 | Q128: 18.3133198 | R128: -104.7927176 | S128: 75.20728244 | U128: 1000000000 | V128: 46779444.2 | X128: 24.34113687 | Y128: -39.32627278 | AA128: 55.74040181 | AB128: -65.46644478 | AD128: 0 | AE128: 0
A129: 6918.3 | B129: 6.9183 | C129: 2.001725057 | D129: 1.047695032 | E129: 1.00003779 | F129: 0.008693573151 | G129: 1 | H129: 0 | I129: 7512.692322 | J129: 1.570663219 | K129: 1.605328487 | L129: 0.8983195027 | M129: 1.000036486 | N129: 0.008542239193 | O129: 1.00600892 | P129: 0.109712191 | Q129: 18.19888626 | R129: -104.8283357 | S129: 75.17166433 | U129: 1000000000 | V129: 47862874.89 | X129: 24.30227368 | Y129: -39.01189161 | AA129: 55.66483146 | AB129: -65.81644406 | AD129: 0 | AE129: 0
A130: 6998.9 | B130: 6.9989 | C130: 2.019250787 | D130: 1.052693103 | E130: 1.000038676 | F130: 0.008794850353 | G130: 1 | H130: 0 | I130: 7600.217146 | J130: 1.570664752 | K130: 1.616799425 | L130: 0.9039564593 | M130: 1.000037341 | N130: 0.008641753582 | O130: 1.006149316 | P130: 0.1109800589 | Q130: 18.08319445 | R130: -104.8643606 | S130: 75.13563943 | U130: 1000000000 | V130: 48984601.21 | X130: 24.26350298 | Y130: -38.69470737 | AA130: 55.58791035 | AB130: -66.1696532 | AD130: 0 | AE130: 0
A131: 7079.5 | B131: 7.0795 | C131: 2.03682609 | D131: 1.057605042 | E131: 1.000039572 | F131: 0.008896127376 | G131: 1 | H131: 0 | I131: 7687.74197 | J131: 1.57066625 | K131: 1.628321013 | L131: 0.9095138191 | M131: 1.000038206 | N131: 0.0087412678 | O131: 1.006291318 | P131: 0.1122475721 | Q131: 17.96891683 | R131: -104.8999886 | S131: 75.10001136 | U131: 1000000000 | V131: 50119320.25 | X131: 24.22571714 | Y131: -38.38208168 | AA131: 55.51141856 | AB131: -66.51790696 | AD131: 0 | AE131: 0
A132: 7161.95 | B132: 7.16195 | C132: 2.054854764 | D132: 1.062542662 | E132: 1.000040499 | F132: 0.008999728806 | G132: 1 | H132: 0 | I132: 7777.275738 | J132: 1.570667747 | K132: 1.640158348 | L132: 0.9151177728 | M132: 1.000039101 | N132: 0.008843065974 | O132: 1.006438241 | P132: 0.1135438074 | Q132: 17.85344643 | R132: -104.9360618 | S132: 75.06393817 | U132: 1000000000 | V132: 51293527.8 | X132: 24.18805042 | Y132: -38.06691719 | AA132: 55.43361488 | AB132: -66.86914464 | AD132: 0 | AE132: 0
A133: 7244.4 | B133: 7.2444 | C133: 2.072932663 | D133: 1.067394277 | E133: 1.000041437 | F133: 0.009103330043 | G133: 1 | H133: 0 | I133: 7866.809507 | J133: 1.57066921 | K133: 1.652046452 | L133: 0.9206412459 | M133: 1.000040007 | N133: 0.008944863965 | O133: 1.006586844 | P133: 0.1148396635 | Q133: 17.73938983 | R133: -104.9717948 | S133: 75.02820517 | U133: 1000000000 | V133: 52481331.36 | X133: 24.15134933 | Y133: -37.75636193 | AA133: 55.35625937 | AB133: -67.2154329 | AD133: 0 | AE133: 0
A134: 7328.75 | B134: 7.32875 | C134: 2.091476764 | D134: 1.072270785 | E134: 1.000042407 | F134: 0.009209318492 | G134: 1 | H134: 0 | I134: 7958.406516 | J134: 1.570670673 | K134: 1.664259912 | L134: 0.9262101705 | M134: 1.000040944 | N134: 0.009049007625 | O134: 1.006740608 | P134: 0.1161649847 | Q134: 17.62413465 | R134: -105.0080357 | S134: 74.9919643 | U134: 1000000000 | V134: 53710576.56 | X134: 24.11476944 | Y134: -37.44333688 | AA134: 55.27758408 | AB134: -67.56469883 | AD134: 0 | AE134: 0
A135: 7413.1 | B135: 7.4131 | C135: 2.110069725 | D135: 1.077061466 | E135: 1.000043389 | F135: 0.009315306735 | G135: 1 | H135: 0 | I135: 8050.003525 | J135: 1.570672103 | K135: 1.676524232 | L135: 0.9316977862 | M135: 1.000041892 | N135: 0.009153151088 | O135: 1.006896128 | P135: 0.1174899002 | Q135: 17.51029264 | R135: -105.0439926 | S135: 74.95600744 | U135: 1000000000 | V135: 54954051.61 | X135: 24.07913583 | Y135: -37.13496856 | AA135: 55.19937568 | AB135: -67.909024 | AD135: 0 | AE135: 0
A136: 7499.45 | B136: 7.49945 | C136: 2.129152815 | D136: 1.081878955 | E136: 1.000044406 | F136: 0.009423807819 | G136: 1 | H136: 0 | I136: 8143.772366 | J136: 1.570673534 | K136: 1.689130875 | L136: 0.9372328016 | M136: 1.000042873 | N136: 0.009259763662 | O136: 1.007057154 | P136: 0.1188458056 | Q136: 17.39518165 | R136: -105.0805427 | S136: 74.91945728 | U136: 1000000000 | V136: 56241750.3 | X136: 24.04360551 | Y136: -36.82402594 | AA136: 55.11979501 | AB136: -68.25651678 | AD136: 0 | AE136: 0
A137: 7585.8 | B137: 7.5858 | C137: 2.148284441 | D137: 1.086610747 | E137: 1.000045434 | F137: 0.009532308682 | G137: 1 | H137: 0 | I137: 8237.541206 | J137: 1.570674931 | K137: 1.7017885 | L137: 0.9426856449 | M137: 1.000043866 | N137: 0.009366376027 | O137: 1.007220018 | P137: 0.1202012763 | Q137: 17.28148456 | R137: -105.1168642 | S137: 74.88313582 | U137: 1000000000 | V137: 57544361.64 | X137: 24.00900308 | Y137: -36.51778955 | AA137: 55.04070035 | AB137: -68.59907463 | AD137: 0 | AE137: 0
A138: 7674.15 | B138: 7.67415 | C138: 2.167908079 | D138: 1.091365587 | E138: 1.000046499 | F138: 0.00964332236 | G138: 1 | H138: 0 | I138: 8333.481879 | J138: 1.570676329 | K138: 1.714790883 | L138: 0.9481812991 | M138: 1.000044894 | N138: 0.009475457478 | O138: 1.007388557 | P138: 0.1215876872 | Q138: 17.16658369 | R138: -105.1538235 | S138: 74.84617651 | U138: 1000000000 | V138: 58892578.22 | X138: 23.97452788 | Y138: -36.20924174 | AA138: 54.96027469 | AB138: -68.94458175 | AD138: 0 | AE138: 0
A139: 7762.5 | B139: 7.7625 | C139: 2.18757985 | D139: 1.096035015 | E139: 1.000047575 | F139: 0.009754335801 | G139: 1 | H139: 0 | I139: 8429.422552 | J139: 1.570677695 | K139: 1.727844277 | L139: 0.9535940784 | M139: 1.000045933 | N139: 0.009584538704 | O139: 1.007559018 | P139: 0.1229736332 | Q139: 17.05309545 | R139: -105.190609 | S139: 74.809391 | U139: 1000000000 | V139: 60256406.25 | X139: 23.94096092 | Y139: -35.90544048 | AA139: 54.8803534 | AB139: -69.28516852 | AD139: 0 | AE139: 0
A140: 7852.9 | B140: 7.8529 | C140: 2.207756548 | D140: 1.100726553 | E140: 1.00004869 | F140: 0.009867924857 | G140: 1 | H140: 0 | I140: 8527.589352 | J140: 1.57067906 | K140: 1.741252153 | L140: 0.9590482868 | M140: 1.00004701 | N140: 0.009696150724 | O140: 1.007735424 | P140: 0.124391251 | Q140: 16.9384021 | R140: -105.2280997 | S140: 74.77190029 | U140: 1000000000 | V140: 61668038.41 | X140: 23.90752385 | Y140: -35.5994105 | AA140: 54.79909713 | AB140: -69.6286892 | AD140: 0 | AE140: 0
A141: 7943.3 | B141: 7.9433 | C141: =SQRT(1+(A141/pole1)^2) -> 2.227980959 | D141: =ATAN(A141/pole1) -> 1.105333017 | E141: =SQRT(1+(A141/Zero1)^2) -> 1.000049817 | F141: =ATAN(A141/Zero1) -> 0.009981513657 | G141: =IF(VIN_nom>Vout, 1, SQRT(1+(A141/z_RHP)^2)) -> 1 | H141: =IF(VIN_nom>Vout, 0, -ATAN(A141/z_RHP)) -> 0 | I141: =SQRT(1+(A141/Pole2)^2) -> 8625.756153 | J141: =ATAN(A141/Pole2) -> 1.570680395 | K141: =SQRT(1+(A141/Zero2)^2) -> 1.754711036 | L141: =ATAN(A141/Zero2) -> 0.9644189838 | M141: =SQRT(1+(A141/pole4)^2) -> 1.000048098 | N141: =ATAN(A141/pole4) -> 0.009807762503 | O141: =SQRT((1-(V141/pterm2))^2+(A141/pterm1)^2) -> 1.007913842 | P141: =IF((ATAN((A141/pterm1)/(1-A141^2/pterm2))>0),ATAN((A141/pterm1)/(1-A141^2/pterm2)),PI()+ATAN((A141/pterm1)/(1-A141^2/pterm2))) -> 0.1258083714 | Q141: =20*LOG10(((E141*K141*G141)/(C141*I141*O141*M141))*Adc) -> 16.82511975 | R141: =((F141+L141+H141)-(D141+J141+P141+N141))*radconv -> -105.2654706 | S141: =IF(R141>0,R141,R141+180) -> 74.73452944 | U141: 1000000000 | V141: 63096014.89 | X141: =20*LOG10((K141/(I141*M141))*AEA) -> 23.87497526 | Y141: =(L141-(J141+N141))*radconv -> -35.29816358 | AA141: =20*LOG10((E141*G141/(C141*O141))*Acs*Am) -> 54.71836337 | AB141: =(F141+H141-(D141+P141))*radconv -> -69.96730699 | AD141: 0 | AE141: 0
A142: 8035.8 | B142: =A142/1000 -> 8.0358 | C142: 2.248723231 | D142: 1.10996062 | E142: 1.000050984 | F142: 0.01009774087 | G142: 1 | H142: 0 | I142: 8726.203376 | J142: 1.570681729 | K142: 1.768534154 | L142: 0.9698296682 | M142: 1.000049225 | N142: 0.00992196678 | O142: 1.008098484 | P142: 0.1272578912 | Q142: 16.71063222 | R142: -105.3036153 | S142: 74.69638475 | U142: =IF(Q142<0,A142,1000000000) -> 1000000000 | V142: =A142^2 -> 64574081.64 | X142: 23.84255926 | Y142: -34.99477408 | AA142: 54.63629183 | AB142: -70.30884117 | AD142: =SUM((Q143<0)*(Q142>0))*A142 -> 0 | AE142: 0
A143: 8128.3 | B143: 8.1283 | C143: 2.269512777 | D143: 1.114503538 | E143: 1.000052165 | F143: 0.01021396781 | G143: 1 | H143: 0 | I143: 8826.6506 | J143: 1.570683034 | K143: 1.782408242 | L143: 0.9751562741 | M143: 1.000050364 | N143: 0.0100361708 | O143: 1.00828523 | P143: 0.1287068789 | Q143: 16.5975537 | R143: -105.341693 | S143: 74.65830705 | U143: 1000000000 | V143: 66069260.89 | X143: 23.81101187 | Y143: -34.69620017 | AA143: 54.5547607 | AB143: -70.64549278 | AD143: 0 | AE143: 0
A144: 8222.95 | B144: 8.22295 | C144: 2.290833133 | D144: 1.1190666 | E144: 1.000053387 | F144: 0.01033289595 | G144: 1 | H144: 0 | I144: 8929.432544 | J144: 1.570684338 | K144: 1.796656339 | L144: 0.9805213753 | M144: 1.000051544 | N144: 0.01015302902 | O144: 1.008478492 | P144: 0.1301889889 | Q144: 16.48327103 | R144: -105.3806143 | S144: 74.61938574 | U144: 1000000000 | V144: 67616906.7 | X144: 23.77959977 | Y144: -34.39557272 | AA144: 54.47189013 | AB144: -70.98504155 | AD144: 0 | AE144: 0
A145: 8270.275 | B145: 8.270275 | C145: 2.30151095 | D145: 1.121316405 | E145: 1.000054003 | F145: 0.01039235992 | G145: 1 | H145: 0 | I145: 8980.823515 | J145: 1.570684978 | K145: 1.803799551 | L145: 0.9831721038 | M145: 1.000052139 | N145: 0.01021145802 | O145: 1.008575948 | P145: 0.1309298308 | Q145: 16.42665927 | R145: -105.4000676 | S145: 74.59993245 | U145: 1000000000 | V145: 68397448.58 | X145: 23.76421379 | Y145: -34.24708161 | AA145: 54.43066436 | AB145: -71.15298594 | AD145: 0 | AE145: 0
A146: 8317.6 | B146: 8.3176 | C146: 2.312200308 | D146: 1.123545419 | E146: 1.000054623 | F146: 0.01045182381 | G146: 1 | H146: 0 | I146: 9032.214487 | J146: 1.570685612 | K146: 1.810955337 | L146: 0.9858019026 | M146: 1.000052738 | N146: 0.01026988696 | O146: 1.008673954 | P146: 0.1316705297 | Q146: 16.37039498 | R146: -105.4195202 | S146: 74.5804798 | U146: 1000000000 | V146: 69182469.76 | X146: 23.74903629 | Y146: -34.09978927 | AA146: 54.38957757 | AB146: -71.31973093 | AD146: 0 | AE146: 0
A147: 8366.05 | B147: 8.36605 | C147: 2.323155562 | D147: 1.12580616 | E147: 1.000055261 | F147: 0.01051270118 | G147: 1 | H147: 0 | I147: 9084.827114 | J147: 1.570686253 | K147: 1.8182941 | L147: 0.9884727547 | M147: 1.000053354 | N147: 0.01032970478 | O147: 1.008774859 | P147: 0.1324286872 | Q147: 16.31314886 | R147: -105.4394378 | S147: 74.5605622 | U147: 1000000000 | V147: 69990792.6 | X147: 23.73371024 | Y147: -33.95022477 | AA147: 54.3476575 | AB147: -71.48921304 | AD147: 0 | AE147: 0
A148: 8414.5 | B148: 8.4145 | C148: 2.334122577 | D148: 1.128045667 | E148: 1.000055903 | F148: 0.01057357848 | G148: 1 | H148: 0 | I148: 9137.439741 | J148: 1.570686887 | K148: =SQRT(1+(A148/Zero2)^2) -> 1.825645729 | L148: =ATAN(A148/Zero2) -> 0.9911221152 | M148: 1.000053974 | N148: 0.01038952253 | O148: 1.00887634 | P148: 0.1331866932 | Q148: 16.2562583 | R148: -105.4593611 | S148: 74.54063889 | U148: 1000000000 | V148: 70803810.25 | X148: 23.7185952 | Y148: -33.80189121 | AA148: 54.30588198 | AB148: -71.6574699 | AD148: 0 | AE148: 0
A149: 8462.95 | B149: 8.46295 | C149: 2.34510119 | D149: 1.130264217 | E149: 1.000056548 | F149: 0.0106344557 | G149: 1 | H149: 0 | I149: 9190.052368 | J149: 1.570687513 | K149: 1.83301007 | L149: 0.9937502058 | M149: 1.000054597 | N149: 0.01044934021 | O149: 1.008978397 | P149: 0.1339445468 | Q149: 16.19971903 | R149: -105.4792932 | S149: 74.52070684 | U149: 1000000000 | V149: 71621522.7 | X149: 23.70368748 | Y149: -33.6547759 | AA149: 54.26425042 | AB149: -71.82451726 | AD149: 0 | AE149: 0
A150: 8511.4 | B150: 8.5114 | C150: 2.356091238 | D150: 1.132462081 | E150: 1.000057198 | F150: 0.01069533284 | G150: 1 | H150: 0 | I150: 9242.664995 | J150: 1.570688133 | K150: 1.840386969 | L150: 0.9963572457 | M150: 1.000055224 | N150: 0.01050915781 | O150: 1.009081029 | P150: 0.1347022472 | Q150: 16.14352687 | R150: -105.4992369 | S150: 74.50076309 | U150: 1000000000 | V150: 72443929.96 | X150: 23.6889835 | Y150: -33.5088663 | AA150: 54.22276225 | AB150: -71.9903706 | AD150: 0 | AE150: 0
A151: 8560.95 | B151: 8.56095 | C151: 2.367342463 | D151: 1.134688727 | E151: 1.000057866 | F151: 0.01075759204 | G151: 1 | H151: 0 | I151: 9296.472129 | J151: 1.570688759 | K151: 1.847944186 | L151: 0.9990019284 | M151: 1.000055869 | N151: 0.01057033342 | O151: 1.009186586 | P151: 0.1354769909 | Q151: 16.08641365 | R151: -105.5196485 | S151: 74.48035149 | U151: 1000000000 | V151: 73289864.9 | X151: 23.67415271 | Y151: -33.36087813 | AA151: 54.18047981 | AB151: -72.15877037 | AD151: 0 | AE151: 0
A152: 8610.5 | B152: 8.6105 | C152: 2.378605314 | D152: 1.136894297 | E152: 1.000058537 | F152: 0.01081985116 | G152: 1 | H152: 0 | I152: 9350.279264 | J152: 1.570689378 | K152: 1.855514223 | L152: 1.00162505 | M152: 1.000056517 | N152: 0.01063150895 | O152: 1.009292745 | P152: 0.1362515727 | Q152: 16.02965481 | R152: -105.5400782 | S152: 74.45992179 | U152: 1000000000 | V152: 74140710.25 | X152: 23.65952762 | Y152: -33.2141249 | AA152: 54.13834607 | AB152: -72.32595332 | AD152: 0 | AE152: 0
A153: 8660.05 | B153: 8.66005 | C153: 2.389879626 | D153: 1.139079068 | E153: 1.000059213 | F153: 0.0108821102 | G153: 1 | H153: 0 | I153: 9404.086399 | J153: 1.57068999 | K153: 1.863096923 | L153: 1.004226838 | M153: 1.000057169 | N153: 0.0106926844 | O153: 1.009399506 | P153: 0.1370259916 | Q153: 15.9732461 | R153: -105.5605288 | S153: 74.43947116 | U153: 1000000000 | V153: 74996466 | X153: 23.64510461 | Y153: -33.06859361 | AA153: 54.09636037 | AB153: -72.49193523 | AD153: 0 | AE153: 0
A154: 8709.6 | B154: 8.7096 | C154: 2.401165239 | D154: 1.141243312 | E154: 1.000059893 | F154: 0.01094436915 | G154: 1 | H154: 0 | I154: 9457.893533 | J154: 1.570690595 | K154: 1.870692132 | L154: 1.006807515 | M154: 1.000057826 | N154: 0.01075385978 | O154: 1.009506867 | P154: 0.1378002468 | Q154: 15.91718331 | R154: -105.5810031 | S154: 74.41899691 | U154: 1000000000 | V154: 75857132.16 | X154: 23.63088013 | Y154: -32.92427142 | AA154: 54.05452206 | AB154: -72.65673167 | AD154: 0 | AE154: =IF(AD154>0,S154,0) -> 0
A155: 8760.325 | B155: 8.760325 | C155: 2.412730013 | D155: 1.143437895 | E155: 1.000060592 | F155: 0.01100810438 | G155: 1 | H155: 0 | I155: 9512.976619 | J155: 1.570691207 | K155: 1.87848025 | L155: 1.009427755 | M155: 1.000058501 | N155: 0.01081648574 | O155: 1.009617397 | P155: 0.1385926918 | Q155: 15.86014508 | R155: -105.60199 | S155: 74.39800998 | U155: 1000000000 | V155: 76743294.11 | X155: 23.61652036 | Y155: -32.77776603 | AA155: 54.0118436 | AB155: -72.82422399 | AD155: 0 | AE155: 0
A156: 8811.05 | B156: 8.81105 | C156: 2.424306295 | D156: 1.145611529 | E156: 1.000061296 | F156: 0.01107183953 | G156: 1 | H156: 0 | I156: 9568.059705 | J156: 1.570691812 | K156: 1.886281158 | L156: 1.01202634 | M156: 1.00005918 | N156: 0.01087911162 | O156: 1.009728557 | P156: 0.1393849633 | Q156: 15.80346069 | R156: -105.6230071 | S156: 74.37699291 | U156: 1000000000 | V156: 77634602.1 | X156: 23.60236138 | Y156: -32.63250096 | AA156: 53.96931818 | AB156: -72.99050613 | AD156: 0 | AE156: 0
A157: 8861.775 | B157: 8.861775 | C157: 2.435893923 | D157: 1.147764494 | E157: 1.000062004 | F157: 0.01113557459 | G157: 1 | H157: 0 | I157: 9623.142791 | J157: 1.570692411 | K157: 1.894094699 | L157: 1.014603502 | M157: 1.000059864 | N157: 0.01094173742 | O157: 1.009840346 | P157: 0.1401770606 | Q157: 15.74712584 | R157: -105.6440569 | S157: 74.35594312 | U157: 1000000000 | V157: 78531056.15 | X157: 23.58839962 | Y157: -32.48846289 | AA157: 53.92694509 | AB157: -73.15559399 | AD157: 0 | AE157: 0
A158: 8912.5 | B158: 8.9125 | C158: 2.447492735 | D158: 1.149897062 | E158: 1.000062716 | F158: 0.01119930955 | G158: 1 | H158: 0 | I158: 9678.225876 | J158: 1.570693002 | K158: =SQRT(1+(A158/Zero2)^2) -> 1.901920716 | L158: =ATAN(A158/Zero2) -> 1.017159473 | M158: 1.000060551 | N158: 0.01100436313 | O158: 1.009952765 | P158: 0.1409689825 | Q158: 15.69113631 | R158: -105.6651418 | S158: 74.33485817 | U158: 1000000000 | V158: 79432656.25 | X158: 23.57463158 | Y158: -32.34563864 | AA158: 53.8847236 | AB158: -73.31950319 | AD158: 0 | AE158: 0
A159: 8964.4 | B159: 8.9644 | C159: 2.459371634 | D159: 1.1520582 | E159: 1.000063448 | F159: 0.01126452079 | G159: 1 | H159: 0 | I159: 9734.584913 | J159: 1.5706936 | K159: 1.90994077 | L159: 1.019752953 | M159: 1.000061258 | N159: 0.01106843942 | O159: 1.010068439 | P159: 0.1417790663 | Q159: 15.63420292 | R159: -105.6867541 | S159: 74.31324594 | U159: 1000000000 | V159: 80360467.36 | X159: 23.56074157 | Y159: -32.20074874 | AA159: 53.84168023 | AB159: -73.48600532 | AD159: 0 | AE159: 0
A160: 9016.3 | B160: 9.0163 | C160: 2.471261909 | D160: 1.154198551 | E160: 1.000064185 | F160: 0.01132973193 | G160: 1 | H160: 0 | I160: 9790.94395 | J160: 1.570694192 | K160: 1.917973563 | L160: 1.022324727 | M160: 1.00006197 | N160: 0.01113251562 | O160: 1.01018477 | P160: 0.1425889647 | Q160: 15.57762233 | R160: -105.708408 | S160: 74.291592 | U160: 1000000000 | V160: 81293665.69 | X160: 23.5470472 | Y160: -32.05710214 | AA160: 53.798794 | AB160: -73.65130586 | AD160: 0 | AE160: 0
A161: 9068.2 | B161: 9.0682 | C161: 2.483163396 | D161: 1.156318396 | E161: 1.000064926 | F161: 0.01139494297 | G161: 1 | H161: 0 | I161: 9847.302988 | J161: 1.570694776 | K161: 1.926018935 | L161: 1.024875031 | M161: 1.000062685 | N161: 0.01119659173 | O161: 1.01030176 | P161: 0.1433986767 | Q161: 15.52139023 | R161: -105.730106 | S161: 74.26989402 | U161: 1000000000 | V161: 82232251.24 | X161: 23.53354498 | Y161: -31.91468523 | AA161: 53.75606413 | AB161: -73.81542075 | AD161: 0 | AE161: 0
A162: 9120.1 | B162: 9.1201 | C162: 2.495075936 | D162: 1.158418007 | E162: 1.000065671 | F162: 0.01146015392 | G162: 1 | H162: 0 | I162: 9903.662025 | J162: 1.570695354 | K162: 1.93407673 | L162: 1.027404102 | M162: 1.000063405 | N162: 0.01126066774 | O162: 1.010419408 | P162: 0.1442082012 | Q162: 15.4655024 | R162: -105.7518502 | S162: 74.2481498 | U162: 1000000000 | V162: 83176224.01 | X162: 23.52023147 | Y162: -31.77348455 | AA162: 53.71348981 | AB162: -73.97836565 | AD162: 0 | AE162: 0
A163: 9173.2 | B163: 9.1732 | C163: 2.507275184 | D163: 1.160545506 | E163: 1.000066438 | F163: 0.01152687253 | G163: 1 | H163: 0 | I163: 9961.324161 | J163: 1.570695939 | K163: 1.942333528 | L163: 1.029969915 | M163: 1.000064145 | N163: 0.01132622519 | O163: 1.010540457 | P163: 0.1450362481 | Q163: 15.40867433 | R163: -105.7741473 | S163: 74.22585274 | U163: 1000000000 | V163: 84147598.24 | X163: 23.50680194 | Y163: -31.63026398 | AA163: 53.67009127 | AB163: -74.14388328 | AD163: 0 | AE163: 0
A164: 9226.3 | B164: 9.2263 | C164: 2.519485671 | D164: 1.162652394 | E164: 1.000067209 | F164: 0.01159359104 | G164: 1 | H164: 0 | I164: 10018.9863 | J164: 1.570696516 | K164: 1.950603005 | L164: 1.032513988 | M164: 1.00006489 | N164: 0.01139178254 | O164: 1.010662193 | P164: 0.1458640968 | Q164: 15.3521979 | R164: -105.7964971 | S164: 74.20350288 | U164: 1000000000 | V164: 85124611.69 | X164: 23.49356292 | Y164: -31.48828855 | AA164: 53.62685386 | AB164: -74.30820857 | AD164: 0 | AE164: 0
A165: 9279.4 | B165: 9.2794 | C165: 2.531707234 | D165: 1.164738948 | E165: 1.000067985 | F165: 0.01166030945 | G165: 1 | H165: 0 | I165: 10076.64843 | J165: 1.570697087 | K165: 1.958885 | L165: 1.035036566 | M165: 1.000065639 | N165: 0.01145733979 | O165: 1.010784618 | P165: 0.1466917462 | Q165: 15.29606881 | R165: -105.8189019 | S165: 74.18109815 | U165: 1000000000 | V165: 86107264.36 | X165: 23.48051097 | Y165: -31.34754437 | AA165: 53.58377672 | AB165: -74.47135748 | AD165: 0 | AE165: 0
A166: 9332.5 | B166: 9.3325 | C166: 2.543939714 | D166: 1.166805446 | E166: 1.000068766 | F166: 0.01172702775 | G166: 1 | H166: 0 | I166: 10134.31057 | J166: 1.570697652 | K166: 1.967179356 | L166: 1.037537888 | M166: 1.000066392 | N166: 0.01152289694 | O166: 1.01090773 | P166: 0.1475191952 | Q166: 15.24028282 | R166: -105.8413634 | S166: 74.15863656 | U166: 1000000000 | V166: 87095556.25 | X166: 23.46764272 | Y166: -31.20801772 | AA166: 53.54085898 | AB166: -74.63334572 | AD166: 0 | AE166: 0
A167: 9386.85 | B167: 9.38685 | C167: 2.556471293 | D167: 1.168900101 | E167: 1.000069569 | F167: 0.01179531653 | G167: 1 | H167: 0 | I167: 10193.3301 | J167: 1.570698223 | K167: 1.975681602 | L167: 1.040076325 | M167: 1.000067168 | N167: 0.01158999724 | O167: 1.011034452 | P167: 0.1483659142 | Q167: 15.18353457 | R167: -105.8644146 | S167: 74.13558538 | U167: 1000000000 | V167: 88112952.92 | X167: 23.45465835 | Y167: -31.06645325 | AA167: 53.4970951 | AB167: -74.79796137 | AD167: 0 | AE167: 0
A168: 9441.2 | B168: 9.4412 | C168: 2.569013979 | D168: 1.170974311 | E168: 1.000070377 | F168: 0.0118636052 | G168: 1 | H168: 0 | I168: 10252.34963 | J168: 1.570698788 | K168: 1.984196469 | L168: 1.042592992 | M168: 1.000067948 | N168: 0.01165709743 | O168: 1.011161894 | P168: 0.149212421 | Q168: 15.12713702 | R168: -105.8875292 | S168: 74.11247076 | U168: 1000000000 | V168: 89136257.44 | X168: 23.44185952 | Y168: -30.92613575 | AA168: 53.45349638 | AB168: -74.96139349 | AD168: 0 | AE168: 0
A169: 9495.55 | B169: 9.49555 | C169: 2.581567611 | D169: 1.173028357 | E169: 1.000071189 | F169: 0.01193189375 | G169: 1 | H169: 0 | I169: 10311.36916 | J169: 1.570699346 | K169: 1.992723796 | L169: 1.045088136 | M169: 1.000068732 | N169: 0.01172419752 | O169: 1.011290055 | P169: 0.1500587147 | Q169: 15.07108585 | R169: -105.9107091 | S169: 74.08929086 | U169: 1000000000 | V169: 90165469.8 | X169: 23.42924285 | Y169: -30.78705107 | AA169: 53.41006187 | AB169: -75.12365808 | AD169: 0 | AE169: 0
A170: 9549.9 | B170: 9.5499 | C170: 2.59413203 | D170: 1.175062515 | E170: 1.000072007 | F170: 0.0120001822 | G170: 1 | H170: 0 | I170: 10370.38869 | J170: 1.570699898 | K170: 2.001263424 | L170: 1.047562002 | M170: 1.000069521 | N170: 0.01179129751 | O170: 1.011418936 | P170: 0.1509047939 | Q170: 15.01537681 | R170: -105.9339561 | S170: 74.06604394 | U170: 1000000000 | V170: 91200590.01 | X170: 23.41680504 | Y170: -30.6491852 | AA170: 53.36679065 | AB170: -75.28477086 | AD170: 0 | AE170: 0
A171: 9605.525 | B171: 9.605525 | C171: 2.607002204 | D171: 1.177124081 | E171: 1.000072848 | F171: 0.01207007251 | G171: 1 | H171: 0 | I171: 10430.79277 | J171: 1.570700457 | K171: 2.010015956 | L171: 1.05007212 | M171: 1.000070334 | N171: 0.01185997148 | O171: 1.011551585 | P171: 0.1517704983 | Q171: 14.95871082 | R171: -105.9578194 | S171: 74.04218058 | U171: 1000000000 | V171: 92266110.53 | X171: 23.40425727 | Y171: -30.50933276 | AA171: 53.32267242 | AB171: -75.44848666 | AD171: 0 | AE171: 0
A172: 9661.15 | B172: 9.66115 | C172: 2.619883349 | D172: 1.179165383 | E172: 1.000073694 | F172: 0.01213996271 | G172: 1 | H172: 0 | I172: 10491.19684 | J172: 1.570701009 | K172: 2.018781043 | L172: 1.052560456 | M172: 1.000071151 | N172: 0.01192864534 | O172: 1.011684986 | P172: 0.1526359758 | Q172: 14.90239443 | R172: -105.9817564 | S172: 74.01824363 | U172: 1000000000 | V172: 93337819.32 | X172: 23.39189007 | Y172: -30.37072791 | AA172: 53.27872324 | AB172: -75.61102846 | AD172: 0 | AE172: 0
A173: 9716.775 | B173: 9.716775 | C173: 2.632775304 | D173: 1.181186702 | E173: 1.000074545 | F173: 0.01220985278 | G173: 1 | H173: 0 | I173: 10551.60092 | J173: 1.570701554 | K173: 2.027558522 | L173: 1.055027264 | M173: 1.000071972 | N173: 0.0119973191 | O173: 1.01181914 | P173: 0.1535012252 | Q173: 14.84642333 | R173: -106.0057685 | S173: 73.99423152 | U173: 1000000000 | V173: 94415716.4 | X173: 23.37970011 | Y173: -30.23335623 | AA173: 53.2349421 | AB173: -75.77241225 | AD173: 0 | AE173: 0
A174: 9772.4 | B174: 9.7724 | C174: 2.645677911 | D174: 1.183188314 | E174: 1.000075401 | F174: 0.01227974274 | G174: 1 | H174: 0 | I174: 10612.00499 | J174: 1.570702094 | K174: 2.036348233 | L174: 1.057472791 | M174: 1.000072799 | N174: 0.01206599273 | O174: 1.011954047 | P174: 0.1543662453 | Q174: 14.79079328 | R174: -106.0298573 | S174: 73.97014274 | U174: 1000000000 | V174: 95499801.76 | X174: 23.36768415 | Y174: -30.09720349 | AA174: 53.191328 | AB174: -75.93265377 | AD174: 0 | AE174: 0
A175: 9829.3 | B175: 9.8293 | C175: 2.658887122 | D175: 1.185215698 | E175: 1.000076281 | F175: 0.01235123454 | G175: 1 | H175: 0 | I175: 10673.79361 | J175: 1.570702639 | K175: 2.045351906 | L175: 1.05995261 | M175: 1.000073649 | N175: 0.01213624035 | O175: 1.012092823 | P175: 0.1552508544 | Q175: 14.73423661 | R175: -106.054579 | S175: 73.94542104 | U175: 1000000000 | V175: 96615138.49 | X175: 23.3555695 | Y175: -29.95917646 | AA175: 53.14688599 | AB175: -76.0954025 | AD175: 0 | AE175: 0
A176: 9886.2 | B176: 9.8862 | C176: 2.672107155 | D176: 1.18722303 | E176: 1.000077167 | F176: 0.01242272622 | G176: 1 | H176: 0 | I176: 10735.58222 | J176: 1.570703179 | K176: 2.054368047 | L176: 1.062410678 | M176: 1.000074504 | N176: 0.01220648784 | O176: 1.012232386 | P176: 0.156135221 | Q176: 14.67802803 | R176: -106.0793838 | S176: 73.92061623 | U176: 1000000000 | V176: 97736950.44 | X176: 23.34363027 | Y176: -29.82239534 | AA176: 53.10261663 | AB176: -76.25698844 | AD176: 0 | AE176: 0
A177: 9943.1 | B177: 9.9431 | C177: 2.685337848 | D177: 1.189210589 | E177: 1.000078058 | F177: 0.01249421777 | G177: 1 | H177: 0 | I177: 10797.37084 | J177: 1.570703712 | K177: 2.063396492 | L177: 1.064847249 | M177: 1.000075364 | N177: 0.01227673521 | O177: 1.012372735 | P177: 0.157019344 | Q177: 14.62216322 | R177: -106.104273 | S177: 73.89572697 | U177: 1000000000 | V177: 98865237.61 | X177: 23.33186323 | Y177: -29.68684549 | AA177: 53.05851886 | AB177: -76.41742754 | AD177: 0 | AE177: 0
A178: 10000 | B178: 10 | C178: 2.698579045 | D178: 1.191178651 | E178: 1.000078954 | F178: 0.0125657092 | G178: 1 | H178: 0 | I178: 10859.15946 | J178: 1.570704239 | K178: 2.07243708 | L178: 1.067262577 | M178: 1.000076229 | N178: 0.01234698246 | O178: 1.01251387 | P178: 0.157903222 | Q178: 14.56663793 | R178: -106.129248 | S178: 73.87075201 | U178: 1000000000 | V178: 100000000 | X178: 23.32026519 | Y178: -29.55251247 | AA178: 53.01459161 | AB178: -76.57673552 | AD178: 0 | AE178: 0
A179: 10058.25 | B179: 10.05825 | C179: 2.712145121 | D179: 1.193173493 | E179: 1.000079876 | F179: 0.01263889668 | G179: 1 | H179: 0 | I179: 10922.41406 | J179: 1.570704772 | K179: 2.081704578 | L179: 1.069713464 | M179: 1.000077119 | N179: 0.01241889626 | O179: 1.012659168 | P179: 0.1588078156 | Q179: 14.51014259 | R179: -106.1549055 | S179: 73.8450945 | U179: 1000000000 | V179: 101168393.1 | X179: 23.3085638 | Y179: -29.41623789 | AA179: 52.96979767 | AB179: -76.7386676 | AD179: 0 | AE179: 0
A180: 10116.5 | B180: 10.1165 | C180: 2.725721882 | D180: 1.19514847 | E180: 1.000080804 | F180: 0.01271208403 | G180: 1 | H180: 0 | I180: 10985.66866 | J180: 1.570705299 | K180: 2.090984469 | L180: 1.072142611 | M180: 1.000078015 | N180: 0.01249080993 | O180: 1.012805288 | P180: 0.1597121499 | Q180: 14.45399431 | R180: -106.1806552 | S180: 73.81934477 | U180: 1000000000 | V180: 102343572.2 | X180: 23.29703301 | Y180: -29.28120856 | AA180: 52.92518017 | AB180: -76.89944667 | AD180: 0 | AE180: 0
A181: 10174.75 | B181: 10.17475 | C181: 2.739309169 | D181: 1.197103863 | E181: 1.000081737 | F181: 0.01278527124 | G181: 1 | H181: 0 | I181: 11048.92327 | J181: 1.57070582 | K181: 2.10027659 | L181: 1.074550279 | M181: 1.000078916 | N181: 0.01256272348 | O181: 1.012952231 | P181: 0.1606162234 | Q181: 14.39818874 | R181: -106.2064983 | S181: 73.79350173 | U181: 1000000000 | V181: 103525537.6 | X181: 23.28566965 | Y181: -29.14740959 | AA181: 52.88073796 | AB181: -77.05908869 | AD181: 0 | AE181: 0
A182: 10233 | B182: 10.233 | C182: 2.752906827 | D182: 1.199039946 | E182: 1.000082676 | F182: 0.01285845832 | G182: 1 | H182: 0 | I182: 11112.17787 | J182: 1.570706335 | K182: 2.109580778 | L182: 1.076936722 | M182: 1.000079822 | N182: 0.01263463689 | O182: 1.013099995 | P182: 0.1615200347 | Q182: 14.34272165 | R182: -106.2324357 | S182: 73.76756434 | U182: 1000000000 | V182: 104714289 | X182: 23.2744706 | Y182: -29.01482632 | AA182: 52.83646992 | AB182: -77.21760934 | AD182: 0 | AE182: 0
A183: 10292.5 | B183: 10.2925 | C183: 2.766806828 | D183: 1.200997921 | E183: 1.00008364 | F183: 0.01293321579 | G183: 1 | H183: 0 | I183: 11176.78987 | J183: 1.570706856 | K183: 2.119096921 | L183: 1.079352727 | M183: 1.000080753 | N183: 0.01270809337 | O183: 1.01325178 | P183: 0.1624429692 | Q183: 14.28640936 | R183: -106.259028 | S183: 73.74097199 | U183: 1000000000 | V183: 105935556.2 | X183: 23.2631977 | Y183: -28.88063799 | AA183: 52.79143053 | AB183: -77.37839003 | AD183: 0 | AE183: 0
A184: 10352 | B184: 10.352 | C184: 2.78071733 | D184: 1.202936314 | E184: 1.00008461 | F184: 0.01300797311 | G184: 1 | H184: 0 | I184: 11241.40187 | J184: 1.57070737 | K184: 2.128625322 | L184: 1.081747116 | M184: 1.00008169 | N184: 0.01278154972 | O184: 1.013404421 | P184: 0.1633656274 | Q184: 14.2304415 | R184: -106.2857207 | S184: 73.71427929 | U184: 1000000000 | V184: 107163904 | X184: 23.2520899 | Y184: -28.74768779 | AA184: 52.74657048 | AB184: -77.53803292 | AD184: 0 | AE184: 0
A185: 10411.5 | B185: 10.4115 | C185: 2.794638176 | D185: 1.204855403 | E185: 1.000085585 | F185: 0.0130827303 | G185: 1 | H185: 0 | I185: 11306.01386 | J185: 1.570707878 | K185: 2.138165818 | L185: 1.084120151 | M185: 1.000082631 | N185: 0.01285500593 | O185: 1.013557919 | P185: 0.1642880078 | Q185: 14.17481374 | R185: -106.3125146 | S185: 73.68748539 | U185: 1000000000 | V185: 108399332.2 | X185: 23.24114408 | Y185: -28.61596075 | AA185: 52.70188854 | AB185: -77.69655386 | AD185: 0 | AE185: 0
A186: 10471 | B186: 10.471 | C186: 2.808569212 | D186: 1.206755461 | E186: 1.000086566 | F186: 0.01315748733 | G186: 1 | H186: 0 | I186: 11370.62586 | J186: 1.570708381 | K186: 2.147718248 | L186: 1.08647209 | M186: 1.000083578 | N186: 0.01292846199 | O186: 1.013712273 | P186: 0.165210109 | Q186: 14.11952187 | R186: -106.3394105 | S186: 73.66058951 | U186: 1000000000 | V186: 109641841 | X186: 23.23035723 | Y186: -28.48544208 | AA186: 52.65738352 | AB186: -77.8539684 | AD186: 0 | AE186: 0
A187: 10532 | B187: 10.532 | C187: 2.822861872 | D187: 1.208683944 | E187: 1.000087577 | F187: 0.01323412884 | G187: 1 | H187: 0 | I187: 11436.86673 | J187: 1.57070889 | K187: 2.157523718 | L187: 1.088861688 | M187: 1.000084555 | N187: 0.01300376975 | O187: 1.013871407 | P187: 0.1661551652 | Q187: 14.06318043 | R187: -106.367091 | S187: 73.63290897 | U187: 1000000000 | V187: 110923024 | X187: 23.21946036 | Y187: -28.35287223 | AA187: 52.61193895 | AB187: -78.0142188 | AD187: 0 | AE187: 0
A188: 10593 | B188: 10.593 | C188: 2.837164925 | D188: 1.210592989 | E188: 1.000088595 | F188: 0.0133107702 | G188: 1 | H188: 0 | I188: 11503.10761 | J188: 1.570709394 | K188: 2.167341397 | L188: 1.09122965 | M188: 1.000085537 | N188: 0.01307907736 | O188: 1.01403144 | P188: 0.167099925 | Q188: 14.00718326 | R188: -106.3948802 | S188: 73.60511979 | U188: 1000000000 | V188: 112211649 | X188: 23.20872434 | Y188: -28.22154165 | AA188: 52.56667779 | AB188: -78.17333856 | AD188: 0 | AE188: 0
A189: 10654 | B189: 10.654 | C189: 2.851478213 | D189: 1.212482876 | E189: 1.000089618 | F189: 0.0133874114 | G189: 1 | H189: 0 | I189: 11569.34848 | J189: 1.570709892 | K189: 2.177171119 | L189: 1.093576243 | M189: 1.000086525 | N189: 0.01315438483 | O189: 1.014192372 | P189: 0.1680443867 | Q189: 13.95152603 | R189: -106.4227786 | S189: 73.57722135 | U189: 1000000000 | V189: 113507716 | X189: 23.19814612 | Y189: -28.0914351 | AA189: 52.52159878 | AB189: -78.33134355 | AD189: 0 | AE189: 0
A190: 10715 | B190: 10.715 | C190: 2.865801585 | D190: 1.214353878 | E190: 1.000090647 | F190: 0.01346405245 | G190: 1 | H190: 0 | I190: 11635.58935 | J190: 1.570710384 | K190: 2.187012721 | L190: 1.095901729 | M190: 1.000087519 | N190: 0.01322969214 | O190: 1.014354202 | P190: 0.1689885489 | Q190: 13.8962045 | R190: -106.4507869 | S190: 73.54921309 | U190: 1000000000 | V190: 114811225 | X190: 23.18772273 | Y190: -27.96253754 | AA190: 52.47670065 | AB190: -78.48824937 | AD190: 0 | AE190: 0
A191: 10777.5 | B191: 10.7775 | C191: 2.880487471 | D191: 1.216251582 | E191: 1.000091708 | F191: 0.01354257794 | G191: 1 | H191: 0 | I191: 11703.4591 | J191: 1.570710882 | K191: 2.197108486 | L191: 1.098262778 | M191: 1.000088543 | N191: 0.01330685112 | O191: 1.014520943 | P191: 0.1699556161 | Q191: 13.83986642 | R191: -106.4795983 | S191: 73.52040168 | U191: 1000000000 | V191: 116154506.2 | X191: 23.17720056 | Y191: -27.83170883 | AA191: 52.43088474 | AB191: -78.64788949 | AD191: 0 | AE191: 0
A192: 10840 | B192: 10.84 | C192: 2.895183625 | D192: 1.218130027 | E192: 1.000092774 | F192: 0.01362110327 | G192: 1 | H192: 0 | I192: 11771.32884 | J192: 1.570711375 | K192: 2.207216386 | L192: 1.100602215 | M192: 1.000089573 | N192: 0.01338400993 | O192: 1.014688626 | P192: 0.1709223655 | Q192: 13.78387195 | R192: -106.508526 | S192: 73.49147399 | U192: 1000000000 | V192: 117505600 | X192: 23.1668348 | Y192: -27.70211805 | AA192: 52.38525602 | AB192: -78.80640796 | AD192: 0 | AE192: 0
A193: 10902.5 | B193: 10.9025 | C193: 2.909889892 | D193: 1.219989491 | E193: 1.000093847 | F193: 0.01369962843 | G193: 1 | H193: 0 | I193: 11839.19859 | J193: 1.570711862 | K193: 2.217336256 | L193: 1.102920311 | M193: 1.000090608 | N193: 0.01346116859 | O193: 1.014857251 | P193: 0.1718887957 | Q193: 13.72821677 | R193: -106.5375704 | S193: 73.46242963 | U193: 1000000000 | V193: 118864506.2 | X193: 23.15662248 | Y193: -27.57374972 | AA193: 52.33981317 | AB193: -78.96382065 | AD193: 0 | AE193: 0
A194: 10965 | B194: 10.965 | C194: 2.924606118 | D194: 1.221830249 | E194: 1.000094926 | F194: 0.01377815343 | G194: 1 | H194: 0 | I194: 11907.06834 | J194: 1.570712343 | K194: 2.227467934 | L194: 1.105217331 | M194: 1.00009165 | N194: 0.01353832709 | O194: 1.015026817 | P194: 0.1728549049 | Q194: 13.67289661 | R194: -106.5667317 | S194: 73.43326826 | U194: 1000000000 | V194: 120231225 | X194: 23.14656067 | Y194: -27.4465886 | AA194: 52.29455482 | AB194: -79.12014313 | AD194: 0 | AE194: 0
A195: 11028.75 | B195: 11.02875 | C195: 2.939626775 | D195: 1.223688829 | E195: 1.000096033 | F195: 0.01385824874 | G195: 1 | H195: 0 | I195: 11976.29548 | J195: 1.570712829 | K195: 2.237814241 | L195: 1.107538851 | M195: 1.000092719 | N195: 0.01361702859 | O195: 1.015200744 | P195: 0.1738400041 | Q195: 13.61681086 | R195: -106.5965972 | S195: 73.40340283 | U195: 1000000000 | V195: 121633326.6 | X195: 23.13644971 | Y195: -27.31811237 | AA195: 52.24858002 | AB195: -79.27848481 | AD195: 0 | AE195: 0
A196: 11092.5 | B196: 11.0925 | C196: 2.954657484 | D196: 1.225528505 | E196: 1.000097147 | F196: 0.01393834388 | G196: 1 | H196: 0 | I196: 12045.52262 | J196: 1.570713308 | K196: 2.248172498 | L196: 1.109838992 | M196: 1.000093794 | N196: 0.01369572993 | O196: 1.015375648 | P196: 0.174824766 | Q196: 13.56106494 | R196: -106.6265849 | S196: 73.37341513 | U196: 1000000000 | V196: 123043556.2 | X196: 23.12648942 | Y196: -27.19086079 | AA196: 52.20279439 | AB196: -79.43572409 | AD196: 0 | AE196: 0
A197: 11156.25 | B197: 11.15625 | C197: 2.96969809 | D197: 1.227349553 | E197: 1.000098266 | F197: 0.01401843884 | G197: 1 | H197: 0 | I197: 12114.74976 | J197: 1.570713783 | K197: 2.25854254 | L197: 1.112118022 | M197: 1.000094875 | N197: 0.01377443109 | O197: 1.01555153 | P197: 0.1758091888 | Q197: 13.50565459 | R197: -106.656695 | S197: 73.34330499 | U197: 1000000000 | V197: 124461914.1 | X197: 23.11667691 | Y197: -27.0648184 | AA197: 52.15719655 | AB197: -79.59187661 | AD197: 0 | AE197: 0
A198: 11220 | B198: 11.22 | C198: 2.984748446 | D198: 1.229152242 | E198: 1.000099393 | F198: 0.01409853362 | G198: 1 | H198: 0 | I198: 12183.9769 | J198: 1.570714252 | K198: 2.268924206 | L198: 1.114376208 | M198: 1.000095962 | N198: 0.01385313209 | O198: 1.01572839 | P198: 0.176793271 | Q198: 13.45057558 | R198: -106.6869277 | S198: 73.3130723 | U198: 1000000000 | V198: 125888400 | X198: 23.10700935 | Y198: -26.93996998 | AA198: 52.11178511 | AB198: -79.74695772 | AD198: 0 | AE198: 0
A199: 11285.5 | B199: 11.2855 | C199: 3.000221948 | D199: 1.230985572 | E199: 1.000100556 | F199: 0.0141808269 | G199: 1 | H199: 0 | I199: 12255.10439 | J199: 1.570714728 | K199: 2.279602799 | L199: 1.116674948 | M199: 1.000097086 | N199: 0.01393399332 | O199: 1.015911122 | P199: 0.1778040105 | Q199: 13.39432538 | R199: -106.718118 | S199: 73.28188197 | U199: 1000000000 | V199: 127362510.2 | X199: 23.09722449 | Y199: -26.81292216 | AA199: 52.06531976 | AB199: -79.90519587 | AD199: 0 | AE199: 0
A200: 11351 | B200: 11.351 | C200: 3.015705431 | D200: 1.232800083 | E200: 1.000101727 | F200: 0.01426311998 | G200: 1 | H200: 0 | I200: 12326.23189 | J200: 1.570715199 | K200: 2.290293325 | L200: 1.118952241 | M200: 1.000098216 | N200: 0.01401485437 | O200: 1.016094884 | P200: 0.1788143867 | Q200: 13.33841619 | R200: -106.7494378 | S200: 73.25056218 | U200: 1000000000 | V200: 128845201 | X200: 23.08758682 | Y200: -26.68710289 | AA200: 52.01904824 | AB200: -80.06233493 | AD200: 0 | AE200: 0
A201: 11416.5 | B201: 11.4165 | C201: 3.031198742 | D201: 1.234596051 | E201: 1.000102904 | F201: 0.01434541286 | G201: 1 | H201: 0 | I201: 12397.35938 | J201: 1.570715664 | K201: 2.300995618 | L201: 1.12120836 | M201: 1.000099353 | N201: 0.01409571524 | O201: 1.016279676 | P201: 0.1798243977 | Q201: 13.28284369 | R201: -106.780887 | S201: 73.21911297 | U201: 1000000000 | V201: 130336472.2 | X201: 23.07809349 | Y201: -26.5624964 | AA201: 51.97296908 | AB201: -80.21839063 | AD201: 0 | AE201: 0
A202: 11482 | B202: 11.482 | C202: 3.04670173 | D202: 1.236373747 | E202: 1.000104088 | F202: 0.01442770556 | G202: 1 | H202: 0 | I202: 12468.48688 | J202: 1.570716125 | K202: 2.311709514 | L202: 1.123443579 | M202: 1.000100496 | N202: 0.01417657593 | O202: 1.016465498 | P202: 0.1808340417 | Q202: 13.22760362 | R202: -106.8124656 | S202: 73.18753443 | U202: 1000000000 | V202: 131836324 | X202: 23.06874171 | Y202: -26.43908714 | AA202: 51.92708079 | AB202: -80.37337843 | AD202: 0 | AE202: 0
... 433 more rows

Sheet Bode Plot Management (hidden)
J1: Single or dual output (MODE) | N1: 3.3V or 5V fixed (FB1/2)
A2: =CHOOSE(BODE_PLOT_TYPE, "BODE_PLOT_Ch1", "BODE_PLOT_Ch2") -> BODE_PLOT_Ch1 | J2: With/without dither (DITH) | N2: With/without VOUT connected to VCCX
J3: FPWM or DEM (DEMB)
J4: Shunt or inductor DCR current sensing
F6: =INDIRECT(A2) -> 0

Sheet Efficiency Calculations (hidden)
A1: BUCK CONTROLLER POWER DESIGN TOOL
H2: =AV19 -> 0.3730165508 | I2: 10% load
H3: =AV59 -> 0.6766630081 | I3: 50% load | AP3: =IF(MODE=1, (Qg_Q1+Qg_Q2)*Fsw*Vin, (Qg_Q1+Qg_Q2+Qg_Q3+Qg_Q4)*Fsw*Vin) -> 0.9504
H4: =AV109 -> 0.7492822639 | I4: 100% load | AO4: I_VCC | AP4: =(Qg_Q1+Qg_Q2)*Fsw*1000 -> 39.6 | AQ4: mA | AR4: =AP4*5/1000 -> 0.198
A6: Enter the values of your design and MOSFET datasheet specifications below. Note that thermal resistance (θJA) will change when components are placed on the PCB
G7: Operating Point Condtions | R7: Filter Inductor | V7: Cout | Y7: Cin | AB7: High-side BUCK "Control" MOSFET Losses | AH7: Low-side BUCK "Sync" MOSFET Losses | AL7: External Diode | AM7: Diode/FET | AN7: Sense Rs | AO7: Controller IC Losses | AT7: RESULTS | AZ7: Consolidated Buck/Boost Efficiency & Losses
A8: Input Parameters | G8: Step | H8: Vin | I8: Mode | J8: Iout | K8: Iout/ phase | L8: Iin | M8: Duty Cycle BUCK Leg | N8: Ripple Current pk-pk | O8: Peak Inductor Current | P8: Valley Inductor Current | Q8: SW node voltage at Q1 turn-on | R8: Irms Lf | S8: DCR Loss | T8: Core Loss | U8: Total Inductor Loss | V8: Irms Cout | W8: Cout ESR Loss | X8: Total Cout Loss | Y8: Irms Cin | Z8: Cin ESR Loss | AA8: Total Cin Loss | AB8: Irms | AC8: RDS(on) Loss | AD8: Transition Loss (not including capacitive loss) | AE8: MOSFET Output Capacitance Loss | AF8: Dead Time Loss | AG8: Total Control MOSFET Loss | AH8: Irms | AI8: RDS(on) Loss | AJ8: Deadtime Loss | AK8: Total Sync MOSFET Loss | AL8: Deadtime Loss | AM8: Reverse Recovery Loss | AN8: Isense Shunt Loss | AO8: IQ Loss | AP8: Switching Current Loss | AQ8: Switching Current Diss | AR8: LDO Loss Saved from Gate Drive Current (ext VCC) | AS8: Total IC Loss | AT8: Total Loss | AU8: Pout | AV8: EFF, h | AW8: =IF(Vin>Vout, "Buck ''CONTROL'' MOSFET Temp Rise", "Boost ''CONTROL'' MOSFET Temp Rise") -> Buck ''CONTROL'' MOSFET Temp Rise | AX8: =IF(Vin>Vout, "Buck ''SYNC'' MOSFET Temp Rise", "Boost ''SYNC'' MOSFET Temp Rise") -> Buck ''SYNC'' MOSFET Temp Rise | AZ8: h | BA8: Inductor Cu & Core Loss | BB8: Total MOSFET Loss | BC8: Control MOSFET Loss | BD8: SYNC MOSFET Loss | BE8: Shunt Loss
A9: Design | B9: Input Value | C9: Units | D9: Description | G9: 0 | H9: =Vin -> 12 | I9: =MODE -> 2 | J9: 0 | K9: =Iout*G9/100/Number_of_Phases -> 0 | L9: =Vout*K9/(Vin*Efficiency) -> 0 | M9: =(Vout+(Rdson2+Rs+Rdcr)*K9)/(Vin+(Rs+Rdson2-Rdson1)*K9) -> 0.7833333333 | N9: =(Vin-(Rdson1+Rdcr)*K9-Vout)*M9/(Fsw*Lf) -> 1.3614082 | O9: =K9+N9/2 -> 0.6807040998 | P9: =K9-N9/2 -> -0.6807040998 | Q9: =IF(MIN(Vin, -P9/(Coss_Q1+Coss_Q2)*0.00000002)<0, 0, MIN(Vin, -P9/(Coss_Q1+Coss_Q2)*0.00000002)) -> 12 | R9: =SQRT(K9^2+(N9^2)/12) -> 0.3930046953 | S9: =R9^2*Rdcr -> 0.0006950371073 | T9: =Core_Loss_Ch1 -> 0.3 | U9: =(T9+S9*(1+Ltc*(Ta-25)))/(1-S9*Ltc*ThetaCa) -> 0.3007117576 | V9: =N9/SQRT(12) -> 0.3930046953 | W9: =RCoutEsr*V9^2 -> 1.544526905e-05 | X9: =W9 -> 1.544526905e-05 | Y9: =SQRT(M9*(1-M9))*SQRT(K9^2+(N9^2)/12) -> 0.1619075473 | Z9: =RCinEsr*Y9^2 -> 0.000183498377 | AA9: =Z9 -> 0.000183498377 | AB9: =SQRT(M9)*SQRT(K9^2+(N9^2)/12) -> 0.3478332084 | AC9: =Rdson1*AB9^2 -> 0.0006896312631 | AD9: =(Vin*K9/2)*Fsw*(Tr_buck+Tf_buck) -> 0 | AE9: =(0.5*Coss_Q1*(Vin-Q9)^2-0.5*Coss_Q2*(Vin-Q9)^2+(Qoss_Q2*(Vin-Q9)/Vin)*Vin)*Fsw -> 0 | AF9: =IF(K9>N9/2,0,ABS(K9-N9/2)*Vsd_Q1*Deadtime*Fsw) -> 0.01467598039 | AG9: =(AF9+AE9+AD9+AC9*(1+RdsonTopTc*Ta-RdsonTopTc*25))/(1-AC9*RdsonTopTc*ThetaJA_Q1) -> 0.01536773127 | AH9: =SQRT((1-M9))*SQRT(K9^2+(N9^2)/12) -> 0.1829337301 | AI9: =Rdson2*AH9^2 -> 0.0001907490728 | AJ9: =IF(K9<N9/2,Deadtime*Fsw*IF(VfdSky_Q2>0,0,Vsd_Q2)*(K9+N9/2),2*Deadtime*Fsw*IF(VfdSky_Q2>0,0,Vsd_Q2)*K9) -> 0.01467598039 | AK9: =(AJ9+AI9*(1+RdsonBotTc*Ta-RdsonBotTc*25))/(1-AI9*RdsonBotTc*ThetaJA_Q2) -> 0.01486729665 | AL9: =2*Deadtime*Fsw*IF(VfdSky_Q2>0,VfdSky_Q2,Vsd_Q2)*K9 -> 0 | AM9: =IF(QrrSky_Q2>0,QrrSky_Q2,Qrr_Q2*K9/(Iout/Number_of_Phases))*Fsw*Vin -> 0 | AN9: =Rs*R9^2 -> 0.000617810762 | AO9: =Iq*Vin -> 0.00042 | AP9: =IF(Ext_VCC=1, (Qg_Q1+Qg_Q2)*Fsw*VCC, (Qg_Q1+Qg_Q2)*Fsw*Vin) -> 0.198 | AQ9: =(Vin-VCC)*Fsw*(Qg_Q1+Qg_Q2)+(RdsonDRT+RdsonDRT2)*Fsw*Qg_Q1*VCC/(RdsonDRT+2*Rgate1+RdsonDRT2)+(RdsonDRB+RdsonDRB2)*Fsw*Qg_Q2*VCC/(RdsonDRB+2*Rgate2+RdsonDRB2) -> 0.396 | AR9: =(Qg_Q1+Qg_Q2)*Fsw*(Vin-VCC) -> 0.2772 | AS9: =SUM(AO9:AP9) -> 0.19842 | AT9: =SUM(U9,X9,AA9,AG9,AK9,AL9,AM9,AS9,AN9) -> 0.5301835399 | AU9: =Vout*K9 -> 0 | AV9: =AU9/(AU9+AT9) -> 0 | AW9: =ThetaJA_Q1*BC9 -> 0.7683865634 | AX9: =ThetaJA_Q2*BD9 -> 0.7433648325 | AZ9: =AV9*100 -> 0 | BA9: =U9 -> 0.3007117576 | BB9: =AG9+AK9+AM9 -> 0.03023502792 | BC9: =AG9+AM9*0.66 -> 0.01536773127 | BD9: =AK9+AM9*0.33 -> 0.01486729665 | BE9: =AN9 -> 0.000617810762
G10: 1 | H10: 12 | I10: 2 | J10: =Iout*G10/100 -> 0.015 | K10: 0.00375 | L10: 0.003263888889 | M10: 0.7833367917 | N10: 1.361394182 | O10: =K10+N10/2 -> 0.6844470908 | P10: =K10-N10/2 -> -0.6769470908 | Q10: 12 | R10: =SQRT(K10^2+(N10^2)/12) -> 0.3930185394 | S10: 0.0006950860754 | T10: 0.3 | U10: 0.3007118077 | V10: =N10/SQRT(12) -> 0.3930006486 | W10: 1.544495098e-05 | X10: =W10 -> 1.544495098e-05 | Y10: =SQRT(M10*(1-M10))*SQRT(K10^2+(N10^2)/12) -> 0.1619123159 | Z10: 0.0001835091863 | AA10: =Z10 -> 0.0001835091863 | AB10: =SQRT(M10)*SQRT(K10^2+(N10^2)/12) -> 0.3478462292 | AC10: 0.0006896828952 | AD10: 0.0002599185921 | AE10: 0 | AF10: 0.01459497928 | AG10: 0.01554672523 | AH10: 0.1829387142 | AI10: 0.0001907594669 | AJ10: 0.01475667928 | AK10: 0.01494800904 | AL10: 0.0001617 | AM10: 0.005808 | AN10: 0.0006178542892 | AO10: 0.00042 | AP10: 0.198 | AQ10: 0.396 | AR10: 0.2772 | AS10: 0.19842 | AT10: 0.5364130504 | AU10: 0.03525 | AV10: =AU10/(AU10+AT10) -> 0.06166219764 | AW10: 0.9690002614 | AX10: 0.843232452 | AZ10: =AV10*100 -> 6.166219764 | BA10: 0.3007118077 | BB10: 0.03630273427 | BC10: 0.01938000523 | BD10: 0.01686464904 | BE10: 0.0006178542892
A11: Vin | B11: =Vin -> 12 | C11: V | D11: Vin | G11: 2 | H11: 12 | I11: 2 | J11: 0.03 | K11: 0.0075 | L11: 0.006527777778 | M11: 0.78334025 | N11: 1.361380163 | O11: 0.6881900817 | P11: -0.6731900817 | Q11: 12 | R11: 0.3930681609 | S11: 0.000695261606 | T11: 0.3 | U11: 0.3007119875 | V11: 0.3929966019 | W11: 1.544463291e-05 | X11: 1.544463291e-05 | Y11: 0.1619318236 | Z11: 0.0001835534085 | AA11: 0.0001835534085 | AB11: 0.3478909153 | AC11: 0.000689860107 | AD11: 0.0005198371841 | AE11: 0 | AF11: 0.01451397816 | AG11: 0.01572584518 | AH11: 0.1829603513 | AI11: 0.0001908045939 | AJ11: 0.01483737816 | AK11: 0.01502875627 | AL11: 0.0003234 | AM11: 0.011616 | AN11: 0.0006180103164 | AO11: 0.00042 | AP11: 0.198 | AQ11: 0.396 | AR11: 0.2772 | AS11: 0.19842 | AT11: 0.5426429973 | AU11: 0.0705 | AV11: 0.1149813344 | AW11: 1.169620259 | AX11: 0.9431018133 | AZ11: 11.49813344 | BA11: 0.3007119875 | BB11: 0.04237060145 | BC11: 0.02339240518 | BD11: 0.01886203627 | BE11: 0.0006180103164
A12: Vout | B12: =Vout -> 9.4 | C12: V | D12: Vout | G12: 3 | H12: 12 | I12: 2 | J12: 0.045 | K12: 0.01125 | L12: 0.009791666667 | M12: 0.7833437083 | N12: 1.361366145 | O12: 0.6919330725 | P12: -0.6694330725 | Q12: 12 | R12: 0.3931535462 | S12: 0.000695563699 | T12: 0.3 | U12: 0.3007122969 | V12: 0.3929925551 | W12: 1.544431484e-05 | X12: 1.544431484e-05 | Y12: 0.1619660646 | Z12: 0.0001836310425 | AA12: 0.0001836310425 | AB12: 0.347967255 | AC12: 0.0006901629 | AD12: 0.0007797557762 | AE12: 0 | AF12: 0.01443297704 | AG12: 0.01590509114 | AH12: 0.1829986349 | AI12: 0.0001908844521 | AJ12: 0.01491807704 | AK12: 0.01510953833 | AL12: 0.0004851 | AM12: 0.017424 | AN12: 0.0006182788436 | AO12: 0.00042 | AP12: 0.198 | AQ12: 0.396 | AR12: 0.2772 | AS12: 0.19842 | AT12: 0.5488733805 | AU12: 0.10575 | AV12: 0.1615432677 | AW12: 1.370246557 | AX12: 1.042972917 | AZ12: 16.15432677 | BA12: 0.3007122969 | BB12: 0.04843862947 | BC12: 0.02740493114 | BD12: 0.02085945833 | BE12: 0.0006182788436
A13: Fsw | B13: =Fsw/1000 -> 2200 | C13: kHz | D13: Switching Frequency | G13: 4 | H13: 12 | I13: 2 | J13: 0.06 | K13: 0.015 | L13: 0.01305555556 | M13: 0.7833471666 | N13: 1.361352126 | O13: 0.6956760632 | P13: -0.6656760632 | Q13: 12 | R13: 0.393274672 | S13: 0.0006959923545 | T13: 0.3 | U13: 0.3007127359 | V13: 0.3929885083 | W13: 1.544399677e-05 | X13: 1.544399677e-05 | Y13: 0.1620150289 | Z13: 0.0001837420871 | AA13: 0.0001837420871 | AB13: 0.3480752278 | AC13: 0.0006905912759 | AD13: 0.001039674368 | AE13: 0 | AF13: 0.01435197592 | AG13: 0.01608446312 | AH13: 0.1830535536 | AI13: 0.0001909990398 | AJ13: 0.01499877592 | AK13: 0.01519035523 | AL13: 0.0006468 | AM13: 0.023232 | AN13: 0.0006186598706 | AO13: 0.00042 | AP13: 0.198 | AQ13: 0.396 | AR13: 0.2772 | AS13: 0.19842 | AT13: 0.5551042002 | AU13: 0.141 | AV13: 0.2025558817 | AW13: 1.570879156 | AX13: 1.142845762 | AZ13: 20.25558817 | BA13: 0.3007127359 | BB13: 0.05450681835 | BC13: 0.03141758312 | BD13: 0.02285691523 | BE13: 0.0006186598706
A14: Iout | B14: =Iout -> 1.5 | C14: A | D14: Max Output Current | G14: 5 | H14: 12 | I14: 2 | J14: 0.075 | K14: 0.01875 | L14: 0.01631944444 | M14: 0.7833506249 | N14: 1.361338108 | O14: 0.6994190538 | P14: -0.6619190538 | Q14: 12 | R14: 0.3934315054 | S14: 0.0006965475724 | T14: 0.3 | U14: 0.3007133045 | V14: 0.3929844614 | W14: 1.544367869e-05 | X14: 1.544367869e-05 | Y14: 0.1620787028 | Z14: 0.0001838865412 | AA14: 0.0001838865412 | AB14: 0.3482148048 | AC14: 0.0006911452364 | AD14: 0.00129959296 | AE14: 0 | AF14: 0.0142709748 | AG14: 0.01626396115 | AH14: 0.1831250916 | AI14: 0.0001911483553 | AJ14: 0.0150794748 | AK14: 0.01527120697 | AL14: 0.0008085 | AM14: 0.02904 | AN14: 0.0006191533977 | AO14: 0.00042 | AP14: 0.198 | AQ14: 0.396 | AR14: 0.2772 | AS14: 0.19842 | AT14: 0.5613354562 | AU14: 0.17625 | AV14: 0.2389553624 | AW14: 1.771518057 | AX14: 1.242720348 | AZ14: 23.89553624 | BA14: 0.3007133045 | BB14: 0.06057516812 | BC14: 0.03543036115 | BD14: 0.02485440697 | BE14: 0.0006191533977
A15: Ta | B15: =Ta -> 25 | C15: °C | D15: Ambient Temperature | G15: 6 | H15: 12 | I15: 2 | J15: 0.09 | K15: 0.0225 | L15: 0.01958333333 | M15: 0.7833540832 | N15: 1.361324089 | O15: 0.7031620443 | P15: -0.6581620443 | Q15: 12 | R15: 0.3936240036 | S15: 0.0006972293528 | T15: 0.3 | U15: 0.3007140027 | V15: 0.3929804145 | W15: 1.544336062e-05 | X15: 1.544336062e-05 | Y15: 0.1621570683 | Z15: 0.0001840644037 | AA15: 0.0001840644037 | AB15: 0.3483859483 | AC15: 0.0006918247832 | AD15: 0.001559511552 | AE15: 0 | AF15: 0.01418997367 | AG15: 0.01644358523 | AH15: 0.1832132288 | AI15: 0.000191332397 | AJ15: 0.01516017367 | AK15: 0.01535209354 | AL15: 0.0009702 | AM15: 0.034848 | AN15: 0.0006197594247 | AO15: 0.00042 | AP15: 0.198 | AQ15: 0.396 | AR15: 0.2772 | AS15: 0.19842 | AT15: 0.5675671486 | AU15: 0.2115 | AV15: 0.2714785245 | AW15: 1.972163261 | AX15: 1.342596677 | AZ15: 27.14785245 | BA15: 0.3007140027 | BB15: 0.06664367877 | BC15: 0.03944326523 | BD15: 0.02685193354 | BE15: 0.0006197594247
A16: Vcc | B16: =VCC -> 5 | C16: V | D16: Subregulated VCC Voltage | G16: 7 | H16: 12 | I16: 2 | J16: 0.105 | K16: 0.02625 | L16: 0.02284722222 | M16: 0.7833575415 | N16: 1.361310069 | O16: 0.7069050347 | P16: -0.6544050347 | Q16: 12 | R16: 0.3938521143 | S16: 0.0006980376956 | T16: 0.3 | U16: 0.3007148305 | V16: 0.3929763675 | W16: 1.544304254e-05 | X16: 1.544304254e-05 | Y16: 0.1622501038 | Z16: 0.0001842756733 | AA16: 0.0001842756733 | AB16: 0.3485886124 | AC16: 0.0006926299179 | AD16: 0.001819430145 | AE16: 0 | AF16: 0.01410897255 | AG16: 0.01662333537 | AH16: 0.1833179403 | AI16: 0.0001915511632 | AJ16: 0.01524087255 | AK16: 0.01543301495 | AL16: 0.0011319 | AM16: 0.040656 | AN16: 0.0006204779517 | AO16: 0.00042 | AP16: 0.198 | AQ16: 0.396 | AR16: 0.2772 | AS16: 0.19842 | AT16: 0.5737992775 | AU16: 0.24675 | AV16: 0.3007132012 | AW16: 2.172814769 | AX16: 1.442474748 | AZ16: 30.07132012 | BA16: 0.3007148305 | BB16: 0.07271235033 | BC16: 0.04345629537 | BD16: 0.02884949495 | BE16: 0.0006204779517
A17: Components | B17: Input Value | C17: Units | D17: Description | G17: 8 | H17: 12 | I17: 2 | J17: 0.12 | K17: 0.03 | L17: 0.02611111111 | M17: 0.7833609997 | N17: 1.36129605 | O17: 0.710648025 | P17: -0.650648025 | Q17: 12 | R17: 0.3941157757 | S17: 0.0006989726009 | T17: 0.3 | U17: 0.300715788 | V17: 0.3929723205 | W17: 1.544272446e-05 | X17: 1.544272446e-05 | Y17: 0.1623577835 | Z17: 0.000184520349 | AA17: 0.000184520349 | AB17: 0.3488227425 | AC17: 0.0006935606422 | AD17: 0.002079348737 | AE17: 0 | AF17: 0.01402797142 | AG17: 0.01680321161 | AH17: 0.183439197 | AI17: 0.0001918046523 | AJ17: 0.01532157142 | AK17: 0.0155139712 | AL17: 0.0012936 | AM17: 0.046464 | AN17: 0.0006213089786 | AO17: 0.00042 | AP17: 0.198 | AQ17: 0.396 | AR17: 0.2772 | AS17: 0.19842 | AT17: 0.5800318428 | AU17: 0.282 | AV17: 0.3271340872 | AW17: 2.37347258 | AX17: 1.54235456 | AZ17: 32.71340872 | BA17: 0.300715788 | BB17: 0.07878118281 | BC17: 0.04746945161 | BD17: 0.0308470912 | BE17: 0.0006213089786
A18: L | B18: =Lf*1000000 -> 0.68 | C18: uH | D18: Filter Inductance | G18: 9 | H18: 12 | I18: 2 | J18: 0.135 | K18: 0.03375 | L18: 0.029375 | M18: 0.783364458 | N18: 1.36128203 | O18: 0.7143910152 | P18: -0.6468910152 | Q18: 12 | R18: 0.3944149165 | S18: 0.0007000340687 | T18: 0.3 | U18: 0.300716875 | V18: 0.3929682734 | W18: 1.544240639e-05 | X18: 1.544240639e-05 | Y18: 0.1624800777 | Z18: 0.0001847984295 | AA18: 0.0001847984295 | AB18: 0.3490882756 | AC18: 0.0006946169578 | AD18: 0.002339267329 | AE18: 0 | AF18: 0.01394697029 | AG18: 0.01698321394 | AH18: 0.1835769653 | AI18: 0.0001920928625 | AJ18: 0.01540227029 | AK18: 0.01559496229 | AL18: 0.0014553 | AM18: 0.052272 | AN18: 0.0006222525055 | AO18: 0.00042 | AP18: 0.198 | AQ18: 0.396 | AR18: 0.2772 | AS18: 0.19842 | AT18: 0.5862648446 | AU18: 0.31725 | AV18: 0.351128708 | AW18: 2.574136697 | AX18: 1.642236114 | AZ18: 35.1128708 | BA18: 0.300716875 | BB18: 0.08485017623 | BC18: 0.05148273394 | BD18: 0.03284472229 | BE18: 0.0006222525055
A19: Rdcr | B19: =Rdcr*1000 -> 4.5 | C19: mW | D19: Inductor DCR at 25°C | G19: 10 | H19: 12 | I19: 2 | J19: 0.15 | K19: 0.0375 | L19: 0.03263888889 | M19: 0.7833679162 | N19: 1.361268011 | O19: 0.7181340053 | P19: -0.6431340053 | Q19: 12 | R19: 0.3947494561 | S19: 0.0007012220988 | T19: 0.3 | U19: 0.3007180917 | V19: 0.3929642262 | W19: 1.544208831e-05 | X19: 1.544208831e-05 | Y19: 0.1626169529 | Z19: 0.0001851099137 | AA19: 0.0001851099137 | AB19: 0.3493851407 | AC19: 0.0006957988662 | AD19: 0.002599185921 | AE19: 0 | AF19: 0.01386596916 | AG19: 0.01716334239 | AH19: 0.1837312073 | AI19: 0.0001924157923 | AJ19: 0.01548296916 | AK19: 0.01567598821 | AL19: 0.001617 | AM19: 0.05808 | AN19: 0.0006233085323 | AO19: 0.00042 | AP19: 0.198 | AQ19: 0.396 | AR19: 0.2772 | AS19: 0.19842 | AT19: 0.5924982828 | AU19: 0.3525 | AV19: 0.3730165508 | AW19: 2.774807119 | AX19: 1.74211941 | AZ19: 37.30165508 | BA19: 0.3007180917 | BB19: 0.0909193306 | BC19: 0.05549614239 | BD19: 0.03484238821 | BE19: 0.0006233085323
A20: LTc | B20: =Ltc*1000000 -> 4000 | C20: ppm | D20: Inductor Series Resistance Temp Co | G20: 11 | H20: 12 | I20: 2 | J20: 0.165 | K20: 0.04125 | L20: 0.03590277778 | M20: 0.7833713745 | N20: 1.361253991 | O20: 0.7218769954 | P20: -0.6393769954 | Q20: 12 | R20: 0.3951193045 | S20: 0.0007025366915 | T20: 0.3 | U20: 0.300719438 | V20: 0.392960179 | W20: 1.544177023e-05 | X20: 1.544177023e-05 | Y20: 0.162768372 | Z20: 0.0001854548004 | AA20: 0.0001854548004 | AB20: 0.3497132583 | AC20: 0.0006971063693 | AD20: 0.002859104513 | AE20: 0 | AF20: 0.01378496802 | AG20: 0.01734359697 | AH20: 0.1839018808 | AI20: 0.0001927734399 | AJ20: 0.01556366802 | AK20: 0.01575704897 | AL20: 0.0017787 | AM20: 0.063888 | AN20: 0.0006244770591 | AO20: 0.00042 | AP20: 0.198 | AQ20: 0.396 | AR20: 0.2772 | AS20: 0.19842 | AT20: 0.5987321576 | AU20: 0.38775 | AV20: 0.3930633687 | AW20: 2.975483848 | AX20: 1.842004448 | AZ20: 39.30633687 | BA20: 0.300719438 | BB20: 0.09698864594 | BC20: 0.05950967697 | BD20: 0.03684008897 | BE20: 0.0006244770591
A21: ThetaCa | B21: =ThetaCa -> 20 | C21: °C/W | D21: Core to Ambient Thermal Resistance | G21: 12 | H21: 12 | I21: 2 | J21: 0.18 | K21: 0.045 | L21: 0.03916666667 | M21: 0.7833748327 | N21: 1.361239971 | O21: 0.7256199853 | P21: -0.6356199853 | Q21: 12 | R21: 0.3955243627 | S21: 0.0007039778466 | T21: 0.3 | U21: 0.3007209139 | V21: 0.3929561317 | W21: 1.544145215e-05 | X21: 1.544145215e-05 | Y21: 0.1629342937 | Z21: 0.0001858330885 | AA21: 0.0001858330885 | AB21: 0.350072541 | AC21: 0.0006985394685 | AD21: 0.003119023105 | AE21: 0 | AF21: 0.01370396688 | AG21: 0.01752397769 | AH21: 0.1840889391 | AI21: 0.0001931658038 | AJ21: 0.01564436688 | AK21: 0.01583814456 | AL21: 0.0019404 | AM21: 0.069696 | AN21: 0.0006257580858 | AO21: 0.00042 | AP21: 0.198 | AQ21: 0.396 | AR21: 0.2772 | AS21: 0.19842 | AT21: 0.6049664688 | AU21: 0.423 | AV21: 0.4114920212 | AW21: 3.176166885 | AX21: 1.941891228 | AZ21: 41.14920212 | BA21: 0.3007209139 | BB21: 0.1030581223 | BC21: 0.06352333769 | BD21: 0.03883782456 | BE21: 0.0006257580858
A22: Cin | B22: =Cin*1000000 -> 100 | C22: μF | D22: Input Capacitance | G22: 13 | H22: 12 | I22: 2 | J22: 0.195 | K22: 0.04875 | L22: 0.04243055556 | M22: 0.7833782909 | N22: 1.36122595 | O22: 0.7293629751 | P22: -0.6318629751 | Q22: 12 | R22: 0.3959645226 | S22: 0.0007055455641 | T22: 0.3 | U22: 0.3007225194 | V22: 0.3929520844 | W22: 1.544113406e-05 | X22: 1.544113406e-05 | Y22: 0.1631146735 | Z22: 0.0001862447769 | AA22: 0.0001862447769 | AB22: 0.3504628933 | AC22: 0.0007000981657 | AD22: 0.003378941697 | AE22: 0 | AF22: 0.01362296574 | AG22: 0.01770448458 | AH22: 0.1842923317 | AI22: 0.0001935928822 | AJ22: 0.01572506574 | AK22: 0.015919275 | AL22: 0.0021021 | AM22: 0.075504 | AN22: 0.0006271516125 | AO22: 0.00042 | AP22: 0.198 | AQ22: 0.396 | AR22: 0.2772 | AS22: 0.19842 | AT22: 0.6112012165 | AU22: 0.45825 | AV22: 0.4284907931 | AW22: 3.376856229 | AX22: 2.04177975 | AZ22: 42.84907931 | BA22: 0.3007225194 | BB22: 0.1091277596 | BC22: 0.06753712458 | BD22: 0.040835595 | BE22: 0.0006271516125
A23: RCinEsr | B23: =RCinEsr*1000 -> 7 | C23: mW | D23: Input Capacitor ESR | G23: 14 | H23: 12 | I23: 2 | J23: 0.21 | K23: 0.0525 | L23: 0.04569444444 | M23: 0.7833817492 | N23: 1.36121193 | O23: 0.7331059649 | P23: -0.6281059649 | Q23: 12 | R23: 0.3964396673 | S23: 0.0007072398441 | T23: 0.3 | U23: 0.3007242546 | V23: 0.392948037 | W23: 1.544081598e-05 | X23: 1.544081598e-05 | Y23: 0.1633094627 | Z23: 0.0001866898643 | AA23: 0.0001866898643 | AB23: 0.350884212 | AC23: 0.0007017824625 | AD23: 0.003638860289 | AE23: 0 | AF23: 0.0135419646 | AG23: 0.01788511765 | AH23: 0.1845120038 | AI23: 0.0001940546734 | AJ23: 0.0158057646 | AK23: 0.01600044027 | AL23: 0.0022638 | AM23: 0.081312 | AN23: 0.0006286576392 | AO23: 0.00042 | AP23: 0.198 | AQ23: 0.396 | AR23: 0.2772 | AS23: 0.19842 | AT23: 0.6174364008 | AU23: 0.4935 | AV23: 0.4442198488 | AW23: 3.577551882 | AX23: 2.141670013 | AZ23: 44.42198488 | BA23: 0.3007242546 | BB23: 0.1151975579 | BC23: 0.07155103765 | BD23: 0.04283340027 | BE23: 0.0006286576392
A24: Cout | B24: =Cout*1000000 -> 188 | C24: μF | D24: Output Capcitance | G24: 15 | H24: 12 | I24: 2 | J24: 0.225 | K24: 0.05625 | L24: 0.04895833333 | M24: 0.7833852074 | N24: 1.361197909 | O24: 0.7368489545 | P24: -0.6243489545 | Q24: 12 | R24: 0.3969496712 | S24: 0.0007090606866 | T24: 0.3 | U24: 0.3007261193 | V24: 0.3929439896 | W24: 1.54404979e-05 | X24: 1.54404979e-05 | Y24: 0.1635186095 | Z24: 0.0001871683496 | AA24: 0.0001871683496 | AB24: 0.3513363861 | AC24: 0.0007035923604 | AD24: 0.003898778881 | AE24: 0 | AF24: 0.01346096346 | AG24: 0.0180658769 | AH24: 0.1847478964 | AI24: 0.0001945511759 | AJ24: 0.01588646346 | AK24: 0.01608164038 | AL24: 0.0024255 | AM24: 0.08712 | AN24: 0.0006302761658 | AO24: 0.00042 | AP24: 0.198 | AQ24: 0.396 | AR24: 0.2772 | AS24: 0.19842 | AT24: 0.6236720216 | AU24: 0.52875 | AV24: 0.4588162931 | AW24: 3.778253845 | AX24: 2.241562019 | AZ24: 45.88162931 | BA24: 0.3007261193 | BB24: 0.1212675173 | BC24: 0.0755650769 | BD24: 0.04483124038 | BE24: 0.0006302761658
A25: RCoutEsr | B25: =Cout_ESR*1000 -> 0.1 | C25: mW | D25: Output Capacitor ESR | G25: 16 | H25: 12 | I25: 2 | J25: 0.24 | K25: 0.06 | L25: 0.05222222222 | M25: 0.7833886656 | N25: 1.361183888 | O25: 0.740591944 | P25: -0.620591944 | Q25: 12 | R25: 0.3974944001 | S25: 0.0007110080915 | T25: 0.3 | U25: 0.3007281137 | V25: 0.3929399421 | W25: 1.544017981e-05 | X25: 1.544017981e-05 | Y25: 0.1637420583 | Z25: 0.0001876802317 | AA25: 0.0001876802317 | AB25: 0.351819297 | AC25: 0.0007055278613 | AD25: 0.004158697473 | AE25: 0 | AF25: 0.01337996231 | AG25: 0.01824676237 | AH25: 0.1849999468 | AI25: 0.0001950823879 | AJ25: 0.01596716231 | AK25: 0.01616287532 | AL25: 0.0025872 | AM25: 0.092928 | AN25: 0.0006320071924 | AO25: 0.00042 | AP25: 0.198 | AQ25: 0.396 | AR25: 0.2772 | AS25: 0.19842 | AT25: 0.629908079 | AU25: 0.564 | AV25: 0.472398177 | AW25: 3.978962118 | AX25: 2.341455766 | AZ25: 47.2398177 | BA25: 0.3007281137 | BB25: 0.1273376377 | BC25: 0.07957924237 | BD25: 0.04682911532 | BE25: 0.0006320071924
A26: Top Driver | B26: Input Value | C26: Units | D26: Description | G26: 17 | H26: 12 | I26: 2 | J26: 0.255 | K26: 0.06375 | L26: 0.05548611111 | M26: 0.7833921238 | N26: 1.361169867 | O26: 0.7443349335 | P26: -0.6168349335 | Q26: 12 | R26: 0.3980737114 | S26: 0.0007130820588 | T26: 0.3 | U26: 0.3007302377 | V26: 0.3929358946 | W26: 1.543986172e-05 | X26: 1.543986172e-05 | Y26: 0.1639797502 | Z26: 0.0001882255094 | AA26: 0.0001882255094 | AB26: 0.3523328188 | AC26: 0.0007075889667 | AD26: 0.004418616065 | AE26: 0 | AF26: 0.01329896117 | AG26: 0.01842777406 | AH26: 0.1852680882 | AI26: 0.0001956483078 | AJ26: 0.01604786117 | AK26: 0.0162441451 | AL26: 0.0027489 | AM26: 0.098736 | AN26: 0.0006338507189 | AO26: 0.00042 | AP26: 0.198 | AQ26: 0.396 | AR26: 0.2772 | AS26: 0.19842 | AT26: 0.6361445729 | AU26: 0.59925 | AV26: 0.4850676967 | AW26: 4.179676703 | AX26: 2.441351255 | AZ26: 48.50676967 | BA26: 0.3007302377 | BB26: 0.1334079192 | BC26: 0.08359353406 | BD26: 0.0488270251 | BE26: 0.0006338507189
A27: RdsonDRT | B27: =RdsonDRT -> 1 | C27: W | D27: Drain to Source Resistance of pullup Top FET Driver | G27: 18 | H27: 12 | I27: 2 | J27: 0.27 | K27: 0.0675 | L27: 0.05875 | M27: 0.7833955819 | N27: 1.361155846 | O27: 0.7480779228 | P27: -0.6130779228 | Q27: 12 | R27: 0.3986874545 | S27: 0.0007152825886 | T27: 0.3 | U27: 0.3007324913 | V27: 0.392931847 | W27: 1.543954364e-05 | X27: 1.543954364e-05 | Y27: 0.1642316228 | Z27: 0.0001888041815 | AA27: 0.0001888041815 | AB27: 0.3528768182 | AC27: 0.0007097756783 | AD27: 0.004678534657 | AE27: 0 | AF27: 0.01321796002 | AG27: 0.01860891198 | AH27: 0.1855522501 | AI27: 0.0001962489339 | AJ27: 0.01612856002 | AK27: 0.01632544972 | AL27: 0.0029106 | AM27: 0.104544 | AN27: 0.0006358067454 | AO27: 0.00042 | AP27: 0.198 | AQ27: 0.396 | AR27: 0.2772 | AS27: 0.19842 | AT27: 0.6423815035 | AU27: 0.6345 | AV27: 0.4969137686 | AW27: 4.380397599 | AX27: 2.541248486 | AZ27: 49.69137686 | BA27: 0.3007324913 | BB27: 0.1394783617 | BC27: 0.08760795198 | BD27: 0.05082496972 | BE27: 0.0006358067454
A28: RdsonDRT2 | B28: =RdsonDRT2 -> 0.5 | C28: W | D28: Drain to Source Resistance of pulldown Top FET Driver | G28: 19 | H28: 12 | I28: 2 | J28: 0.285 | K28: 0.07125 | L28: 0.06201388889 | M28: 0.7833990401 | N28: 1.361141824 | O28: 0.7518209121 | P28: -0.6093209121 | Q28: 12 | R28: 0.3993354705 | S28: 0.0007176096809 | T28: 0.3 | U28: 0.3007348745 | V28: 0.3929277993 | W28: 1.543922555e-05 | X28: 1.543922555e-05 | Y28: 0.1644976104 | Z28: 0.0001894162469 | AA28: 0.0001894162469 | AB28: 0.3534511549 | AC28: 0.0007120879979 | AD28: 0.004938453249 | AE28: 0 | AF28: 0.01313695887 | AG28: 0.01879017616 | AH28: 0.1858523582 | AI28: 0.0001968842646 | AJ28: 0.01620925887 | AK28: 0.01640678918 | AL28: 0.0030723 | AM28: 0.110352 | AN28: 0.0006378752719 | AO28: 0.00042 | AP28: 0.198 | AQ28: 0.396 | AR28: 0.2772 | AS28: 0.19842 | AT28: 0.6486188706 | AU28: 0.66975 | AV28: 0.5080141188 | AW28: 4.581124808 | AX28: 2.641147459 | AZ28: 50.80141188 | BA28: 0.3007348745 | BB28: 0.1455489653 | BC28: 0.09162249616 | BD28: 0.05282294918 | BE28: 0.0006378752719
A29: Bottom Driver | B29: Input Value | C29: Units | D29: Description | G29: 20 | H29: 12 | I29: 2 | J29: 0.3 | K29: 0.075 | L29: 0.06527777778 | M29: 0.7834024983 | N29: 1.361127803 | O29: 0.7555639013 | P29: -0.6055639013 | Q29: 12 | R29: 0.4000175928 | S29: 0.0007200633356 | T29: 0.3 | U29: 0.3007373873 | V29: 0.3929237516 | W29: 1.543890746e-05 | X29: 1.543890746e-05 | Y29: 0.1647776443 | Z29: 0.0001900617044 | AA29: 0.0001900617044 | AB29: 0.3540556817 | AC29: 0.0007145259269 | AD29: 0.005198371841 | AE29: 0 | AF29: 0.01305595771 | AG29: 0.01897156661 | AH29: 0.1861683346 | AI29: 0.0001975542981 | AJ29: 0.01628995771 | AK29: 0.01648816347 | AL29: 0.003234 | AM29: 0.11616 | AN29: 0.0006400562983 | AO29: 0.00042 | AP29: 0.198 | AQ29: 0.396 | AR29: 0.2772 | AS29: 0.19842 | AT29: 0.6548566743 | AU29: 0.705 | AV29: 0.5184369892 | AW29: 4.781858331 | AX29: 2.741048174 | AZ29: 51.84369892 | BA29: 0.3007373873 | BB29: 0.1516197301 | BC29: 0.09563716661 | BD29: 0.05482096347 | BE29: 0.0006400562983
A30: RdsonDRB | B30: =RdsonDRB -> 1 | C30: W | D30: Drain to Source Resistance of pullup Bottom FET Driver | G30: 21 | H30: 12 | I30: 2 | J30: 0.315 | K30: 0.07875 | L30: 0.06854166667 | M30: 0.7834059564 | N30: 1.361113781 | O30: 0.7593068903 | P30: -0.6018068903 | Q30: 12 | R30: 0.4007336474 | S30: 0.0007226435527 | T30: 0.3 | U30: 0.3007400298 | V30: 0.3929197038 | W30: 1.543858937e-05 | X30: 1.543858937e-05 | Y30: 0.1650716523 | Z30: 0.0001907405528 | AA30: 0.0001907405528 | AB30: 0.3546902447 | AC30: 0.0007170894672 | AD30: 0.005458290434 | AE30: 0 | AF30: 0.01297495656 | AG30: 0.01915308335 | AH30: 0.1865000978 | AI30: 0.0001982590329 | AJ30: 0.01637065656 | AK30: 0.0165695726 | AL30: 0.0033957 | AM30: 0.121968 | AN30: 0.0006423498246 | AO30: 0.00042 | AP30: 0.198 | AQ30: 0.396 | AR30: 0.2772 | AS30: 0.19842 | AT30: 0.6610949147 | AU30: 0.74025 | AV30: 0.528242542 | AW30: 4.982598168 | AX30: 2.84095063 | AZ30: 52.8242542 | BA30: 0.3007400298 | BB30: 0.157690656 | BC30: 0.09965196335 | BD30: 0.0568190126 | BE30: 0.0006423498246
A31: RdsonDRB2 | B31: 1 | C31: W | D31: Drain to Source Resistance of pulldown Bottom FET Driver | G31: 22 | H31: 12 | I31: 2 | J31: 0.33 | K31: 0.0825 | L31: 0.07180555556 | M31: 0.7834094146 | N31: 1.361099759 | O31: 0.7630498793 | P31: -0.5980498793 | Q31: 12 | R31: 0.4014834526 | S31: 0.0007253503323 | T31: 0.3 | U31: 0.3007428018 | V31: 0.392915656 | W31: 1.543827127e-05 | X31: 1.543827127e-05 | Y31: 0.1653795596 | Z31: 0.0001914527911 | AA31: 0.0001914527911 | AB31: 0.3553546833 | AC31: 0.0007197786203 | AD31: 0.005718209026 | AE31: 0 | AF31: 0.0128939554 | AG31: 0.01933472639 | AH31: 0.186847563 | AI31: 0.0001989984673 | AJ31: 0.0164513554 | AK31: 0.01665101657 | AL31: 0.0035574 | AM31: 0.127776 | AN31: 0.000644755851 | AO31: 0.00042 | AP31: 0.198 | AQ31: 0.396 | AR31: 0.2772 | AS31: 0.19842 | AT31: 0.6673335917 | AU31: 0.7755 | AV31: 0.5374840206 | AW31: 5.183344319 | AX31: 2.940854829 | AZ31: 53.74840206 | BA31: 0.3007428018 | BB31: 0.163761743 | BC31: 0.1036668864 | BD31: 0.05881709657 | BE31: 0.000644755851
A32: Deadtime | B32: Input Value | C32: Units | D32: Description | G32: 23 | H32: 12 | I32: 2 | J32: 0.345 | K32: 0.08625 | L32: 0.07506944444 | M32: 0.7834128727 | N32: 1.361085736 | O32: 0.7667928682 | P32: -0.5942928682 | Q32: 12 | R32: 0.4022668198 | S32: 0.0007281836744 | T32: 0.3 | U32: 0.3007457035 | V32: 0.3929116081 | W32: 1.543795318e-05 | X32: 1.543795318e-05 | Y32: 0.165701288 | Z32: 0.000192198418 | AA32: 0.000192198418 | AB32: 0.3560488307 | AC32: 0.000722593388 | AD32: 0.005978127618 | AE32: 0 | AF32: 0.01281295424 | AG32: 0.01951649574 | AH32: 0.187210642 | AI32: 0.0001997725996 | AJ32: 0.01653205424 | AK32: 0.01673249538 | AL32: 0.0037191 | AM32: 0.133584 | AN32: 0.0006472743772 | AO32: 0.00042 | AP32: 0.198 | AQ32: 0.396 | AR32: 0.2772 | AS32: 0.19842 | AT32: 0.6735727054 | AU32: 0.81075 | AV32: 0.5462087166 | AW32: 5.384096787 | AX32: 3.040760769 | AZ32: 54.62087166 | BA32: 0.3007457035 | BB32: 0.1698329911 | BC32: 0.1076819357 | BD32: 0.06081521538 | BE32: 0.0006472743772
A33: Deadtime | B33: =Deadtime*1000000000 -> 14 | C33: ns | D33: Total Deadtime | G33: 24 | H33: 12 | I33: 2 | J33: 0.36 | K33: 0.09 | L33: 0.07833333333 | M33: 0.7834163308 | N33: 1.361071714 | O33: 0.770535857 | P33: -0.590535857 | Q33: 12 | R33: 0.4030835532 | S33: 0.0007311435789 | T33: 0.3 | U33: 0.3007487348 | V33: 0.3929075602 | W33: 1.543763509e-05 | X33: 1.543763509e-05 | Y33: 0.1660367569 | Z33: 0.0001929774324 | AA33: 0.0001929774324 | AB33: 0.3567725139 | AC33: 0.0007255337719 | AD33: 0.00623804621 | AE33: 0 | AF33: 0.01273195308 | AG33: 0.01969839143 | AH33: 0.1875892434 | AI33: 0.0002005814281 | AJ33: 0.01661275308 | AK33: 0.01681400902 | AL33: 0.0038808 | AM33: 0.139392 | AN33: 0.0006499054035 | AO33: 0.00042 | AP33: 0.198 | AQ33: 0.396 | AR33: 0.2772 | AS33: 0.19842 | AT33: 0.6798122557 | AU33: 0.846 | AV33: 0.5544587788 | AW33: 5.584855571 | AX33: 3.140668451 | AZ33: 55.44587788 | BA33: 0.3007487348 | BB33: 0.1759044004 | BC33: 0.1116971114 | BD33: 0.06281336902 | BE33: 0.0006499054035
A34: IQ | B34: Input Value | C34: Units | D34: Description | G34: 25 | H34: 12 | I34: 2 | J34: 0.375 | K34: 0.09375 | L34: 0.08159722222 | M34: 0.783419789 | N34: 1.361057691 | O34: 0.7742788456 | P34: -0.5867788456 | Q34: 12 | R34: 0.4039334505 | S34: 0.0007342300459 | T34: 0.3 | U34: 0.3007518957 | V34: 0.3929035122 | W34: 1.543731699e-05 | X34: 1.543731699e-05 | Y34: 0.1663858825 | Z34: 0.0001937898332 | AA34: 0.0001937898332 | AB34: 0.3575255539 | AC34: 0.0007285997736 | AD34: 0.006497964802 | AE34: 0 | AF34: 0.01265095191 | AG34: 0.01988041346 | AH34: 0.1879832725 | AI34: 0.0002014249512 | AJ34: 0.01669345191 | AK34: 0.0168955575 | AL34: 0.0040425 | AM34: 0.1452 | AN34: 0.0006526489297 | AO34: 0.00042 | AP34: 0.198 | AQ34: 0.396 | AR34: 0.2772 | AS34: 0.19842 | AT34: 0.6860522428 | AU34: 0.88125 | AV34: 0.5622718937 | AW34: 5.785620673 | AX34: 3.240577875 | AZ34: 56.22718937 | BA34: 0.3007518957 | BB34: 0.181975971 | BC34: 0.1157124135 | BD34: 0.0648115575 | BE34: 0.0006526489297
A35: IQ | B35: =Iq*1000 -> 0.035 | C35: mA | D35: Quiescent Current Of Controller (Not Switching!) | G35: 26 | H35: 12 | I35: 2 | J35: 0.39 | K35: 0.0975 | L35: 0.08486111111 | M35: 0.7834232471 | N35: 1.361043668 | O35: 0.7780218342 | P35: -0.5830218342 | Q35: 12 | R35: 0.4048163027 | S35: 0.0007374430753 | T35: 0.3 | U35: 0.3007551863 | V35: 0.3928994642 | W35: 1.543699889e-05 | X35: 1.543699889e-05 | Y35: 0.1667485785 | Z35: 0.0001946356191 | AA35: 0.0001946356191 | AB35: 0.3583077661 | AC35: 0.0007317913948 | AD35: 0.006757883394 | AE35: 0 | AF35: 0.01256995075 | AG35: 0.02006256186 | AH35: 0.1883926318 | AI35: 0.0002023031672 | AJ35: 0.01677415075 | AK35: 0.01697714082 | AL35: 0.0042042 | AM35: 0.151008 | AN35: 0.0006555049558 | AO35: 0.00042 | AP35: 0.198 | AQ35: 0.396 | AR35: 0.2772 | AS35: 0.19842 | AT35: 0.6922926665 | AU35: 0.9165 | AV35: 0.5696818609 | AW35: 5.986392093 | AX35: 3.340489041 | AZ35: 56.96818609 | BA35: 0.3007551863 | BB35: 0.1880477027 | BC35: 0.1197278419 | BD35: 0.06680978082 | BE35: 0.0006555049558
A36: High-side FET | B36: Input Value | C36: Units | D36: Description | G36: 27 | H36: 12 | I36: 2 | J36: 0.405 | K36: 0.10125 | L36: 0.088125 | M36: 0.7834267052 | N36: 1.361029645 | O36: 0.7817648227 | P36: -0.5792648227 | Q36: 12 | R36: 0.4057318948 | S36: 0.0007407826671 | T36: 0.3 | U36: 0.3007586064 | V36: 0.3928954161 | W36: 1.54366808e-05 | X36: 1.54366808e-05 | Y36: 0.1671247562 | Z36: 0.000195514789 | AA36: 0.000195514789 | AB36: 0.3591189602 | AC36: 0.0007351086373 | AD36: 0.007017801986 | AE36: 0 | AF36: 0.01248894958 | AG36: 0.02024483663 | AH36: 0.1888172208 | AI36: 0.0002032160744 | AJ36: 0.01685484958 | AK36: 0.01705875897 | AL36: 0.0043659 | AM36: 0.156816 | AN36: 0.0006584734819 | AO36: 0.00042 | AP36: 0.198 | AQ36: 0.396 | AR36: 0.2772 | AS36: 0.19842 | AT36: 0.698533527 | AU36: 0.95175 | AV36: 0.5767190816 | AW36: 6.187169832 | AX36: 3.440401949 | AZ36: 57.67190816 | BA36: 0.3007586064 | BB36: 0.1941195956 | BC36: 0.1237433966 | BD36: 0.06880803897 | BE36: 0.0006584734819
A37: RdsonTop | B37: =Rdson1*1000 -> 5.7 | C37: mW | D37: Drain-Source Resistance of Top FET | G37: 28 | H37: 12 | I37: 2 | J37: 0.42 | K37: 0.105 | L37: 0.09138888889 | M37: 0.7834301633 | N37: 1.361015622 | O37: 0.7855078111 | P37: -0.5755078111 | Q37: 12 | R37: 0.4066800056 | S37: 0.0007442488215 | T37: 0.3 | U37: 0.3007621562 | V37: 0.3928913679 | W37: 1.54363627e-05 | X37: 1.54363627e-05 | Y37: 0.1675143242 | Z37: 0.0001964273418 | AA37: 0.0001964273418 | AB37: 0.3599589408 | AC37: 0.0007385515026 | AD37: 0.007277720578 | AE37: 0 | AF37: 0.01240794841 | AG37: 0.0204272378 | AH37: 0.1892569363 | AI37: 0.0002041636713 | AJ37: 0.01693554841 | AK37: 0.01714041197 | AL37: 0.0045276 | AM37: 0.162624 | AN37: 0.000661554508 | AO37: 0.00042 | AP37: 0.198 | AQ37: 0.396 | AR37: 0.2772 | AS37: 0.19842 | AT37: 0.7047748242 | AU37: 0.987 | AV37: 0.5834109752 | AW37: 6.38795389 | AX37: 3.540316598 | AZ37: 58.34109752 | BA37: 0.3007621562 | BB37: 0.2001916498 | BC37: 0.1277590778 | BD37: 0.07080633197 | BE37: 0.000661554508
A38: RdsonTopTc | B38: =RdsonTopTc*1000000 -> 4000 | C38: ppm | D38: Drain to Source Resistance Temp Co | G38: 29 | H38: 12 | I38: 2 | J38: 0.435 | K38: 0.10875 | L38: 0.09465277778 | M38: 0.7834336214 | N38: 1.361001599 | O38: 0.7892507994 | P38: -0.5717507994 | Q38: 12 | R38: 0.4076604083 | S38: 0.0007478415382 | T38: 0.3 | U38: 0.3007658356 | V38: 0.3928873197 | W38: 1.54360446e-05 | X38: 1.54360446e-05 | Y38: 0.1679171889 | Z38: 0.0001973732763 | AA38: 0.0001973732763 | AB38: 0.3608275071 | AC38: 0.0007421199924 | AD38: 0.00753763917 | AE38: 0 | AF38: 0.01232694724 | AG38: 0.02060976538 | AH38: 0.1897116723 | AI38: 0.0002051459561 | AJ38: 0.01701624724 | AK38: 0.0172220998 | AL38: 0.0046893 | AM38: 0.168432 | AN38: 0.000664748034 | AO38: 0.00042 | AP38: 0.198 | AQ38: 0.396 | AR38: 0.2772 | AS38: 0.19842 | AT38: 0.7110165581 | AU38: 1.02225 | AV38: 0.5897823363 | AW38: 6.588744269 | AX38: 3.64023299 | AZ38: 58.97823363 | BA38: 0.3007658356 | BB38: 0.2062638652 | BC38: 0.1317748854 | BD38: 0.0728046598 | BE38: 0.000664748034
A39: QgTop | B39: =Qg_Q1*1000000000 -> 9 | C39: nC | D39: Gate Charge Of Top FET | G39: 30 | H39: 12 | I39: 2 | J39: 0.45 | K39: 0.1125 | L39: 0.09791666667 | M39: 0.7834370794 | N39: 1.360987575 | O39: 0.7929937876 | P39: -0.5679937876 | Q39: 12 | R39: 0.4086728704 | S39: 0.0007515608174 | T39: 0.3 | U39: 0.3007696446 | V39: 0.3928832715 | W39: 1.54357265e-05 | X39: 1.54357265e-05 | Y39: 0.1683332542 | Z39: 0.0001983525913 | AA39: 0.0001983525913 | AB39: 0.3617244537 | AC39: 0.0007458141083 | AD39: 0.007797557762 | AE39: 0 | AF39: 0.01224594606 | AG39: 0.02079241939 | AH39: 0.1901813203 | AI39: 0.0002061629271 | AJ39: 0.01709694606 | AK39: 0.01730382247 | AL39: 0.004851 | AM39: 0.17424 | AN39: 0.00066805406 | AO39: 0.00042 | AP39: 0.198 | AQ39: 0.396 | AR39: 0.2772 | AS39: 0.19842 | AT39: 0.7172587288 | AU39: 1.0575 | AV39: 0.595855641 | AW39: 6.789540969 | AX39: 3.740151123 | AZ39: 59.5855641 | BA39: 0.3007696446 | BB39: 0.2123362419 | BC39: 0.1357908194 | BD39: 0.07480302247 | BE39: 0.00066805406
A40: QgdTop | B40: =Qgd_Q1*1000000000 -> 3.6 | C40: nC | D40: Gate to Drain Charge | G40: 31 | H40: 12 | I40: 2 | J40: 0.465 | K40: 0.11625 | L40: 0.1011805556 | M40: 0.7834405375 | N40: 1.360973551 | O40: 0.7967367757 | P40: -0.5642367757 | Q40: 12 | R40: 0.4097171542 | S40: 0.0007554066591 | T40: 0.3 | U40: 0.3007735832 | V40: 0.3928792231 | W40: 1.54354084e-05 | X40: 1.54354084e-05 | Y40: 0.1687624221 | Z40: 0.0001993652857 | AA40: 0.0001993652857 | AB40: 0.3626495704 | AC40: 0.0007496338521 | AD40: 0.008057476354 | AE40: 0 | AF40: 0.01216494488 | AG40: 0.02097519983 | AH40: 0.1906657693 | AI40: 0.0002072145827 | AJ40: 0.01717764488 | AK40: 0.01738557998 | AL40: 0.0050127 | AM40: 0.180048 | AN40: 0.0006714725859 | AO40: 0.00042 | AP40: 0.198 | AQ40: 0.396 | AR40: 0.2772 | AS40: 0.19842 | AT40: 0.7235013363 | AU40: 1.09275 | AV40: 0.6016513123 | AW40: 6.990343992 | AX40: 3.840070999 | AZ40: 60.16513123 | BA40: 0.3007735832 | BB40: 0.2184087798 | BC40: 0.1398068798 | BD40: 0.07680141998 | BE40: 0.0006714725859
A41: QgsTop | B41: =Qgs_Q1*1000000000 -> 2.7 | C41: nC | G41: 32 | H41: =Vin -> 12 | I41: =MODE -> 2 | J41: 0.48 | K41: =Iout*G41/100/Number_of_Phases -> 0.12 | L41: =Vout*K41/(Vin*Efficiency) -> 0.1044444444 | M41: =(Vout+(Rdson2+Rs+Rdcr)*K41)/(Vin+(Rs+Rdson2-Rdson1)*K41) -> 0.7834439956 | N41: =(Vin-(Rdson1+Rdcr)*K41-Vout)*M41/(Fsw*Lf) -> 1.360959527 | O41: 0.8004797637 | P41: -0.5604797637 | Q41: =IF(MIN(Vin, -P41/(Coss_Q1+Coss_Q2)*0.00000002)<0, 0, MIN(Vin, -P41/(Coss_Q1+Coss_Q2)*0.00000002)) -> 12 | R41: 0.4107930172 | S41: =R41^2*Rdcr -> 0.0007593790632 | T41: =Core_Loss_Ch1 -> 0.3 | U41: =(T41+S41*(1+Ltc*(Ta-25)))/(1-S41*Ltc*ThetaCa) -> 0.3007776514 | V41: 0.3928751748 | W41: 1.543509029e-05 | X41: 1.543509029e-05 | Y41: 0.1692045923 | Z41: 0.0002004113583 | AA41: 0.0002004113583 | AB41: 0.3636026425 | AC41: =Rdson1*AB41^2 -> 0.0007535792255 | AD41: =(Vin*K41/2)*Fsw*(Tr_buck+Tf_buck) -> 0.008317394946 | AE41: =(0.5*Coss_Q1*(Vin-Q41)^2-0.5*Coss_Q2*(Vin-Q41)^2+(Qoss_Q2*(Vin-Q41)/Vin)*Vin)*Fsw -> 0 | AF41: =IF(K41>N41/2,0,ABS(K41-N41/2)*Vsd_Q1*Deadtime*Fsw) -> 0.01208394371 | AG41: =(AF41+AE41+AD41+AC41*(1+RdsonTopTc*Ta-RdsonTopTc*25))/(1-AC41*RdsonTopTc*ThetaJA_Q1) -> 0.02115810674 | AH41: =SQRT((1-M41))*SQRT(K41^2+(N41^2)/12) -> 0.191164906 | AI41: =Rdson2*AH41^2 -> 0.0002083009213 | AJ41: =IF(K41<N41/2,Deadtime*Fsw*IF(VfdSky_Q2>0,0,Vsd_Q2)*(K41+N41/2),2*Deadtime*Fsw*IF(VfdSky_Q2>0,0,Vsd_Q2)*K41) -> 0.01725834371 | AK41: =(AJ41+AI41*(1+RdsonBotTc*Ta-RdsonBotTc*25))/(1-AI41*RdsonBotTc*ThetaJA_Q2) -> 0.01746737232 | AL41: =2*Deadtime*Fsw*IF(VfdSky_Q2>0,VfdSky_Q2,Vsd_Q2)*K41 -> 0.0051744 | AM41: =IF(QrrSky_Q2>0,QrrSky_Q2,Qrr_Q2*K41/(Iout/Number_of_Phases))*Fsw*Vin -> 0.185856 | AN41: =Rs*R41^2 -> 0.0006750036118 | AO41: =Iq*Vin -> 0.00042 | AP41: =IF(Ext_VCC=1, (Qg_Q1+Qg_Q2)*Fsw*VCC, (Qg_Q1+Qg_Q2)*Fsw*Vin) -> 0.198 | AQ41: 0.396 | AR41: =(Qg_Q1+Qg_Q2)*Fsw*(Vin-VCC) -> 0.2772 | AS41: =SUM(AO41:AP41) -> 0.19842 | AT41: =SUM(U41,X41,AA41,AG41,AK41,AL41,AM41,AS41,AN41) -> 0.7297443805 | AU41: =Vout*K41 -> 1.128 | AV41: 0.6071879489 | AW41: =ThetaJA_Q1*BC41 -> 7.191153337 | AX41: =ThetaJA_Q2*BD41 -> 3.939992616 | AZ41: 60.71879489 | BA41: =U41 -> 0.3007776514 | BB41: =AG41+AK41+AM41 -> 0.2244814791 | BC41: =AG41+AM41*0.66 -> 0.1438230667 | BD41: =AK41+AM41*0.33 -> 0.07879985232 | BE41: =AN41 -> 0.0006750036118
A42: RGateTop | B42: =Rgate1 -> 0.5 | C42: W | D42: Gate Resistance | G42: 33 | H42: 12 | I42: 2 | J42: =Iout*G42/100 -> 0.495 | K42: 0.12375 | L42: 0.1077083333 | M42: 0.7834474536 | N42: 1.360945503 | O42: 0.8042227516 | P42: -0.5567227516 | Q42: 12 | R42: 0.4119002117 | S42: 0.0007634780298 | T42: 0.3 | U42: 0.3007818493 | V42: 0.3928711263 | W42: 1.543477219e-05 | X42: 1.543477219e-05 | Y42: 0.1696596627 | Z42: 0.000201490808 | AA42: 0.000201490808 | AB42: 0.3645834513 | AC42: 0.0007576502299 | AD42: 0.008577313538 | AE42: 0 | AF42: 0.01200294253 | AG42: 0.02134114012 | AH42: 0.191678615 | AI42: 0.0002094219412 | AJ42: 0.01733904253 | AK42: 0.0175491995 | AL42: 0.0053361 | AM42: 0.191664 | AN42: 0.0006786471376 | AO42: 0.00042 | AP42: 0.198 | AQ42: 0.396 | AR42: 0.2772 | AS42: 0.19842 | AT42: 0.7359878616 | AU42: 1.16325 | AV42: 0.6124825244 | AW42: 7.391969006 | AX42: 4.039915975 | AZ42: 61.24825244 | BA42: 0.3007818493 | BB42: 0.2305543396 | BC42: 0.1478393801 | BD42: 0.0807983195 | BE42: 0.0006786471376
A43: GfsTop | B43: =Gfs_Q1 -> 50 | C43: S | D43: Transconductance of Top FET | G43: 34 | H43: 12 | I43: 2 | J43: 0.51 | K43: 0.1275 | L43: 0.1109722222 | M43: 0.7834509117 | N43: 1.360931479 | O43: 0.8079657394 | P43: -0.5529657394 | Q43: 12 | R43: 0.4130384859 | S43: 0.0007677035588 | T43: 0.3 | U43: 0.3007861767 | V43: 0.3928670778 | W43: 1.543445409e-05 | X43: 1.543445409e-05 | Y43: 0.1701275293 | Z43: 0.0002026036337 | AA43: 0.0002026036337 | AB43: 0.3655917739 | AC43: 0.0007618468672 | AD43: 0.00883723213 | AE43: 0 | AF43: 0.01192194134 | AG43: 0.02152429998 | AH43: 0.1922067786 | AI43: 0.0002105776406 | AJ43: 0.01741974134 | AK43: 0.01763106152 | AL43: 0.0054978 | AM43: 0.197472 | AN43: 0.0006824031634 | AO43: 0.00042 | AP43: 0.198 | AQ43: 0.396 | AR43: 0.2772 | AS43: 0.19842 | AT43: 0.7422317795 | AU43: 1.1985 | AV43: 0.6175505614 | AW43: 7.592790999 | AX43: 4.139841076 | AZ43: 61.75505614 | BA43: 0.3007861767 | BB43: 0.2366273615 | BC43: 0.15185582 | BD43: 0.08279682152 | BE43: 0.0006824031634
A44: VthTop | B44: =Vth_Q1 -> 2.9 | C44: V | D44: Threshold Voltage of Top FET | G44: 35 | H44: 12 | I44: 2 | J44: 0.525 | K44: 0.13125 | L44: 0.1142361111 | M44: 0.7834543697 | N44: 1.360917454 | O44: 0.8117087272 | P44: -0.5492087272 | Q44: 12 | R44: 0.4142075836 | S44: 0.0007720556503 | T44: 0.3 | U44: 0.3007906338 | V44: 0.3928630293 | W44: 1.543413598e-05 | X44: 1.543413598e-05 | Y44: 0.1706080864 | Z44: 0.000203749834 | AA44: 0.000203749834 | AB44: 0.3666273836 | AC44: 0.000766169139 | AD44: 0.009097150723 | AE44: 0 | AF44: 0.01184094016 | AG44: 0.02170758636 | AH44: 0.1927492772 | AI44: 0.0002117680181 | AJ44: 0.01750044016 | AK44: 0.01771295838 | AL44: 0.0056595 | AM44: 0.20328 | AN44: 0.0006862716892 | AO44: 0.00042 | AP44: 0.198 | AQ44: 0.396 | AR44: 0.2772 | AS44: 0.19842 | AT44: 0.7484761342 | AU44: 1.23375 | AV44: 0.6224062829 | AW44: 7.793619318 | AX44: 4.239767919 | AZ44: 62.24062829 | BA44: 0.3007906338 | BB44: 0.2427005447 | BC44: 0.1558723864 | BD44: 0.08479535838 | BE44: 0.0006862716892
A45: VspTop | B45: =Vsp_Q1 -> 2.9075 | C45: V | G45: 36 | H45: 12 | I45: 2 | J45: 0.54 | K45: 0.135 | L45: 0.1175 | M45: 0.7834578277 | N45: 1.36090343 | O45: 0.8154517148 | P45: -0.5454517148 | Q45: 12 | R45: 0.4154072444 | S45: 0.0007765343043 | T45: 0.3 | U45: 0.3007952205 | V45: 0.3928589807 | W45: 1.543381787e-05 | X45: 1.543381787e-05 | Y45: 0.1711012265 | Z45: 0.000204929408 | AA45: 0.000204929408 | AB45: 0.3676900504 | AC45: 0.0007706170469 | AD45: 0.009357069315 | AE45: 0 | AF45: 0.01175993897 | AG45: 0.02189099925 | AH45: 0.1933059895 | AI45: 0.0002129930718 | AJ45: 0.01758113897 | AK45: 0.01779489008 | AL45: 0.0058212 | AM45: 0.209088 | AN45: 0.0006902527149 | AO45: 0.00042 | AP45: 0.198 | AQ45: 0.396 | AR45: 0.2772 | AS45: 0.19842 | AT45: 0.7547209258 | AU45: 1.269 | AV45: 0.6270627456 | AW45: 7.994453962 | AX45: 4.339696504 | AZ45: 62.70627456 | BA45: 0.3007952205 | BB45: 0.2487738893 | BC45: 0.1598890792 | BD45: 0.08679393008 | BE45: 0.0006902527149
A46: VsdTop | B46: =Vsd_Q1 -> 0.7 | C46: V | G46: 37 | H46: 12 | I46: 2 | J46: 0.555 | K46: 0.13875 | L46: 0.1207638889 | M46: 0.7834612857 | N46: 1.360889405 | O46: 0.8191947023 | P46: -0.5416947023 | Q46: 12 | R46: 0.4166372045 | S46: 0.0007811395206 | T46: 0.3 | U46: 0.3007999369 | V46: 0.3928549321 | W46: 1.543349976e-05 | X46: 1.543349976e-05 | Y46: 0.1716068407 | Z46: 0.0002061423543 | AA46: 0.0002061423543 | AB46: 0.3687795406 | AC46: 0.0007751905927 | AD46: 0.009616987907 | AE46: 0 | AF46: 0.01167893778 | AG46: 0.02207453868 | AH46: 0.1938767922 | AI46: 0.0002142528001 | AJ46: 0.01766183778 | AK46: 0.01787685662 | AL46: 0.0059829 | AM46: 0.214896 | AN46: 0.0006943462406 | AO46: 0.00042 | AP46: 0.198 | AQ46: 0.396 | AR46: 0.2772 | AS46: 0.19842 | AT46: 0.7609661542 | AU46: 1.30425 | AV46: 0.6315319572 | AW46: 8.195294934 | AX46: 4.439626831 | AZ46: 63.15319572 | BA46: 0.3007999369 | BB46: 0.2548473953 | BC46: 0.1639058987 | BD46: 0.08879253662 | BE46: 0.0006943462406
A47: θJATop | B47: =ThetaJA_Q1 -> 50 | C47: °C/W | D47: Junction to Ambient Resistance | G47: 38 | H47: 12 | I47: 2 | J47: 0.57 | K47: 0.1425 | L47: 0.1240277778 | M47: 0.7834647438 | N47: 1.36087538 | O47: 0.8229376898 | P47: -0.5379376898 | Q47: 12 | R47: 0.4178971961 | S47: 0.0007858712995 | T47: 0.3 | U47: 0.3008047828 | V47: 0.3928508834 | W47: 1.543318165e-05 | X47: 1.543318165e-05 | Y47: 0.1721248185 | Z47: 0.000207388672 | AA47: 0.000207388672 | AB47: 0.3698956178 | AC47: 0.0007798897779 | AD47: 0.009876906499 | AE47: 0 | AF47: 0.01159793659 | AG47: 0.02225820466 | AH47: 0.1944615604 | AI47: 0.0002155472014 | AJ47: 0.01774253659 | AK47: 0.01795885799 | AL47: 0.0061446 | AM47: 0.220704 | AN47: 0.0006985522662 | AO47: 0.00042 | AP47: 0.198 | AQ47: 0.396 | AR47: 0.2772 | AS47: 0.19842 | AT47: 0.7672118196 | AU47: 1.3395 | AV47: 0.6358249797 | AW47: 8.396142233 | AX47: 4.539558899 | AZ47: 63.58249797 | BA47: 0.3008047828 | BB47: 0.2609210626 | BC47: 0.1679228447 | BD47: 0.09079117799 | BE47: 0.0006985522662
A48: Low-side FET | B48: Input Value | C48: Units | D48: Description | G48: 39 | H48: 12 | I48: 2 | J48: 0.585 | K48: 0.14625 | L48: 0.1272916667 | M48: 0.7834682018 | N48: 1.360861354 | O48: 0.8266806771 | P48: -0.5341806771 | Q48: 12 | R48: 0.4191869487 | S48: 0.0007907296408 | T48: 0.3 | U48: 0.3008097584 | V48: 0.3928468346 | W48: 1.543286354e-05 | X48: 1.543286354e-05 | Y48: 0.1726550482 | Z48: 0.0002086683598 | AA48: 0.0002086683598 | AB48: 0.3710380423 | AC48: 0.0007847146043 | AD48: 0.01013682509 | AE48: 0 | AF48: 0.0115169354 | AG48: 0.02244199721 | AH48: 0.1950601679 | AI48: 0.000216876274 | AJ48: 0.0178232354 | AK48: 0.0180408942 | AL48: 0.0063063 | AM48: 0.226512 | AN48: 0.0007028707918 | AO48: 0.00042 | AP48: 0.198 | AQ48: 0.396 | AR48: 0.2772 | AS48: 0.19842 | AT48: 0.7734579218 | AU48: 1.37475 | AV48: 0.6399520205 | AW48: 8.59699586 | AX48: 4.63949271 | AZ48: 63.99520205 | BA48: 0.3008097584 | BB48: 0.2669948914 | BC48: 0.1719399172 | BD48: 0.0927898542 | BE48: 0.0007028707918
A49: RdsonBot | B49: =Rdson2*1000 -> 5.7 | C49: mW | D49: Drain-Source Resistance of Low-side FET | G49: 40 | H49: 12 | I49: 2 | J49: 0.6 | K49: 0.15 | L49: 0.1305555556 | M49: 0.7834716598 | N49: 1.360847329 | O49: 0.8304236643 | P49: -0.5304236643 | Q49: 12 | R49: 0.4205061882 | S49: 0.0007957145445 | T49: 0.3 | U49: 0.3008148636 | V49: 0.3928427858 | W49: 1.543254543e-05 | X49: 1.543254543e-05 | Y49: 0.1731974169 | Z49: 0.0002099814165 | AA49: 0.0002099814165 | AB49: 0.3722065719 | AC49: 0.0007896650735 | AD49: 0.01039674368 | AE49: 0 | AF49: 0.0114359342 | AG49: 0.02262591634 | AH49: 0.1956724869 | AI49: 0.0002182400162 | AJ49: 0.0179039342 | AK49: 0.01812296525 | AL49: 0.006468 | AM49: 0.23232 | AN49: 0.0007073018173 | AO49: 0.00042 | AP49: 0.198 | AQ49: 0.396 | AR49: 0.2772 | AS49: 0.19842 | AT49: 0.7797044609 | AU49: 1.41 | AV49: 0.6439225134 | AW49: 8.797855817 | AX49: 4.739428263 | AZ49: 64.39225134 | BA49: 0.3008148636 | BB49: 0.2730688816 | BC49: 0.1759571163 | BD49: 0.09478856525 | BE49: 0.0007073018173
A50: RdsonBotTc | B50: =RdsonBotTc*1000000 -> 4000 | C50: ppm | D50: Drain To Source Resitance Temp Co | G50: 41 | H50: 12 | I50: 2 | J50: 0.615 | K50: 0.15375 | L50: 0.1338194444 | M50: 0.7834751177 | N50: 1.360833303 | O50: 0.8341666515 | P50: -0.5266666515 | Q50: 12 | R50: 0.4218546381 | S50: 0.0008008260107 | T50: 0.3 | U50: 0.3008200984 | V50: 0.3928387369 | W50: 1.543222732e-05 | X50: 1.543222732e-05 | Y50: 0.1737518103 | Z50: 0.000211327841 | AA50: 0.000211327841 | AB50: 0.373400962 | AC50: 0.0007947411871 | AD50: 0.01065666227 | AE50: 0 | AF50: 0.01135493301 | AG50: 0.02280996207 | AH50: 0.1962983883 | AI50: 0.0002196384264 | AJ50: 0.01798463301 | AK50: 0.01820507114 | AL50: 0.0066297 | AM50: 0.238128 | AN50: 0.0007118453428 | AO50: 0.00042 | AP50: 0.198 | AQ50: 0.396 | AR50: 0.2772 | AS50: 0.19842 | AT50: 0.785951437 | AU50: 1.44525 | AV50: 0.6477451906 | AW50: 8.998722104 | AX50: 4.839365557 | AZ50: 64.77451906 | BA50: 0.3008200984 | BB50: 0.2791430332 | BC50: 0.1799744421 | BD50: 0.09678731114 | BE50: 0.0007118453428
A51: QgBot | B51: =Qg_Q2*1000000000 -> 9 | C51: nC | D51: Gate Charge Of Top FET | G51: 42 | H51: 12 | I51: 2 | J51: 0.63 | K51: 0.1575 | L51: 0.1370833333 | M51: 0.7834785757 | N51: 1.360819277 | O51: 0.8379096385 | P51: -0.5229096385 | Q51: 12 | R51: 0.4232320192 | S51: 0.0008060640393 | T51: 0.3 | U51: 0.3008254628 | V51: 0.392834688 | W51: 1.543190921e-05 | X51: 1.543190921e-05 | Y51: 0.1743181132 | Z51: 0.0002127076322 | AA51: 0.0002127076322 | AB51: 0.3746209656 | AC51: 0.0007999429469 | AD51: 0.01091658087 | AE51: 0 | AF51: 0.01127393181 | AG51: 0.02299413442 | AH51: 0.1969377419 | AI51: 0.0002210715029 | AJ51: 0.01806533181 | AK51: 0.01828721187 | AL51: 0.0067914 | AM51: 0.243936 | AN51: 0.0007165013683 | AO51: 0.00042 | AP51: 0.198 | AQ51: 0.396 | AR51: 0.2772 | AS51: 0.19842 | AT51: 0.79219885 | AU51: 1.4805 | AV51: 0.6514281468 | AW51: 9.199594721 | AX51: 4.939304593 | AZ51: 65.14281468 | BA51: 0.3008254628 | BB51: 0.2852173463 | BC51: 0.1839918944 | BD51: 0.09878609187 | BE51: 0.0007165013683
A52: RGateBot | B52: =Rgate2 -> 0.5 | C52: W | D52: Gate Resistance | G52: 43 | H52: 12 | I52: 2 | J52: 0.645 | K52: 0.16125 | L52: 0.1403472222 | M52: 0.7834820337 | N52: 1.360805251 | O52: 0.8416526255 | P52: -0.5191526255 | Q52: 12 | R52: 0.4246380499 | S52: 0.0008114286304 | T52: 0.3 | U52: 0.3008309569 | V52: 0.392830639 | W52: 1.543159109e-05 | X52: 1.543159109e-05 | Y52: 0.1748962096 | Z52: 0.0002141207889 | AA52: 0.0002141207889 | AB52: 0.3758663337 | AC52: 0.0008052703545 | AD52: 0.01117649946 | AE52: 0 | AF52: 0.01119293061 | AG52: 0.0231784334 | AH52: 0.1975904164 | AI52: 0.000222539244 | AJ52: 0.01814603061 | AK52: 0.01836938743 | AL52: 0.0069531 | AM52: 0.249744 | AN52: 0.0007212698937 | AO52: 0.00042 | AP52: 0.198 | AQ52: 0.396 | AR52: 0.2772 | AS52: 0.19842 | AT52: 0.7984467 | AU52: 1.51575 | AV52: 0.6549788961 | AW52: 9.40047367 | AX52: 5.039245372 | AZ52: 65.49788961 | BA52: 0.3008309569 | BB52: 0.2912918208 | BC52: 0.1880094734 | BD52: 0.1007849074 | BE52: 0.0007212698937
A53: VsdBot | B53: =Vsd_Q2 -> 0.7 | C53: V | D53: Diode Forward Voltage of Bottom FET Body Diode | G53: 44 | H53: 12 | I53: 2 | J53: 0.66 | K53: 0.165 | L53: 0.1436111111 | M53: 0.7834854916 | N53: 1.360791225 | O53: 0.8453956124 | P53: -0.5153956124 | Q53: 12 | R53: 0.4260724466 | S53: 0.000816919784 | T53: 0.3 | U53: 0.3008365805 | V53: 0.3928265899 | W53: 1.543127298e-05 | X53: 1.543127298e-05 | Y53: 0.1754859823 | Z53: 0.0002155673098 | AA53: 0.0002155673098 | AB53: 0.3771368153 | AC53: 0.0008107234115 | AD53: 0.01143641805 | AE53: 0 | AF53: 0.0111119294 | AG53: 0.02336285903 | AH53: 0.1982562794 | AI53: 0.0002240416482 | AJ53: 0.0182267294 | AK53: 0.01845159784 | AL53: 0.0071148 | AM53: 0.255552 | AN53: 0.0007261509191 | AO53: 0.00042 | AP53: 0.198 | AQ53: 0.396 | AR53: 0.2772 | AS53: 0.19842 | AT53: 0.8046949869 | AU53: 1.551 | AV53: 0.6584044236 | AW53: 9.601358951 | AX53: 5.139187892 | AZ53: 65.84044236 | BA53: 0.3008365805 | BB53: 0.2973664569 | BC53: 0.192027179 | BD53: 0.1027837578 | BE53: 0.0007261509191
A54: QrrBot | B54: =Qrr_Q2*1000000000 -> 22 | C54: nC | D54: Reverse Recovery Charge of Body Diode | G54: 45 | H54: 12 | I54: 2 | J54: 0.675 | K54: 0.16875 | L54: 0.146875 | M54: 0.7834889496 | N54: 1.360777198 | O54: 0.8491385991 | P54: -0.5116385991 | Q54: 12 | R54: 0.4275349238 | S54: 0.0008225375 | T54: 0.3 | U54: 0.3008423338 | V54: 0.3928225409 | W54: 1.543095486e-05 | X54: 1.543095486e-05 | Y54: 0.1760873136 | Z54: 0.000217047194 | AA54: 0.000217047194 | AB54: 0.378432158 | AC54: 0.0008163021197 | AD54: 0.01169633664 | AE54: 0 | AF54: 0.0110309282 | AG54: 0.02354741132 | AH54: 0.1989351978 | AI54: 0.0002255787136 | AJ54: 0.0183074282 | AK54: 0.01853384308 | AL54: 0.0072765 | AM54: 0.26136 | AN54: 0.0007311444444 | AO54: 0.00042 | AP54: 0.198 | AQ54: 0.396 | AR54: 0.2772 | AS54: 0.19842 | AT54: 0.8109437108 | AU54: 1.58625 | AV54: 0.6617112304 | AW54: 9.802250566 | AX54: 5.239132154 | AZ54: 66.17112304 | BA54: 0.3008423338 | BB54: 0.3034412544 | BC54: 0.1960450113 | BD54: 0.1047826431 | BE54: 0.0007311444444
A55: TrrBot | B55: =Trr_Q2*1000000000 -> 40 | C55: ns | D55: Reverse Recovery Time of Body Diode | G55: 46 | H55: 12 | I55: 2 | J55: 0.69 | K55: 0.1725 | L55: 0.1501388889 | M55: 0.7834924075 | N55: 1.360763172 | O55: 0.8528815858 | P55: -0.5078815858 | Q55: 12 | R55: 0.4290251944 | S55: 0.0008282817784 | T55: 0.3 | U55: 0.3008482167 | V55: 0.3928184917 | W55: 1.543063674e-05 | X55: 1.543063674e-05 | Y55: 0.1767000849 | Z55: 0.0002185604401 | AA55: 0.0002185604401 | AB55: 0.3797521076 | AC55: 0.0008220064806 | AD55: 0.01195625524 | AE55: 0 | AF55: 0.01094992699 | AG55: 0.02373209029 | AH55: 0.1996270377 | AI55: 0.0002271504387 | AJ55: 0.01838812699 | AK55: 0.01861612316 | AL55: 0.0074382 | AM55: 0.267168 | AN55: 0.0007362504697 | AO55: 0.00042 | AP55: 0.198 | AQ55: 0.396 | AR55: 0.2772 | AS55: 0.19842 | AT55: 0.8171928717 | AU55: 1.6215 | AV55: 0.6649053757 | AW55: 10.00314851 | AX55: 5.339078158 | AZ55: 66.49053757 | BA55: 0.3008482167 | BB55: 0.3095162135 | BC55: 0.2000629703 | BD55: 0.1067815632 | BE55: 0.0007362504697
A56: θJABot | B56: =ThetaJA_Q2 -> 50 | C56: °C/W | D56: Junction to Ambient Resistance | G56: 47 | H56: 12 | I56: 2 | J56: 0.705 | K56: 0.17625 | L56: 0.1534027778 | M56: 0.7834958655 | N56: 1.360749145 | O56: 0.8566245724 | P56: -0.5041245724 | Q56: 12 | R56: 0.4305429697 | S56: 0.0008341526193 | T56: 0.3 | U56: 0.3008542293 | V56: 0.3928144425 | W56: 1.543031862e-05 | X56: 1.543031862e-05 | Y56: 0.1773241774 | Z56: 0.0002201070471 | AA56: 0.0002201070471 | AB56: 0.381096409 | AC56: 0.000827836496 | AD56: 0.01221617383 | AE56: 0 | AF56: 0.01086892578 | AG56: 0.02391689596 | AH56: 0.2003316644 | AI56: 0.0002287568218 | AJ56: 0.01846882578 | AK56: 0.01869843808 | AL56: 0.0075999 | AM56: 0.272976 | AN56: 0.0007414689949 | AO56: 0.00042 | AP56: 0.198 | AQ56: 0.396 | AR56: 0.2772 | AS56: 0.19842 | AT56: 0.8234424697 | AU56: 1.65675 | AV56: 0.6679925128 | AW56: 10.2040528 | AX56: 5.439025904 | AZ56: 66.79925128 | BA56: 0.3008542293 | BB56: 0.315591334 | BC56: 0.204081056 | BD56: 0.1087805181 | BE56: 0.0007414689949
A57: Bottom Schottky | B57: Input Value | C57: Units | D57: Std Units | G57: 48 | H57: 12 | I57: 2 | J57: 0.72 | K57: 0.18 | L57: 0.1566666667 | M57: 0.7834993234 | N57: 1.360735118 | O57: 0.8603675588 | P57: -0.5003675588 | Q57: 12 | R57: 0.4320879598 | S57: 0.0008401500227 | T57: 0.3 | U57: 0.3008603715 | V57: 0.3928103932 | W57: 1.54300005e-05 | X57: 1.54300005e-05 | Y57: 0.1779594712 | Z57: 0.0002216870138 | AA57: 0.0002216870138 | AB57: 0.3824648057 | AC57: 0.0008337921674 | AD57: 0.01247609242 | AE57: 0 | AF57: 0.01078792457 | AG57: 0.02410182834 | AH57: 0.2010489428 | AI57: 0.0002303978613 | AJ57: 0.01854952457 | AK57: 0.01878078784 | AL57: 0.0077616 | AM57: 0.278784 | AN57: 0.0007468000201 | AO57: 0.00042 | AP57: 0.198 | AQ57: 0.396 | AR57: 0.2772 | AS57: 0.19842 | AT57: 0.8296925047 | AU57: 1.692 | AV57: 0.6709779233 | AW57: 10.40496342 | AX57: 5.538975392 | AZ57: 67.09779233 | BA57: 0.3008603715 | BB57: 0.3216666162 | BC57: 0.2080992683 | BD57: 0.1107795078 | BE57: 0.0007468000201
A58: VfdSky | B58: =VfdSky_Q2 -> 0 | C58: V | D58: Diode Forward Voltage | G58: 49 | H58: 12 | I58: 2 | J58: 0.735 | K58: 0.18375 | L58: 0.1599305556 | M58: 0.7835027813 | N58: 1.36072109 | O58: 0.8641105452 | P58: -0.4966105452 | Q58: 12 | R58: 0.433659874 | S58: 0.0008462739885 | T58: 0.3 | U58: 0.3008666432 | V58: 0.3928063439 | W58: 1.542968238e-05 | X58: 1.542968238e-05 | Y58: 0.1786058466 | Z58: 0.0002233003391 | AA58: 0.0002233003391 | AB58: 0.3838570404 | AC58: 0.0008398734967 | AD58: 0.01273601101 | AE58: 0 | AF58: 0.01070692335 | AG58: 0.02428688745 | AH58: 0.2017787373 | AI58: 0.0002320735554 | AJ58: 0.01863022335 | AK58: 0.01886317244 | AL58: 0.0079233 | AM58: 0.284592 | AN58: 0.0007522435453 | AO58: 0.00042 | AP58: 0.198 | AQ58: 0.396 | AR58: 0.2772 | AS58: 0.19842 | AT58: 0.8359429767 | AU58: 1.72725 | AV58: 0.6738665468 | AW58: 10.60588037 | AX58: 5.638926622 | AZ58: 67.38665468 | BA58: 0.3008666432 | BB58: 0.3277420599 | BC58: 0.2121176074 | BD58: 0.1127785324 | BE58: 0.0007522435453
A59: QrrSky | B59: =QrrSky_Q2*1000000000 -> 0 | C59: nC | D59: Diode Reverse Recovery Charge | G59: 50 | H59: 12 | I59: 2 | J59: 0.75 | K59: 0.1875 | L59: 0.1631944444 | M59: 0.7835062392 | N59: 1.360707063 | O59: 0.8678535315 | P59: -0.4928535315 | Q59: 12 | R59: 0.4352584205 | S59: 0.0008525245167 | T59: 0.3 | U59: 0.3008730446 | V59: 0.3928022946 | W59: 1.542936426e-05 | X59: 1.542936426e-05 | Y59: 0.1792631831 | Z59: 0.0002249470217 | AA59: 0.0002249470217 | AB59: 0.3852728551 | AC59: 0.0008460804854 | AD59: 0.0129959296 | AE59: 0 | AF59: 0.01062592214 | AG59: 0.0244720733 | AH59: 0.2025209118 | AI59: 0.0002337839025 | AJ59: 0.01871092214 | AK59: 0.01894559188 | AL59: 0.008085 | AM59: 0.2904 | AN59: 0.0007577995704 | AO59: 0.00042 | AP59: 0.198 | AQ59: 0.396 | AR59: 0.2772 | AS59: 0.19842 | AT59: 0.8421938858 | AU59: 1.7625 | AV59: 0.6766630081 | AW59: 10.80680366 | AX59: 5.738879594 | AZ59: 67.66630081 | BA59: 0.3008730446 | BB59: 0.3338176652 | BC59: 0.2161360733 | BD59: 0.1147775919 | BE59: 0.0007577995704
A60: Ireverse | B60: =Ireverse -> 0 | C60: mA | D60: Reverse Leakage Current | G60: 51 | H60: 12 | I60: 2 | J60: 0.765 | K60: 0.19125 | L60: 0.1664583333 | M60: 0.7835096971 | N60: 1.360693035 | O60: 0.8715965177 | P60: -0.4890965177 | Q60: 12 | R60: 0.4368833069 | S60: 0.0008589016074 | T60: 0.3 | U60: 0.3008795757 | V60: 0.3927982451 | W60: 1.542904614e-05 | X60: 1.542904614e-05 | Y60: 0.1799313601 | Z60: 0.0002266270605 | AA60: 0.0002266270605 | AB60: 0.3867119911 | AC60: 0.0008524131351 | AD60: 0.0132558482 | AE60: 0 | AF60: 0.01054492092 | AG60: 0.02465738591 | AH60: 0.2032753301 | AI60: 0.0002355289009 | AJ60: 0.01879162092 | AK60: 0.01902804615 | AL60: 0.0082467 | AM60: 0.296208 | AN60: 0.0007634680955 | AO60: 0.00042 | AP60: 0.198 | AQ60: 0.396 | AR60: 0.2772 | AS60: 0.19842 | AT60: 0.8484452319 | AU60: 1.79775 | AV60: 0.6793716421 | AW60: 11.0077333 | AX60: 5.838834308 | AZ60: 67.93716421 | BA60: 0.3008795757 | BB60: 0.3398934321 | BC60: 0.2201546659 | BD60: 0.1167766862 | BE60: 0.0007634680955
A61: Controller | B61: Input Value | C61: Units | D61: Std Units | G61: 52 | H61: 12 | I61: 2 | J61: 0.78 | K61: 0.195 | L61: 0.1697222222 | M61: 0.783513155 | N61: 1.360679008 | O61: 0.8753395038 | P61: -0.4853395038 | Q61: 12 | R61: 0.4385342405 | S61: 0.0008654052606 | T61: 0.3 | U61: 0.3008862363 | V61: 0.3927941956 | W61: 1.542872801e-05 | X61: 1.542872801e-05 | Y61: 0.1806102569 | Z61: 0.0002283404544 | AA61: 0.0002283404544 | AB61: 0.3881741894 | AC61: 0.0008588714477 | AD61: 0.01351576679 | AE61: 0 | AF61: 0.0104639197 | AG61: 0.0248428253 | AH61: 0.2040418555 | AI61: 0.0002373085491 | AJ61: 0.0188723197 | AK61: 0.01911053527 | AL61: 0.0084084 | AM61: 0.302016 | AN61: 0.0007692491205 | AO61: 0.00042 | AP61: 0.198 | AQ61: 0.396 | AR61: 0.2772 | AS61: 0.19842 | AT61: 0.8546970152 | AU61: 1.833 | AV61: 0.6819965158 | AW61: 11.20866926 | AX61: 5.938790763 | AZ61: 68.19965158 | BA61: 0.3008862363 | BB61: 0.3459693606 | BC61: 0.2241733853 | BD61: 0.1187758153 | BE61: 0.0007692491205
A62: θJA | B62: 30 | C62: °C/W | D62: Junction to Ambient Resistance | G62: 53 | H62: 12 | I62: 2 | J62: 0.795 | K62: 0.19875 | L62: 0.1729861111 | M62: 0.7835166129 | N62: 1.36066498 | O62: 0.8790824898 | P62: -0.4815824898 | Q62: 12 | R62: 0.4402109283 | S62: 0.0008720354762 | T62: 0.3 | U62: 0.3008930266 | V62: 0.3927901461 | W62: 1.542840989e-05 | X62: 1.542840989e-05 | Y62: 0.1812997526 | Z62: 0.0002300872021 | AA62: 0.0002300872021 | AB62: 0.3896591909 | AC62: 0.0008654554246 | AD62: 0.01377568538 | AE62: 0 | AF62: 0.01038291848 | AG62: 0.02502839148 | AH62: 0.2048203514 | AI62: 0.0002391228452 | AJ62: 0.01895301848 | AK62: 0.01919305922 | AL62: 0.0085701 | AM62: 0.307824 | AN62: 0.0007751426455 | AO62: 0.00042 | AP62: 0.198 | AQ62: 0.396 | AR62: 0.2772 | AS62: 0.19842 | AT62: 0.8609492356 | AU62: 1.86825 | AV62: 0.6845414492 | AW62: 11.40961157 | AX62: 6.038748961 | AZ62: 68.45414492 | BA62: 0.3008930266 | BB62: 0.3520454507 | BC62: 0.2281922315 | BD62: 0.1207749792 | BE62: 0.0007751426455
